Workbook

Sheet Collateral Tables
B1: CNH CAPITAL AUSTRALIA RECEIVABLES TRUST SERIES 2011-1 (TERM DEAL)
B2: COLLATERAL DATA TABLES
B4: OUTSTANDING RECEIVABLES | E4: 2014-05-31 | I4: 2014-02-28 | M4: 2013-11-30 | Q4: 2013-08-31 | U4: 2013-05-31 | Y4: 2013-02-28 | AC4: 2012-11-30 | AG4: 2012-08-31 | AK4: 2012-05-31 | AO4: 2012-02-29 | AS4: 2011-11-30
B6: Opening Balance | E6: =I13 -> 98972900.76 | I6: 122415113.5 | M6: 137450609.9 | Q6: 154418920.7 | U6: 184802945 | Y6: =AC13 -> 213516536.2 | AC6: =AG13 -> 233023822 | AG6: =AK13 -> 253388443.9 | AK6: =AO13 -> 289481166.9 | AO6: =AS13 -> 323106015.3 | AS6: =[1]Summary!$B$29 -> 349999197
B7: Principal Repayments - Scheduled | E7: =MIN('16 Jun 14'!$H23,SUM([2]Sheet1!$B$2,[3]Sheet1!$B$2,[4]Sheet1!$B$2)) -> 22570766.61 | I7: 22570766.61 | M7: 9748521.63 | Q7: 15468185.2 | U7: 28717275.89 | Y7: =MIN('15 Mar 13'!H23,SUM([5]Sheet1!$B$2,[6]Sheet1!$B$2,[7]Sheet1!$B$2)) -> 28622446.36 | AC7: =[8]Sheet1!$B$2+[9]Sheet1!$B$2+[10]Sheet1!$B$2 -> 12402247.01 | AG7: =MIN([11]Sheet1!$B$2+[12]Sheet1!$B$2+[13]Sheet1!$B$2,'15 Jun 12'!$H$23) -> 18972868.45 | AK7: =MIN([14]Sheet1!$B$2+[15]Sheet1!$B$2+[16]Sheet1!$B$2,'15 Jun 12'!$H$23) -> 35850434.74 | AO7: ='[17]Payment Schedule'!$B$2+[18]Sheet1!$B$2+[19]FINAL!$B$2 -> 31868646.06 | AS7: 16275430.98
B8: Principal Repayments - Unscheduled | E8: ='16 Jun 14'!$H$23-'Collateral Tables'!E7 -> 1234898.84 | I8: 739633.31 | M8: 4591033.65 | Q8: 0 | U8: 0 | Y8: ='15 Mar 13'!H23-'Collateral Tables'!Y7 -> 0 | AC8: ='17 Dec 12'!H23-AC7 -> 6516111.08 | AG8: ='15 Sep 12'!H23-'Collateral Tables'!AG7 -> 752779.22 | AK8: ='15 Jun 12'!H23-'Collateral Tables'!AK7 -> 0 | AO8: ='15 Mar 12'!H23-'Collateral Tables'!AO7 -> 1704245.57 | AP8: =AO9/AO6 -> 0.0001608040319 | AS8: 10394693.64
A9: =SUM(E9:AS9) -> 6052932.283 | B9: Charge-Offs | E9: ='16 Jun 14'!$H37 -> 221955.41 | I9: 131812.85 | M9: 695941.08 | Q9: 1500125.61 | U9: 1666748.38 | Y9: ='15 Mar 13'!H37 -> 91144.91 | AC9: ='17 Dec 12'!H37 -> 588927.67 | AG9: ='15 Sep 12'!H37 -> 638974.24 | AH9: =AG9/AG6 -> 0.002521718158 | AK9: ='15 Jun 12'!H37 -> 242288.27 | AO9: ='15 Mar 12'!H37 -> 51956.75 | AS9: 223057.11
B10: Reinstatements
B11: New Receivables Purchased
B12: Non Cash Change in Receivables
B13: Closing Balance | E13: =E6-E7-E8-E9+E10+E11-E12 -> 74945279.9 | F13: =E13-F69 -> 0 | I13: 98972900.76 | M13: 122415113.5 | Q13: 137450609.9 | U13: 154418920.7 | Y13: =Y6-Y7-Y8-Y9+Y10+Y11-Y12 -> 184802945 | AC13: =AC6-AC7-AC8-AC9+AC10+AC11-AC12 -> 213516536.2 | AG13: =AG6-AG7-AG8-AG9+AG10+AG11-AG12 -> 233023822 | AK13: =AK6-AK7-AK8-AK9+AK10+AK11-AK12 -> 253388443.9 | AO13: =AO6-AO7-AO8-AO9+AO10+AO11-AO12 -> 289481166.9 | AS13: =AS6-AS7-AS8-AS9+AS10+AS11-AS12 -> 323106015.3 | AT13: 0
B15: PORTFOLIO STATISTICS
B17: Summary
B18: Number of contracts | E18: ='[20]Servicer Recon'!$B$4 -> 1888 | I18: 2159 | M18: 2400 | Q18: 2594 | U18: 2808 | Y18: ='[21]Servicer Recon'!$B$4 -> 3024 | AC18: ='[22]Servicer Recon'!$B$4 -> 3222 | AG18: ='[23]Servicer Recon'!$B$4 -> 3368 | AK18: ='[24]Servicer Recon'!$B$4 -> 3506 | AO18: =[25]Summary!$B$4 -> 3672 | AS18: =[1]Summary!$B$4 -> 3797
B19: Dollar value of contracts | E19: ='[20]Servicer Recon'!$B$5 -> 74945279.9 | I19: 98972900.76 | M19: 122415113.5 | Q19: 137450609.9 | U19: 154418920.7 | Y19: ='[21]Servicer Recon'!$B$5 -> 184802945 | AC19: ='[22]Servicer Recon'!$B$5 -> 213516536.2 | AG19: ='[23]Servicer Recon'!$B$5 -> 233023822 | AK19: ='[24]Servicer Recon'!$B$5 -> 253388443.9 | AO19: =[25]Summary!$B$5 -> 289481166.9 | AS19: =[1]Summary!$B$5 -> 323106015.3
B20: Number of contracts closed during the Quarter | E20: ='[20]Servicer Recon'!$B$19 -> 267 | I20: 240 | M20: 185 | Q20: 202 | U20: 207 | Y20: ='[21]Servicer Recon'!$B$19 -> 195 | AC20: ='[22]Servicer Recon'!$B$19 -> 138 | AG20: ='[23]Servicer Recon'!$B$19 -> 132 | AK20: ='[24]Servicer Recon'!$B$19 -> 163 | AO20: =[25]Summary!$B$19 -> 124 | AS20: =[1]Summary!$B$19 -> 96
B21: Dollar value of contracts closed during the Quarter | E21: ='[20]Servicer Recon'!$B$20 -> 7086826.65 | I21: 5361936.03 | M21: 6788964.32 | Q21: 6436933.52 | U21: 6374204.68 | Y21: ='[21]Servicer Recon'!$B$20 -> 5550930.82 | AC21: ='[22]Servicer Recon'!$B$20 -> 9956977.63 | AG21: ='[23]Servicer Recon'!$B$20 -> 7715250.51 | AK21: ='[24]Servicer Recon'!$B$20 -> 8519169.88 | AO21: =[25]Summary!$B$20 -> 6899567.87 | AS21: =[1]Summary!$B$20 -> 10394004.8
A23: =SUM(E23:AS23) -> 2845163.126 | B23: Dollar Value of Recoveries from Collateral | E23: ='16 Jun 14'!H15 -> 220871.53 | I23: 879634.1836 | M23: 697223.5891 | Q23: 452821.3582 | U23: 0 | Y23: ='[21]Servicer Recon'!$C$16 -> 202949.5655 | AC23: ='17 Dec 12'!H15 -> 194649.3055 | AG23: ='15 Sep 12'!H15 -> 75560.32 | AK23: ='15 Jun 12'!$H15 -> 121453.2746 | AO23: ='15 Mar 12'!H15 -> 0 | AS23: 0
B24: Dollar Value of Recoveries from Other Sources | E24: 0 | I24: 0 | M24: 0 | Q24: 0 | U24: 0 | Y24: 0 | AC24: 0 | AG24: 0 | AK24: 0 | AO24: 0 | AS24: 0
B26: Average Term of Contracts (Months) | E26: =[26]Sheet1!$W$1892 -> 58.08727567 | I26: 57.53453876 | M26: 57.10041486 | Q26: 56.95679939 | U26: 56.62071099 | Y26: ='[27]Base Table'!$BZ$3027 -> 56.28241871 | AC26: ='[28]Base Table'!$T$3225 -> 55.9488015 | AG26: ='[29](1__2011_1_Base_Table___All_Loa'!$V$3371 -> 54.69110555 | AK26: ='[30](1__2011_1_Base_Table___All_Loa'!$V$3509 -> 54.0792743 | AO26: ='[31](1__2011_1_Base_Table___All_Loa'!$V$3675 -> 53.62193954 | AS26: =[32]_2011_1_Monthly_Base_Table!$V$3800 -> 53.37750214
B27: Average Term to Maturity (Months) | E27: =[26]Sheet1!$X$1892 -> 15.51271682 | I27: 17.64701693 | M27: 19.90230174 | Q27: 22.54032708 | U27: 25.13651863 | Y27: ='[27]Base Table'!$CA$3027 -> 27.47823494 | AC27: ='[28]Base Table'!$U$3225 -> 29.71225676 | AG27: ='[29](1__2011_1_Base_Table___All_Loa'!$W$3371 -> 31.48626684 | AK27: ='[30](1__2011_1_Base_Table___All_Loa'!$W$3509 -> 33.68305483 | AO27: ='[31](1__2011_1_Base_Table___All_Loa'!$W$3675 -> 36.0577911 | AS27: =[32]_2011_1_Monthly_Base_Table!$W$3800 -> 38.43549614
B28: Average Residual / Balloon Payment * | E28: =[26]Sheet1!$AI$1892 -> 0.05760517239 | I28: 0.04943846071 | M28: 0.04394145161 | Q28: 0.04465660629 | U28: 0.04499496313 | Y28: ='[27]Base Table'!$CB$3027 -> 0.04190228966 | AC28: ='[28]Base Table'!$AF$3225 -> 0.03935611425 | AG28: ='[29](1__2011_1_Base_Table___All_Loa'!$AH$3371 -> 0.02285103269 | AK28: ='[30](1__2011_1_Base_Table___All_Loa'!$AH$3509 -> 0.02761628626 | AO28: ='[31](1__2011_1_Base_Table___All_Loa'!$AH$3675 -> 0.02807826048 | AS28: =[32]_2011_1_Monthly_Base_Table!$AH$3800 -> 0.02815159508
B29: Average Seasoning (Months) | E29: =E26-E27 -> 42.57455886 | I29: 39.88752183 | M29: 37.19811312 | Q29: 34.41647231 | U29: 31.48419237 | Y29: =Y26-Y27 -> 28.80418377 | AC29: =AC26-AC27 -> 26.23654474 | AG29: =AG26-AG27 -> 23.20483871 | AK29: =AK26-AK27 -> 20.39621947 | AO29: =AO26-AO27 -> 17.56414843 | AS29: =AS26-AS27 -> 14.942006
B30: Average Dollar Value of Individual Assets | E30: =E19/E18 -> 39695.59317 | I30: 45842.01054 | M30: 51006.2973 | Q30: 52987.89896 | U30: 54992.49313 | Y30: =Y19/Y18 -> 61112.08498 | AC30: =AC19/AC18 -> 66268.32286 | AG30: =AG19/AG18 -> 69187.59561 | AK30: =AK19/AK18 -> 72272.80203 | AO30: =AO19/AO18 -> 78834.74045 | AS30: =AS19/AS18 -> 85095.07909
B31: Weighted Average Interest Rate | E31: =[26]Sheet1!$AA$1892/100 -> 0.07805117665 | I31: 0.0775463434 | M31: 0.0772008037 | Q31: 0.07737661819 | U31: 0.07763876939 | Y31: ='[27]Base Table'!$BY$3027/100 -> 0.07750408581 | AC31: ='[28]Base Table'!$X$3225/100 -> 0.07715808595 | AG31: ='[29](1__2011_1_Base_Table___All_Loa'!$Z$3371/100 -> 0.07710412075 | AK31: ='[30](1__2011_1_Base_Table___All_Loa'!$Z$3509/100 -> 0.07705565765 | AO31: ='[31](1__2011_1_Base_Table___All_Loa'!$Z$3675/100 -> 0.0770206074 | AS31: =[32]_2011_1_Monthly_Base_Table!$Z$3800/100 -> 0.07687828642
B33: Payment in Arrears | AS33: No. of Contracts | AT33: Payments in Arrears ($) | AU33: Payments in Arrears (%)
A34: 1. 0 - 30 Days | B34: 0 - 30 Days | E34: =IFERROR(VLOOKUP($A34,[33]Arrears!$A$2:$D$7,3,0),0) -> 1852 | F34: =IFERROR(VLOOKUP($A34,[33]Arrears!$A$2:$D$7,2,0),0) -> 293384.92 | G34: =F34/F$50 -> 0.003914655071 | I34: 2144 | J34: 306983 | K34: 0.003101687408 | M34: 2382 | N34: 118903.28 | O34: 0.0009713120919 | Q34: 2573 | R34: 185969.18 | S34: 0.001352989122 | U34: 2749 | V34: 441498.65 | W34: 0.002859096852 | Y34: 3012 | Z34: 710402.61 | AA34: =Z34/Z$50 -> 0.003844108708 | AC34: 3210 | AD34: 261600.9 | AE34: =AD34/$AD$50 -> 0.00122520206 | AG34: 3346 | AH34: 311672.41 | AI34: =AH34/$AH$50 -> 0.001337513081 | AK34: 3468 | AL34: 458530.59 | AM34: =AL34/$AL$50 -> 0.001809595508 | AO34: 3662 | AP34: 809093.4 | AQ34: =AP34/$AP$50 -> 0.002794977679 | AS34: 3793 | AT34: 88689.4 | AU34: =AT34/$AT$50 -> 0.0002744900924
A35: 2. 31 - 60 Days | B35: 31 - 60 Days | E35: =IFERROR(VLOOKUP($A35,[33]Arrears!$A$2:$D$7,3,0),0) -> 14 | F35: =IFERROR(VLOOKUP($A35,[33]Arrears!$A$2:$D$7,2,0),0) -> 254834.44 | G35: =F35/F$50 -> 0.003400273377 | I35: 2 | J35: 8256.42 | K35: 8.342101663e-05 | M35: 11 | N35: 205290.38 | O35: 0.001677001917 | Q35: 6 | R35: 170256.75 | S35: 0.001238675842 | U35: 22 | V35: 541338.76 | W35: 0.003505650458 | Y35: 8 | Z35: 209790.15 | AA35: =Z35/Z$50 -> 0.001135209994 | AC35: 7 | AD35: 71748.89 | AE35: =AD35/$AD$50 -> 0.0003360343478 | AG35: 11 | AH35: 203884.43 | AI35: =AH35/$AH$50 -> 0.0008749510168 | AK35: 23 | AL35: 424301.84 | AM35: =AL35/$AL$50 -> 0.001674511408 | AO35: 7 | AP35: 114344.08 | AQ35: =AP35/$AP$50 -> 0.0003949966114 | AS35: 2 | AT35: 18129.45 | AU35: =AT35/$AT$50 -> 5.610991174e-05
A36: 3. 61 - 90 Days | B36: 61 - 90 Days | E36: =IFERROR(VLOOKUP($A36,[33]Arrears!$A$2:$D$7,3,0),0) -> 10 | F36: =IFERROR(VLOOKUP($A36,[33]Arrears!$A$2:$D$7,2,0),0) -> 305262.8 | G36: 0.004073142437 | I36: 8 | J36: 236133.45 | K36: 0.002385839439 | M36: 2 | N36: 27367.07 | O36: 0.0002235595688 | Q36: 6 | R36: 188262.29 | S36: 0.001369672278 | U36: 17 | V36: 621275.75 | W36: 0.00402331364 | Y36: 1 | Z36: 90943.03 | AA36: 0.000492108121 | AC36: 4 | AD36: 52948.52 | AE36: 0.0002479832285 | AG36: 4 | AH36: 59733.27 | AI36: 0.0002563397574 | AK36: 9 | AL36: 292179.98 | AM36: 0.001153091181 | AO36: 1 | AP36: 11684.24 | AQ36: 4.036269483e-05 | AS36: 1 | AT36: 26578.98 | AU36: 8.226086406e-05
A37: 4. 91 - 120 Days | B37: 91 - 120 Days | E37: =IFERROR(VLOOKUP($A37,[33]Arrears!$A$2:$D$7,3,0),0) -> 9 | F37: =IFERROR(VLOOKUP($A37,[33]Arrears!$A$2:$D$7,2,0),0) -> 257999.15 | G37: 0.003442500319 | I37: 1 | J37: 20315.74 | K37: 0.0002052656823 | M37: 3 | N37: 45309.46 | O37: 0.0003701296245 | Q37: 2 | R37: 67035.01 | S37: 0.0004877025286 | U37: 14 | V37: 615021.66 | W37: 0.003982812839 | Y37: 0 | Z37: 0 | AA37: 0 | AC37: 0 | AD37: 0 | AE37: 0 | AG37: 0 | AH37: 0 | AI37: 0 | AK37: 4 | AL37: 79173.79 | AM37: 0.0003124601453 | AO37: 1 | AP37: 6282.64 | AQ37: 2.170310444e-05 | AS37: 1 | AT37: 11759.71 | AU37: 3.639582503e-05
A38: 5. 121 - 150 Days | B38: 121 - 150 Days | E38: =IFERROR(VLOOKUP($A38,[33]Arrears!$A$2:$D$7,3,0),0) -> 0 | F38: =IFERROR(VLOOKUP($A38,[33]Arrears!$A$2:$D$7,2,0),0) -> 0 | G38: 0 | I38: 2 | J38: 23596.68 | K38: 0.0002384155645 | M38: 1 | N38: 5757.29 | O38: 4.70308758e-05 | Q38: 5 | R38: 87134.37 | S38: 0.0006339322181 | U38: 4 | V38: 101388.47 | W38: 0.0006565806155 | Y38: 3 | Z38: 43972.85 | AA38: 0.0002379445306 | AC38: 1 | AD38: 8857.64 | AE38: 4.148456207e-05 | AG38: 5 | AH38: 65528.87 | AI38: 0.0002812110343 | AK38: 2 | AL38: 42637.56 | AM38: 0.0001682695522 | AO38: 0 | AP38: 0 | AQ38: 0 | AS38: 0 | AT38: 0 | AU38: 0
A39: 6. 151 - 180 Days | B39: 151 - 180 Days | E39: =IFERROR(VLOOKUP($A39,[33]Arrears!$A$2:$D$7,3,0),0) -> 3 | F39: =IFERROR(VLOOKUP($A39,[33]Arrears!$A$2:$D$7,2,0),0) -> 142631.44 | G39: 0.001903141068 | I39: 2 | J39: 50998.46 | K39: 0.0005152770062 | M39: 1 | N39: 41510.72 | O39: 0.0003390979986 | Q39: 2 | R39: 43995.87 | S39: 0.0003200849384 | U39: 2 | V39: 99071.49 | W39: 0.0006415761071 | Y39: 0 | Z39: 0 | AA39: 0 | AC39: 0 | AD39: 0 | AE39: 0 | AG39: 2 | AH39: 79793.18 | AI39: 0.0003424249904 | AK39: 0 | AL39: 0 | AM39: 0 | AO39: 1 | AP39: 26578.98 | AQ39: 9.181592116e-05 | AS39: 0 | AT39: 0 | AU39: 0
B40: Total | E40: =SUM(E34:E39) -> 1888 | F40: =SUM(F34:F39) -> 1254112.75 | G40: =SUM(G34:G39) -> 0.01673371227 | I40: 2159 | J40: 646283.75 | K40: 0.006529906116 | M40: 2400 | N40: 444138.2 | O40: 0.003628132076 | Q40: 2594 | R40: 742653.47 | S40: 0.005403056928 | U40: 2808 | V40: 2419594.78 | W40: 0.01566903051 | Y40: =SUM(Y34:Y39) -> 3024 | Z40: =SUM(Z34:Z39) -> 1055108.64 | AA40: =SUM(AA34:AA39) -> 0.005709371353 | AC40: =SUM(AC34:AC39) -> 3222 | AD40: =SUM(AD34:AD39) -> 395155.95 | AE40: =SUM(AE34:AE39) -> 0.001850704198 | AG40: =SUM(AG34:AG39) -> 3368 | AH40: =SUM(AH34:AH39) -> 720612.16 | AI40: =SUM(AI34:AI39) -> 0.003092439879 | AK40: =SUM(AK34:AK39) -> 3506 | AL40: =SUM(AL34:AL39) -> 1296823.76 | AM40: =SUM(AM34:AM39) -> 0.005117927795 | AO40: =SUM(AO34:AO39) -> 3672 | AP40: =SUM(AP34:AP39) -> 967983.34 | AQ40: =SUM(AQ34:AQ39) -> 0.003343856011 | AS40: 3797 | AT40: 145157.54 | AU40: =SUM(AU34:AU39) -> 0.0004492566932
B41: * Expressed as a % of Aggreg. Rec. closing bal. | F41: > 30 days | G41: =SUM(G35:G39) -> 0.0128190572 | J41: > 30 days | K41: 0.003428218708 | N41: > 30 days | O41: 0.002656819984 | R41: > 30 days | S41: 0.004050067806 | V41: > 30 days | W41: 0.01280993366 | Z41: > 30 days | AA41: =SUM(AA35:AA39) -> 0.001865262645 | AD41: > 30 days | AE41: =SUM(AE35:AE39) -> 0.0006255021384 | AH41: > 30 days | AI41: =SUM(AI35:AI39) -> 0.001754926799 | AL41: > 30 days | AM41: =SUM(AM35:AM39) -> 0.003308332286 | AP41: > 30 days | AQ41: =SUM(AQ35:AQ39) -> 0.0005488783318 | AT41: > 30 days | AU41: =SUM(AU35:AU39) -> 0.0001747666008
A43: 0 - 30 Days | B43: Account Balances in Arrears | AS43: No. of Contracts | AT43: Acc Balance in Arrears ($) | AU43: Acc. Bal. in Arrears (%)
A44: 1. 0 - 30 Days | B44: 0 - 30 Days | E44: =E34 -> 1852 | F44: =VLOOKUP($A44,[33]Arrears!$A$2:$D$7,4,0) -> 72120552.09 | G44: =F44/F$50 -> 0.9623094635 | I44: 2144 | J44: 97671107.82 | K44: 0.986846976 | M44: 2382 | N44: 121248806.5 | O44: 0.9904725241 | Q44: 2573 | R44: 135307553.3 | S44: 0.9844085334 | U44: 2749 | V44: 148435000.8 | W44: 0.9612487905 | Y44: =Y34 -> 3012 | Z44: =VLOOKUP(B44,[34]Arrears!$A$2:$D$5,4,0) -> 183655920.3 | AA44: =Z44/Z$50 -> 0.9937932555 | AC44: =AC34 -> 3210 | AD44: =VLOOKUP(B44,[35]Arrears!$A$2:$D$5,4,0) -> 212868522.8 | AE44: =AD44/$AD$50 -> 0.9969650434 | AG44: =AG34 -> 3346 | AH44: =IFERROR(VLOOKUP(B44,'[36](908__ARREARS_REPORTING'!$A$2:$D$6,4,0),0) -> 231616820.5 | AI44: =AH44/$AH$50 -> 0.9939619841 | AK44: =AK34 -> 3468 | AL44: =IFERROR(VLOOKUP($B34,'[37](908__ARREARS_REPORTING'!$A$1:$D$6,4,0),0) -> 249824968.4 | AM44: =AL44/$AL$50 -> 0.9859367088 | AO44: =AO34 -> 3662 | AP44: =VLOOKUP(B44,'[38](908__ARREARS_REPORTING'!$A$2:$D$6,4,0) -> 288833437.5 | AQ44: =AP44/$AP$50 -> 0.9977624471 | AS44: 3793 | AT44: 322883588.2 | AU44: 0.9993115972
A45: 2. 31 - 60 Days | B45: 31 - 60 Days | E45: =E35 -> 14 | F45: =VLOOKUP($A45,[33]Arrears!$A$2:$D$7,4,0) -> 590626.03 | G45: =F45/F$50 -> 0.007880763549 | I45: 2 | J45: 75256.81 | K45: 0.000760377936 | M45: 11 | N45: 522680.97 | O45: 0.00426974215 | Q45: 6 | R45: 555001.51 | S45: 0.004037825008 | U45: 22 | V45: 1535091.04 | W45: 0.009941081268 | Y45: =Y35 -> 8 | Z45: =VLOOKUP(B45,[34]Arrears!$A$2:$D$5,4,0) -> 677701.89 | AA45: =Z45/Z$50 -> 0.00366715958 | AC45: =AC35 -> 7 | AD45: =VLOOKUP(B45,[35]Arrears!$A$2:$D$5,4,0) -> 280562.06 | AE45: =AD45/$AD$50 -> 0.001314006235 | AG45: =AG35 -> 11 | AH45: =IFERROR(VLOOKUP(B45,'[36](908__ARREARS_REPORTING'!$A$2:$D$6,4,0),0) -> 651310.29 | AI45: =AH45/$AH$50 -> 0.002795037367 | AK45: =AK35 -> 23 | AL45: =IFERROR(VLOOKUP($B35,'[37](908__ARREARS_REPORTING'!$A$1:$D$6,4,0),0) -> 2087868.02 | AM45: =AL45/$AL$50 -> 0.008239791791 | AO45: =AO35 -> 7 | AP45: =VLOOKUP(B45,'[38](908__ARREARS_REPORTING'!$A$2:$D$6,4,0) -> 396831.59 | AQ45: =AP45/$AP$50 -> 0.00137083733 | AS45: 2 | AT45: 64340.8 | AU45: 0.0001991321639
A46: 3. 61 - 90 Days | B46: 61 - 90 Days | E46: 10 | F46: =VLOOKUP($A46,[33]Arrears!$A$2:$D$7,4,0) -> 1001676.67 | G46: 0.01336544038 | I46: 8 | J46: 710594.12 | K46: 0.007179683676 | M46: 2 | N46: 106384.12 | O46: 0.0008690440006 | Q46: 6 | R46: 924057.7 | S46: 0.006722834484 | U46: 17 | V46: 2090180.09 | W46: 0.0135357771 | Y46: 1 | Z46: =VLOOKUP(B46,[34]Arrears!$A$2:$D$5,4,0) -> 299214.67 | AA46: 0.0016191012 | AC46: 4 | AD46: =VLOOKUP(B46,[35]Arrears!$A$2:$D$5,4,0) -> 354713.89 | AE46: 0.0016612947 | AG46: 4 | AH46: =IFERROR(VLOOKUP(B46,'[36](908__ARREARS_REPORTING'!$A$2:$D$6,4,0),0) -> 235344.69 | AI46: 0.001009959789 | AK46: 9 | AL46: =IFERROR(VLOOKUP($B36,'[37](908__ARREARS_REPORTING'!$A$1:$D$6,4,0),0) -> 1048759.28 | AM46: 0.004138938871 | AO46: 1 | AP46: =VLOOKUP(B46,'[38](908__ARREARS_REPORTING'!$A$2:$D$6,4,0) -> 75733.52 | AQ46: 0.0002616181246 | AS46: 1 | AT46: 106129.53 | AU46: 0.0003284665867
A47: 4. 91 - 120 Days | B47: 91 - 120 Days | E47: 9 | F47: =VLOOKUP($A47,[33]Arrears!$A$2:$D$7,4,0) -> 778276.01 | G47: 0.01038459008 | I47: 1 | J47: 220600.94 | K47: 0.00222890244 | M47: 3 | N47: 222449.78 | O47: 0.001817175785 | Q47: 2 | R47: 246243.34 | S47: 0.001791504164 | U47: 14 | V47: 1639213.04 | W47: 0.01061536392 | Y47: 0 | Z47: 0 | AA47: 0 | AC47: 0 | AD47: 0 | AE47: 0 | AG47: 0 | AH47: =IFERROR(VLOOKUP(B47,'[36](908__ARREARS_REPORTING'!$A$2:$D$6,4,0),0) -> 0 | AI47: 0 | AK47: 4 | AL47: =IFERROR(VLOOKUP($B37,'[37](908__ARREARS_REPORTING'!$A$1:$D$6,4,0),0) -> 342186.2 | AM47: 0.001350441223 | AO47: 1 | AP47: =VLOOKUP(B47,'[38](908__ARREARS_REPORTING'!$A$2:$D$6,4,0) -> 69034.78 | AQ47: 0.000238477621 | AS47: 1 | AT47: 51956.75 | AU47: 0.0001608040319
A48: 5. 121 - 150 Days | B48: 121 - 150 Days | E48: 0 | F48: =VLOOKUP($A48,[33]Arrears!$A$2:$D$7,4,0) -> 0 | G48: 0 | I48: 2 | J48: 90846.74 | K48: 0.0009178950935 | M48: 1 | N48: 14788.84 | O48: 0.0001208089391 | Q48: 5 | R48: 257919.76 | S48: 0.001876454097 | U48: 4 | V48: 405625.06 | W48: 0.002626783416 | Y48: 3 | Z48: =VLOOKUP(B48,[34]Arrears!$A$2:$D$5,4,0) -> 170108.11 | AA48: 0.0009204837619 | AC48: 1 | AD48: =VLOOKUP(B48,[35]Arrears!$A$2:$D$5,4,0) -> 12737.48 | AE48: 5.965570735e-05 | AG48: 5 | AH48: =IFERROR(VLOOKUP(B48,'[36](908__ARREARS_REPORTING'!$A$2:$D$6,4,0),0) -> 244382.72 | AI48: 0.001048745651 | AK48: 2 | AL48: =IFERROR(VLOOKUP($B38,'[37](908__ARREARS_REPORTING'!$A$1:$D$6,4,0),0) -> 84661.97 | AM48: 0.0003341193019 | AO48: 0 | AP48: 0 | AQ48: 0 | AS48: 0 | AT48: 0 | AU48: 0
A49: 6. 151 - 180 Days | B49: 151 - 180 Days | E49: 3 | F49: =VLOOKUP($A49,[33]Arrears!$A$2:$D$7,4,0) -> 454149.1 | G49: 0.00605974253 | I49: 2 | J49: 204494.33 | K49: 0.002066164864 | M49: 1 | N49: 300003.33 | O49: 0.002450704993 | Q49: 2 | R49: 159834.28 | S49: 0.001162848824 | U49: 2 | V49: 313810.71 | W49: 0.002032203752 | Y49: 0 | Z49: 0 | AA49: 0 | AC49: 0 | AD49: 0 | AE49: 0 | AG49: 2 | AH49: =IFERROR(VLOOKUP(B49,'[36](908__ARREARS_REPORTING'!$A$2:$D$6,4,0),0) -> 275963.84 | AI49: 0.001184273083 | AK49: 0 | AL49: =IFERROR(VLOOKUP($B39,'[37](908__ARREARS_REPORTING'!$A$1:$D$6,4,0),0) -> 0 | AM49: 0 | AO49: 1 | AP49: =VLOOKUP(B49,'[38](908__ARREARS_REPORTING'!$A$2:$D$6,4,0) -> 106129.53 | AQ49: 0.0003666198086 | AS49: 0 | AT49: 0 | AU49: 0
B50: Total | E50: =SUM(E44:E49) -> 1888 | F50: =SUM(F44:F49) -> 74945279.9 | G50: =SUM(G44:G49) -> 1 | I50: 2159 | J50: 98972900.76 | K50: 1 | M50: 2400 | N50: 122415113.5 | O50: 1 | Q50: 2594 | R50: 137450609.9 | S50: 1 | U50: 2808 | V50: 154418920.7 | W50: 1 | Y50: =SUM(Y44:Y49) -> 3024 | Z50: =SUM(Z44:Z49) -> 184802945 | AA50: =SUM(AA44:AA49) -> 1 | AC50: =SUM(AC44:AC49) -> 3222 | AD50: =SUM(AD44:AD49) -> 213516536.2 | AE50: =SUM(AE44:AE49) -> 1 | AG50: =SUM(AG44:AG49) -> 3368 | AH50: =SUM(AH44:AH49) -> 233023822 | AI50: =SUM(AI44:AI49) -> 1 | AK50: =SUM(AK44:AK49) -> 3506 | AL50: =SUM(AL44:AL49) -> 253388443.9 | AM50: =SUM(AM44:AM49) -> 1 | AO50: =SUM(AO44:AO49) -> 3672 | AP50: =SUM(AP44:AP49) -> 289481166.9 | AQ50: =SUM(AQ44:AQ49) -> 1 | AS50: 3797 | AT50: 323106015.3 | AU50: 1
A51: NSW | F51: > 30 days | G51: =SUM(G45:G49) -> 0.03769053653 | J51: > 30 days | K51: 0.01315302401 | N51: > 30 days | O51: 0.009527475868 | R51: > 30 days | S51: 0.01559146658 | V51: > 30 days | W51: 0.03875120946 | Z51: > 30 days | AA51: =SUM(AA45:AA49) -> 0.006206744542 | AD51: > 30 days | AE51: =SUM(AE45:AE49) -> 0.003034956643 | AH51: > 30 days | AI51: =SUM(AI45:AI49) -> 0.00603801589 | AL51: > 30 days | AM51: =SUM(AM45:AM49) -> 0.01406329119 | AP51: > 30 days | AQ51: =SUM(AQ45:AQ49) -> 0.002237552884 | AT51: > 30 days | AU51: 0.0006884027826
F52: >90 days | G52: =SUM(G47:G49) -> 0.01644433261 | J52: >90 days | K52: 0.005212962397 | N52: >90 days | O52: 0.004388689717 | R52: >90 days | S52: 0.004830807084 | V52: >90 days | W52: 0.01527435109 | Z52: >90 days | AA52: =SUM(AA47:AA49) -> 0.0009204837619 | AD52: >90 days | AE52: =SUM(AE47:AE49) -> 5.965570735e-05 | AH52: >90 days | AI52: =SUM(AI47:AI49) -> 0.002233018734 | AL52: >90 days | AM52: =SUM(AM47:AM49) -> 0.001684560525 | AP52: >90 days | AQ52: =SUM(AQ47:AQ49) -> 0.0006050974295 | AT52: >90 days | AU52: 0.0001608040319
A54: VIC | B54: Geographic Distribution
A55: NSW | B55: New South Wales | E55: =F55/F$63 -> 0.360789882 | F55: =IFERROR(VLOOKUP($A55,[33]Geographic!$A$2:$C$9,3,0),0) -> 27039498.69 | I55: 0.3585272711 | J55: 35484484.02 | M55: 0.3383320084 | N55: 41416951.22 | Q55: 0.3384104363 | R55: 46514720.86 | U55: 0.3370748287 | V55: 52050731.25 | Y55: =Z55/Z$63 -> 0.3369445891 | Z55: =IFERROR(VLOOKUP(A55,'[34]Geographic Distribution'!$A$2:$C$9,3,0),0) -> 62268352.36 | AC55: =AD55/AD$63 -> 0.3274007878 | AD55: =VLOOKUP(A55,[28]Geographic!$A$5:$B$12,2,0) -> 69905482.17 | AG55: =AH55/AH$63 -> 0.3305962278 | AH55: =VLOOKUP($A55,'[36](900__GEOGRAPHIC_DISTRIBUTION'!$A$2:$C$9,3,FALSE) -> 77036796.55 | AK55: =AL55/AL$63 -> 0.3317530136 | AL55: =VLOOKUP($A55,'[37](900__GEOGRAPHIC_DISTRIBUTION'!$A$1:$C$9,3,FALSE) -> 84062379.87 | AO55: =AP55/$AP$63 -> 0.330638511 | AP55: =VLOOKUP(A55,'[38](900__GEOGRAPHIC_DISTRIBUTION'!$A$2:$C$9,3,0) -> 95713621.99 | AS55: 0.3227670669 | AT55: 104287980.9
A56: VIC | B56: Victoria | E56: 0.2137347929 | F56: =IFERROR(VLOOKUP($A56,[33]Geographic!$A$2:$C$9,3,0),0) -> 16018413.88 | I56: 0.2302384403 | J56: 22787366.3 | M56: 0.212788425 | N56: 26048519.2 | Q56: 0.2145819673 | R56: 29494422.27 | U56: 0.2190404862 | V56: 33823995.47 | Y56: 0.2266932588 | Z56: =IFERROR(VLOOKUP(A56,'[34]Geographic Distribution'!$A$2:$C$9,3,0),0) -> 41893581.84 | AC56: 0.2149158529 | AD56: =VLOOKUP(A56,[28]Geographic!$A$5:$B$12,2,0) -> 45888088.5 | AG56: 0.2201071628 | AH56: =VLOOKUP($A56,'[36](900__GEOGRAPHIC_DISTRIBUTION'!$A$2:$C$9,3,FALSE) -> 51290212.33 | AK56: 0.2251861324 | AL56: =VLOOKUP($A56,'[37](900__GEOGRAPHIC_DISTRIBUTION'!$A$1:$C$9,3,FALSE) -> 57059563.69 | AO56: =AP56/$AP$63 -> 0.2373471971 | AP56: =VLOOKUP(A56,'[38](900__GEOGRAPHIC_DISTRIBUTION'!$A$2:$C$9,3,0) -> 68707543.58 | AS56: 0.2286079868 | AT56: 73864615.68
A57: QLD | B57: Queensland | E57: 0.1211561712 | F57: =IFERROR(VLOOKUP($A57,[33]Geographic!$A$2:$C$9,3,0),0) -> 9080083.16 | I57: 0.1144790538 | J57: 11330324.03 | M57: 0.1118315667 | N57: 13689873.93 | Q57: 0.1188180074 | R57: 16331607.58 | U57: 0.1241068685 | V57: 19164448.68 | Y57: 0.1154654138 | Z57: =IFERROR(VLOOKUP(A57,'[34]Geographic Distribution'!$A$2:$C$9,3,0),0) -> 21338348.52 | AC57: 0.1144381415 | AD57: =VLOOKUP(A57,[28]Geographic!$A$5:$B$12,2,0) -> 24434435.58 | AG57: 0.1183719246 | AH57: =VLOOKUP($A57,'[36](900__GEOGRAPHIC_DISTRIBUTION'!$A$2:$C$9,3,FALSE) -> 27583478.29 | AK57: 0.1259365564 | AL57: =VLOOKUP($A57,'[37](900__GEOGRAPHIC_DISTRIBUTION'!$A$1:$C$9,3,FALSE) -> 31910868.06 | AO57: 0.1202392061 | AP57: =VLOOKUP(A57,'[38](900__GEOGRAPHIC_DISTRIBUTION'!$A$2:$C$9,3,0) -> 34806985.69 | AS57: 0.1201253794 | AT57: 38813232.68
A58: SA | B58: South Australia | E58: 0.1590364565 | F58: =IFERROR(VLOOKUP($A58,[33]Geographic!$A$2:$C$9,3,0),0) -> 11919031.75 | I58: 0.1581488584 | J58: 15652451.27 | M58: 0.1705924202 | N58: 20883090.49 | Q58: 0.1680038564 | R58: 23092232.52 | U58: 0.1615818198 | V58: 24951290.22 | Y58: 0.1695738978 | Z58: =IFERROR(VLOOKUP(A58,'[34]Geographic Distribution'!$A$2:$C$9,3,0),0) -> 31337755.71 | AC58: 0.1767615196 | AD58: =VLOOKUP(A58,[28]Geographic!$A$5:$B$12,2,0) -> 37741507.4 | AG58: 0.1695952177 | AH58: =VLOOKUP($A58,'[36](900__GEOGRAPHIC_DISTRIBUTION'!$A$2:$C$9,3,FALSE) -> 39519725.81 | AK58: 0.1627372088 | AL58: =VLOOKUP($A58,'[37](900__GEOGRAPHIC_DISTRIBUTION'!$A$1:$C$9,3,FALSE) -> 41235728.1 | AO58: 0.1604244563 | AP58: =VLOOKUP(A58,'[38](900__GEOGRAPHIC_DISTRIBUTION'!$A$2:$C$9,3,0) -> 46439858.82 | AS58: 0.1643916854 | AT58: 53115942.43
A59: NT | B59: Northern Territory | E59: 0.0005598507345 | F59: =IFERROR(VLOOKUP($A59,[33]Geographic!$A$2:$C$9,3,0),0) -> 41958.17 | I59: 0.0005434949323 | J59: 53791.27 | M59: 0.0005333770326 | N59: 65293.41 | Q59: 0.0005563733043 | R59: 76473.85 | U59: 0.0005656145607 | V59: 87341.59 | Y59: 0.0005297825747 | Z59: =IFERROR(VLOOKUP(A59,'[34]Geographic Distribution'!$A$2:$C$9,3,0),0) -> 97905.38 | AC59: 0.0005066292377 | AD59: =VLOOKUP(A59,[28]Geographic!$A$5:$B$12,2,0) -> 108173.72 | AG59: 0.0005070506053 | AH59: =VLOOKUP($A59,'[36](900__GEOGRAPHIC_DISTRIBUTION'!$A$2:$C$9,3,FALSE) -> 118154.87 | AK59: 0.0005045883625 | AL59: =VLOOKUP($A59,'[37](900__GEOGRAPHIC_DISTRIBUTION'!$A$1:$C$9,3,FALSE) -> 127856.86 | AO59: 0.0004742536499 | AP59: =VLOOKUP(A59,'[38](900__GEOGRAPHIC_DISTRIBUTION'!$A$2:$C$9,3,0) -> 137287.5 | AS59: 0.0004532703913 | AT59: 146454.39
A60: ACT | B60: Australian Capital Territory | E60: 0.0006561108327 | F60: =IFERROR(VLOOKUP($A60,[33]Geographic!$A$2:$C$9,3,0),0) -> 49172.41 | I60: 0.0006410274885 | J60: 63444.35 | M60: 0.0006644523511 | N60: 81339.01 | Q60: 0.0007701049132 | R60: 105851.39 | U60: 0.001363072796 | V60: 210484.23 | Y60: 0.001317439233 | Z60: =IFERROR(VLOOKUP(A60,'[34]Geographic Distribution'!$A$2:$C$9,3,0),0) -> 243466.65 | AC60: 0.001290242643 | AD60: =VLOOKUP(A60,[28]Geographic!$A$5:$B$12,2,0) -> 275488.14 | AG60: 0.001317676954 | AH60: =VLOOKUP($A60,'[36](900__GEOGRAPHIC_DISTRIBUTION'!$A$2:$C$9,3,FALSE) -> 307050.12 | AK60: 0.001329039023 | AL60: =VLOOKUP($A60,'[37](900__GEOGRAPHIC_DISTRIBUTION'!$A$1:$C$9,3,FALSE) -> 336763.13 | AO60: 0.001287117307 | AP60: =VLOOKUP(A60,'[38](900__GEOGRAPHIC_DISTRIBUTION'!$A$2:$C$9,3,0) -> 372596.22 | AS60: 0.001260765788 | AT60: 407361.01
A61: TAS | B61: Tasmania | E61: 0.009309721986 | F61: =IFERROR(VLOOKUP($A61,[33]Geographic!$A$2:$C$9,3,0),0) -> 697719.72 | I61: 0.009781706533 | J61: 968123.87 | M61: 0.009183707367 | N61: 1124224.58 | Q61: 0.009714057006 | R61: 1335203.06 | U61: 0.01060629962 | V61: 1637813.34 | Y61: 0.01002530014 | Z61: =IFERROR(VLOOKUP(A61,'[34]Geographic Distribution'!$A$2:$C$9,3,0),0) -> 1852704.99 | AC61: 0.009603931696 | AD61: =VLOOKUP(A61,[28]Geographic!$A$5:$B$12,2,0) -> 2050598.23 | AG61: 0.00981406828 | AH61: =VLOOKUP($A61,'[36](900__GEOGRAPHIC_DISTRIBUTION'!$A$2:$C$9,3,FALSE) -> 2286911.7 | AK61: 0.01042023728 | AL61: =VLOOKUP($A61,'[37](900__GEOGRAPHIC_DISTRIBUTION'!$A$1:$C$9,3,FALSE) -> 2640367.71 | AO61: 0.01011927301 | AP61: =VLOOKUP(A61,'[38](900__GEOGRAPHIC_DISTRIBUTION'!$A$2:$C$9,3,0) -> 2929338.96 | AS61: 0.009793570253 | AT61: 3164361.46
A62: WA | B62: Western Australia | E62: 0.1347570138 | F62: =IFERROR(VLOOKUP($A62,[33]Geographic!$A$2:$C$9,3,0),0) -> 10099402.12 | I62: 0.1276401475 | J62: 12632915.65 | M62: 0.156074043 | N62: 19105821.69 | Q62: 0.1491451975 | R62: 20500098.36 | U62: 0.1456610098 | V62: 22492815.92 | Y62: 0.1394503184 | Z62: =IFERROR(VLOOKUP(A62,'[34]Geographic Distribution'!$A$2:$C$9,3,0),0) -> 25770829.52 | AC62: 0.1550828947 | AD62: =VLOOKUP(A62,[28]Geographic!$A$5:$B$12,2,0) -> 33112762.5 | AG62: 0.1496906712 | AH62: =VLOOKUP($A62,'[36](900__GEOGRAPHIC_DISTRIBUTION'!$A$2:$C$9,3,FALSE) -> 34881492.33 | AK62: 0.1421332241 | AL62: =VLOOKUP($A62,'[37](900__GEOGRAPHIC_DISTRIBUTION'!$A$1:$C$9,3,FALSE) -> 36014916.49 | AO62: 0.1394699855 | AP62: =VLOOKUP(A62,'[38](900__GEOGRAPHIC_DISTRIBUTION'!$A$2:$C$9,3,0) -> 40373934.16 | AS62: 0.152600275 | AT62: 49306066.8
B63: Total | E63: =SUM(E55:E62) -> 1 | F63: =SUM(F55:F62) -> 74945279.9 | I63: 1 | J63: 98972900.76 | M63: 1 | N63: 122415113.5 | Q63: 1 | R63: 137450609.9 | U63: 1 | V63: 154418920.7 | Y63: =SUM(Y55:Y62) -> 1 | Z63: =SUM(Z55:Z62) -> 184802945 | AC63: =SUM(AC55:AC62) -> 1 | AD63: =SUM(AD55:AD62) -> 213516536.2 | AG63: =SUM(AG55:AG62) -> 1 | AH63: =SUM(AH55:AH62) -> 233023822 | AK63: =SUM(AK55:AK62) -> 1 | AL63: =SUM(AL55:AL62) -> 253388443.9 | AO63: =SUM(AO55:AO62) -> 1 | AP63: =SUM(AP55:AP62) -> 289481166.9 | AS63: 1 | AT63: 323106015.3
A64: AG
A65: CE | B65: Top Industry Distribution
A66: AGRICULTURAL MACHINERY | B66: Agricultural | E66: =F66/F$69 -> 0.938761446 | F66: =VLOOKUP($A66,'[33]Top Industry'!$A$2:$C$4,3,0) -> 70355739.33 | I66: 0.9445919994 | J66: 93489010.22 | M66: 0.9462310155 | N66: 115832977.2 | Q66: 0.9399411894 | R66: 129195489.8 | U66: 0.9369728802 | V66: 144686340.9 | Y66: =Z66/Z$69 -> 0.9388986072 | Z66: =VLOOKUP(A66,'[34]Top Industry'!$A$2:$C$4,3,0) -> 173511227.6 | AC66: =AD66/AD$69 -> 0.9407882347 | AD66: =VLOOKUP(A66,'[35]Top Industry'!$A$2:$C$4,3,0) -> 200873845.2 | AG66: =AH66/AH$69 -> 0.9414229425 | AH66: =VLOOKUP($A66,'[36](902__TOP_INDUSTRY_DISTRIBUTION'!$A$2:$C$4,3,FALSE) -> 219373972.2 | AK66: =AL66/AL$69 -> 0.9386320644 | AL66: =VLOOKUP($A66,'[37](902__TOP_INDUSTRY_DISTRIBUTION'!$A$1:$C$4,3,FALSE) -> 237838518.2 | AO66: =AP66/$AP$69 -> 0.9399847669 | AP66: =VLOOKUP(A66,'[38](902__TOP_INDUSTRY_DISTRIBUTION'!$A$2:$C$4,3,0) -> 272107887.2 | AS66: 0.9415634659 | AT66: 304224819.6
A67: CONSTRUCTION EQUIPMENT | B67: Construction | E67: =F67/F$69 -> 0.05973746307 | F67: =VLOOKUP($A67,'[33]Top Industry'!$A$2:$C$4,3,0) -> 4477040.89 | I67: 0.0540297941 | J67: 5347485.45 | M67: 0.05240026337 | N67: 6414584.19 | Q67: 0.05805080171 | R67: 7979118.1 | U67: 0.06098409941 | V67: 9417098.81 | Y67: =Z67/Z$69 -> 0.0589812729 | Z67: =VLOOKUP(A67,'[34]Top Industry'!$A$2:$C$4,3,0) -> 10899912.93 | AC67: =AD67/AD$69 -> 0.05685063604 | AD67: =VLOOKUP(A67,'[35]Top Industry'!$A$2:$C$4,3,0) -> 12138550.89 | AG67: =AH67/AH$69 -> 0.05611932977 | AH67: =VLOOKUP($A67,'[36](902__TOP_INDUSTRY_DISTRIBUTION'!$A$2:$C$4,3,FALSE) -> 13077140.71 | AK67: =AL67/AL$69 -> 0.05847133078 | AL67: =VLOOKUP($A67,'[37](902__TOP_INDUSTRY_DISTRIBUTION'!$A$1:$C$4,3,FALSE) -> 14815959.52 | AO67: =AP67/$AP$69 -> 0.05701846409 | AP67: =VLOOKUP(A67,'[38](902__TOP_INDUSTRY_DISTRIBUTION'!$A$2:$C$4,3,0) -> 16505771.52 | AS67: 0.05537232878 | AT67: 17891132.51
A68: MOTOR VEHICLE - AG | B68: Motor Vehicle AG | E68: =F68/F$69 -> 0.001501090931 | F68: ='[33]Top Industry'!$C$4 -> 112499.68 | I68: 0.001378206448 | J68: 136405.09 | M68: 0.001368721109 | N68: 167552.15 | Q68: 0.002008008842 | R68: 276002.04 | U68: 0.002043020367 | V68: 315481 | Y68: =Z68/Z$69 -> 0.002120119948 | Z68: =VLOOKUP(A68,'[34]Top Industry'!$A$2:$C$4,3,0) -> 391804.41 | AC68: =AD68/AD$69 -> 0.002361129254 | AD68: ='[35]Top Industry'!$C$4 -> 504140.14 | AG68: =AH68/AH$69 -> 0.002457727691 | AH68: =VLOOKUP($A68,'[36](902__TOP_INDUSTRY_DISTRIBUTION'!$A$2:$C$4,3,FALSE) -> 572709.1 | AK68: =AL68/AL$69 -> 0.002896604868 | AL68: =VLOOKUP($A68,'[37](902__TOP_INDUSTRY_DISTRIBUTION'!$A$1:$C$4,3,FALSE) -> 733966.2 | AO68: 0.002996769045 | AP68: =VLOOKUP(A68,'[38](902__TOP_INDUSTRY_DISTRIBUTION'!$A$2:$C$4,3,0) -> 867508.2 | AS68: 0.003064205317 | AT68: 990063.17
B69: Total | E69: =SUM(E66:E68) -> 1 | F69: =SUM(F66:F68) -> 74945279.9 | I69: 1 | J69: 98972900.76 | M69: 1 | N69: 122415113.5 | Q69: 1 | R69: 137450609.9 | U69: 1 | V69: 154418920.7 | Y69: =SUM(Y66:Y68) -> 1 | Z69: =SUM(Z66:Z68) -> 184802945 | AC69: =SUM(AC66:AC68) -> 1 | AD69: =SUM(AD66:AD68) -> 213516536.2 | AG69: =SUM(AG66:AG68) -> 1 | AH69: =SUM(AH66:AH68) -> 233023822 | AK69: =SUM(AK66:AK68) -> 1 | AL69: =SUM(AL66:AL68) -> 253388443.9 | AO69: =SUM(AO66:AO68) -> 1 | AP69: =SUM(AP66:AP68) -> 289481166.9 | AS69: 1 | AT69: 323106015.3
A70: COMBINE
A71: 40-100 HP TRACTOR | B71: Collateral Types
A72: 100<140 HP TRACTOR | B72: 100-140 HP TRACTOR | E72: =F72/F$107 -> 0.1056354318 | F72: =IFERROR(VLOOKUP($A72,[33]Collateral!$A$2:$C$32,3,FALSE),0) -> 7916877 | I72: 0.1005832585 | J72: 9955016.86 | M72: 0.09911008698 | N72: 12132572.55 | Q72: 0.09929488717 | R72: 13648142.8 | U72: 0.09978947632 | V72: 15409383.23 | Y72: =Z72/Z$107 -> 0.09830589974 | Z72: =IFERROR(VLOOKUP($A72,'[34]Collateral Type'!$A$2:$C$32,3,FALSE),0) -> 18167219.78 | AC72: =AD72/AD$107 -> 0.0964728423 | AD72: =IFERROR(VLOOKUP($A72,[35]Collateral!$A$2:$C$32,3,FALSE),0) -> 20598547.13 | AG72: =AH72/AH$107 -> 0 | AH72: =IFERROR(VLOOKUP($A72,'[36](901__COLLATERAL_TYPE'!$A$2:$C$30,3,FALSE),0) -> 0 | AK72: =AL72/AL$107 -> 0 | AL72: =IFERROR(VLOOKUP($A72,'[37](901__COLLATERAL_TYPE'!$A$1:$C$30,3,FALSE),0) -> 0 | AO72: =AP72/$AP$107 -> 0 | AP72: 0 | AS72: 0 | AT72: 0
A73: 4 EWD Tractors | B73: 4 EWD Tractors | E73: 0.1508632239 | F73: =IFERROR(VLOOKUP($A73,[33]Collateral!$A$2:$C$32,3,FALSE),0) -> 11306486.54 | I73: 0.1539707204 | J73: 15238928.83 | M73: 0.1566131195 | N73: 19171812.81 | Q73: 0.1496379994 | R73: 20567834.28 | U73: 0.1471020497 | V73: 22715339.75 | Y73: 0.1511710505 | Z73: =IFERROR(VLOOKUP($A73,'[34]Collateral Type'!$A$2:$C$32,3,FALSE),0) -> 27936855.32 | AC73: 0.1508406979 | AD73: =IFERROR(VLOOKUP($A73,[35]Collateral!$A$2:$C$32,3,FALSE),0) -> 32206983.35 | AG73: 0.1430834105 | AH73: =IFERROR(VLOOKUP($A73,'[36](901__COLLATERAL_TYPE'!$A$2:$C$30,3,FALSE),0) -> 33341843.17 | AK73: 0.1422504394 | AL73: =IFERROR(VLOOKUP($A73,'[37](901__COLLATERAL_TYPE'!$A$1:$C$30,3,FALSE),0) -> 36044617.48 | AO73: =AP73/$AP$107 -> 0.1456759272 | AP73: =VLOOKUP(A73,'[38](901__COLLATERAL_TYPE'!$A$2:$C$30,3,0) -> 42170437.41 | AS73: 0.144938339 | AT73: 46830449.18
A74: 40<100 HP Tractor | B74: 40<100 HP Tractor | E74: 0 | F74: =IFERROR(VLOOKUP($A74,[33]Collateral!$A$2:$C$32,3,FALSE),0) -> 0 | I74: 0 | J74: 0 | M74: 0 | N74: 0 | Q74: 0 | R74: 0 | U74: 0 | V74: 0 | Y74: 0 | Z74: =IFERROR(VLOOKUP($A74,'[34]Collateral Type'!$A$2:$C$32,3,FALSE),0) -> 0 | AC74: 0 | AD74: =IFERROR(VLOOKUP($A74,[35]Collateral!$A$2:$C$32,3,FALSE),0) -> 0 | AG74: 0.0618501523 | AH74: =IFERROR(VLOOKUP($A74,'[36](901__COLLATERAL_TYPE'!$A$2:$C$30,3,FALSE),0) -> 14412558.88 | AK74: 0.06629721475 | AL74: =IFERROR(VLOOKUP($A74,'[37](901__COLLATERAL_TYPE'!$A$1:$C$30,3,FALSE),0) -> 16798948.08 | AO74: 0.06585903882 | AP74: =VLOOKUP(A74,'[38](901__COLLATERAL_TYPE'!$A$2:$C$30,3,0) -> 19064951.41 | AS74: 0.06619801526 | AT74: 21388976.93
A75: 40<60 HP TRACTOR | B75: 40-60 HP TRACTOR | E75: =F75/F$107 -> 0.009178005618 | F75: =IFERROR(VLOOKUP($A75,[33]Collateral!$A$2:$C$32,3,FALSE),0) -> 687848.2 | I75: 0.007852563015 | J75: 777190.94 | M75: 0.007861801637 | N75: 962403.34 | Q75: 0.00801364047 | R75: 1101479.77 | U75: 0.008651431599 | V75: 1335944.73 | Y75: 0.008397636251 | Z75: =IFERROR(VLOOKUP($A75,'[34]Collateral Type'!$A$2:$C$32,3,FALSE),0) -> 1551907.91 | AC75: 0.008430058869 | AD75: =IFERROR(VLOOKUP($A75,[35]Collateral!$A$2:$C$32,3,FALSE),0) -> 1799956.97 | AG75: 0 | AH75: =IFERROR(VLOOKUP($A75,'[36](901__COLLATERAL_TYPE'!$A$2:$C$30,3,FALSE),0) -> 0 | AK75: 0 | AL75: =IFERROR(VLOOKUP($A75,'[37](901__COLLATERAL_TYPE'!$A$1:$C$30,3,FALSE),0) -> 0 | AO75: 0 | AP75: 0 | AS75: 0 | AT75: 0
A76: 4WD VEHICLE | B76: 4WD VEHICLE | E76: =F76/F$107 -> 0.0002732675097 | F76: =IFERROR(VLOOKUP($A76,[33]Collateral!$A$2:$C$32,3,FALSE),0) -> 20480.11 | I76: 0.0002641575603 | J76: 26144.44 | M76: 0.0002135719949 | N76: 26144.44 | Q76: 0.0002685942247 | R76: 36918.44 | U76: 0.0002390797697 | V76: 36918.44 | Y76: 0.0001997719247 | Z76: =IFERROR(VLOOKUP($A76,'[34]Collateral Type'!$A$2:$C$32,3,FALSE),0) -> 36918.44 | AC76: 0.0001778078676 | AD76: =IFERROR(VLOOKUP($A76,[35]Collateral!$A$2:$C$32,3,FALSE),0) -> 37964.92 | AG76: 0.0001762079501 | AH76: =IFERROR(VLOOKUP($A76,'[36](901__COLLATERAL_TYPE'!$A$2:$C$30,3,FALSE),0) -> 41060.65 | AK76: 0.0001818929438 | AL76: =IFERROR(VLOOKUP($A76,'[37](901__COLLATERAL_TYPE'!$A$1:$C$30,3,FALSE),0) -> 46089.57 | AO76: 0.0001692693536 | AP76: =VLOOKUP(A76,'[38](901__COLLATERAL_TYPE'!$A$2:$C$30,3,0) -> 49000.29 | AS76: 0.000154646703 | AT76: 49967.28
A77: 60<100 HP TRACTOR | B77: 60-100 HP TRACTOR | E77: 0.04867992907 | F77: =IFERROR(VLOOKUP($A77,[33]Collateral!$A$2:$C$32,3,FALSE),0) -> 3648330.91 | I77: 0.04747559942 | J77: 4698797.79 | M77: 0.04604022238 | N77: 5636019.05 | Q77: 0.04969125539 | R77: 6830093.36 | U77: 0.05195517106 | V77: 8022861.44 | Y77: 0.05138070089 | Z77: =IFERROR(VLOOKUP($A77,'[34]Collateral Type'!$A$2:$C$32,3,FALSE),0) -> 9495304.84 | AC77: 0.05093900483 | AD77: =IFERROR(VLOOKUP($A77,[35]Collateral!$A$2:$C$32,3,FALSE),0) -> 10876319.87 | AG77: 0 | AH77: =IFERROR(VLOOKUP($A77,'[36](901__COLLATERAL_TYPE'!$A$2:$C$30,3,FALSE),0) -> 0 | AK77: 0 | AL77: =IFERROR(VLOOKUP($A77,'[37](901__COLLATERAL_TYPE'!$A$1:$C$30,3,FALSE),0) -> 0 | AO77: 0 | AP77: 0 | AS77: 0 | AT77: 0
A78: Backhoes | B78: Backhoes | E78: 0.002053701183 | F78: =IFERROR(VLOOKUP($A78,[33]Collateral!$A$2:$C$32,3,FALSE),0) -> 153915.21 | I78: 0.001693394542 | J78: 167600.17 | M78: 0.00150167765 | N78: 183828.04 | Q78: 0.001462326432 | R78: 200997.66 | U78: 0.001427276327 | V78: 220398.47 | Y78: 0.001294987209 | Z78: =IFERROR(VLOOKUP($A78,'[34]Collateral Type'!$A$2:$C$32,3,FALSE),0) -> 239317.45 | AC78: 0.001501732117 | AD78: =IFERROR(VLOOKUP($A78,[35]Collateral!$A$2:$C$32,3,FALSE),0) -> 320644.64 | AG78: 0.001475968839 | AH78: =IFERROR(VLOOKUP($A78,'[36](901__COLLATERAL_TYPE'!$A$2:$C$30,3,FALSE),0) -> 343935.9 | AK78: 0.001893313296 | AL78: =IFERROR(VLOOKUP($A78,'[37](901__COLLATERAL_TYPE'!$A$1:$C$30,3,FALSE),0) -> 479743.71 | AO78: 0.002106337993 | AP78: =VLOOKUP(A78,'[38](901__COLLATERAL_TYPE'!$A$2:$C$30,3,0) -> 609745.18 | AS78: 0.002292928497 | AT78: 740858.99
A79: BALERS, WINDROWERS, MOWERS, RAKES | B79: BALERS, WINDROWERS, MOWERS, RAKES | E79: 0.0363025141 | F79: =IFERROR(VLOOKUP($A79,[33]Collateral!$A$2:$C$32,3,FALSE),0) -> 2720702.08 | I79: 0.03532006805 | J79: 3495729.59 | M79: 0.03657558778 | N79: 4477404.73 | Q79: 0.03956686423 | R79: 5438489.62 | U79: 0.0412894716 | V79: 6375875.64 | Y79: 0.04175606012 | Z79: =IFERROR(VLOOKUP($A79,'[34]Collateral Type'!$A$2:$C$32,3,FALSE),0) -> 7716642.88 | AC79: 0.04202953756 | AD79: =IFERROR(VLOOKUP($A79,[35]Collateral!$A$2:$C$32,3,FALSE),0) -> 8974001.28 | AG79: 0.04357205024 | AH79: =IFERROR(VLOOKUP($A79,'[36](901__COLLATERAL_TYPE'!$A$2:$C$30,3,FALSE),0) -> 10153325.68 | AK79: 0.04460495193 | AL79: =IFERROR(VLOOKUP($A79,'[37](901__COLLATERAL_TYPE'!$A$1:$C$30,3,FALSE),0) -> 11302379.36 | AO79: 0.04410989007 | AP79: =VLOOKUP(A79,'[38](901__COLLATERAL_TYPE'!$A$2:$C$30,3,0) -> 12768982.45 | AS79: 0.0441336109 | AT79: 14259835.16
A80: Cane Harvesters | B80: Cane Harvesters | E80: 0 | F80: =IFERROR(VLOOKUP($A80,[33]Collateral!$A$2:$C$32,3,FALSE),0) -> 0 | I80: 0 | J80: 0 | M80: 0 | N80: 0 | Q80: 0 | R80: 0 | U80: 0 | V80: 0 | Y80: 0 | Z80: =IFERROR(VLOOKUP($A80,'[34]Collateral Type'!$A$2:$C$32,3,FALSE),0) -> 0 | AC80: 0 | AD80: =IFERROR(VLOOKUP($A80,[35]Collateral!$A$2:$C$32,3,FALSE),0) -> 0 | AG80: 0 | AH80: =IFERROR(VLOOKUP($A80,'[36](901__COLLATERAL_TYPE'!$A$2:$C$30,3,FALSE),0) -> 0 | AK80: 0 | AL80: =IFERROR(VLOOKUP($A80,'[37](901__COLLATERAL_TYPE'!$A$1:$C$30,3,FALSE),0) -> 0 | AO80: 0 | AP80: 0 | AS80: 0 | AT80: 0
A81: Combines | B81: Combines | E81: 0.2661517074 | F81: =IFERROR(VLOOKUP($A81,[33]Collateral!$A$2:$C$32,3,FALSE),0) -> 19946814.21 | I81: 0.2604033145 | J81: 25772871.4 | M81: 0.2598861148 | N81: 31813988.25 | Q81: 0.266288648 | R81: 36601537.08 | U81: 0.2595434861 | V81: 40078425 | Y81: 0.2608798878 | Z81: =IFERROR(VLOOKUP($A81,'[34]Collateral Type'!$A$2:$C$32,3,FALSE),0) -> 48211371.54 | AC81: 0.2655561085 | AD81: =IFERROR(VLOOKUP($A81,[35]Collateral!$A$2:$C$32,3,FALSE),0) -> 56700620.46 | AG81: 0.281229608 | AH81: =IFERROR(VLOOKUP($A81,'[36](901__COLLATERAL_TYPE'!$A$2:$C$30,3,FALSE),0) -> 65533198.12 | AK81: 0.2779913958 | AL81: =IFERROR(VLOOKUP($A81,'[37](901__COLLATERAL_TYPE'!$A$1:$C$30,3,FALSE),0) -> 70439807.19 | AO81: 0.2769482757 | AP81: =VLOOKUP(A81,'[38](901__COLLATERAL_TYPE'!$A$2:$C$30,3,0) -> 80171310.04 | AS81: 0.2821964534 | AT81: 91179371.6
A82: COMMERCIAL VEHICLE | B82: COMMERCIAL VEHICLE | E82: 0.001501090931 | F82: =IFERROR(VLOOKUP($A82,[33]Collateral!$A$2:$C$32,3,FALSE),0) -> 112499.68 | I82: 0.001378206448 | J82: 136405.09 | M82: 0.001368721109 | N82: 167552.15 | Q82: 0.002008008842 | R82: 276002.04 | U82: 0.002043020367 | V82: 315481 | Y82: 0.002120119948 | Z82: =IFERROR(VLOOKUP($A82,'[34]Collateral Type'!$A$2:$C$32,3,FALSE),0) -> 391804.41 | AC82: 0.002361129254 | AD82: =IFERROR(VLOOKUP($A82,[35]Collateral!$A$2:$C$32,3,FALSE),0) -> 504140.14 | AG82: 0.002457727691 | AH82: =IFERROR(VLOOKUP($A82,'[36](901__COLLATERAL_TYPE'!$A$2:$C$30,3,FALSE),0) -> 572709.1 | AK82: 0.002896604868 | AL82: =IFERROR(VLOOKUP($A82,'[37](901__COLLATERAL_TYPE'!$A$1:$C$30,3,FALSE),0) -> 733966.2 | AO82: 0.002996769045 | AP82: =VLOOKUP(A82,'[38](901__COLLATERAL_TYPE'!$A$2:$C$30,3,0) -> 867508.2 | AS82: 0.003064205317 | AT82: 990063.17
A83: Cotton Pickers | B83: Cotton Pickers | E83: 0.001475433678 | F83: =IFERROR(VLOOKUP($A83,[33]Collateral!$A$2:$C$32,3,FALSE),0) -> 110576.79 | I83: 0.001178184423 | J83: 116608.33 | M83: 0.001088955654 | N83: 133304.63 | Q83: 0.001011721375 | R83: 139061.72 | U83: 0.001874226738 | V83: 289416.07 | Y83: 0.00162390805 | Z83: =IFERROR(VLOOKUP($A83,'[34]Collateral Type'!$A$2:$C$32,3,FALSE),0) -> 300102.99 | AC83: 0.001476836996 | AD83: =IFERROR(VLOOKUP($A83,[35]Collateral!$A$2:$C$32,3,FALSE),0) -> 315329.12 | AG83: 0.001375714411 | AH83: =IFERROR(VLOOKUP($A83,'[36](901__COLLATERAL_TYPE'!$A$2:$C$30,3,FALSE),0) -> 320574.23 | AK83: 0.001551789395 | AL83: =IFERROR(VLOOKUP($A83,'[37](901__COLLATERAL_TYPE'!$A$1:$C$30,3,FALSE),0) -> 393205.5 | AO83: 0.001391720001 | AP83: =VLOOKUP(A83,'[38](901__COLLATERAL_TYPE'!$A$2:$C$30,3,0) -> 402876.73 | AS83: 0.001289861966 | AT83: 416762.16
A84: CRAWLERS / DOZERS | B84: CRAWLERS / DOZERS | E84: 0.01042601897 | F84: =IFERROR(VLOOKUP($A84,[33]Collateral!$A$2:$C$32,3,FALSE),0) -> 781380.91 | I84: 0.00888308803 | J84: 879184.99 | M84: 0.008062986518 | N84: 987031.41 | Q84: 0.007890299948 | R84: 1084526.54 | U84: 0.007636434607 | V84: 1179209.99 | Y84: 0.006907437921 | Z84: =IFERROR(VLOOKUP($A84,'[34]Collateral Type'!$A$2:$C$32,3,FALSE),0) -> 1276514.87 | AC84: 0.006371704712 | AD84: =IFERROR(VLOOKUP($A84,[35]Collateral!$A$2:$C$32,3,FALSE),0) -> 1360464.32 | AG84: 0.006210483193 | AH84: =IFERROR(VLOOKUP($A84,'[36](901__COLLATERAL_TYPE'!$A$2:$C$30,3,FALSE),0) -> 1447190.53 | AK84: 0.006043748351 | AL84: =IFERROR(VLOOKUP($A84,'[37](901__COLLATERAL_TYPE'!$A$1:$C$30,3,FALSE),0) -> 1531415.99 | AO84: 0.0055727731 | AP84: =VLOOKUP(A84,'[38](901__COLLATERAL_TYPE'!$A$2:$C$30,3,0) -> 1613212.86 | AS84: 0.005238686901 | AT84: 1692651.25
A85: CULTIVATORS,SEEDERS, HARROWS | B85: CULTIVATORS,SEEDERS, HARROWS | E85: 0.04155318166 | F85: =IFERROR(VLOOKUP($A85,[33]Collateral!$A$2:$C$32,3,FALSE),0) -> 3114214.83 | I85: 0.04441301029 | J85: 4395684.46 | M85: 0.04629721132 | N85: 5667478.38 | Q85: 0.04406406363 | R85: 6056632.42 | U85: 0.04267288199 | V85: 6589500.38 | Y85: 0.04424735916 | Z85: =IFERROR(VLOOKUP($A85,'[34]Collateral Type'!$A$2:$C$32,3,FALSE),0) -> 8177042.28 | AC85: 0.04653459018 | AD85: =IFERROR(VLOOKUP($A85,[35]Collateral!$A$2:$C$32,3,FALSE),0) -> 9935904.51 | AG85: 0.04426815388 | AH85: =IFERROR(VLOOKUP($A85,'[36](901__COLLATERAL_TYPE'!$A$2:$C$30,3,FALSE),0) -> 10315534.41 | AK85: 0.04265574895 | AL85: =IFERROR(VLOOKUP($A85,'[37](901__COLLATERAL_TYPE'!$A$1:$C$30,3,FALSE),0) -> 10808473.85 | AO85: 0.04202393769 | AP85: =VLOOKUP(A85,'[38](901__COLLATERAL_TYPE'!$A$2:$C$30,3,0) -> 12165138.52 | AS85: 0.04245012525 | AT85: 13715890.82
A86: Drill | B86: Drill | E86: 0.002953404541 | F86: =IFERROR(VLOOKUP($A86,[33]Collateral!$A$2:$C$32,3,FALSE),0) -> 221343.73 | I86: 0.003077196563 | J86: 304559.07 | M86: 0.002690654287 | N86: 329376.75 | Q86: 0.002444896318 | R86: 336052.49 | U86: 0.002400424756 | V86: 370671 | Y86: 0.002366372246 | Z86: =IFERROR(VLOOKUP($A86,'[34]Collateral Type'!$A$2:$C$32,3,FALSE),0) -> 437312.56 | AC86: 0.002165625427 | AD86: =IFERROR(VLOOKUP($A86,[35]Collateral!$A$2:$C$32,3,FALSE),0) -> 462396.84 | AG86: 0.002026184945 | AH86: =IFERROR(VLOOKUP($A86,'[36](901__COLLATERAL_TYPE'!$A$2:$C$30,3,FALSE),0) -> 472149.36 | AK86: 0.001985796243 | AL86: =IFERROR(VLOOKUP($A86,'[37](901__COLLATERAL_TYPE'!$A$1:$C$30,3,FALSE),0) -> 503177.82 | AO86: 0.002059362121 | AP86: =VLOOKUP(A86,'[38](901__COLLATERAL_TYPE'!$A$2:$C$30,3,0) -> 596146.55 | AS86: 0.001868230833 | AT86: 603636.62
A87: DUMP TRUCKS | B87: DUMP TRUCKS | E87: 0.00299760052 | F87: =IFERROR(VLOOKUP($A87,[33]Collateral!$A$2:$C$32,3,FALSE),0) -> 224656.01 | I87: 0.003449409256 | J87: 341398.04 | M87: 0.003136635085 | N87: 383971.54 | Q87: 0.006110737236 | R87: 839924.56 | U87: 0.007015975925 | V87: 1083399.43 | Y87: 0.006240914885 | Z87: =IFERROR(VLOOKUP($A87,'[34]Collateral Type'!$A$2:$C$32,3,FALSE),0) -> 1153339.45 | AC87: 0.005723200514 | AD87: =IFERROR(VLOOKUP($A87,[35]Collateral!$A$2:$C$32,3,FALSE),0) -> 1221997.95 | AG87: 0.005570499826 | AH87: =IFERROR(VLOOKUP($A87,'[36](901__COLLATERAL_TYPE'!$A$2:$C$30,3,FALSE),0) -> 1298059.16 | AK87: 0.005425154 | AL87: =IFERROR(VLOOKUP($A87,'[37](901__COLLATERAL_TYPE'!$A$1:$C$30,3,FALSE),0) -> 1374671.33 | AO87: 0.006279960107 | AP87: =VLOOKUP(A87,'[38](901__COLLATERAL_TYPE'!$A$2:$C$30,3,0) -> 1817930.18 | AS87: 0.006340527267 | AT87: 2048662.5
A88: EXCAVATORS / GRADERS | B88: EXCAVATORS / GRADERS | E88: 0.02742600151 | F88: =IFERROR(VLOOKUP($A88,[33]Collateral!$A$2:$C$32,3,FALSE),0) -> 2055449.36 | I88: 0.02360838201 | J88: 2336590.05 | M88: 0.02385643844 | N88: 2920388.62 | Q88: 0.02412895987 | R88: 3316540.25 | U88: 0.02378737167 | V88: 3673220.26 | Y88: 0.02506388413 | Z88: =IFERROR(VLOOKUP($A88,'[34]Collateral Type'!$A$2:$C$32,3,FALSE),0) -> 4631879.6 | AC88: 0.0242461511 | AD88: =IFERROR(VLOOKUP($A88,[35]Collateral!$A$2:$C$32,3,FALSE),0) -> 5176954.2 | AG88: 0.02381843355 | AH88: =IFERROR(VLOOKUP($A88,'[36](901__COLLATERAL_TYPE'!$A$2:$C$30,3,FALSE),0) -> 5550262.42 | AK88: 0.02492240014 | AL88: =IFERROR(VLOOKUP($A88,'[37](901__COLLATERAL_TYPE'!$A$1:$C$30,3,FALSE),0) -> 6315048.19 | AO88: 0.02341499792 | AP88: =VLOOKUP(A88,'[38](901__COLLATERAL_TYPE'!$A$2:$C$30,3,0) -> 6778200.92 | AS88: 0.02227952436 | AT88: 7198648.34
A89: FEEDERS, MIXERS, WAGONS, BINS, FEED STORAGE | B89: FEEDERS, MIXERS, WAGONS, BINS, FEED STORAGE | E89: 0.0006080154756 | F89: =IFERROR(VLOOKUP($A89,[33]Collateral!$A$2:$C$32,3,FALSE),0) -> 45567.89 | I89: 0.0009216920925 | J89: 91222.54 | M89: 0.001417472933 | N89: 173520.11 | Q89: 0.001954771101 | R89: 268684.48 | U89: 0.001883494125 | V89: 290847.13 | Y89: 0.002033599357 | Z89: =IFERROR(VLOOKUP($A89,'[34]Collateral Type'!$A$2:$C$32,3,FALSE),0) -> 375815.15 | AC89: 0.001867242964 | AD89: =IFERROR(VLOOKUP($A89,[35]Collateral!$A$2:$C$32,3,FALSE),0) -> 398687.25 | AG89: 0.0025974168 | AH89: =IFERROR(VLOOKUP($A89,'[36](901__COLLATERAL_TYPE'!$A$2:$C$30,3,FALSE),0) -> 605259.99 | AK89: 0.002604124599 | AL89: =IFERROR(VLOOKUP($A89,'[37](901__COLLATERAL_TYPE'!$A$1:$C$30,3,FALSE),0) -> 659855.08 | AO89: 0.002623581209 | AP89: =VLOOKUP(A89,'[38](901__COLLATERAL_TYPE'!$A$2:$C$30,3,0) -> 759477.35 | AS89: 0.002463749705 | AT89: 796052.35
A90: Front End Loader | B90: Front End Loader | E90: 0.001421135396 | F90: =IFERROR(VLOOKUP($A90,[33]Collateral!$A$2:$C$32,3,FALSE),0) -> 106507.39 | I90: 0.001870657307 | J90: 185144.38 | M90: 0.001645235659 | N90: 201401.71 | Q90: 0.00179631702 | R90: 246904.87 | U90: 0.001892874776 | V90: 292295.68 | Y90: 0.001936514378 | Z90: =IFERROR(VLOOKUP($A90,'[34]Collateral Type'!$A$2:$C$32,3,FALSE),0) -> 357873.56 | AC90: 0.001824199038 | AD90: =IFERROR(VLOOKUP($A90,[35]Collateral!$A$2:$C$32,3,FALSE),0) -> 389496.66 | AG90: 0.001763611705 | AH90: =IFERROR(VLOOKUP($A90,'[36](901__COLLATERAL_TYPE'!$A$2:$C$30,3,FALSE),0) -> 410963.54 | AK90: 0.001765630638 | AL90: =IFERROR(VLOOKUP($A90,'[37](901__COLLATERAL_TYPE'!$A$1:$C$30,3,FALSE),0) -> 447390.4 | AO90: 0.001765404829 | AP90: =VLOOKUP(A90,'[38](901__COLLATERAL_TYPE'!$A$2:$C$30,3,0) -> 511051.45 | AS90: 0.001725094315 | AT90: 557388.35
A91: Fronts | B91: Fronts | E91: 0.006311241357 | F91: =IFERROR(VLOOKUP($A91,[33]Collateral!$A$2:$C$32,3,FALSE),0) -> 472997.75 | I91: 0.00819989213 | J91: 811567.11 | M91: 0.008136949771 | N91: 996085.63 | Q91: 0.008139902405 | R91: 1118834.55 | U91: 0.008838757607 | V91: 1364871.41 | Y91: 0.009362169095 | Z91: =IFERROR(VLOOKUP($A91,'[34]Collateral Type'!$A$2:$C$32,3,FALSE),0) -> 1730156.42 | AC91: 0.00957312153 | AD91: =IFERROR(VLOOKUP($A91,[35]Collateral!$A$2:$C$32,3,FALSE),0) -> 2044019.75 | AG91: 0.009092588654 | AH91: =IFERROR(VLOOKUP($A91,'[36](901__COLLATERAL_TYPE'!$A$2:$C$30,3,FALSE),0) -> 2118789.76 | AK91: 0.009128774676 | AL91: =IFERROR(VLOOKUP($A91,'[37](901__COLLATERAL_TYPE'!$A$1:$C$30,3,FALSE),0) -> 2313126.01 | AO91: 0.00964452617 | AP91: =VLOOKUP(A91,'[38](901__COLLATERAL_TYPE'!$A$2:$C$30,3,0) -> 2791908.69 | AS91: 0.00955704383 | AT91: 3087938.35
A92: GUIDANCE SYSTEMS | B92: Guidance Systems | E92: 0.001712179208 | F92: =IFERROR(VLOOKUP($A92,[33]Collateral!$A$2:$C$32,3,FALSE),0) -> 128319.75 | I92: 0.004101836633 | J92: 405970.67 | M92: 0.00409934203 | N92: 501821.42 | Q92: 0.003960405053 | R92: 544360.09 | U92: 0.003783310927 | V92: 584214.79 | Y92: 0.004675113755 | Z92: =IFERROR(VLOOKUP($A92,'[34]Collateral Type'!$A$2:$C$32,3,FALSE),0) -> 863974.79 | AC92: 0.00498177883 | AD92: =IFERROR(VLOOKUP($A92,[35]Collateral!$A$2:$C$32,3,FALSE),0) -> 1063692.16 | AG92: 0.004637976026 | AH92: =IFERROR(VLOOKUP($A92,'[36](901__COLLATERAL_TYPE'!$A$2:$C$30,3,FALSE),0) -> 1080758.9 | AK92: 0.004686723245 | AL92: =IFERROR(VLOOKUP($A92,'[37](901__COLLATERAL_TYPE'!$A$1:$C$30,3,FALSE),0) -> 1187561.51 | AO92: 0.005393632776 | AP92: =VLOOKUP(A92,'[38](901__COLLATERAL_TYPE'!$A$2:$C$30,3,0) -> 1561355.11 | AS92: 0.005518432265 | AT92: 1783038.66
A93: HARVESTERS - Other | B93: HARVESTERS - Other | E93: 0.01006753529 | F93: =IFERROR(VLOOKUP($A93,[33]Collateral!$A$2:$C$32,3,FALSE),0) -> 754514.25 | I93: 0.01070988646 | J93: 1059988.53 | M93: 0.01107525346 | N93: 1355778.41 | Q93: 0.0101405649 | R93: 1393826.83 | U93: 0.009427312491 | V93: 1455755.42 | Y93: 0.00866659295 | Z93: =IFERROR(VLOOKUP($A93,'[34]Collateral Type'!$A$2:$C$32,3,FALSE),0) -> 1601611.9 | AC93: 0.008993123642 | AD93: =IFERROR(VLOOKUP($A93,[35]Collateral!$A$2:$C$32,3,FALSE),0) -> 1920180.61 | AG93: 0.01024308266 | AH93: =IFERROR(VLOOKUP($A93,'[36](901__COLLATERAL_TYPE'!$A$2:$C$30,3,FALSE),0) -> 2386882.27 | AK93: 0.009936262843 | AL93: =IFERROR(VLOOKUP($A93,'[37](901__COLLATERAL_TYPE'!$A$1:$C$30,3,FALSE),0) -> 2517734.18 | AO93: 0.009499772746 | AP93: =VLOOKUP(A93,'[38](901__COLLATERAL_TYPE'!$A$2:$C$30,3,0) -> 2750005.3 | AS93: 0.009591806755 | AT93: 3099170.46
A94: Irrigation Equipment | B94: Irrigation Equipment | E94: 0.0002368921702 | F94: =IFERROR(VLOOKUP($A94,[33]Collateral!$A$2:$C$32,3,FALSE),0) -> 17753.95 | I94: 0.0001793819304 | J94: 17753.95 | M94: 0.0002072181226 | N94: 25366.63 | Q94: 0.0001845508726 | R94: 25366.63 | U94: 0.0002840069714 | V94: 43856.05 | Y94: 0.0002373125061 | Z94: =IFERROR(VLOOKUP($A94,'[34]Collateral Type'!$A$2:$C$32,3,FALSE),0) -> 43856.05 | AC94: 0.0002376093248 | AD94: =IFERROR(VLOOKUP($A94,[35]Collateral!$A$2:$C$32,3,FALSE),0) -> 50733.52 | AG94: 0.0002177181696 | AH94: =IFERROR(VLOOKUP($A94,'[36](901__COLLATERAL_TYPE'!$A$2:$C$30,3,FALSE),0) -> 50733.52 | AK94: 0.000266305278 | AL94: =IFERROR(VLOOKUP($A94,'[37](901__COLLATERAL_TYPE'!$A$1:$C$30,3,FALSE),0) -> 67478.68 | AO94: 0.0002379089138 | AP94: =VLOOKUP(A94,'[38](901__COLLATERAL_TYPE'!$A$2:$C$30,3,0) -> 68870.15 | AS94: 0.0002462099937 | AT94: 79551.93
A95: Other AG | B95: Other AG | E95: 0.008316846516 | F95: =IFERROR(VLOOKUP($A95,[33]Collateral!$A$2:$C$32,3,FALSE),0) -> 623308.39 | I95: 0.008160819919 | J95: 807700.02 | M95: 0.007763774444 | N95: 950403.33 | Q95: 0.007352209356 | R95: 1010565.66 | U95: 0.007553672858 | V95: 1166430.01 | Y95: 0.007348232249 | Z95: =IFERROR(VLOOKUP($A95,'[34]Collateral Type'!$A$2:$C$32,3,FALSE),0) -> 1357974.96 | AC95: 0.007516287676 | AD95: =IFERROR(VLOOKUP($A95,[35]Collateral!$A$2:$C$32,3,FALSE),0) -> 1604851.71 | AG95: 0.007179805634 | AH95: =IFERROR(VLOOKUP($A95,'[36](901__COLLATERAL_TYPE'!$A$2:$C$30,3,FALSE),0) -> 1673065.75 | AK95: 0.007125424041 | AL95: =IFERROR(VLOOKUP($A95,'[37](901__COLLATERAL_TYPE'!$A$1:$C$30,3,FALSE),0) -> 1805500.11 | AO95: 0.006926323434 | AP95: =VLOOKUP(A95,'[38](901__COLLATERAL_TYPE'!$A$2:$C$30,3,0) -> 2005040.19 | AS95: 0.007037131134 | AT95: 2273739.4
A96: MATERIALS HANDLING EQUIPMENT | B96: MATERIALS HANDLING EQUIPMENT | E96: 0.005660794123 | F96: =IFERROR(VLOOKUP($A96,[33]Collateral!$A$2:$C$32,3,FALSE),0) -> 424249.8 | I96: 0.006413498898 | J96: 634762.59 | M96: 0.005904648039 | N96: 722818.16 | Q96: 0.005960490759 | R96: 819273.09 | U96: 0.005901185527 | V96: 911254.7 | Y96: 0.005523163606 | Z96: =IFERROR(VLOOKUP($A96,'[34]Collateral Type'!$A$2:$C$32,3,FALSE),0) -> 1020696.9 | AC96: 0.00511233579 | AD96: =IFERROR(VLOOKUP($A96,[35]Collateral!$A$2:$C$32,3,FALSE),0) -> 1091568.23 | AG96: 0.00506041318 | AH96: =IFERROR(VLOOKUP($A96,'[36](901__COLLATERAL_TYPE'!$A$2:$C$30,3,FALSE),0) -> 1179196.82 | AK96: 0.004979833494 | AL96: =IFERROR(VLOOKUP($A96,'[37](901__COLLATERAL_TYPE'!$A$1:$C$30,3,FALSE),0) -> 1261832.26 | AO96: 0.004870334001 | AP96: =VLOOKUP(A96,'[38](901__COLLATERAL_TYPE'!$A$2:$C$30,3,0) -> 1409869.97 | AS96: 0.004602650305 | AT96: 1487144
A97: Other CE | B97: Other CE | E97: 0.002413551997 | F97: =IFERROR(VLOOKUP($A97,[33]Collateral!$A$2:$C$32,3,FALSE),0) -> 180884.33 | I97: 0.00206629591 | J97: 204507.3 | M97: 0.001876559792 | N97: 229719.28 | Q97: 0.002062195069 | R97: 283449.97 | U97: 0.002029499938 | V97: 313393.19 | Y97: 0.001853035297 | Z97: =IFERROR(VLOOKUP($A97,'[34]Collateral Type'!$A$2:$C$32,3,FALSE),0) -> 342446.38 | AC97: 0.001735867051 | AD97: =IFERROR(VLOOKUP($A97,[35]Collateral!$A$2:$C$32,3,FALSE),0) -> 370636.32 | AG97: 0.001707932462 | AH97: =IFERROR(VLOOKUP($A97,'[36](901__COLLATERAL_TYPE'!$A$2:$C$30,3,FALSE),0) -> 397988.95 | AK97: 0.001765682614 | AL97: =IFERROR(VLOOKUP($A97,'[37](901__COLLATERAL_TYPE'!$A$1:$C$30,3,FALSE),0) -> 447403.57 | AO97: 0.001871312099 | AP97: =VLOOKUP(A97,'[38](901__COLLATERAL_TYPE'!$A$2:$C$30,3,0) -> 541709.61 | AS97: 0.001759354803 | AT97: 568458.12
A98: Over 100 HP Tractor | B98: Over 100 HP Tractor | E98: 0 | F98: =IFERROR(VLOOKUP($A98,[33]Collateral!$A$2:$C$32,3,FALSE),0) -> 0 | I98: 0 | J98: 0 | M98: 0 | N98: 0 | Q98: 0 | R98: 0 | U98: 0 | V98: 0 | Y98: 0 | Z98: =IFERROR(VLOOKUP($A98,'[34]Collateral Type'!$A$2:$C$32,3,FALSE),0) -> 0 | AC98: 0 | AD98: =IFERROR(VLOOKUP($A98,[35]Collateral!$A$2:$C$32,3,FALSE),0) -> 0 | AG98: 0.2704858447 | AH98: =IFERROR(VLOOKUP($A98,'[36](901__COLLATERAL_TYPE'!$A$2:$C$30,3,FALSE),0) -> 63029645.32 | AK98: 0.2694509433 | AL98: =IFERROR(VLOOKUP($A98,'[37](901__COLLATERAL_TYPE'!$A$1:$C$30,3,FALSE),0) -> 68275755.23 | AO98: 0.269352333 | AP98: =VLOOKUP(A98,'[38](901__COLLATERAL_TYPE'!$A$2:$C$30,3,0) -> 77972427.68 | AS98: 0.266336445 | AT98: 86054907.48
A99: OVER 140 HP TRACTOR | B99: OVER 140 HP TRACTOR | E99: 0.1922738091 | F99: =IFERROR(VLOOKUP($A99,[33]Collateral!$A$2:$C$32,3,FALSE),0) -> 14410014.44 | I99: 0.1993990253 | J99: 19735099.94 | M99: 0.1950162287 | N99: 23872933.78 | Q99: 0.1880889757 | R99: 25852944.42 | U99: 0.1857838135 | V99: 28688535.96 | Y99: 0.182996512 | Z99: =IFERROR(VLOOKUP($A99,'[34]Collateral Type'!$A$2:$C$32,3,FALSE),0) -> 33818294.33 | AC99: 0.1815124112 | AD99: =IFERROR(VLOOKUP($A99,[35]Collateral!$A$2:$C$32,3,FALSE),0) -> 38755901.32 | AG99: 0 | AH99: =IFERROR(VLOOKUP($A99,'[36](901__COLLATERAL_TYPE'!$A$2:$C$30,3,FALSE),0) -> 0 | AK99: 0 | AL99: =IFERROR(VLOOKUP($A99,'[37](901__COLLATERAL_TYPE'!$A$1:$C$30,3,FALSE),0) -> 0 | AO99: 0 | AP99: 0 | AS99: 0 | AT99: 0
A100: Rollers | B100: Rollers | E100: 0.0006711851643 | F100: =IFERROR(VLOOKUP($A100,[33]Collateral!$A$2:$C$32,3,FALSE),0) -> 50302.16 | I100: 0.0006023842844 | J100: 59619.72 | M100: 0.0005857797941 | N100: 71708.3 | Q100: 0.0006065861044 | R100: 83375.63 | U100: 0.000612855339 | V100: 94636.46 | Y100: 0.0005709055666 | Z100: =IFERROR(VLOOKUP($A100,'[34]Collateral Type'!$A$2:$C$32,3,FALSE),0) -> 105505.03 | AC100: 0.0005432604521 | AD100: =IFERROR(VLOOKUP($A100,[35]Collateral!$A$2:$C$32,3,FALSE),0) -> 115995.09 | AG100: 0.0005413462406 | AH100: =IFERROR(VLOOKUP($A100,'[36](901__COLLATERAL_TYPE'!$A$2:$C$30,3,FALSE),0) -> 126146.57 | AK100: 0.0005362999508 | AL100: =IFERROR(VLOOKUP($A100,'[37](901__COLLATERAL_TYPE'!$A$1:$C$30,3,FALSE),0) -> 135892.21 | AO100: 0.0005020167686 | AP100: =VLOOKUP(A100,'[38](901__COLLATERAL_TYPE'!$A$2:$C$30,3,0) -> 145324.4 | AS100: 0.0004779494738 | AT100: 154428.35
A101: SCRAPERS | B101: SCRAPERS | E101: 0.001352572839 | F101: =IFERROR(VLOOKUP($A101,[33]Collateral!$A$2:$C$32,3,FALSE),0) -> 101368.95 | I101: 0.00119850251 | J101: 118619.27 | M101: 0.001105248087 | N101: 135299.07 | Q101: 0.002584284131 | R101: 355211.43 | U101: 0.002985174536 | V101: 460967.43 | Y101: 0.002818690146 | Z101: =IFERROR(VLOOKUP($A101,'[34]Collateral Type'!$A$2:$C$32,3,FALSE),0) -> 520902.24 | AC101: 0.00264816632 | AD101: =IFERROR(VLOOKUP($A101,[35]Collateral!$A$2:$C$32,3,FALSE),0) -> 565427.3 | AG101: 0.002684583982 | AH101: =IFERROR(VLOOKUP($A101,'[36](901__COLLATERAL_TYPE'!$A$2:$C$30,3,FALSE),0) -> 625572.02 | AK101: 0.003587929725 | AL101: =IFERROR(VLOOKUP($A101,'[37](901__COLLATERAL_TYPE'!$A$1:$C$30,3,FALSE),0) -> 909139.93 | AO101: 0.003469446322 | AP101: =VLOOKUP(A101,'[38](901__COLLATERAL_TYPE'!$A$2:$C$30,3,0) -> 1004339.37 | AS101: 0.003389250736 | AT101: 1095087.3
A102: SKIDSTEER / UNILOADER | B102: SKIDSTEER / UNILOADER | E102: 0.003640595917 | F102: =IFERROR(VLOOKUP($A102,[33]Collateral!$A$2:$C$32,3,FALSE),0) -> 272845.48 | I102: 0.003240507326 | J102: 320722.41 | M102: 0.003454597213 | N102: 422894.91 | Q102: 0.00403563273 | R102: 554700.18 | U102: 0.005069361944 | V102: 782805.4 | Y102: 0.004468097032 | Z102: =IFERROR(VLOOKUP($A102,'[34]Collateral Type'!$A$2:$C$32,3,FALSE),0) -> 825717.49 | AC102: 0.004538950833 | AD102: =IFERROR(VLOOKUP($A102,[35]Collateral!$A$2:$C$32,3,FALSE),0) -> 969141.06 | AG102: 0.004589811594 | AH102: =IFERROR(VLOOKUP($A102,'[36](901__COLLATERAL_TYPE'!$A$2:$C$30,3,FALSE),0) -> 1069535.44 | AK102: 0.004762940059 | AL102: =IFERROR(VLOOKUP($A102,'[37](901__COLLATERAL_TYPE'!$A$1:$C$30,3,FALSE),0) -> 1206873.97 | AO102: 0.004558755114 | AP102: =VLOOKUP(A102,'[38](901__COLLATERAL_TYPE'!$A$2:$C$30,3,0) -> 1319673.75 | AS102: 0.004526604491 | AT102: 1462573.14
A103: SPRAYING EQUIPMENT | B103: SPRAYING EQUIPMENT | E103: 0.05352953415 | F103: =IFERROR(VLOOKUP($A103,[33]Collateral!$A$2:$C$32,3,FALSE),0) -> 4011785.92 | I103: 0.05373052522 | J103: 5317865.94 | M103: 0.05787440428 | N103: 7084701.77 | Q103: 0.0552788768 | R103: 7598115.33 | U103: 0.05917650142 | V103: 9137971.48 | Y103: 0.05825230053 | Z103: =IFERROR(VLOOKUP($A103,'[34]Collateral Type'!$A$2:$C$32,3,FALSE),0) -> 10765196.69 | AC103: 0.0566488882 | AD103: =IFERROR(VLOOKUP($A103,[35]Collateral!$A$2:$C$32,3,FALSE),0) -> 12095474.39 | AG103: 0.05458144322 | AH103: =IFERROR(VLOOKUP($A103,'[36](901__COLLATERAL_TYPE'!$A$2:$C$30,3,FALSE),0) -> 12718776.51 | AK103: 0.0529922171 | AL103: =IFERROR(VLOOKUP($A103,'[37](901__COLLATERAL_TYPE'!$A$1:$C$30,3,FALSE),0) -> 13427615.43 | AO103: 0.05310625031 | AP103: =VLOOKUP(A103,'[38](901__COLLATERAL_TYPE'!$A$2:$C$30,3,0) -> 15373259.31 | AS103: 0.05273034897 | AT103: 17037492.94
A104: Trenchers | B104: Trenchers | E104: 0 | F104: =IFERROR(VLOOKUP($A104,[33]Collateral!$A$2:$C$32,3,FALSE),0) -> 0 | I104: 0 | J104: 0 | M104: 0 | N104: 0 | Q104: 0 | R104: 0 | U104: 0 | V104: 0 | Y104: 0 | Z104: =IFERROR(VLOOKUP($A104,'[34]Collateral Type'!$A$2:$C$32,3,FALSE),0) -> 0 | AC104: 0 | AD104: =IFERROR(VLOOKUP($A104,[35]Collateral!$A$2:$C$32,3,FALSE),0) -> 0 | AG104: 0 | AH104: =IFERROR(VLOOKUP($A104,'[36](901__COLLATERAL_TYPE'!$A$2:$C$30,3,FALSE),0) -> 0 | AK104: 0 | AL104: =IFERROR(VLOOKUP($A104,'[37](901__COLLATERAL_TYPE'!$A$1:$C$30,3,FALSE),0) -> 0 | AO104: 0 | AP104: 0 | AS104: 0.0002384437811 | AT104: 77042.62
A105: Under 40 HP Tractors | B105: Under 40 HP Tractors | E105: 0.001218158103 | F105: =IFERROR(VLOOKUP($A105,[33]Collateral!$A$2:$C$32,3,FALSE),0) -> 91295.2 | I105: 0.002780209814 | J105: 275165.43 | M105: 0.002617809687 | N105: 320459.47 | Q105: 0.00276204602 | R105: 379644.91 | U105: 0.002831435928 | V105: 437227.28 | Y105: 0.003061613764 | Z105: =IFERROR(VLOOKUP($A105,'[34]Collateral Type'!$A$2:$C$32,3,FALSE),0) -> 565795.24 | AC105: 0.003010461865 | AD105: =IFERROR(VLOOKUP($A105,[35]Collateral!$A$2:$C$32,3,FALSE),0) -> 642783.39 | AG105: 0.003041972807 | AH105: =IFERROR(VLOOKUP($A105,'[36](901__COLLATERAL_TYPE'!$A$2:$C$30,3,FALSE),0) -> 708852.13 | AK105: 0.003156429305 | AL105: =IFERROR(VLOOKUP($A105,'[37](901__COLLATERAL_TYPE'!$A$1:$C$30,3,FALSE),0) -> 799802.71 | AO105: 0.003197612404 | AP105: =VLOOKUP(A105,'[38](901__COLLATERAL_TYPE'!$A$2:$C$30,3,0) -> 925648.57 | AS105: 0.003127920565 | AT105: 1010649.95
A106: Wheel Loaders | B106: Wheel Loaders | E106: 0.003095440838 | F106: =IFERROR(VLOOKUP($A106,[33]Collateral!$A$2:$C$32,3,FALSE),0) -> 231988.68 | I106: 0.002874331335 | J106: 284480.91 | M106: 0.002915692758 | N106: 356924.86 | Q106: 0.003209289434 | R106: 441118.79 | U106: 0.004518963588 | V106: 697813.48 | Y106: 0.004240157104 | Z106: =IFERROR(VLOOKUP($A106,'[34]Collateral Type'!$A$2:$C$32,3,FALSE),0) -> 783593.52 | AC106: 0.00442926715 | AD106: =IFERROR(VLOOKUP($A106,[35]Collateral!$A$2:$C$32,3,FALSE),0) -> 945721.78 | AG106: 0.004459856898 | AH106: =IFERROR(VLOOKUP($A106,'[36](901__COLLATERAL_TYPE'!$A$2:$C$30,3,FALSE),0) -> 1039252.9 | AK106: 0.004554029151 | AL106: =IFERROR(VLOOKUP($A106,'[37](901__COLLATERAL_TYPE'!$A$1:$C$30,3,FALSE),0) -> 1153938.36 | AO106: 0.004372530667 | AP106: =VLOOKUP(A106,'[38](901__COLLATERAL_TYPE'!$A$2:$C$30,3,0) -> 1265765.28 | AS106: 0.004226408161 | AT106: 1365577.9
B107: Total | E107: =SUM(E72:E106) -> 1 | F107: =SUM(F72:F106) -> 74945279.9 | I107: 1 | J107: 98972900.76 | M107: 1 | N107: 122415113.5 | Q107: 1 | R107: 137450609.9 | U107: 1 | V107: 154418920.7 | Y107: =SUM(Y72:Y106) -> 1 | Z107: =SUM(Z72:Z106) -> 184802945 | AC107: =SUM(AC72:AC106) -> 1 | AD107: =SUM(AD72:AD106) -> 213516536.2 | AG107: =SUM(AG72:AG106) -> 1 | AH107: =SUM(AH72:AH106) -> 233023822 | AK107: =SUM(AK72:AK106) -> 1 | AL107: =SUM(AL72:AL106) -> 253388443.9 | AO107: =SUM(AO72:AO106) -> 1 | AP107: =SUM(AP72:AP106) -> 289481166.9 | AS107: 1 | AT107: 323106015.3
A108: $ 0 - $25,000
A109: $ 25,001 to $50,000 | B109: Contract Balance Distribution
A110: $0 - $25,000 | B110: $ 0 - $25,000 | E110: =F110/F$121 -> 0.1576271115 | F110: =IFERROR(VLOOKUP($A110,[33]Balance!$A$2:$C$10,3,FALSE),0) -> 11813407.99 | I110: 0.1224303564 | J110: 12117287.51 | M110: 0.1028738411 | N110: 12593312.94 | Q110: 0.09295521366 | R110: 12776750.81 | U110: 0.08686135015 | V110: 13413035.94 | Y110: =Z110/Z$121 -> 0.07632074647 | Z110: =IFERROR(VLOOKUP($A110,'[34]Balance Distribution'!$A$2:$C$12,3,FALSE),0) -> 14104298.71 | AC110: =AD110/AD$121 -> 0.0672862428 | AD110: =IFERROR(VLOOKUP($A110,'[35]Balance Distribution'!$A$2:$C$12,3,FALSE),0) -> 14366725.5 | AG110: =AH110/AH$121 -> 0.06253427308 | AH110: =IFERROR(VLOOKUP($B110,'[36](905__CLIENT_BALANCE_DISTRIBUTI'!$A$2:$C$12,3,FALSE),0) -> 14571975.32 | AK110: =AL110/AL$121 -> 0.06033854482 | AL110: =IFERROR(VLOOKUP($B110,'[37](905__CLIENT_BALANCE_DISTRIBUTI'!$A$1:$C$12,3,FALSE),0) -> 15289089.98 | AO110: =AP110/$AP$121 -> 0.05051575405 | AP110: =VLOOKUP(B110,'[38](905__CLIENT_BALANCE_DISTRIBUTI'!$A$2:$C$12,3,0) -> 14623359.43 | AS110: 0.04329087404 | AT110: 13987541.81
A111: $25,001 - $50,000 | B111: $ 25,001 to $50,000 | E111: 0.2299792558 | F111: =IFERROR(VLOOKUP($A111,[33]Balance!$A$2:$C$10,3,FALSE),0) -> 17235859.7 | I111: 0.1929027075 | J111: 19092140.53 | M111: 0.1661202577 | N111: 20335630.2 | Q111: 0.1687914596 | R111: 23200489.07 | U111: 0.1609574548 | V111: 24854876.45 | Y111: 0.142674385 | Z111: =IFERROR(VLOOKUP($A111,'[34]Balance Distribution'!$A$2:$C$12,3,FALSE),0) -> 26366646.52 | AC111: 0.1333066999 | AD111: =IFERROR(VLOOKUP($A111,'[35]Balance Distribution'!$A$2:$C$12,3,FALSE),0) -> 28463184.81 | AG111: 0.1282136656 | AH111: =IFERROR(VLOOKUP($B111,'[36](905__CLIENT_BALANCE_DISTRIBUTI'!$A$2:$C$12,3,FALSE),0) -> 29876838.38 | AK111: 0.121691962 | AL111: =IFERROR(VLOOKUP($B111,'[37](905__CLIENT_BALANCE_DISTRIBUTI'!$A$1:$C$12,3,FALSE),0) -> 30835336.89 | AO111: =AP111/$AP$121 -> 0.112334292 | AP111: =VLOOKUP(B111,'[38](905__CLIENT_BALANCE_DISTRIBUTI'!$A$2:$C$12,3,0) -> 32518661.93 | AS111: 0.1031954622 | AT111: 33343074.59
A112: $50,001 - $75,000 | B112: $ 50,001 to $75,000 | E112: 0.1688152489 | F112: =IFERROR(VLOOKUP($A112,[33]Balance!$A$2:$C$10,3,FALSE),0) -> 12651906.08 | I112: 0.1670321388 | J112: 16531655.3 | M112: 0.1611691373 | N112: 19729538.24 | Q112: 0.1597007714 | R112: 21950968.43 | U112: 0.1620614955 | V112: 25025361.22 | Y112: 0.141539301 | Z112: =IFERROR(VLOOKUP($A112,'[34]Balance Distribution'!$A$2:$C$12,3,FALSE),0) -> 26156879.65 | AC112: 0.1260815493 | AD112: =IFERROR(VLOOKUP($A112,'[35]Balance Distribution'!$A$2:$C$12,3,FALSE),0) -> 26920495.68 | AG112: 0.1250609891 | AH112: =IFERROR(VLOOKUP($B112,'[36](905__CLIENT_BALANCE_DISTRIBUTI'!$A$2:$C$12,3,FALSE),0) -> 29142189.67 | AK112: 0.122367908 | AL112: =IFERROR(VLOOKUP($B112,'[37](905__CLIENT_BALANCE_DISTRIBUTI'!$A$1:$C$12,3,FALSE),0) -> 31006613.8 | AO112: 0.1189811739 | AP112: =VLOOKUP(B112,'[38](905__CLIENT_BALANCE_DISTRIBUTI'!$A$2:$C$12,3,0) -> 34442809.07 | AS112: 0.1122817169 | AT112: 36278898.13
A113: $75,001 - $100,000 | B113: $ 75,001 to $100,000 | E113: 0.132396878 | F113: =IFERROR(VLOOKUP($A113,[33]Balance!$A$2:$C$10,3,FALSE),0) -> 9922521.08 | I113: 0.1307799591 | J113: 12943671.91 | M113: 0.1202593599 | N113: 14721563.2 | Q113: 0.1166086515 | R113: 16027930.27 | U113: 0.1071951729 | V113: 16552962.91 | Y113: 0.1106726116 | Z113: =IFERROR(VLOOKUP($A113,'[34]Balance Distribution'!$A$2:$C$12,3,FALSE),0) -> 20452624.55 | AC113: 0.1055082785 | AD113: =IFERROR(VLOOKUP($A113,'[35]Balance Distribution'!$A$2:$C$12,3,FALSE),0) -> 22527762.17 | AG113: 0.1071947518 | AH113: =IFERROR(VLOOKUP($B113,'[36](905__CLIENT_BALANCE_DISTRIBUTI'!$A$2:$C$12,3,FALSE),0) -> 24978930.76 | AK113: 0.1089264617 | AL113: =IFERROR(VLOOKUP($B113,'[37](905__CLIENT_BALANCE_DISTRIBUTI'!$A$1:$C$12,3,FALSE),0) -> 27600706.63 | AO113: 0.09969596274 | AP113: =VLOOKUP(B113,'[38](905__CLIENT_BALANCE_DISTRIBUTI'!$A$2:$C$12,3,0) -> 28860103.63 | AS113: 0.09833053953 | AT113: 31771188.81
A114: $100,001 - $125,000 | B114: $100,001 to $125,000 | E114: 0.07753151857 | F114: =IFERROR(VLOOKUP($A114,[33]Balance!$A$2:$C$10,3,FALSE),0) -> 5810621.36 | I114: 0.09546140598 | J114: 9448092.26 | M114: 0.1154316065 | N114: 14130573.21 | Q114: 0.1109408022 | R114: 15248880.92 | U114: 0.1130964877 | V114: 17464237.57 | Y114: 0.1011019169 | Z114: =IFERROR(VLOOKUP($A114,'[34]Balance Distribution'!$A$2:$C$12,3,FALSE),0) -> 18683931.99 | AC114: 0.0950811501 | AD114: =IFERROR(VLOOKUP($A114,'[35]Balance Distribution'!$A$2:$C$12,3,FALSE),0) -> 20301397.83 | AG114: 0.09497732373 | AH114: =IFERROR(VLOOKUP($B114,'[36](905__CLIENT_BALANCE_DISTRIBUTI'!$A$2:$C$12,3,FALSE),0) -> 22131978.98 | AK114: 0.09109983255 | AL114: =IFERROR(VLOOKUP($B114,'[37](905__CLIENT_BALANCE_DISTRIBUTI'!$A$1:$C$12,3,FALSE),0) -> 23083644.81 | AO114: 0.08816574695 | AP114: =VLOOKUP(B114,'[38](905__CLIENT_BALANCE_DISTRIBUTI'!$A$2:$C$12,3,0) -> 25522323.31 | AS114: 0.08431803021 | AT114: 27243662.76
A115: $125,001 - $150,000 | B115: $125,001 to $150,000 | E115: 0.0434649649 | F115: =IFERROR(VLOOKUP($A115,[33]Balance!$A$2:$C$10,3,FALSE),0) -> 3257493.96 | I115: 0.06504597168 | J115: 6437788.5 | M115: 0.08814118281 | N115: 10789812.9 | Q115: 0.08846299147 | R115: 12159292.13 | U115: 0.08745914425 | V115: 13505346.66 | Y115: 0.08215178022 | Z115: =IFERROR(VLOOKUP($A115,'[34]Balance Distribution'!$A$2:$C$12,3,FALSE),0) -> 15181890.92 | AC115: 0.08108829777 | AD115: =IFERROR(VLOOKUP($A115,'[35]Balance Distribution'!$A$2:$C$12,3,FALSE),0) -> 17313692.47 | AG115: 0.07931432929 | AH115: =IFERROR(VLOOKUP($B115,'[36](905__CLIENT_BALANCE_DISTRIBUTI'!$A$2:$C$12,3,FALSE),0) -> 18482128.15 | AK115: 0.0848462071 | AL115: =IFERROR(VLOOKUP($B115,'[37](905__CLIENT_BALANCE_DISTRIBUTI'!$A$1:$C$12,3,FALSE),0) -> 21499048.39 | AO115: 0.0822555168 | AP115: =VLOOKUP(B115,'[38](905__CLIENT_BALANCE_DISTRIBUTI'!$A$2:$C$12,3,0) -> 23811422.99 | AS115: 0.07805766301 | AT115: 25220900.46
A116: $150,001 - $200,000 | B116: $150,000 to $200,000 | E116: 0.07817266275 | F116: =IFERROR(VLOOKUP($A116,[33]Balance!$A$2:$C$10,3,FALSE),0) -> 5858672.09 | I116: 0.09393266145 | J116: 9296787.98 | M116: 0.104177441 | N116: 12752893.27 | Q116: 0.1127337052 | R116: 15495316.54 | U116: 0.1179040665 | V116: 18206618.7 | Y116: 0.132709863 | Z116: =IFERROR(VLOOKUP($A116,'[34]Balance Distribution'!$A$2:$C$12,3,FALSE),0) -> 24525173.51 | AC116: 0.1511700941 | AD116: =IFERROR(VLOOKUP($A116,'[35]Balance Distribution'!$A$2:$C$12,3,FALSE),0) -> 32277314.87 | AG116: 0.1468509601 | AH116: =IFERROR(VLOOKUP($B116,'[36](905__CLIENT_BALANCE_DISTRIBUTI'!$A$2:$C$12,3,FALSE),0) -> 34219771.99 | AK116: 0.1425931243 | AL116: =IFERROR(VLOOKUP($B116,'[37](905__CLIENT_BALANCE_DISTRIBUTI'!$A$1:$C$12,3,FALSE),0) -> 36131449.87 | AO116: 0.1331535253 | AP116: =VLOOKUP(B116,'[38](905__CLIENT_BALANCE_DISTRIBUTI'!$A$2:$C$12,3,0) -> 38545437.88 | AS116: 0.1275535502 | AT116: 41213319.35
A117: $200,001 - $300,000 | B117: $200,001 to $300,000 | E117: 0.08126773331 | F117: =IFERROR(VLOOKUP($A117,[33]Balance!$A$2:$C$10,3,FALSE),0) -> 6090633.02 | I117: 0.09885058097 | J117: 9783528.74 | M117: 0.1029313964 | N117: 12600358.57 | Q117: 0.1059920596 | R117: 14568673.23 | U117: 0.1071695397 | V117: 16549004.65 | Y117: 0.1288315402 | Z117: =IFERROR(VLOOKUP($A117,'[34]Balance Distribution'!$A$2:$C$12,3,FALSE),0) -> 23808448.03 | AC117: 0.1476296666 | AD117: =IFERROR(VLOOKUP($A117,'[35]Balance Distribution'!$A$2:$C$12,3,FALSE),0) -> 31521375.06 | AG117: 0.1587827912 | AH117: =IFERROR(VLOOKUP($B117,'[36](905__CLIENT_BALANCE_DISTRIBUTI'!$A$2:$C$12,3,FALSE),0) -> 37000172.88 | AK117: 0.1607113842 | AL117: =IFERROR(VLOOKUP($B117,'[37](905__CLIENT_BALANCE_DISTRIBUTI'!$A$1:$C$12,3,FALSE),0) -> 40722407.55 | AO117: 0.1790063772 | AP117: =VLOOKUP(B117,'[38](905__CLIENT_BALANCE_DISTRIBUTI'!$A$2:$C$12,3,0) -> 51818974.96 | AS117: 0.1996679503 | AT117: 64513915.8
A118: $300,001 - $400,000 | B118: $300,001 to $400,000 | E118: 0.03074462625 | F118: =IFERROR(VLOOKUP($A118,[33]Balance!$A$2:$C$10,3,FALSE),0) -> 2304164.62 | I118: 0.03356421813 | J118: 3321948.03 | M118: 0.03547323149 | N118: 4342459.66 | Q118: 0.02861503134 | R118: 3933153.51 | U118: 0.04046440489 | V118: 6248469.73 | Y118: 0.0613529824 | Z118: =IFERROR(VLOOKUP($A118,'[34]Balance Distribution'!$A$2:$C$12,3,FALSE),0) -> 11338211.83 | AC118: 0.06463541514 | AD118: =IFERROR(VLOOKUP($A118,'[35]Balance Distribution'!$A$2:$C$12,3,FALSE),0) -> 13800729.96 | AG118: 0.0663346502 | AH118: =IFERROR(VLOOKUP($B118,'[36](905__CLIENT_BALANCE_DISTRIBUTI'!$A$2:$C$12,3,FALSE),0) -> 15457553.72 | AK118: 0.07430119886 | AL118: =IFERROR(VLOOKUP($B118,'[37](905__CLIENT_BALANCE_DISTRIBUTI'!$A$1:$C$12,3,FALSE),0) -> 18827065.16 | AO118: 0.09055421003 | AP118: =VLOOKUP(B118,'[38](905__CLIENT_BALANCE_DISTRIBUTI'!$A$2:$C$12,3,0) -> 26213738.39 | AS118: 0.1004331541 | AT118: 32450556.22
A119: $400,001 - $500,000 | B119: $400,001 to $500,000 | E119: 0 | F119: =IFERROR(VLOOKUP($A119,[33]Balance!$A$2:$C$10,3,FALSE),0) -> 0 | I119: 0 | J119: 0 | M119: 0.00342254586 | N119: 418971.34 | Q119: 0.01519931401 | R119: 2089154.98 | U119: 0.01683088354 | V119: 2599006.87 | Y119: 0.01482007238 | Z119: =IFERROR(VLOOKUP($A119,'[34]Balance Distribution'!$A$2:$C$12,3,FALSE),0) -> 2738793.02 | AC119: 0.01707854405 | AD119: =IFERROR(VLOOKUP($A119,'[35]Balance Distribution'!$A$2:$C$12,3,FALSE),0) -> 3646551.57 | AG119: 0.01801313412 | AH119: =IFERROR(VLOOKUP($B119,'[36](905__CLIENT_BALANCE_DISTRIBUTI'!$A$2:$C$12,3,FALSE),0) -> 4197489.36 | AK119: 0.01252290606 | AL119: =IFERROR(VLOOKUP($B119,'[37](905__CLIENT_BALANCE_DISTRIBUTI'!$A$1:$C$12,3,FALSE),0) -> 3173159.68 | AO119: 0.01806007191 | AP119: =VLOOKUP(B119,'[38](905__CLIENT_BALANCE_DISTRIBUTI'!$A$2:$C$12,3,0) -> 5228050.69 | AS119: 0.02293997564 | AT119: 7412044.12
A120: $500,001+ | B120: $500,000+ | E120: 0 | F120: =IFERROR(VLOOKUP($A120,[33]Balance!$A$2:$C$10,3,FALSE),0) -> 0 | I120: 0 | J120: 0 | M120: 0 | N120: 0 | Q120: 0 | R120: 0 | U120: 0 | V120: 0 | Y120: 0.007824800845 | Z120: =IFERROR(VLOOKUP($A120,'[34]Balance Distribution'!$A$2:$C$12,3,FALSE),0) -> 1446046.24 | AC120: 0.01113406185 | AD120: =IFERROR(VLOOKUP($A120,'[35]Balance Distribution'!$A$2:$C$12,3,FALSE),0) -> 2377306.32 | AG120: 0.01272313176 | AH120: =IFERROR(VLOOKUP($B120,'[36](905__CLIENT_BALANCE_DISTRIBUTI'!$A$2:$C$12,3,FALSE),0) -> 2964792.79 | AK120: 0.02060047045 | AL120: =IFERROR(VLOOKUP($B120,'[37](905__CLIENT_BALANCE_DISTRIBUTI'!$A$1:$C$12,3,FALSE),0) -> 5219921.15 | AO120: 0.02727736911 | AP120: =VLOOKUP(B120,'[38](905__CLIENT_BALANCE_DISTRIBUTI'!$A$2:$C$12,3,0) -> 7896284.64 | AS120: 0.02993108389 | AT120: 9670913.25
A121: $200,001 to $300,000 | B121: Total | E121: =SUM(E110:E120) -> 1 | F121: =SUM(F110:F120) -> 74945279.9 | I121: 1 | J121: 98972900.76 | M121: 1 | N121: 122415113.5 | Q121: 1 | R121: 137450609.9 | U121: 1 | V121: 154418920.7 | Y121: =SUM(Y110:Y120) -> 1 | Z121: =SUM(Z110:Z120) -> 184802945 | AC121: =SUM(AC110:AC120) -> 1 | AD121: =SUM(AD110:AD120) -> 213516536.2 | AG121: =SUM(AG110:AG120) -> 1 | AH121: =SUM(AH110:AH120) -> 233023822 | AK121: =SUM(AK110:AK120) -> 1 | AL121: =SUM(AL110:AL120) -> 253388443.9 | AO121: =SUM(AO110:AO120) -> 1 | AP121: =SUM(AP110:AP120) -> 289481166.9 | AS121: 1 | AT121: 323106015.3
A122: 0
A123: 0 to 5 | B123: Residual / Balloon Payment Distribution
A124: 0 | B124: 0 | E124: =F124/F$134 -> 0.7955073261 | F124: =IFERROR(VLOOKUP($A124,[33]Residual!$A$2:$C$11,3,FALSE),0) -> 59619519.22 | I124: 0.8238230361 | J124: 81536155.6 | M124: 0.8431601794 | N124: 103215549.1 | Q124: 0.8403844769 | R124: 115511358.9 | U124: 0.8402001773 | V124: 129742804.6 | Y124: =Z124/Z$134 -> 0.8498864312 | Z124: =IFERROR(VLOOKUP($A124,[34]Residual!$A$2:$C$11,3,FALSE),0) -> 157061515.4 | AC124: =AD124/AD$134 -> 0.8585257748 | AD124: =IFERROR(VLOOKUP($A124,[39]Residual!$A$4:$B$13,2,FALSE),0) -> 183309449.7 | AG124: =AH124/AH$134 -> 0.8470170339 | AH124: =IFERROR(VLOOKUP($B124,'[36](904__RESIDUAL_BALLOON_PAYMENT'!$A$2:$C$11,3,FALSE),0) -> 197375146.5 | AK124: =AL124/AL$134 -> 0.8373665038 | AL124: =IFERROR(VLOOKUP($B124,'[37](904__RESIDUAL_BALLOON_PAYMENT'!$A$1:$C$11,3,FALSE),0) -> 212178995.4 | AO124: =AP124/$AP$134 -> 0.8387795024 | AP124: =VLOOKUP(B124,'[38](904__RESIDUAL_BALLOON_PAYMENT'!$A$2:$C$11,3,0) -> 242810869.2 | AS124: 0.8374439638 | AT124: 270583182.2
A125: 0 to 5 | B125: 0 to 5 | E125: 0.001170321602 | F125: =IFERROR(VLOOKUP($A125,[33]Residual!$A$2:$C$11,3,FALSE),0) -> 87710.08 | I125: 0.001032628823 | J125: 102202.27 | M125: 0.0008809060163 | N125: 107836.21 | Q125: 0.0008649662602 | R125: 118890.14 | U125: 0.0008219650767 | V125: 126926.96 | Y125: 0.0007319074922 | Z125: =IFERROR(VLOOKUP($A125,[34]Residual!$A$2:$C$11,3,FALSE),0) -> 135258.66 | AC125: 0.0006699917604 | AD125: =IFERROR(VLOOKUP($A125,[39]Residual!$A$4:$B$13,2,FALSE),0) -> 143054.32 | AG125: 0.03737180618 | AH125: =IFERROR(VLOOKUP($B125,'[36](904__RESIDUAL_BALLOON_PAYMENT'!$A$2:$C$11,3,FALSE),0) -> 8708521.11 | AK125: 0.03757673761 | AL125: =IFERROR(VLOOKUP($B125,'[37](904__RESIDUAL_BALLOON_PAYMENT'!$A$1:$C$11,3,FALSE),0) -> 9521511.07 | AO125: =AP125/$AP$134 -> 0.03598516657 | AP125: =VLOOKUP(B125,'[38](904__RESIDUAL_BALLOON_PAYMENT'!$A$2:$C$11,3,0) -> 10417028.01 | AS125: 0.03748525597 | AT125: 12111711.69
A126: 6 to 10 | B126: 06 to 10 | E126: 0.002641631605 | F126: =IFERROR(VLOOKUP($A126,[33]Residual!$A$2:$C$11,3,FALSE),0) -> 197977.82 | I126: 0.002474266068 | J126: 244885.29 | M126: 0.0022040678 | N126: 269811.21 | Q126: 0.002053606675 | R126: 282269.49 | U126: 0.002368702089 | V126: 365772.42 | Y126: 0.003272378263 | Z126: =IFERROR(VLOOKUP($A126,[34]Residual!$A$2:$C$11,3,FALSE),0) -> 604745.14 | AC126: 0.002943606856 | AD126: =IFERROR(VLOOKUP($A126,[39]Residual!$A$4:$B$13,2,FALSE),0) -> 628508.74 | AG126: 0.02419304821 | AH126: =IFERROR(VLOOKUP($B126,'[36](904__RESIDUAL_BALLOON_PAYMENT'!$A$2:$C$11,3,FALSE),0) -> 5637556.56 | AK126: 0.02269766569 | AL126: =IFERROR(VLOOKUP($B126,'[37](904__RESIDUAL_BALLOON_PAYMENT'!$A$1:$C$11,3,FALSE),0) -> 5751326.19 | AO126: 0.02202187537 | AP126: =VLOOKUP(B126,'[38](904__RESIDUAL_BALLOON_PAYMENT'!$A$2:$C$11,3,0) -> 6374918.18 | AS126: 0.02218583604 | AT126: 7168377.08
A127: 11 to 15 | B127: 11 to 15 | E127: 0.00587719094 | F127: =IFERROR(VLOOKUP($A127,[33]Residual!$A$2:$C$11,3,FALSE),0) -> 440467.72 | I127: 0.004901997176 | J127: 485164.88 | M127: 0.004353726387 | N127: 532961.91 | Q127: 0.004558918003 | R127: 626626.06 | U127: 0.004709441218 | V127: 727226.83 | Y127: 0.00423435027 | Z127: =IFERROR(VLOOKUP($A127,[34]Residual!$A$2:$C$11,3,FALSE),0) -> 782520.4 | AC127: 0.005283932944 | AD127: =IFERROR(VLOOKUP($A127,[39]Residual!$A$4:$B$13,2,FALSE),0) -> 1128207.06 | AG127: 0.03195457789 | AH127: =IFERROR(VLOOKUP($B127,'[36](904__RESIDUAL_BALLOON_PAYMENT'!$A$2:$C$11,3,FALSE),0) -> 7446177.87 | AK127: 0.03065804111 | AL127: =IFERROR(VLOOKUP($B127,'[37](904__RESIDUAL_BALLOON_PAYMENT'!$A$1:$C$11,3,FALSE),0) -> 7768393.33 | AO127: 0.03087607465 | AP127: =VLOOKUP(B127,'[38](904__RESIDUAL_BALLOON_PAYMENT'!$A$2:$C$11,3,0) -> 8938042.12 | AS127: 0.02948898711 | AT127: 9528069.12
A128: 16 to 20 | B128: 16 to 20 | E128: 0.0259072066 | F128: =IFERROR(VLOOKUP($A128,[33]Residual!$A$2:$C$11,3,FALSE),0) -> 1941622.85 | I128: 0.02394211973 | J128: 2369621.04 | M128: 0.02105093951 | N128: 2576953.15 | Q128: 0.02214513659 | R128: 3043862.53 | U128: 0.02144222965 | V128: 3311085.96 | Y128: 0.02037249775 | Z128: =IFERROR(VLOOKUP($A128,[34]Residual!$A$2:$C$11,3,FALSE),0) -> 3764897.58 | AC128: 0.01917048882 | AD128: =IFERROR(VLOOKUP($A128,[39]Residual!$A$4:$B$13,2,FALSE),0) -> 4093216.37 | AG128: 0.01636157023 | AH128: =IFERROR(VLOOKUP($B128,'[36](904__RESIDUAL_BALLOON_PAYMENT'!$A$2:$C$11,3,FALSE),0) -> 3812635.63 | AK128: 0.01613935737 | AL128: =IFERROR(VLOOKUP($B128,'[37](904__RESIDUAL_BALLOON_PAYMENT'!$A$1:$C$11,3,FALSE),0) -> 4089526.65 | AO128: 0.01609282614 | AP128: =VLOOKUP(B128,'[38](904__RESIDUAL_BALLOON_PAYMENT'!$A$2:$C$11,3,0) -> 4658570.09 | AS128: 0.01680121509 | AT128: 5428573.66
A129: 21 to 25 | B129: 21 to 25 | E129: 0.03331048311 | F129: =IFERROR(VLOOKUP($A129,[33]Residual!$A$2:$C$11,3,FALSE),0) -> 2496463.48 | I129: 0.02779620541 | J129: 2751071.08 | M129: 0.02521949734 | N129: 3087247.63 | Q129: 0.02556622625 | R129: 3514093.39 | U129: 0.02737138539 | V129: 4226659.79 | Y129: 0.02779000519 | Z129: =IFERROR(VLOOKUP($A129,[34]Residual!$A$2:$C$11,3,FALSE),0) -> 5135674.8 | AC129: 0.02528645629 | AD129: =IFERROR(VLOOKUP($A129,[39]Residual!$A$4:$B$13,2,FALSE),0) -> 5399076.56 | AG129: 0.01310141536 | AH129: =IFERROR(VLOOKUP($B129,'[36](904__RESIDUAL_BALLOON_PAYMENT'!$A$2:$C$11,3,FALSE),0) -> 3052941.88 | AK129: 0.01351229597 | AL129: =IFERROR(VLOOKUP($B129,'[37](904__RESIDUAL_BALLOON_PAYMENT'!$A$1:$C$11,3,FALSE),0) -> 3423859.65 | AO129: 0.01344287368 | AP129: =VLOOKUP(B129,'[38](904__RESIDUAL_BALLOON_PAYMENT'!$A$2:$C$11,3,0) -> 3891458.76 | AS129: 0.01353469153 | AT129: 4373140.25
A130: 26 to 30 | B130: 26 to 30 | E130: 0.07390439341 | F130: =IFERROR(VLOOKUP($A130,[33]Residual!$A$2:$C$11,3,FALSE),0) -> 5538785.45 | I130: 0.06418911319 | J130: 6352982.73 | M130: 0.05646465915 | N130: 6912127.66 | Q130: 0.05939202028 | R130: 8163469.41 | U130: 0.05827770301 | V130: 8999180 | Y130: 0.05289016071 | Z130: =IFERROR(VLOOKUP($A130,[34]Residual!$A$2:$C$11,3,FALSE),0) -> 9774257.46 | AC130: 0.0497652437 | AD130: =IFERROR(VLOOKUP($A130,[39]Residual!$A$4:$B$13,2,FALSE),0) -> 10625702.46 | AG130: 0.01919908764 | AH130: =IFERROR(VLOOKUP($B130,'[36](904__RESIDUAL_BALLOON_PAYMENT'!$A$2:$C$11,3,FALSE),0) -> 4473844.78 | AK130: 0.02354836352 | AL130: =IFERROR(VLOOKUP($B130,'[37](904__RESIDUAL_BALLOON_PAYMENT'!$A$1:$C$11,3,FALSE),0) -> 5966883.19 | AO130: 0.02266435838 | AP130: =VLOOKUP(B130,'[38](904__RESIDUAL_BALLOON_PAYMENT'!$A$2:$C$11,3,0) -> 6560904.91 | AS130: 0.02239224294 | AT130: 7235068.39
A131: 31 to 35 | B131: 31 to 35 | E131: 0.03583366602 | F131: =IFERROR(VLOOKUP($A131,[33]Residual!$A$2:$C$11,3,FALSE),0) -> 2685564.13 | I131: 0.02848103307 | J131: 2818850.46 | M131: 0.02681908545 | N131: 3283061.39 | Q131: 0.02505855385 | R131: 3444313.51 | U131: 0.02360941887 | V131: 3645740.98 | Y131: 0.0212345865 | Z131: =IFERROR(VLOOKUP($A131,[34]Residual!$A$2:$C$11,3,FALSE),0) -> 3924214.12 | AC131: 0.01967483303 | AD131: =IFERROR(VLOOKUP($A131,[39]Residual!$A$4:$B$13,2,FALSE),0) -> 4200902.2 | AG131: 0.005516133325 | AH131: =IFERROR(VLOOKUP($B131,'[36](904__RESIDUAL_BALLOON_PAYMENT'!$A$2:$C$11,3,FALSE),0) -> 1285390.47 | AK131: 0.007065075196 | AL131: =IFERROR(VLOOKUP($B131,'[37](904__RESIDUAL_BALLOON_PAYMENT'!$A$1:$C$11,3,FALSE),0) -> 1790208.41 | AO131: 0.007651588197 | AP131: =VLOOKUP(B131,'[38](904__RESIDUAL_BALLOON_PAYMENT'!$A$2:$C$11,3,0) -> 2214990.68 | AS131: 0.008093507165 | AT131: 2615060.85
A132: 36 to 40 | B132: 36 to 40 | E132: 0.01925527494 | F132: =IFERROR(VLOOKUP($A132,[33]Residual!$A$2:$C$11,3,FALSE),0) -> 1443091.97 | I132: 0.0176139361 | J132: 1743302.35 | M132: 0.01516439912 | N132: 1856351.64 | Q132: 0.01570074561 | R132: 2158077.06 | U132: 0.01452597 | V132: 2243084.61 | Y132: 0.01314831834 | Z132: =IFERROR(VLOOKUP($A132,[34]Residual!$A$2:$C$11,3,FALSE),0) -> 2429847.95 | AC132: 0.01285215791 | AD132: =IFERROR(VLOOKUP($A132,[39]Residual!$A$4:$B$13,2,FALSE),0) -> 2744148.24 | AG132: 0.003050626687 | AH132: =IFERROR(VLOOKUP($B132,'[36](904__RESIDUAL_BALLOON_PAYMENT'!$A$2:$C$11,3,FALSE),0) -> 710868.69 | AK132: 0.003697192483 | AL132: =IFERROR(VLOOKUP($B132,'[37](904__RESIDUAL_BALLOON_PAYMENT'!$A$1:$C$11,3,FALSE),0) -> 936825.85 | AO132: 0.003835456385 | AP132: =VLOOKUP(B132,'[38](904__RESIDUAL_BALLOON_PAYMENT'!$A$2:$C$11,3,0) -> 1110292.39 | AS132: 0.004228659435 | AT132: 1366305.3
A133: 41+ % | B133: 41+% | E133: 0.006592505634 | F133: =IFERROR(VLOOKUP($A133,[33]Residual!$A$2:$C$11,3,FALSE),0) -> 494077.18 | I133: 0.005745664274 | J133: 568665.06 | M133: 0.00468253979 | N133: 573213.64 | Q133: 0.0042753496 | R133: 587649.41 | U133: 0.006673007397 | V133: 1030438.6 | Y133: 0.00643936432 | Z133: =IFERROR(VLOOKUP($A133,[34]Residual!$A$2:$C$11,3,FALSE),0) -> 1190013.49 | AC133: 0.005827513934 | AD133: =IFERROR(VLOOKUP($A133,[39]Residual!$A$4:$B$13,2,FALSE),0) -> 1244270.59 | AG133: 0.002234700579 | AH133: =IFERROR(VLOOKUP($B133,'[36](904__RESIDUAL_BALLOON_PAYMENT'!$A$2:$C$11,3,FALSE),0) -> 520738.47 | AK133: 0.007738767206 | AL133: =IFERROR(VLOOKUP($B133,'[37](904__RESIDUAL_BALLOON_PAYMENT'!$A$1:$C$11,3,FALSE),0) -> 1960914.18 | AO133: 0.008650278209 | AP133: =VLOOKUP(B133,'[38](904__RESIDUAL_BALLOON_PAYMENT'!$A$2:$C$11,3,0) -> 2504092.63 | AS133: 0.008345640911 | AT133: 2696526.78
E134: =SUM(E124:E133) -> 1 | F134: =SUM(F124:F133) -> 74945279.9 | I134: 1 | J134: 98972900.76 | M134: 1 | N134: 122415113.5 | Q134: 1 | R134: 137450609.9 | U134: 1 | V134: 154418920.7 | Y134: =SUM(Y124:Y133) -> 1 | Z134: =SUM(Z124:Z133) -> 184802945 | AC134: =SUM(AC124:AC133) -> 1 | AD134: =SUM(AD124:AD133) -> 213516536.2 | AG134: =SUM(AG124:AG133) -> 1 | AH134: =SUM(AH124:AH133) -> 233023822 | AK134: =SUM(AK124:AK133) -> 1 | AL134: =SUM(AL124:AL133) -> 253388443.9 | AO134: =SUM(AO124:AO133) -> 1 | AP134: =SUM(AP124:AP133) -> 289481166.9 | AS134: 1 | AT134: 323106015.3
A135: 2004 Q1
A136: 2004 Q2 | B136: Quarter of Maturity Distribution
A137: 2010Q1 | B137: 2010Q1 | E137: =F137/F$166 -> 0 | F137: =IFERROR(VLOOKUP($A137,'[33]Maturity Quarter'!$A$2:$C$11,3,FALSE),0) -> 0 | I137: 0 | J137: 0 | M137: 0 | N137: 0 | Q137: 0 | R137: 0 | U137: 0 | V137: 0 | Y137: =Z137/Z$166 -> 0 | Z137: =IFERROR(VLOOKUP($A137,'[34]Maturity Quarter'!$A$2:$C$18,3,FALSE),0) -> 0 | AC137: =AD137/AD$166 -> 0 | AD137: =IFERROR(VLOOKUP($B137,'[36](906__MATURITY_QUARTER_AND_YEAR'!$A$2:$D$21,4,FALSE),0) -> 0 | AG137: =AH137/AH$166 -> 0 | AH137: =IFERROR(VLOOKUP($B137,'[36](906__MATURITY_QUARTER_AND_YEAR'!$A$2:$D$21,4,FALSE),0) -> 0 | AK137: =AL137/AL$166 -> 0 | AL137: =IFERROR(VLOOKUP($B137,'[37](906__MATURITY_QUARTER_AND_YEAR'!$A$1:$D$21,4,FALSE),0) -> 0 | AO137: =AP137/$AP$166 -> 0 | AP137: 0 | AS137: 0 | AT137: 0
A138: 2010Q2 | B138: 2010Q2 | E138: 0 | F138: =IFERROR(VLOOKUP($A138,'[33]Maturity Quarter'!$A$2:$C$11,3,FALSE),0) -> 0 | I138: 0 | J138: 0 | M138: 0 | N138: 0 | Q138: 0 | R138: 0 | U138: 0 | V138: 0 | Y138: 0 | Z138: =IFERROR(VLOOKUP($A138,'[34]Maturity Quarter'!$A$2:$C$18,3,FALSE),0) -> 0 | AC138: 0 | AD138: =IFERROR(VLOOKUP($B138,'[36](906__MATURITY_QUARTER_AND_YEAR'!$A$2:$D$21,4,FALSE),0) -> 0 | AG138: 0 | AH138: =IFERROR(VLOOKUP($B138,'[36](906__MATURITY_QUARTER_AND_YEAR'!$A$2:$D$21,4,FALSE),0) -> 0 | AK138: 0 | AL138: =IFERROR(VLOOKUP($B138,'[37](906__MATURITY_QUARTER_AND_YEAR'!$A$1:$D$21,4,FALSE),0) -> 0 | AO138: =AP138/$AP$166 -> 0 | AP138: 0 | AS138: 0 | AT138: 0
A139: 2010Q3 | B139: 2010Q3 | E139: 0 | F139: =IFERROR(VLOOKUP($A139,'[33]Maturity Quarter'!$A$2:$C$11,3,FALSE),0) -> 0 | I139: 0 | J139: 0 | M139: 0 | N139: 0 | Q139: 0 | R139: 0 | U139: 0 | V139: 0 | Y139: 0 | Z139: =IFERROR(VLOOKUP($A139,'[34]Maturity Quarter'!$A$2:$C$18,3,FALSE),0) -> 0 | AC139: 0 | AD139: =IFERROR(VLOOKUP($B139,'[36](906__MATURITY_QUARTER_AND_YEAR'!$A$2:$D$21,4,FALSE),0) -> 0 | AG139: 0 | AH139: =IFERROR(VLOOKUP($B139,'[36](906__MATURITY_QUARTER_AND_YEAR'!$A$2:$D$21,4,FALSE),0) -> 0 | AK139: 0 | AL139: =IFERROR(VLOOKUP($B139,'[37](906__MATURITY_QUARTER_AND_YEAR'!$A$1:$D$21,4,FALSE),0) -> 0 | AO139: 0 | AP139: 0 | AS139: 0 | AT139: 0
A140: 2010Q4 | B140: 2010Q4 | E140: 0 | F140: =IFERROR(VLOOKUP($A140,'[33]Maturity Quarter'!$A$2:$C$11,3,FALSE),0) -> 0 | I140: 0 | J140: 0 | M140: 0 | N140: 0 | Q140: 0 | R140: 0 | U140: 0 | V140: 0 | Y140: 0 | Z140: =IFERROR(VLOOKUP($A140,'[34]Maturity Quarter'!$A$2:$C$18,3,FALSE),0) -> 0 | AC140: 0 | AD140: =IFERROR(VLOOKUP($B140,'[36](906__MATURITY_QUARTER_AND_YEAR'!$A$2:$D$21,4,FALSE),0) -> 0 | AG140: 0 | AH140: =IFERROR(VLOOKUP($B140,'[36](906__MATURITY_QUARTER_AND_YEAR'!$A$2:$D$21,4,FALSE),0) -> 0 | AK140: 0 | AL140: =IFERROR(VLOOKUP($B140,'[37](906__MATURITY_QUARTER_AND_YEAR'!$A$1:$D$21,4,FALSE),0) -> 0 | AO140: 0 | AP140: 0 | AS140: 0 | AT140: 0
A141: 2011Q1 | B141: 2011Q1 | E141: 0 | F141: =IFERROR(VLOOKUP($A141,'[33]Maturity Quarter'!$A$2:$C$11,3,FALSE),0) -> 0 | I141: 0 | J141: 0 | M141: 0 | N141: 0 | Q141: 0 | R141: 0 | U141: 0 | V141: 0 | Y141: 0 | Z141: =IFERROR(VLOOKUP($A141,'[34]Maturity Quarter'!$A$2:$C$18,3,FALSE),0) -> 0 | AC141: 0 | AD141: =IFERROR(VLOOKUP($B141,'[36](906__MATURITY_QUARTER_AND_YEAR'!$A$2:$D$21,4,FALSE),0) -> 0 | AG141: 0 | AH141: =IFERROR(VLOOKUP($B141,'[36](906__MATURITY_QUARTER_AND_YEAR'!$A$2:$D$21,4,FALSE),0) -> 0 | AK141: 0 | AL141: =IFERROR(VLOOKUP($B141,'[37](906__MATURITY_QUARTER_AND_YEAR'!$A$1:$D$21,4,FALSE),0) -> 0 | AO141: 0 | AP141: 0 | AS141: 0 | AT141: 0
A142: 2011Q2 | B142: 2011Q2 | E142: 0 | F142: =IFERROR(VLOOKUP($A142,'[33]Maturity Quarter'!$A$2:$C$11,3,FALSE),0) -> 0 | I142: 0 | J142: 0 | M142: 0 | N142: 0 | Q142: 0 | R142: 0 | U142: 0 | V142: 0 | Y142: 0 | Z142: =IFERROR(VLOOKUP($A142,'[34]Maturity Quarter'!$A$2:$C$18,3,FALSE),0) -> 0 | AC142: 0 | AD142: =IFERROR(VLOOKUP($B142,'[36](906__MATURITY_QUARTER_AND_YEAR'!$A$2:$D$21,4,FALSE),0) -> 0 | AG142: 0 | AH142: =IFERROR(VLOOKUP($B142,'[36](906__MATURITY_QUARTER_AND_YEAR'!$A$2:$D$21,4,FALSE),0) -> 0 | AK142: 0 | AL142: =IFERROR(VLOOKUP($B142,'[37](906__MATURITY_QUARTER_AND_YEAR'!$A$1:$D$21,4,FALSE),0) -> 0 | AO142: 0 | AP142: 0 | AS142: 0 | AT142: 0
A143: 2011Q3 | B143: 2011Q3 | E143: 0 | F143: =IFERROR(VLOOKUP($A143,'[33]Maturity Quarter'!$A$2:$C$11,3,FALSE),0) -> 0 | I143: 0 | J143: 0 | M143: 0 | N143: 0 | Q143: 0 | R143: 0 | U143: 0 | V143: 0 | Y143: 0 | Z143: =IFERROR(VLOOKUP($A143,'[34]Maturity Quarter'!$A$2:$C$18,3,FALSE),0) -> 0 | AC143: 0 | AD143: =IFERROR(VLOOKUP($B143,'[36](906__MATURITY_QUARTER_AND_YEAR'!$A$2:$D$21,4,FALSE),0) -> 0 | AG143: 0 | AH143: =IFERROR(VLOOKUP($B143,'[36](906__MATURITY_QUARTER_AND_YEAR'!$A$2:$D$21,4,FALSE),0) -> 0 | AK143: 0 | AL143: =IFERROR(VLOOKUP($B143,'[37](906__MATURITY_QUARTER_AND_YEAR'!$A$1:$D$21,4,FALSE),0) -> 0 | AO143: 0 | AP143: 0 | AS143: 0 | AT143: 0
A144: 2011Q4 | B144: 2011Q4 | E144: 0 | F144: =IFERROR(VLOOKUP($A144,'[33]Maturity Quarter'!$A$2:$C$11,3,FALSE),0) -> 0 | I144: 0 | J144: 0 | M144: 0 | N144: 0 | Q144: 0 | R144: 0 | U144: 0 | V144: 0 | Y144: 0 | Z144: =IFERROR(VLOOKUP($A144,'[34]Maturity Quarter'!$A$2:$C$18,3,FALSE),0) -> 0 | AC144: 0 | AD144: =IFERROR(VLOOKUP($B144,'[36](906__MATURITY_QUARTER_AND_YEAR'!$A$2:$D$21,4,FALSE),0) -> 0 | AG144: 0 | AH144: =IFERROR(VLOOKUP($B144,'[36](906__MATURITY_QUARTER_AND_YEAR'!$A$2:$D$21,4,FALSE),0) -> 0 | AK144: 0 | AL144: =IFERROR(VLOOKUP($B144,'[37](906__MATURITY_QUARTER_AND_YEAR'!$A$1:$D$21,4,FALSE),0) -> 0 | AO144: 0 | AP144: =VLOOKUP(B144,'[38](906__MATURITY_QUARTER_AND_YEAR'!$A$2:$D$21,4,0) -> 0 | AS144: 0.0007493221374 | AT144: 242110.49
A145: 2012Q1 | B145: 2012Q1 | E145: 0 | F145: =IFERROR(VLOOKUP($A145,'[33]Maturity Quarter'!$A$2:$C$11,3,FALSE),0) -> 0 | I145: 0 | J145: 0 | M145: 0 | N145: 0 | Q145: 0 | R145: 0 | U145: 0 | V145: 0 | Y145: 0 | Z145: =IFERROR(VLOOKUP($A145,'[34]Maturity Quarter'!$A$2:$C$18,3,FALSE),0) -> 0 | AC145: 0 | AD145: =IFERROR(VLOOKUP($B145,'[36](906__MATURITY_QUARTER_AND_YEAR'!$A$2:$D$21,4,FALSE),0) -> 0 | AG145: 0 | AH145: =IFERROR(VLOOKUP($B145,'[36](906__MATURITY_QUARTER_AND_YEAR'!$A$2:$D$21,4,FALSE),0) -> 0 | AK145: 0.0001682693549 | AL145: =IFERROR(VLOOKUP($B145,'[37](906__MATURITY_QUARTER_AND_YEAR'!$A$1:$D$21,4,FALSE),0) -> 42637.51 | AO145: 0.0051134617 | AP145: =VLOOKUP(B145,'[38](906__MATURITY_QUARTER_AND_YEAR'!$A$2:$D$21,4,0) -> 1480250.86 | AS145: 0.01099133666 | AT145: 3551366.99
A146: Q22012 | B146: 2012Q2 | E146: 0 | F146: =IFERROR(VLOOKUP($A146,'[33]Maturity Quarter'!$A$2:$C$11,3,FALSE),0) -> 0 | I146: 0 | J146: 0 | M146: 0 | N146: 0 | Q146: 0 | R146: 0 | U146: 7.67762781e-05 | V146: 11855.71 | Y146: 6.415325255e-05 | Z146: =IFERROR(VLOOKUP($A146,'[34]Maturity Quarter'!$A$2:$C$18,3,FALSE),0) -> 11855.71 | AC146: 5.552595695e-05 | AD146: =IFERROR(VLOOKUP($A146,[28]Maturity!$A$5:$B$21,2,FALSE),0) -> 11855.71 | AG146: 8.108278303e-05 | AH146: =IFERROR(VLOOKUP($B146,'[36](906__MATURITY_QUARTER_AND_YEAR'!$A$2:$D$21,4,FALSE),0) -> 18894.22 | AK146: 0.009684257862 | AL146: =IFERROR(VLOOKUP($B146,'[37](906__MATURITY_QUARTER_AND_YEAR'!$A$1:$D$21,4,FALSE),0) -> 2453879.03 | AO146: 0.01378095941 | AP146: =VLOOKUP(B146,'[38](906__MATURITY_QUARTER_AND_YEAR'!$A$2:$D$21,4,0) -> 3989328.21 | AS146: 0.01383226622 | AT146: 4469288.42
A147: 2012Q3 | B147: 2012Q3 | E147: 0 | F147: =IFERROR(VLOOKUP($A147,'[33]Maturity Quarter'!$A$2:$C$11,3,FALSE),0) -> 0 | I147: 0 | J147: 0 | M147: 0 | N147: 0 | Q147: 0 | R147: 0 | U147: 0 | V147: 0 | Y147: 0 | Z147: =IFERROR(VLOOKUP($A147,'[34]Maturity Quarter'!$A$2:$C$18,3,FALSE),0) -> 0 | AC147: 0 | AD147: =IFERROR(VLOOKUP($A147,[28]Maturity!$A$5:$B$21,2,FALSE),0) -> 0 | AG147: 0.004279071133 | AH147: =IFERROR(VLOOKUP($B147,'[36](906__MATURITY_QUARTER_AND_YEAR'!$A$2:$D$21,4,FALSE),0) -> 997125.51 | AK147: 0.008732903111 | AL147: =IFERROR(VLOOKUP($B147,'[37](906__MATURITY_QUARTER_AND_YEAR'!$A$1:$D$21,4,FALSE),0) -> 2212816.73 | AO147: 0.009023551922 | AP147: =VLOOKUP(B147,'[38](906__MATURITY_QUARTER_AND_YEAR'!$A$2:$D$21,4,0) -> 2612148.34 | AS147: 0.008862083943 | AT147: 2863392.63
A148: Q42012 | B148: 2012Q4 | E148: 0 | F148: =IFERROR(VLOOKUP($A148,'[33]Maturity Quarter'!$A$2:$C$11,3,FALSE),0) -> 0 | I148: 0 | J148: 0 | M148: 0 | N148: 0 | Q148: 0 | R148: 0 | U148: 0 | V148: 0 | Y148: 8.963498933e-05 | Z148: =IFERROR(VLOOKUP($A148,'[34]Maturity Quarter'!$A$2:$C$18,3,FALSE),0) -> 16564.81 | AC148: 0.0008239961321 | AD148: =IFERROR(VLOOKUP($A148,[28]Maturity!$A$5:$B$21,2,FALSE),0) -> 175936.8 | AG148: 0.003949103581 | AH148: =IFERROR(VLOOKUP($B148,'[36](906__MATURITY_QUARTER_AND_YEAR'!$A$2:$D$21,4,FALSE),0) -> 920235.21 | AK148: 0.004691719171 | AL148: =IFERROR(VLOOKUP($B148,'[37](906__MATURITY_QUARTER_AND_YEAR'!$A$1:$D$21,4,FALSE),0) -> 1188827.42 | AO148: 0.005242052864 | AP148: =VLOOKUP(B148,'[38](906__MATURITY_QUARTER_AND_YEAR'!$A$2:$D$21,4,0) -> 1517475.58 | AS148: 0.005552712469 | AT148: 1794114.8
A149: Q12013 | B149: 2013Q1 | E149: 0 | F149: =IFERROR(VLOOKUP($A149,'[33]Maturity Quarter'!$A$2:$C$11,3,FALSE),0) -> 0 | I149: 0 | J149: 0 | M149: 0 | N149: 0 | Q149: 7.415689176e-05 | R149: 10192.91 | U149: 0.001223667146 | V149: 188957.36 | Y149: 0.008597160777 | Z149: =IFERROR(VLOOKUP($A149,'[34]Maturity Quarter'!$A$2:$C$18,3,FALSE),0) -> 1588780.63 | AC149: 0.01944075744 | AD149: =IFERROR(VLOOKUP($A149,[28]Maturity!$A$5:$B$21,2,FALSE),0) -> 4150923.19 | AG149: 0.02029190179 | AH149: =IFERROR(VLOOKUP($B149,'[36](906__MATURITY_QUARTER_AND_YEAR'!$A$2:$D$21,4,FALSE),0) -> 4728496.51 | AK149: 0.02000012562 | AL149: =IFERROR(VLOOKUP($B149,'[37](906__MATURITY_QUARTER_AND_YEAR'!$A$1:$D$21,4,FALSE),0) -> 5067800.71 | AO149: 0.02386168445 | AP149: =VLOOKUP(B149,'[38](906__MATURITY_QUARTER_AND_YEAR'!$A$2:$D$21,4,0) -> 6907508.26 | AS149: 0.02998445232 | AT149: 9688156.91
A150: Q22013 | B150: 2013Q2 | E150: 0 | F150: =IFERROR(VLOOKUP($A150,'[33]Maturity Quarter'!$A$2:$C$11,3,FALSE),0) -> 0 | I150: 0 | J150: 0 | M150: 0 | N150: 0 | Q150: 8.873318212e-05 | R150: 12196.43 | U150: 0.005642979604 | V150: 871382.82 | Y150: 0.01380748857 | Z150: =IFERROR(VLOOKUP($A150,'[34]Maturity Quarter'!$A$2:$C$18,3,FALSE),0) -> 2551664.55 | AC150: 0.01489156876 | AD150: =IFERROR(VLOOKUP($A150,[28]Maturity!$A$5:$B$21,2,FALSE),0) -> 3179596.18 | AG150: 0.01665276269 | AH150: =IFERROR(VLOOKUP($B150,'[36](906__MATURITY_QUARTER_AND_YEAR'!$A$2:$D$21,4,FALSE),0) -> 3880490.41 | AK150: 0.02223158931 | AL150: =IFERROR(VLOOKUP($B150,'[37](906__MATURITY_QUARTER_AND_YEAR'!$A$1:$D$21,4,FALSE),0) -> 5633227.82 | AO150: 0.02548037836 | AP150: =VLOOKUP(B150,'[38](906__MATURITY_QUARTER_AND_YEAR'!$A$2:$D$21,4,0) -> 7376089.66 | AS150: 0.02517953713 | AT150: 8135659.91
A151: Q32013 | B151: 2013Q3 | E151: 0 | F151: =IFERROR(VLOOKUP($A151,'[33]Maturity Quarter'!$A$2:$C$11,3,FALSE),0) -> 0 | I151: 0 | J151: 0 | M151: 0.000285034086 | N151: 34892.48 | Q151: 0.002666178348 | R151: 366467.84 | U151: 0.007942832358 | V151: 1226523.6 | Y151: 0.008902868892 | Z151: =IFERROR(VLOOKUP($A151,'[34]Maturity Quarter'!$A$2:$C$18,3,FALSE),0) -> 1645276.39 | AC151: 0.009637947516 | AD151: =IFERROR(VLOOKUP($A151,[28]Maturity!$A$5:$B$21,2,FALSE),0) -> 2057861.17 | AG151: 0.011094307 | AH151: =IFERROR(VLOOKUP($B151,'[36](906__MATURITY_QUARTER_AND_YEAR'!$A$2:$D$21,4,FALSE),0) -> 2585237.82 | AK151: 0.01285360899 | AL151: =IFERROR(VLOOKUP($B151,'[37](906__MATURITY_QUARTER_AND_YEAR'!$A$1:$D$21,4,FALSE),0) -> 3256955.98 | AO151: 0.01329599919 | AP151: =VLOOKUP(B151,'[38](906__MATURITY_QUARTER_AND_YEAR'!$A$2:$D$21,4,0) -> 3848941.36 | AS151: 0.01313151365 | AT151: 4242871.05
A152: Q42013 | B152: 2013Q4 | E152: 0 | F152: =IFERROR(VLOOKUP($A152,'[33]Maturity Quarter'!$A$2:$C$11,3,FALSE),0) -> 0 | I152: 0.0001314428485 | J152: 13009.28 | M152: 0.002875263436 | N152: 351975.7 | Q152: 0.00738995244 | R152: 1015753.47 | U152: 0.008340842457 | V152: 1287983.89 | Y152: 0.009270094371 | Z152: =IFERROR(VLOOKUP($A152,'[34]Maturity Quarter'!$A$2:$C$18,3,FALSE),0) -> 1713140.74 | AC152: 0.01040530635 | AD152: =IFERROR(VLOOKUP($A152,[28]Maturity!$A$5:$B$21,2,FALSE),0) -> 2221704.97 | AG152: 0.01244629023 | AH152: =IFERROR(VLOOKUP($B152,'[36](906__MATURITY_QUARTER_AND_YEAR'!$A$2:$D$21,4,FALSE),0) -> 2900282.12 | AK152: 0.01235587607 | AL152: =IFERROR(VLOOKUP($B152,'[37](906__MATURITY_QUARTER_AND_YEAR'!$A$1:$D$21,4,FALSE),0) -> 3130836.21 | AO152: 0.01244527438 | AP152: =VLOOKUP(B152,'[38](906__MATURITY_QUARTER_AND_YEAR'!$A$2:$D$21,4,0) -> 3602672.55 | AS152: 0.01311781985 | AT152: 4238446.5
A153: Q12014 | B153: 2014Q1 | E153: 0.0002280096895 | F153: =IFERROR(VLOOKUP($A153,'[33]Maturity Quarter'!$A$2:$C$11,3,FALSE),0) -> 17088.25 | I153: 0.01557754697 | J153: 1541755.01 | M153: 0.03489819228 | N153: 4272066.17 | Q153: 0.03456609486 | R153: 4751130.82 | U153: 0.03420841997 | V153: 5282427.29 | Y153: 0.03818118971 | Z153: =IFERROR(VLOOKUP($A153,'[34]Maturity Quarter'!$A$2:$C$18,3,FALSE),0) -> 7055996.3 | AC153: 0.04710556801 | AD153: =IFERROR(VLOOKUP($A153,[28]Maturity!$A$5:$B$21,2,FALSE),0) -> 10057817.72 | AG153: 0.04529704469 | AH153: =IFERROR(VLOOKUP($B153,'[36](906__MATURITY_QUARTER_AND_YEAR'!$A$2:$D$21,4,FALSE),0) -> 10555290.48 | AK153: 0.04497065949 | AL153: =IFERROR(VLOOKUP($B153,'[37](906__MATURITY_QUARTER_AND_YEAR'!$A$1:$D$21,4,FALSE),0) -> 11395045.43 | AO153: 0.04623590689 | AP153: =VLOOKUP(B153,'[38](906__MATURITY_QUARTER_AND_YEAR'!$A$2:$D$21,4,0) -> 13384424.28 | AS153: 0.05052592192 | AT153: 16325229.3
A154: Q22014 | B154: 2014Q2 | E154: 0.01161193728 | F154: =IFERROR(VLOOKUP($A154,'[33]Maturity Quarter'!$A$2:$C$11,3,FALSE),0) -> 870259.89 | I154: 0.0309233018 | J154: 3060568.88 | M154: 0.0306545746 | N154: 3752583.23 | Q154: 0.03260114876 | R154: 4481047.78 | U154: 0.03856971473 | V154: 5955893.72 | Y154: 0.04241110249 | Z154: =IFERROR(VLOOKUP($A154,'[34]Maturity Quarter'!$A$2:$C$18,3,FALSE),0) -> 7837696.64 | AC154: 0.04134685034 | AD154: =IFERROR(VLOOKUP($A154,[28]Maturity!$A$5:$B$21,2,FALSE),0) -> 8828236.27 | AG154: 0.04062239508 | AH154: =IFERROR(VLOOKUP($B154,'[36](906__MATURITY_QUARTER_AND_YEAR'!$A$2:$D$21,4,FALSE),0) -> 9465985.76 | AK154: 0.04444776852 | AL154: =IFERROR(VLOOKUP($B154,'[37](906__MATURITY_QUARTER_AND_YEAR'!$A$1:$D$21,4,FALSE),0) -> 11262550.9 | AO154: 0.04564446233 | AP154: =VLOOKUP(B154,'[38](906__MATURITY_QUARTER_AND_YEAR'!$A$2:$D$21,4,0) -> 13213212.22 | AS154: 0.04321775603 | AT154: 13963916.94
A155: Q32014 | B155: 2014Q3 | E155: 0.02115002202 | F155: =IFERROR(VLOOKUP($A155,'[33]Maturity Quarter'!$A$2:$C$11,3,FALSE),0) -> 1585094.32 | I155: 0.01979089493 | J155: 1958762.28 | M155: 0.0191694153 | N155: 2346626.15 | Q155: 0.02115083456 | R155: 2907195.11 | U155: 0.02575529548 | V155: 3977104.93 | Y155: 0.02551816028 | Z155: =IFERROR(VLOOKUP($A155,'[34]Maturity Quarter'!$A$2:$C$18,3,FALSE),0) -> 4715831.17 | AC155: 0.0242821995 | AD155: =IFERROR(VLOOKUP($A155,[28]Maturity!$A$5:$B$21,2,FALSE),0) -> 5184651.13 | AG155: 0.02613163138 | AH155: =IFERROR(VLOOKUP($B155,'[36](906__MATURITY_QUARTER_AND_YEAR'!$A$2:$D$21,4,FALSE),0) -> 6089292.62 | AK155: 0.02776972873 | AL155: =IFERROR(VLOOKUP($B155,'[37](906__MATURITY_QUARTER_AND_YEAR'!$A$1:$D$21,4,FALSE),0) -> 7036528.35 | AO155: 0.02651914548 | AP155: =VLOOKUP(B155,'[38](906__MATURITY_QUARTER_AND_YEAR'!$A$2:$D$21,4,0) -> 7676793.18 | AS155: 0.02536274062 | AT155: 8194854.06
A156: Q42014 | B156: 2014Q4 | E156: 0.035621003 | F156: =IFERROR(VLOOKUP($A156,'[33]Maturity Quarter'!$A$2:$C$11,3,FALSE),0) -> 2669626.04 | I156: 0.03408706711 | J156: 3373695.91 | M156: 0.03427892422 | N156: 4196258.4 | Q156: 0.03871138043 | R156: 5320902.85 | U156: 0.03705587725 | V156: 5722128.57 | Y156: 0.03400988978 | Z156: =IFERROR(VLOOKUP($A156,'[34]Maturity Quarter'!$A$2:$C$18,3,FALSE),0) -> 6285127.79 | AC156: 0.03359763429 | AD156: =IFERROR(VLOOKUP($A156,[28]Maturity!$A$5:$B$21,2,FALSE),0) -> 7173650.5 | AG156: 0.03497653987 | AH156: =IFERROR(VLOOKUP($B156,'[36](906__MATURITY_QUARTER_AND_YEAR'!$A$2:$D$21,4,FALSE),0) -> 8150367 | AK156: 0.03550125377 | AL156: =IFERROR(VLOOKUP($B156,'[37](906__MATURITY_QUARTER_AND_YEAR'!$A$1:$D$21,4,FALSE),0) -> 8995607.45 | AO156: 0.03307237836 | AP156: =VLOOKUP(B156,'[38](906__MATURITY_QUARTER_AND_YEAR'!$A$2:$D$21,4,0) -> 9573830.68 | AS156: 0.03447461373 | AT156: 11138955.07
A157: Q12015 | B157: 2015Q1 | E157: 0.2022122602 | F157: =IFERROR(VLOOKUP($A157,'[33]Maturity Quarter'!$A$2:$C$11,3,FALSE),0) -> 15154854.44 | I157: 0.2080687334 | J157: 20593166.1 | M157: 0.2373747982 | N157: 29058262.87 | Q157: 0.2324897155 | R157: 31955853.19 | U157: 0.2201846862 | V157: 34000681.6 | Y157: 0.2230959917 | Z157: =IFERROR(VLOOKUP($A157,'[34]Maturity Quarter'!$A$2:$C$18,3,FALSE),0) -> 41228796.28 | AC157: 0.2374489731 | AD157: =IFERROR(VLOOKUP($A157,[28]Maturity!$A$5:$B$21,2,FALSE),0) -> 50699282.27 | AG157: 0.2322764379 | AH157: =IFERROR(VLOOKUP($B157,'[36](906__MATURITY_QUARTER_AND_YEAR'!$A$2:$D$21,4,FALSE),0) -> 54125943.32 | AK157: 0.2217058786 | AL157: =IFERROR(VLOOKUP($B157,'[37](906__MATURITY_QUARTER_AND_YEAR'!$A$1:$D$21,4,FALSE),0) -> 56177707.58 | AO157: 0.2184823845 | AP157: =VLOOKUP(B157,'[38](906__MATURITY_QUARTER_AND_YEAR'!$A$2:$D$21,4,0) -> 63246535.61 | AS157: 0.2233296416 | AT157: 72159150.61
A158: Q22015 | B158: 2015Q2 | E158: 0.1462973425 | F158: =IFERROR(VLOOKUP($A158,'[33]Maturity Quarter'!$A$2:$C$11,3,FALSE),0) -> 10964295.28 | I158: 0.1557141979 | J158: 15411485.86 | M158: 0.1411756686 | N158: 17282035.5 | Q158: 0.1451857073 | R158: 19955864.02 | U158: 0.1457822547 | V158: 22511538.43 | Y158: 0.1441237573 | Z158: =IFERROR(VLOOKUP($A158,'[34]Maturity Quarter'!$A$2:$C$18,3,FALSE),0) -> 26634494.79 | AC158: 0.1345995244 | AD158: =IFERROR(VLOOKUP($A158,[28]Maturity!$A$5:$B$21,2,FALSE),0) -> 28739224.24 | AG158: 0.1343821773 | AH158: =IFERROR(VLOOKUP($B158,'[36](906__MATURITY_QUARTER_AND_YEAR'!$A$2:$D$21,4,FALSE),0) -> 31314248.56 | AK158: 0.1340914582 | AL158: =IFERROR(VLOOKUP($B158,'[37](906__MATURITY_QUARTER_AND_YEAR'!$A$1:$D$21,4,FALSE),0) -> 33977225.93 | AO158: 0.1348755255 | AP158: =VLOOKUP(B158,'[38](906__MATURITY_QUARTER_AND_YEAR'!$A$2:$D$21,4,0) -> 39043924.51 | AS158: 0.1282436269 | AT158: 41436287.27
A159: Q32015 | B159: 2015Q3 | E159: 0.09774646942 | F159: =IFERROR(VLOOKUP($A159,'[33]Maturity Quarter'!$A$2:$C$11,3,FALSE),0) -> 7325636.51 | I159: 0.08567386188 | J159: 8479390.63 | M159: 0.08050275424 | N159: 9854753.8 | Q159: 0.08382571579 | R159: 11521895.76 | U159: 0.08549659699 | V159: 13202292.23 | Y159: 0.07834393587 | Z159: =IFERROR(VLOOKUP($A159,'[34]Maturity Quarter'!$A$2:$C$18,3,FALSE),0) -> 14478190.07 | AC159: 0.07395005529 | AD159: =IFERROR(VLOOKUP($A159,[28]Maturity!$A$5:$B$21,2,FALSE),0) -> 15789559.66 | AG159: 0.07740302037 | AH159: =IFERROR(VLOOKUP($B159,'[36](906__MATURITY_QUARTER_AND_YEAR'!$A$2:$D$21,4,FALSE),0) -> 18036747.64 | AK159: 0.07782398063 | AL159: =IFERROR(VLOOKUP($B159,'[37](906__MATURITY_QUARTER_AND_YEAR'!$A$1:$D$21,4,FALSE),0) -> 19719697.35 | AO159: 0.07324503713 | AP159: =VLOOKUP(B159,'[38](906__MATURITY_QUARTER_AND_YEAR'!$A$2:$D$21,4,0) -> 21203058.82 | AS159: 0.07025098038 | AT159: 22698514.34
A160: Q42015 | B160: 2015Q4 | E160: 0.1267724327 | F160: =IFERROR(VLOOKUP($A160,'[33]Maturity Quarter'!$A$2:$C$11,3,FALSE),0) -> 9500995.45 | I160: 0.1160570465 | J160: 11486502.55 | M160: 0.1102724103 | N160: 13499009.62 | Q160: 0.1090146496 | R160: 14984130.07 | U160: 0.1082853573 | V160: 16721308 | Y160: 0.1018746441 | Z160: =IFERROR(VLOOKUP($A160,'[34]Maturity Quarter'!$A$2:$C$18,3,FALSE),0) -> 18826734.24 | AC160: 0.09628435531 | AD160: =IFERROR(VLOOKUP($A160,[28]Maturity!$A$5:$B$21,2,FALSE),0) -> 20558302.04 | AG160: 0.0960239557 | AH160: =IFERROR(VLOOKUP($B160,'[36](906__MATURITY_QUARTER_AND_YEAR'!$A$2:$D$21,4,FALSE),0) -> 22375869.16 | AK160: 0.0912630111 | AL160: =IFERROR(VLOOKUP($B160,'[37](906__MATURITY_QUARTER_AND_YEAR'!$A$1:$D$21,4,FALSE),0) -> 23124992.37 | AO160: 0.08794605415 | AP160: =VLOOKUP(B160,'[38](906__MATURITY_QUARTER_AND_YEAR'!$A$2:$D$21,4,0) -> 25458726.38 | AS160: 0.08479821973 | AT160: 27398814.88
A161: Q12016 | B161: 2016Q1 | E161: 0.2105733655 | F161: =IFERROR(VLOOKUP($A161,'[33]Maturity Quarter'!$A$2:$C$11,3,FALSE),0) -> 15781479.82 | I161: 0.197569719 | J161: 19554048.19 | M161: 0.1913590532 | N161: 23425240.22 | Q161: 0.1769125862 | R161: 24316742.87 | U161: 0.1643017269 | V161: 25371295.34 | Y161: 0.1612834 | Z161: =IFERROR(VLOOKUP($A161,'[34]Maturity Quarter'!$A$2:$C$18,3,FALSE),0) -> 29805647.3 | AC161: 0.1569187866 | AD161: =IFERROR(VLOOKUP($A161,[28]Maturity!$A$5:$B$21,2,FALSE),0) -> 33504755.78 | AG161: 0.1487225093 | AH161: =IFERROR(VLOOKUP($B161,'[36](906__MATURITY_QUARTER_AND_YEAR'!$A$2:$D$21,4,FALSE),0) -> 34655887.53 | AK161: 0.1394679869 | AL161: =IFERROR(VLOOKUP($B161,'[37](906__MATURITY_QUARTER_AND_YEAR'!$A$1:$D$21,4,FALSE),0) -> 35339576.18 | AO161: 0.1362130093 | AP161: =VLOOKUP(B161,'[38](906__MATURITY_QUARTER_AND_YEAR'!$A$2:$D$21,4,0) -> 39431100.88 | AS161: 0.1354606027 | AT161: 43768135.56
A162: Q22016 | B162: 2016Q2 | E162: 0.1477871577 | F162: =IFERROR(VLOOKUP($A162,'[33]Maturity Quarter'!$A$2:$C$11,3,FALSE),0) -> 11075949.9 | I162: 0.1364061876 | J162: 13500516.07 | M162: 0.1171539116 | N162: 14341409.39 | Q162: 0.1149124905 | R162: 15794791.9 | U162: 0.1167674418 | V162: 18031102.34 | Y162: 0.1101210952 | Z162: =IFERROR(VLOOKUP($A162,'[34]Maturity Quarter'!$A$2:$C$18,3,FALSE),0) -> 20350702.69 | AC162: 0.09894659267 | AD162: =IFERROR(VLOOKUP($A162,[28]Maturity!$A$5:$B$21,2,FALSE),0) -> 21126733.74 | AG162: 0.09451354124 | AH162: =IFERROR(VLOOKUP($B162,'[36](906__MATURITY_QUARTER_AND_YEAR'!$A$2:$D$21,4,FALSE),0) -> 22023906.61 | AK162: 0.09122872035 | AL162: =IFERROR(VLOOKUP($B162,'[37](906__MATURITY_QUARTER_AND_YEAR'!$A$1:$D$21,4,FALSE),0) -> 23116303.49 | AO162: 0.08863760756 | AP162: =VLOOKUP(B162,'[38](906__MATURITY_QUARTER_AND_YEAR'!$A$2:$D$21,4,0) -> 25658918.07 | AS162: 0.08214183842 | AT162: 26540522.1
A163: Q32016 | B163: 2016Q3 | E163: 0 | F163: =IFERROR(VLOOKUP($A163,'[33]Maturity Quarter'!$A$2:$C$11,3,FALSE),0) -> 0 | I163: 0 | J163: 0 | M163: 0 | N163: 0 | Q163: 0.0004106556533 | R163: 56444.87 | U163: 0.0003655307895 | V163: 56444.87 | Y163: 0.0003054327409 | Z163: =IFERROR(VLOOKUP($A163,'[34]Maturity Quarter'!$A$2:$C$18,3,FALSE),0) -> 56444.87 | AC163: 0.0002643583068 | AD163: =IFERROR(VLOOKUP($A163,[28]Maturity!$A$5:$B$21,2,FALSE),0) -> 56444.87 | AG163: 0.0008562279954 | AH163: =IFERROR(VLOOKUP($B163,'[36](906__MATURITY_QUARTER_AND_YEAR'!$A$2:$D$21,4,FALSE),0) -> 199521.52 | AK163: 0.001011204245 | AL163: =IFERROR(VLOOKUP($B163,'[37](906__MATURITY_QUARTER_AND_YEAR'!$A$1:$D$21,4,FALSE),0) -> 256227.47 | AO163: 0.0008851265619 | AP163: =VLOOKUP(B163,'[38](906__MATURITY_QUARTER_AND_YEAR'!$A$2:$D$21,4,0) -> 256227.47 | AS163: 0.0007930136174 | AT163: 256227.47
A164: 2016Q4 | B164: 2016Q4 | E164: 0 | F164: =IFERROR(VLOOKUP($A164,'[33]Maturity Quarter'!$A$2:$C$11,3,FALSE),0) -> 0 | I164: 0 | J164: 0 | M164: 0 | N164: 0 | Q164: 0 | R164: 0 | U164: 0 | V164: 0 | Y164: 0 | Z164: =IFERROR(VLOOKUP($A164,'[34]Maturity Quarter'!$A$2:$C$18,3,FALSE),0) -> 0 | AC164: 0 | AD164: =IFERROR(VLOOKUP($A164,[28]Maturity!$A$5:$B$21,2,FALSE),0) -> 0 | AG164: 0 | AH164: =IFERROR(VLOOKUP($B164,'[36](906__MATURITY_QUARTER_AND_YEAR'!$A$2:$D$21,4,FALSE),0) -> 0 | AK164: 0 | AL164: =IFERROR(VLOOKUP($B164,'[37](906__MATURITY_QUARTER_AND_YEAR'!$A$1:$D$21,4,FALSE),0) -> 0 | AO164: 0 | AP164: 0 | AS164: 0 | AT164: 0
E166: =SUM(E137:E164) -> 1 | F166: =SUM(F137:F165) -> 74945279.9 | I166: 1 | J166: 98972900.76 | M166: 1 | N166: 122415113.5 | Q166: 1 | R166: 137450609.9 | U166: 1 | V166: 154418920.7 | Y166: =SUM(Y137:Y164) -> 1 | Z166: =SUM(Z137:Z165) -> 184802945 | AC166: =SUM(AC137:AC164) -> 1 | AD166: =SUM(AD137:AD165) -> 213516536.2 | AG166: =SUM(AG137:AG164) -> 1 | AH166: =SUM(AH137:AH164) -> 233023822 | AK166: =SUM(AK137:AK164) -> 1 | AL166: =SUM(AL137:AL164) -> 253388443.9 | AO166: =SUM(AO137:AO164) -> 1 | AP166: =SUM(AP137:AP164) -> 289481166.9 | AS166: 1 | AT166: 323106015.3
A167: 0 to 6 months
A168: 07 to 12 months | B168: Seasoning Distribution
A169: 0 to 6 months | B169: 0 to 6 months | E169: =F169/F$180 -> 0 | F169: =IFERROR(VLOOKUP($A169,[33]Seasoning!$A$2:$C$7,3,FALSE),0) -> 0 | I169: 0 | J169: 0 | M169: 0 | N169: 0 | Q169: 0 | R169: 0 | U169: 0 | V169: 0 | Y169: =Z169/Z$180 -> 0 | Z169: =IFERROR(VLOOKUP($A169,'[34]Seasoning Distribution'!$A$2:$C$9,4,FALSE),0) -> 0 | AC169: =AD169/AD$180 -> 0 | AD169: =IFERROR(VLOOKUP($B169,'[36](907__SEASONING_DISTRIBUTION'!$A$2:$D$11,4,FALSE),0) -> 0 | AG169: =AH169/AH$180 -> 0 | AH169: =IFERROR(VLOOKUP($B169,'[36](907__SEASONING_DISTRIBUTION'!$A$2:$D$11,4,FALSE),0) -> 0 | AK169: =AL169/AL$180 -> 0 | AL169: =IFERROR(VLOOKUP($B169,'[37](907__SEASONING_DISTRIBUTION'!$A$1:$D$11,4,FALSE),0) -> 0 | AO169: =AP169/$AP$180 -> 0 | AP169: =VLOOKUP(B169,'[38](907__SEASONING_DISTRIBUTION'!$A$2:$D$11,4,0) -> 0 | AS169: 0.1198828466 | AT169: 38734868.87
A170: 07 to 12 months | B170: 07 to 12 months | E170: 0 | F170: =IFERROR(VLOOKUP($A170,[33]Seasoning!$A$2:$C$7,3,FALSE),0) -> 0 | I170: 0 | J170: 0 | M170: 0 | N170: 0 | Q170: 0 | R170: 0 | U170: 0 | V170: 0 | Y170: 0 | Z170: =IFERROR(VLOOKUP($A170,'[34]Seasoning Distribution'!$A$2:$C$9,4,FALSE),0) -> 0 | AC170: 0 | AD170: 0 | AG170: 3.020510924e-05 | AH170: =IFERROR(VLOOKUP($B170,'[36](907__SEASONING_DISTRIBUTION'!$A$2:$D$11,4,FALSE),0) -> 7038.51 | AK170: 0.1255506227 | AL170: =IFERROR(VLOOKUP($B170,'[37](907__SEASONING_DISTRIBUTION'!$A$1:$D$11,4,FALSE),0) -> 31813076.92 | AO170: =AP170/$AP$180 -> 0.2943532634 | AP170: =VLOOKUP(B170,'[38](907__SEASONING_DISTRIBUTION'!$A$2:$D$11,4,0) -> 85209726.19 | AS170: 0.3018169534 | AT170: 97518873.16
A171: 13 to 18 months | B171: 13 to 18 months | E171: 0 | F171: =IFERROR(VLOOKUP($A171,[33]Seasoning!$A$2:$C$7,3,FALSE),0) -> 0 | I171: 0 | J171: 0 | M171: 0 | N171: 0 | Q171: 0 | R171: 0 | U171: 0 | V171: 0 | Y171: 0 | Z171: =IFERROR(VLOOKUP($A171,'[34]Seasoning Distribution'!$A$2:$C$9,4,FALSE),0) -> 0 | AC171: 0.06242752831 | AD171: =IFERROR(VLOOKUP($A171,[28]Seasoning!$A$5:$B$13,2,FALSE),0) -> 13329309.61 | AG171: 0.2931331548 | AH171: =IFERROR(VLOOKUP($B171,'[36](907__SEASONING_DISTRIBUTION'!$A$2:$D$11,4,FALSE),0) -> 68307008.08 | AK171: 0.3051516904 | AL171: =IFERROR(VLOOKUP($B171,'[37](907__SEASONING_DISTRIBUTION'!$A$1:$D$11,4,FALSE),0) -> 77321911.98 | AO171: 0.3578657569 | AP171: =VLOOKUP(B171,'[38](907__SEASONING_DISTRIBUTION'!$A$2:$D$11,4,0) -> 103595396.9 | AS171: 0.3547479472 | AT171: 114621195.6
A172: 19 to 24 months | B172: 19 to 24 months | E172: 0 | F172: =IFERROR(VLOOKUP($A172,[33]Seasoning!$A$2:$C$7,3,FALSE),0) -> 0 | I172: 0 | J172: 0 | M172: 0 | N172: 0 | Q172: 0 | R172: 0 | U172: 0.07125895506 | V172: 11003730.93 | Y172: 0.3182069206 | Z172: =IFERROR(VLOOKUP($A172,'[34]Seasoning Distribution'!$A$2:$C$9,3,FALSE),0) -> 58805576.04 | AC172: 0.3216499254 | AD172: =IFERROR(VLOOKUP($A172,[28]Seasoning!$A$5:$B$13,2,FALSE),0) -> 68677577.96 | AG172: 0.3724678903 | AH172: =IFERROR(VLOOKUP($B172,'[36](907__SEASONING_DISTRIBUTION'!$A$2:$D$11,4,FALSE),0) -> 86793891.37 | AK172: 0.3642291955 | AL172: =IFERROR(VLOOKUP($B172,'[37](907__SEASONING_DISTRIBUTION'!$A$1:$D$11,4,FALSE),0) -> 92291469.07 | AO172: 0.2363026538 | AP172: =VLOOKUP(B172,'[38](907__SEASONING_DISTRIBUTION'!$A$2:$D$11,4,0) -> 68405167.96 | AS172: 0.1240219605 | AT172: 40072241.48
A173: 25 to 30 months | B173: 25 to 30 months | E173: 0 | F173: =IFERROR(VLOOKUP($A173,[33]Seasoning!$A$2:$C$7,3,FALSE),0) -> 0 | I173: 0 | J173: 0 | M173: 0.0691409271 | N173: 8463894.44 | Q173: 0.289516733 | R173: 39794251.53 | U173: 0.3324929339 | V173: 51343199.99 | Y173: 0.3592026247 | Z173: =IFERROR(VLOOKUP($A173,'[34]Seasoning Distribution'!$A$2:$C$9,3,FALSE),0) -> 66381702.89 | AC173: 0.3893379941 | AD173: =IFERROR(VLOOKUP($A173,[28]Seasoning!$A$5:$B$13,2,FALSE),0) -> 83130099.92 | AG173: 0.2288706952 | AH173: =IFERROR(VLOOKUP($B173,'[36](907__SEASONING_DISTRIBUTION'!$A$2:$D$11,4,FALSE),0) -> 53332324.14 | AK173: 0.1179660626 | AL173: =IFERROR(VLOOKUP($B173,'[37](907__SEASONING_DISTRIBUTION'!$A$1:$D$11,4,FALSE),0) -> 29891237.04 | AO173: 0.05715255934 | AP173: =VLOOKUP(B173,'[38](907__SEASONING_DISTRIBUTION'!$A$2:$D$11,4,0) -> 16544589.57 | AS173: 0.05423262824 | AT173: 17522888.41
A174: 31 to 36 months | B174: 31 to 36 months | E174: 0.08222353507 | F174: =IFERROR(VLOOKUP($A174,[33]Seasoning!$A$2:$C$7,3,FALSE),0) -> 6162265.85 | I174: 0.3254439246 | J174: 32210129.25 | M174: 0.3498405103 | N174: 42825765.78 | Q174: 0.3822314442 | R174: 52537945.13 | U174: 0.3995878715 | V174: 61703927.84 | Y174: 0.2284805166 | Z174: =IFERROR(VLOOKUP($A174,'[34]Seasoning Distribution'!$A$2:$C$9,3,FALSE),0) -> 42223872.33 | AC174: 0.1452136528 | AD174: =IFERROR(VLOOKUP($A174,[28]Seasoning!$A$5:$B$13,2,FALSE),0) -> 31005516.17 | AG174: 0.06195311315 | AH174: =IFERROR(VLOOKUP($B174,'[36](907__SEASONING_DISTRIBUTION'!$A$2:$D$11,4,FALSE),0) -> 14436551.21 | AK174: 0.05461681072 | AL174: =IFERROR(VLOOKUP($B174,'[37](907__SEASONING_DISTRIBUTION'!$A$1:$D$11,4,FALSE),0) -> 13839268.68 | AO174: 0.02036068647 | AP174: =VLOOKUP(B174,'[38](907__SEASONING_DISTRIBUTION'!$A$2:$D$11,4,0) -> 5894035.28 | AS174: 0.008775988517 | AT174: 2835574.68
A175: 37 to 42 months | B175: 37 to 42 months | E175: 0.3641018784 | F175: =IFERROR(VLOOKUP($A175,[33]Seasoning!$A$2:$C$7,3,FALSE),0) -> 27287717.19 | I175: 0.3697916441 | J175: 36599351.69 | M175: 0.3968559381 | N175: 48581164.72 | Q175: 0.2375949026 | R175: 32657564.27 | U175: 0.1373081704 | V175: 21202979.48 | Y175: 0.05944321938 | Z175: =IFERROR(VLOOKUP($A175,'[34]Seasoning Distribution'!$A$2:$C$9,3,FALSE),0) -> 10985282 | AC175: 0.05181230754 | AD175: =IFERROR(VLOOKUP($A175,[28]Seasoning!$A$5:$B$13,2,FALSE),0) -> 11062784.44 | AG175: 0.01805624525 | AH175: =IFERROR(VLOOKUP($B175,'[36](907__SEASONING_DISTRIBUTION'!$A$2:$D$11,4,FALSE),0) -> 4207535.28 | AK175: 0.007007926654 | AL175: =IFERROR(VLOOKUP($B175,'[37](907__SEASONING_DISTRIBUTION'!$A$1:$D$11,4,FALSE),0) -> 1775727.63 | AO175: 0.00799993148 | AP175: =VLOOKUP(B175,'[38](907__SEASONING_DISTRIBUTION'!$A$2:$D$11,4,0) -> 2315829.5 | AS175: 0.007481353721 | AT175: 2417270.39
A176: 43 to 48 months | B176: 43 to 48 months | E176: 0.3993015994 | F176: =IFERROR(VLOOKUP($A176,[33]Seasoning!$A$2:$C$7,3,FALSE),0) -> 29925770.13 | I176: 0.2292278107 | J176: 22687341.36 | M176: 0.1341836632 | N176: 16426108.37 | Q176: 0.06252691703 | R176: 8594362.88 | U176: 0.04377326133 | V176: 6759419.77 | Y176: 0.01910778522 | Z176: =IFERROR(VLOOKUP($A176,'[34]Seasoning Distribution'!$A$2:$C$9,3,FALSE),0) -> 3531174.98 | AC176: 0.01001198698 | AD176: =IFERROR(VLOOKUP($A176,[28]Seasoning!$A$5:$B$13,2,FALSE),0) -> 2137724.78 | AG176: 0.007932448941 | AH176: =IFERROR(VLOOKUP($B176,'[36](907__SEASONING_DISTRIBUTION'!$A$2:$D$11,4,FALSE),0) -> 1848449.57 | AK176: 0.006804937326 | AL176: =IFERROR(VLOOKUP($B176,'[37](907__SEASONING_DISTRIBUTION'!$A$1:$D$11,4,FALSE),0) -> 1724292.48 | AO176: 0.005284221168 | AP176: =VLOOKUP(B176,'[38](907__SEASONING_DISTRIBUTION'!$A$2:$D$11,4,0) -> 1529682.51 | AS176: 0.01115653621 | AT176: 3604743.96
A177: 49 to 54 months | B177: 49 to 54 months | E177: 0.1167814423 | F177: =IFERROR(VLOOKUP($A177,[33]Seasoning!$A$2:$C$7,3,FALSE),0) -> 8752217.88 | I177: 0.054984249 | J177: 5441950.62 | M177: 0.03888016375 | N177: 4759519.66 | Q177: 0.02034816646 | R177: 2796867.89 | U177: 0.008155708085 | V177: 1259395.64 | Y177: 0.006548284067 | Z177: =IFERROR(VLOOKUP($A177,'[34]Seasoning Distribution'!$A$2:$C$9,3,FALSE),0) -> 1210142.18 | AC177: 0.005095285354 | AD177: =IFERROR(VLOOKUP($A177,[28]Seasoning!$A$5:$B$13,2,FALSE),0) -> 1087927.68 | AG177: 0.00359020049 | AH177: =IFERROR(VLOOKUP($B177,'[36](907__SEASONING_DISTRIBUTION'!$A$2:$D$11,4,FALSE),0) -> 836602.24 | AK177: 0.008470573704 | AL177: =IFERROR(VLOOKUP($B177,'[37](907__SEASONING_DISTRIBUTION'!$A$1:$D$11,4,FALSE),0) -> 2146345.49 | AO177: 0.01152726747 | AP177: =VLOOKUP(B177,'[38](907__SEASONING_DISTRIBUTION'!$A$2:$D$11,4,0) -> 3336926.84 | AS177: 0.009336655485 | AT177: 3016729.55
A178: 55 to 60 months | B178: 55 to 60 months | E178: 0.03631901 | F178: =IFERROR(VLOOKUP($A178,[33]Seasoning!$A$2:$C$7,3,FALSE),0) -> 2721938.37 | I178: 0.01860600463 | J178: 1841490.25 | M178: 0.007956829365 | N178: 974036.17 | Q178: 0.005135416937 | R178: 705866.19 | U178: 0.004219426784 | V178: 651559.33 | Y178: 0.002963791189 | Z178: =IFERROR(VLOOKUP($A178,'[34]Seasoning Distribution'!$A$2:$C$9,3,FALSE),0) -> 547717.34 | AC178: 0.006809991842 | AD178: =IFERROR(VLOOKUP($A178,[28]Seasoning!$A$5:$B$13,2,FALSE),0) -> 1454045.87 | AG178: 0.01396604678 | AH178: =IFERROR(VLOOKUP($B178,'[36](907__SEASONING_DISTRIBUTION'!$A$2:$D$11,4,FALSE),0) -> 3254421.6 | AK178: 0.01020218042 | AL178: =IFERROR(VLOOKUP($B178,'[37](907__SEASONING_DISTRIBUTION'!$A$1:$D$11,4,FALSE),0) -> 2585114.62 | AO178: 0.009153659902 | AP178: =VLOOKUP(B178,'[38](907__SEASONING_DISTRIBUTION'!$A$2:$D$11,4,0) -> 2649812.15 | AS178: 0.008547130134 | AT178: 2761629.16
A179: 60+ months | B179: 61 to 72 months | E179: 0.001272534843 | F179: =IFERROR(VLOOKUP($A179,[33]Seasoning!$A$2:$C$7,3,FALSE),0) -> 95370.48 | I179: 0.001946367021 | J179: 192637.59 | M179: 0.003141968168 | N179: 384624.39 | Q179: 0.002646419687 | R179: 363752 | U179: 0.003203672955 | V179: 494707.72 | Y179: 0.006046858237 | Z179: =IFERROR(VLOOKUP($A179,'[34]Seasoning Distribution'!$A$2:$C$9,3,FALSE),0) -> 1117477.21 | AC179: 0.00764132764 | AD179: =IFERROR(VLOOKUP($A179,[28]Seasoning!$A$5:$B$13,2,FALSE),0) -> 1631549.81 | AG179: 0 | AH179: =IFERROR(VLOOKUP($B179,'[37](907__SEASONING_DISTRIBUTION'!$A$1:$D$11,4,FALSE),0) -> 0 | AK179: 0 | AL179: =IFERROR(VLOOKUP($B179,'[37](907__SEASONING_DISTRIBUTION'!$A$1:$D$11,4,FALSE),0) -> 0 | AO179: 0 | AP179: 0 | AS179: 0 | AT179: 0
A180: 61 to 72 months | B180: Total | E180: =SUM(E169:E179) -> 1 | F180: =SUM(F169:F179) -> 74945279.9 | I180: 1 | J180: 98972900.76 | M180: 1 | N180: 122415113.5 | Q180: 1 | R180: 137450609.9 | U180: 1 | V180: 154418920.7 | Y180: =SUM(Y169:Y179) -> 1 | Z180: =SUM(Z169:Z179) -> 184802945 | AC180: =SUM(AC169:AC179) -> 1 | AD180: =SUM(AD169:AD179) -> 213516536.2 | AG180: =SUM(AG169:AG179) -> 1 | AH180: =SUM(AH169:AH179) -> 233023822 | AK180: =SUM(AK169:AK179) -> 1 | AL180: =SUM(AL169:AL179) -> 253388443.9 | AO180: =SUM(AO169:AO179) -> 1 | AP180: =SUM(AP169:AP179) -> 289481166.9 | AS180: 1 | AT180: 323106015.3
B182: Remaining Term Distribution
A183: 0 - 12 months | B183: 0-12 Months | E183: =F183/F$189 -> 0.374537747 | F183: =IFERROR(VLOOKUP($A183,'[33]remaining term'!$A$2:$C$4,3,FALSE),0) -> 28069836.28 | I183: 0.2220163275 | J183: 21973599.95 | M183: 0.1156769341 | N183: 14160605.02 | Q183: 0.09567252601 | R183: 13150247.05 | U183: 0.08210952772 | V183: 12679264.65 | Y183: =Z183/Z$189 -> 0.06228722157 | Z183: =IFERROR(VLOOKUP($A183,'[27]Remaining Term'!$A$4:$B$7,2,FALSE),0) -> 11510861.98 | AC183: =AD183/AD$189 -> 0.05323590158 | AD183: =IFERROR(VLOOKUP($A183,'[28]Remaining Term'!$A$4:$B$7,2,FALSE),0) -> 11366745.31 | AG183: =AH183/AH$189 -> 0.05577154871 | AH183: =IFERROR(VLOOKUP($B183,'[36](917__Remaining_Term'!$A$2:$B$5,2,FALSE),0) -> 12996099.44 | AK183: =AL183/AL$189 -> 0.06477213861 | AL183: =IFERROR(VLOOKUP($B183,'[37](917__Remaining_Term'!$A$1:$B$6,2,FALSE),0) -> 16412511.41 | AO183: =AP183/$AP$189 -> 0.0550189642 | AP183: =VLOOKUP(B183,'[38](917__Remaining_Term'!$A$2:$B$6,2,0) -> 15926953.96 | AS183: 0.4216998 | AT183: 136253742
A184: 13 - 24 months | B184: 13-24 Months | E184: 0.5875742746 | F184: =IFERROR(VLOOKUP($A184,'[33]remaining term'!$A$2:$C$4,3,FALSE),0) -> 44035918.47 | I184: 0.5706393936 | J184: 56477836.07 | M184: 0.5442731587 | N184: 66627260.51 | Q184: 0.4616555755 | R184: 63454840.41 | U184: 0.4018646091 | V184: 62055499.2 | Y184: 0.2515442955 | Z184: =IFERROR(VLOOKUP($A184,'[27]Remaining Term'!$A$4:$B$7,2,FALSE),0) -> 46486126.59 | AC184: 0.1408794899 | AD184: =IFERROR(VLOOKUP($A184,'[28]Remaining Term'!$A$4:$B$7,2,FALSE),0) -> 30080100.71 | AG184: 0.1239558173 | AH184: =IFERROR(VLOOKUP($B184,'[36](917__Remaining_Term'!$A$2:$B$5,2,FALSE),0) -> 28884658.3 | AK184: 0.1162774271 | AL184: =IFERROR(VLOOKUP($B184,'[37](917__Remaining_Term'!$A$1:$B$6,2,FALSE),0) -> 29463356.31 | AO184: =AP184/$AP$189 -> 0.09621948753 | AP184: =VLOOKUP(B184,'[38](917__Remaining_Term'!$A$2:$B$6,2,0) -> 27853729.53 | AS184: 0.4787699077 | AT184: 154693437.1
A185: 25 - 36 months | B185: 25-36 Months | E185: 0.03788797845 | F185: =IFERROR(VLOOKUP($A185,'[33]remaining term'!$A$2:$C$4,3,FALSE),0) -> 2839525.15 | I185: 0.2073442789 | J185: 20521464.74 | M185: 0.3400499072 | N185: 41627248 | Q185: 0.4426718985 | R185: 60845522.43 | U185: 0.4861956012 | V185: 75077799.98 | Y185: 0.5168828596 | Z185: =IFERROR(VLOOKUP($A185,'[27]Remaining Term'!$A$4:$B$7,2,FALSE),0) -> 95521474.65 | AC185: 0.522354221 | AD185: =IFERROR(VLOOKUP($A185,'[28]Remaining Term'!$A$4:$B$7,2,FALSE),0) -> 111531263.9 | AG185: 0.4808723746 | AH185: =IFERROR(VLOOKUP($B185,'[36](917__Remaining_Term'!$A$2:$B$5,2,FALSE),0) -> 112054718.6 | AK185: 0.421062587 | AL185: =IFERROR(VLOOKUP($B185,'[37](917__Remaining_Term'!$A$1:$B$6,2,FALSE),0) -> 106692393.7 | AO185: 0.3197322945 | AP185: =VLOOKUP(B185,'[38](917__Remaining_Term'!$A$2:$B$6,2,0) -> 92556477.71 | AS185: 0.06300861676 | AT185: 20358463.09
A186: 37 - 48 months | B186: 37-48 Months | E186: 0 | F186: =IFERROR(VLOOKUP($A186,'[33]remaining term'!$A$2:$C$4,3,FALSE),0) -> 0 | I186: 0 | J186: 0 | M186: 0 | N186: 0 | Q186: 0 | R186: 0 | U186: 0.02983026205 | V186: 4606356.87 | Y186: 0.1692856234 | Z186: =IFERROR(VLOOKUP($A186,'[27]Remaining Term'!$A$4:$B$7,2,FALSE),0) -> 31284481.75 | AC186: 0.2835303876 | AD186: =IFERROR(VLOOKUP($A186,'[28]Remaining Term'!$A$4:$B$7,2,FALSE),0) -> 60538426.27 | AG186: 0.3394002594 | AH186: =IFERROR(VLOOKUP($B186,'[36](917__Remaining_Term'!$A$2:$B$5,2,FALSE),0) -> 79088345.64 | AK186: 0.396876643 | AL186: =IFERROR(VLOOKUP($B186,'[37](917__Remaining_Term'!$A$1:$B$6,2,FALSE),0) -> 100563955 | AO186: 0.4347952426 | AP186: =VLOOKUP(B186,'[38](917__Remaining_Term'!$A$2:$B$6,2,0) -> 125865034.2 | AS186: 0.01863788993 | AT186: 6022014.35
A187: 49-60 Months | B187: 49-60 Months | E187: 0 | F187: =IFERROR(VLOOKUP($A187,'[33]remaining term'!$A$2:$C$4,3,FALSE),0) -> 0 | I187: 0 | J187: 0 | M187: 0 | N187: 0 | Q187: 0 | R187: 0 | U187: 0 | V187: 0 | Y187: 0 | Z187: =IFERROR(VLOOKUP($A187,'[27]Remaining Term'!$A$4:$B$7,2,FALSE),0) -> 0 | AC187: 0 | AD187: =IFERROR(VLOOKUP($B187,'[28]Remaining Term'!$A$4:$B$7,2,FALSE),0) -> 0 | AG187: 0 | AH187: =IFERROR(VLOOKUP($B187,'[36](917__Remaining_Term'!$A$2:$B$5,2,FALSE),0) -> 0 | AK187: 0.001011204245 | AL187: =IFERROR(VLOOKUP($B187,'[37](917__Remaining_Term'!$A$1:$B$6,2,FALSE),0) -> 256227.47 | AO187: 0.09423401121 | AP187: =VLOOKUP(B187,'[38](917__Remaining_Term'!$A$2:$B$6,2,0) -> 27278971.53 | AS187: 0.01641899017 | AT187: 5305074.49
A188: 60+ Months | B188: 60+ Months | E188: 0 | F188: =IFERROR(VLOOKUP($A188,'[33]remaining term'!$A$2:$C$4,3,FALSE),0) -> 0 | I188: 0 | J188: 0 | M188: 0 | N188: 0 | Q188: 0 | R188: 0 | U188: 0 | V188: 0 | Y188: 0 | Z188: =IFERROR(VLOOKUP($A188,'[27]Remaining Term'!$A$4:$B$7,2,FALSE),0) -> 0 | AC188: 0 | AD188: =IFERROR(VLOOKUP($B188,'[37](917__Remaining_Term'!$A$1:$B$6,2,FALSE),0) -> 0 | AG188: 0 | AH188: =IFERROR(VLOOKUP($B188,'[37](917__Remaining_Term'!$A$1:$B$6,2,FALSE),0) -> 0 | AK188: 0 | AL188: =IFERROR(VLOOKUP($B188,'[37](917__Remaining_Term'!$A$1:$B$6,2,FALSE),0) -> 0 | AO188: 0 | AP188: 0 | AS188: 0.001464795447 | AT188: 473284.22
E189: =SUM(E183:E188) -> 1 | F189: =SUM(F183:F188) -> 74945279.9 | I189: 1 | J189: 98972900.76 | M189: 1 | N189: 122415113.5 | Q189: 1 | R189: 137450609.9 | U189: 1 | V189: 154418920.7 | Y189: =SUM(Y183:Y188) -> 1 | Z189: =SUM(Z183:Z188) -> 184802945 | AC189: =SUM(AC183:AC188) -> 1 | AD189: =SUM(AD183:AD188) -> 213516536.2 | AG189: =SUM(AG183:AG188) -> 1 | AH189: =SUM(AH183:AH188) -> 233023822 | AK189: =SUM(AK183:AK188) -> 1 | AL189: =SUM(AL183:AL188) -> 253388443.9 | AO189: =SUM(AO183:AO188) -> 1 | AP189: =SUM(AP183:AP188) -> 289481166.9 | AS189: 1 | AT189: 323106015.3
B191: Origination LVR Distribution
A192: 10% to 20% | B192: 01. 10% to 20% | E192: =F192/F$202 -> 0.0006549151603 | F192: =IFERROR(VLOOKUP($B192,[33]LVR!$A$2:$C$10,3,FALSE),0) -> 49082.8 | I192: 0.0007263221493 | J192: 71886.21 | M192: 0.000693738931 | N192: 84924.13 | Q192: 0.0006178519693 | R192: 84924.13 | U192: 0.0005499593548 | V192: 84924.13 | Y192: =Z192/Z$202 -> 0 | Z192: =IFERROR(VLOOKUP($B192,'[27]LVR Band'!$A$4:$B$13,2,FALSE),0) -> 0 | AC192: =AD192/AD$202 -> 0 | AD192: =IFERROR(VLOOKUP($B192,[28]LVR!$A$5:$B$13,2,FALSE),0) -> 0 | AG192: =AH192/AH$202 ->  | AH192: =IFERROR(VLOOKUP($B192,'[36](910__LVR_DISTRIBUTION'!$A$2:$D$10,4,FALSE),0) -> 0 | AK192: =AL192/AL$202 ->  | AL192: =IFERROR(VLOOKUP($B192,'[37](910__LVR_DISTRIBUTION'!$A$1:$E$10,4,FALSE),0) -> 0 | AO192: =AP192/$AP$202 ->  | AP192: =VLOOKUP(B192,'[38](910__LVR_DISTRIBUTION'!$A$2:$D$10,4,0) ->  | AS192: 0.0008579900617 | AT192: 277221.75
A193: 21% to 30% | B193: 02. 21% to 30% | E193: 0.004513700535 | F193: =IFERROR(VLOOKUP($B193,[33]LVR!$A$2:$C$10,3,FALSE),0) -> 338280.55 | I193: 0.00578430475 | J193: 572489.42 | M193: 0.006702680464 | N193: 820509.39 | Q193: 0.007380399773 | R193: 1014440.45 | U193: 0.007796663159 | V193: 1203952.31 | Y193: 0 | Z193: =IFERROR(VLOOKUP($B193,'[27]LVR Band'!$A$4:$B$13,2,FALSE),0) -> 0 | AC193: 0 | AD193: =IFERROR(VLOOKUP($B193,[28]LVR!$A$5:$B$13,2,FALSE),0) -> 0 | AH193: =IFERROR(VLOOKUP($B193,'[36](910__LVR_DISTRIBUTION'!$A$2:$D$10,4,FALSE),0) -> 0 | AL193: =IFERROR(VLOOKUP($B193,'[37](910__LVR_DISTRIBUTION'!$A$1:$E$10,4,FALSE),0) -> 0 | AO193: =AP193/$AP$202 ->  | AP193: =VLOOKUP(B193,'[38](910__LVR_DISTRIBUTION'!$A$2:$D$10,4,0) ->  | AS193: 0.009868645302 | AT193: 3188618.66
A194: 31% to 40% | B194: 03. 31% to 40% | E194: 0.02892009801 | F194: =IFERROR(VLOOKUP($B194,[33]LVR!$A$2:$C$10,3,FALSE),0) -> 2167424.84 | I194: 0.02885938553 | J194: 2856297.1 | M194: 0.03427999043 | N194: 4196388.92 | Q194: 0.03412006948 | R194: 4689824.36 | U194: 0.0325275931 | V194: 5022875.82 | Y194: 0 | Z194: =IFERROR(VLOOKUP($B194,'[27]LVR Band'!$A$4:$B$13,2,FALSE),0) -> 0 | AC194: 0 | AD194: =IFERROR(VLOOKUP($B194,[28]LVR!$A$5:$B$13,2,FALSE),0) -> 0 | AH194: =IFERROR(VLOOKUP($B194,'[36](910__LVR_DISTRIBUTION'!$A$2:$D$10,4,FALSE),0) -> 0 | AL194: =IFERROR(VLOOKUP($B194,'[37](910__LVR_DISTRIBUTION'!$A$1:$E$10,4,FALSE),0) -> 0 | AP194: =VLOOKUP(B194,'[38](910__LVR_DISTRIBUTION'!$A$2:$D$10,4,0) ->  | AS194: 0.03580203015 | AT194: 11567851.3
A195: 41% to 50% | B195: 04. 41% to 50% | E195: 0.06948263089 | F195: =IFERROR(VLOOKUP($B195,[33]LVR!$A$2:$C$10,3,FALSE),0) -> 5207395.22 | I195: 0.07206812961 | J195: 7132791.84 | M195: 0.07594858275 | N195: 9297254.38 | Q195: 0.07374135661 | R195: 10135794.44 | U195: 0.06953562013 | V195: 10737615.41 | Y195: 0 | Z195: =IFERROR(VLOOKUP($B195,'[27]LVR Band'!$A$4:$B$13,2,FALSE),0) -> 0 | AC195: 0 | AD195: =IFERROR(VLOOKUP($B195,[28]LVR!$A$5:$B$13,2,FALSE),0) -> 0 | AH195: =IFERROR(VLOOKUP($B195,'[36](910__LVR_DISTRIBUTION'!$A$2:$D$10,4,FALSE),0) -> 0 | AL195: =IFERROR(VLOOKUP($B195,'[37](910__LVR_DISTRIBUTION'!$A$1:$E$10,4,FALSE),0) -> 0 | AP195: =VLOOKUP(B195,'[38](910__LVR_DISTRIBUTION'!$A$2:$D$10,4,0) ->  | AS195: 0.07536776732 | AT195: 24351778.98
A196: 51% to 60% | B196: 05. 51% to 60% | E196: 0.1208833398 | F196: =IFERROR(VLOOKUP($B196,[33]LVR!$A$2:$C$10,3,FALSE),0) -> 9059635.74 | I196: 0.1172664212 | J196: 11606197.87 | M196: 0.1227521594 | N196: 15026719.53 | Q196: 0.1186274498 | R196: 16305415.33 | U196: 0.1114435413 | V196: 17208991.36 | Y196: 0 | Z196: =IFERROR(VLOOKUP($B196,'[27]LVR Band'!$A$4:$B$13,2,FALSE),0) -> 0 | AC196: 0 | AD196: =IFERROR(VLOOKUP($B196,[28]LVR!$A$5:$B$13,2,FALSE),0) -> 0 | AH196: =IFERROR(VLOOKUP($B196,'[36](910__LVR_DISTRIBUTION'!$A$2:$D$10,4,FALSE),0) -> 0 | AL196: =IFERROR(VLOOKUP($B196,'[37](910__LVR_DISTRIBUTION'!$A$1:$E$10,4,FALSE),0) -> 0 | AP196: =VLOOKUP(B196,'[38](910__LVR_DISTRIBUTION'!$A$2:$D$10,4,0) ->  | AS196: 0.1030904046 | AT196: 33309129.85
A197: 61% to 70% | B197: 06. 61% to 70% | E197: 0.1323684455 | F197: =IFERROR(VLOOKUP($B197,[33]LVR!$A$2:$C$10,3,FALSE),0) -> 9920390.2 | I197: 0.129766483 | J197: 12843365.24 | M197: 0.1275612089 | N197: 15615419.87 | Q197: 0.1247382891 | R197: 17145353.91 | U197: 0.1276321508 | V197: 19708818.98 | Y197: 0 | Z197: =IFERROR(VLOOKUP($B197,'[27]LVR Band'!$A$4:$B$13,2,FALSE),0) -> 0 | AC197: 0 | AD197: =IFERROR(VLOOKUP($B197,[28]LVR!$A$5:$B$13,2,FALSE),0) -> 0 | AH197: =IFERROR(VLOOKUP($B197,'[36](910__LVR_DISTRIBUTION'!$A$2:$D$10,4,FALSE),0) -> 0 | AL197: =IFERROR(VLOOKUP($B197,'[37](910__LVR_DISTRIBUTION'!$A$1:$E$10,4,FALSE),0) -> 0 | AP197: =VLOOKUP(B197,'[38](910__LVR_DISTRIBUTION'!$A$2:$D$10,4,0) ->  | AS197: 0.1221396266 | AT197: 39464048.07
A198: 71% to 80% | B198: 07. 71% to 80% | E198: 0.1436899089 | F198: =IFERROR(VLOOKUP($B198,[33]LVR!$A$2:$C$10,3,FALSE),0) -> 10768880.44 | I198: 0.1389451176 | J198: 13751801.34 | M198: 0.1400142877 | N198: 17139864.92 | Q198: 0.1387049869 | R198: 19065085.05 | U198: 0.1414862402 | V198: 21848152.5 | Y198: 0 | Z198: =IFERROR(VLOOKUP($B198,'[27]LVR Band'!$A$4:$B$13,2,FALSE),0) -> 0 | AC198: 0 | AD198: =IFERROR(VLOOKUP($B198,[28]LVR!$A$5:$B$13,2,FALSE),0) -> 0 | AH198: =IFERROR(VLOOKUP($B198,'[36](910__LVR_DISTRIBUTION'!$A$2:$D$10,4,FALSE),0) -> 0 | AL198: =IFERROR(VLOOKUP($B198,'[37](910__LVR_DISTRIBUTION'!$A$1:$E$10,4,FALSE),0) -> 0 | AP198: =VLOOKUP(B198,'[38](910__LVR_DISTRIBUTION'!$A$2:$D$10,4,0) ->  | AS198: 0.1364949568 | AT198: 44102341.6
A199: 81% to 90% | B199: 08. 81% to 90% | E199: 0.1866005487 | F199: =IFERROR(VLOOKUP($B199,[33]LVR!$A$2:$C$10,3,FALSE),0) -> 13984830.35 | I199: 0.1835181576 | J199: 18163324.4 | M199: 0.1764560953 | N199: 21600892.94 | Q199: 0.1778694154 | R199: 24448259.63 | U199: 0.1832864303 | V199: 28302892.74 | Y199: 0 | Z199: =IFERROR(VLOOKUP($B199,'[27]LVR Band'!$A$4:$B$13,2,FALSE),0) -> 0 | AC199: 0 | AD199: =IFERROR(VLOOKUP($B199,[28]LVR!$A$5:$B$13,2,FALSE),0) -> 0 | AH199: =IFERROR(VLOOKUP($B199,'[36](910__LVR_DISTRIBUTION'!$A$2:$D$10,4,FALSE),0) -> 0 | AL199: =IFERROR(VLOOKUP($B199,'[37](910__LVR_DISTRIBUTION'!$A$1:$E$10,4,FALSE),0) -> 0 | AP199: =VLOOKUP(B199,'[38](910__LVR_DISTRIBUTION'!$A$2:$D$10,4,0) ->  | AS199: 0.1752817906 | AT199: 56634600.9
A200: 91% to 100% | B200: 09. 91% to 100% | E200: 0.3128864125 | F200: =IFERROR(VLOOKUP($B200,[33]LVR!$A$2:$C$10,3,FALSE),0) -> 23449359.76 | I200: 0.3230656785 | J200: 31974747.34 | M200: 0.3155912561 | N200: 38633139.45 | Q200: 0.3242001809 | R200: 44561512.59 | U200: 0.3257418017 | V200: 50300697.45 | Y200: 1 | Z200: 61368205.13 | AC200: 1 | AD200: 69258416.3 | AH200: =IFERROR(VLOOKUP($B200,'[36](910__LVR_DISTRIBUTION'!$A$2:$D$10,4,FALSE),0) -> 0 | AL200: =IFERROR(VLOOKUP($B200,'[37](910__LVR_DISTRIBUTION'!$A$1:$E$10,4,FALSE),0) -> 0 | AP200: =VLOOKUP(B200,'[38](910__LVR_DISTRIBUTION'!$A$2:$D$10,4,0) ->  | AS200: 0.3410967886 | AT200: 110210424.2
A201: > 100% | B201: > 100% | E201: 0 | F201: =IFERROR(VLOOKUP($B201,[33]LVR!$A$2:$C$10,3,FALSE),0) -> 0 | I201: 0 | J201: 0 | M201: 0 | N201: 0 | Q201: 0 | R201: 0 | U201: 0 | V201: 0 | Y201: 0 | Z201: =IFERROR(VLOOKUP($B201,'[37](910__LVR_DISTRIBUTION'!$A$1:$E$10,4,FALSE),0) -> 0 | AC201: 0 | AD201: =IFERROR(VLOOKUP($B201,'[37](910__LVR_DISTRIBUTION'!$A$1:$E$10,4,FALSE),0) -> 0 | AH201: =IFERROR(VLOOKUP($B201,'[37](910__LVR_DISTRIBUTION'!$A$1:$E$10,4,FALSE),0) -> 0 | AL201: =IFERROR(VLOOKUP($B201,'[37](910__LVR_DISTRIBUTION'!$A$1:$E$10,4,FALSE),0) -> 0 | AO201: =AP201/$AP$202 ->  | AP201: 0 | AS201: 0 | AT201: 0
E202: =SUM(E192:E201) -> 1 | F202: =SUM(F192:F201) -> 74945279.9 | I202: 1 | J202: 98972900.76 | M202: 1 | N202: 122415113.5 | Q202: 1 | R202: 137450609.9 | U202: 1 | V202: 154418920.7 | Y202: =SUM(Y192:Y201) -> 1 | Z202: =SUM(Z192:Z201) -> 61368205.13 | AC202: =SUM(AC192:AC201) -> 1 | AD202: =SUM(AD192:AD201) -> 69258416.3 | AG202: =SUM(AG192:AG201) ->  | AH202: =SUM(AH192:AH201) -> 0 | AK202: =SUM(AK192:AK201) ->  | AL202: =SUM(AL192:AL201) -> 0 | AO202: =SUM(AO192:AO201) ->  | AP202: =SUM(AP192:AP201) ->  | AS202: 1 | AT202: 323106015.3
B204: New v Used
A205: Others | B205: New | E205: =F205/F$208 -> 0.8188465024 | F205: =IFERROR(VLOOKUP($B205,'[33]New v Used'!$A$2:$C$3,3,0),0) -> 61368680.32 | I205: 0.8100613614 | J205: 80174122.73 | M205: 0.8082278862 | N205: 98939308.45 | Q205: 0.8030618163 | R205: 110381336.4 | U205: 0.7960091522 | V205: 122918874.2 | Y205: =Z205/Z$208 -> 0.7916161205 | Z205: =IFERROR(VLOOKUP(B205,'[34]New v Used'!$A$2:$C$4,3,0),0)+'[34]New v Used'!$C$3 -> 146292990.3 | AC205: =AD205/AD$208 -> 0.7946946516 | AD205: =VLOOKUP(B205,'[35]New v Used'!$A$2:$C$4,3,0)+'[35]New v Used'!$C$3 -> 169680449.4 | AG205: =AH205/AH$208 -> 0.7927922889 | AH205: =VLOOKUP($B205,'[36](914__New_v_Used'!$A$2:$B$4,2,0)+VLOOKUP($A205,'[36](914__New_v_Used'!$A$2:$B$4,2,0) -> 184739489.2 | AK205: =AL205/AL$208 -> 0.7928037146 | AL205: =VLOOKUP($B205,'[37](914__New_v_Used'!$A$1:$B$4,2,0)+VLOOKUP($A205,'[37](914__New_v_Used'!$A$1:$B$4,2,0) -> 200887299.6 | AO205: =AP205/$AP$208 -> 0.7841577502 | AP205: =VLOOKUP(B205,'[38](914__New_v_Used'!$A$2:$B$4,2,0)+'[38](914__New_v_Used'!$B$3 -> 226998900.6 | AS205: =AT205/AT208 -> 0.7812511623 | AT205: =252418710.79+8239.2 -> 252426950
A206: nEWVuSED | B206: Used | E206: =F206/F$208 -> 0.1811534976 | F206: =IFERROR(VLOOKUP($B206,'[33]New v Used'!$A$2:$C$3,3,0),0) -> 13576599.58 | I206: 0.1899386386 | J206: 18798778.03 | M206: 0.1917721138 | N206: 23475805.08 | Q206: 0.1969381837 | R206: 27069273.46 | U206: 0.2039908478 | V206: 31500046.55 | Y206: =Z206/Z$208 -> 0.2083838795 | Z206: =IFERROR(VLOOKUP(B206,'[34]New v Used'!$A$2:$C$4,3,0),0) -> 38509954.62 | AC206: =AD206/AD$208 -> 0.2053053484 | AD206: =VLOOKUP($B206,'[35]New v Used'!$A$2:$C$4,3,0) -> 43836086.86 | AG206: =AH206/AH$208 -> 0.2072077111 | AH206: =VLOOKUP($B206,'[36](914__New_v_Used'!$A$2:$B$4,2,0) -> 48284332.79 | AK206: =AL206/AL$208 -> 0.2071962854 | AL206: =VLOOKUP($B206,'[37](914__New_v_Used'!$A$1:$B$4,2,0) -> 52501144.34 | AO206: =AP206/$AP$208 -> 0.2158422498 | AP206: =VLOOKUP(B206,'[38](914__New_v_Used'!$A$2:$B$4,2,0) -> 62482266.34 | AS206: 0.2187488377 | AT206: 70679065.31
A207: Used
E208: =SUM(E205:E206) -> 1 | F208: =SUM(F205:F206) -> 74945279.9 | I208: 1 | J208: 98972900.76 | M208: 1 | N208: 122415113.5 | Q208: 1 | R208: 137450609.9 | U208: 1 | V208: 154418920.7 | Y208: =SUM(Y205:Y206) -> 1 | Z208: =SUM(Z205:Z206) -> 184802945 | AC208: =SUM(AC205:AC206) -> 1 | AD208: =SUM(AD205:AD206) -> 213516536.2 | AG208: =SUM(AG205:AG206) -> 1 | AH208: =SUM(AH205:AH206) -> 233023822 | AK208: =SUM(AK205:AK206) -> 1 | AL208: =SUM(AL205:AL206) -> 253388443.9 | AO208: =SUM(AO205:AO206) -> 1 | AP208: =SUM(AP205:AP206) -> 289481166.9 | AS208: 1 | AT208: =SUM(AT205:AT206) -> 323106015.3
B210: Contract Type
A211: Finance Lease | B211: Finance Lease | E211: =F211/F$214 -> 0.0125495962 | F211: =IFERROR(VLOOKUP($B211,'[33]Loan Type'!$A$2:$C$4,3,FALSE),0) -> 940533 | I211: 0.01301245139 | J211: 1287880.06 | M211: 0.01278523921 | N211: 1565106.51 | Q211: 0.01253866186 | R211: 1723446.72 | U211: 0.01339572153 | V211: 2068552.86 | Y211: =Z211/Z$214 -> 0.01255767807 | Z211: =IFERROR(VLOOKUP($B211,'[34]Loan Type'!$A$2:$C$4,3,FALSE),0) -> 2320695.89 | AC211: =AD211/AD$214 -> 0.0122673469 | AD211: =IFERROR(VLOOKUP($B211,[28]Type!$A$4:$B$6,2,FALSE),0) -> 2619281.42 | AG211: =AH211/AH$214 -> 0.01346756496 | AH211: =IFERROR(VLOOKUP($B211,'[36](913__Product_Type'!$A$2:$B$4,2,FALSE),0) -> 3138263.46 | AK211: =AL211/AL$214 -> 0.02157005973 | AL211: =IFERROR(VLOOKUP($B211,'[37](913__Product_Type'!$A$1:$B$4,2,FALSE),0) -> 5465603.87 | AO211: =AP211/$AP$214 -> 0.02204955189 | AP211: =VLOOKUP(A211,'[38](913__Product_Type'!$A$2:$B$4,2,0) -> 6382930.01 | AS211: 0.0218834591 | AT211: 7070677.27
A212: Goods Mortgage | B212: Goods Mortgage | E212: =F212/F$214 -> 0.9650768084 | F212: =IFERROR(VLOOKUP($B212,'[33]Loan Type'!$A$2:$C$4,3,FALSE),0) -> 72327951.53 | I212: 0.9669335511 | J212: 95700218.39 | M212: 0.9675108415 | N212: 118437949.5 | Q212: 0.9652041386 | R212: 132667897.5 | U212: 0.965297277 | V212: 149060163.7 | Y212: =Z212/Z$214 -> 0.9676144278 | Z212: =IFERROR(VLOOKUP($B212,'[34]Loan Type'!$A$2:$C$4,3,FALSE),0) -> 178817995.9 | AC212: =AD212/AD$214 -> 0.9677831161 | AD212: =IFERROR(VLOOKUP($B212,[28]Type!$A$4:$B$6,2,FALSE),0) -> 206637698.8 | AG212: =AH212/AH$214 -> 0.9666688105 | AH212: =IFERROR(VLOOKUP($B212,'[36](913__Product_Type'!$A$2:$B$4,2,FALSE),0) -> 225256860.8 | AK212: =AL212/AL$214 -> 0.9572969412 | AL212: =IFERROR(VLOOKUP($B212,'[37](913__Product_Type'!$A$1:$B$4,2,FALSE),0) -> 242567982.3 | AO212: =AP212/$AP$214 -> 0.9565694972 | AP212: =VLOOKUP(A212,'[38](913__Product_Type'!$A$2:$B$4,2,0) -> 276908854.3 | AS212: 0.955011129 | AT212: 308569840.5
A213: Hire Purchase | B213: Hire Purchase | E213: =F213/F$214 -> 0.02237359541 | F213: =IFERROR(VLOOKUP($B213,'[33]Loan Type'!$A$2:$C$4,3,FALSE),0) -> 1676795.37 | I213: 0.02005399756 | J213: 1984802.31 | M213: 0.01970391932 | N213: 2412057.52 | Q213: 0.02225719953 | R213: 3059265.65 | U213: 0.02130700147 | V213: 3290204.17 | Y213: =Z213/Z$214 -> 0.01982789414 | Z213: =IFERROR(VLOOKUP($B213,'[34]Loan Type'!$A$2:$C$4,3,FALSE),0) -> 3664253.23 | AC213: =AD213/AD$214 -> 0.019949537 | AD213: =IFERROR(VLOOKUP($B213,[28]Type!$A$4:$B$6,2,FALSE),0) -> 4259556.04 | AG213: =AH213/AH$214 -> 0.0198636245 | AH213: =IFERROR(VLOOKUP($B213,'[36](913__Product_Type'!$A$2:$B$4,2,FALSE),0) -> 4628697.7 | AK213: =AL213/AL$214 -> 0.02113299911 | AL213: =IFERROR(VLOOKUP($B213,'[37](913__Product_Type'!$A$1:$B$4,2,FALSE),0) -> 5354857.76 | AO213: =AP213/$AP$214 -> 0.02138095095 | AP213: =VLOOKUP(A213,'[38](913__Product_Type'!$A$2:$B$4,2,0) -> 6189382.63 | AS213: 0.02310541187 | AT213: 7465497.56
E214: =SUM(E211:E213) -> 1 | F214: =SUM(F211:F213) -> 74945279.9 | I214: 1 | J214: 98972900.76 | M214: 1 | N214: 122415113.5 | Q214: 1 | R214: 137450609.9 | U214: 1 | V214: 154418920.7 | Y214: =SUM(Y211:Y213) -> 1 | Z214: =SUM(Z211:Z213) -> 184802945 | AC214: =SUM(AC211:AC213) -> 1 | AD214: =SUM(AD211:AD213) -> 213516536.2 | AG214: =SUM(AG211:AG213) -> 1 | AH214: =SUM(AH211:AH213) -> 233023822 | AK214: =SUM(AK211:AK213) -> 1 | AL214: =SUM(AL211:AL213) -> 253388443.9 | AO214: =SUM(AO211:AO213) -> 1 | AP214: =SUM(AP211:AP213) -> 289481166.9 | AS214: 1 | AT214: 323106015.3
... 27 more rows

Sheet 16 Jun 14
C1: CNH CAPITAL AUSTRALIA RECEIVABLES TRUST SERIES 2011-1 (TERM DEAL) - INPUT KEY KEY DATES | J1: CNH CAPITAL AUSTRALIA RECEIVABLES TRUST SERIES 2011-1 (TERM DEAL) - QUARTERLY MANAGER'S REPORT | O1: SUMMARY
C2: Determination Date | H2: 2014-06-11 | L2: =CONCATENATE("3 month BBSW as at Payment Date: ",(TEXT(+H4,"d mmmm yyy"))) -> 3 month BBSW as at Payment Date: 17 March 2014 | M2: =+H10 -> 0.02645
C3: Next Determination Date | H3: 2014-09-10 | L3: =+G12 -> Fixed Rate as advised by the Calculating Agent as at - 23 September 2011(fixed) | M3: =+H12 -> 0.053
C4: Previous Payment Date | H4: 2014-03-17
C5: Payment Date | H5: 2014-06-16 | L5: KEY DATES | N5: Maturity Date: | O5: 2014-07-15
C6: Next Payment Date | H6: 2014-09-15 | I6: =DAY(H6)&" "&TEXT(H6,"mmm")&" "&TEXT(H6,"YY") -> 15 Sep 14 | L6: =CONCATENATE("COUPON PERIOD: Start Date: ",(TEXT(+H4,"d mmmm yyy"))," End Date: ",(TEXT(+H5,"d mmmm yyy"))) -> COUPON PERIOD: Start Date: 17 March 2014 End Date: 16 June 2014 | M6: =+H5-H4 -> 91 | N6: end date exclusive
C7: Start of Collection Period | H7: 2014-03-01 | L7: =CONCATENATE("COLLECTION PERIOD: Start Date: ",(TEXT(+H7,"d mmmm yyy"))," End Date: ",(TEXT(+H8,"d mmmm yyy"))) -> COLLECTION PERIOD: Start Date: 1 March 2014 End Date: 31 May 2014 | M7: =+H8-H7 -> 91 | N7: end date exclusive | P7: Next Custodian Audit Report Due: | Q7: 2015-03-31
C8: End of Collection Period | H8: =DATE(YEAR(H5),MONTH(H5),0) -> 2014-05-31 | P8: Next Servicer Audit Report Due: | Q8: 2015-03-31
G9: RATES | P9: Next Annual Accounts Audit Due: | Q9: 2015-03-31
G10: =CONCATENATE("3 month BBSW as at start of previous Coupon Period - ",(TEXT(H4,"d mmmm yyy"))) -> 3 month BBSW as at start of previous Coupon Period - 17 March 2014 | H10: 0.02645 | L10: NOTE SUMMARY / PURCHASED RECEIVABLES BALANCE
G11: =CONCATENATE("3 month BBSW on Payment Date - ",(TEXT(H5,"d mmmm yyy"))) -> 3 month BBSW on Payment Date - 16 June 2014 | L11: Aggregate Initial Invested Amount of all Notes | M11: =+M168 -> 350000000
G12: Fixed Rate as advised by the Calculating Agent as at - 23 September 2011(fixed) | H12: 0.053 | L12: =CONCATENATE("Class A1 Notes - Stated Amount as at Payment Date: ",(TEXT(+H5,"d mmmm yyyy"))) -> Class A1 Notes - Stated Amount as at Payment Date: 16 June 2014 | M12: =N179 -> 0 | O12: =CONCATENATE("Pur. Receivables as at ",(TEXT(+H8,"d mmmm yyy"))," - excl. C/Offs") -> Pur. Receivables as at 31 May 2014 - excl. C/Offs | P12: =M164 -> 74945279.9
G13: TOTAL AVAILABLE INCOME | L13: =CONCATENATE("Class A2 Notes - Stated Amount as at Payment Date: ",(TEXT(+H5,"d mmmm yyyy"))) -> Class A2 Notes - Stated Amount as at Payment Date: 16 June 2014 | M13: =O180 -> 44250368.44 | O13: Current period Principal Draw | P13: =+M94 -> 0
G14: Income Collections for the Collection Period (excluding Recoveries) & Misc Receivables | H14: ='[20]Servicer Recon'!$B$10+[40]Sheet1!$N$3285 -> 3173910.81 | I14: =[40]Sheet1!$H$3285 -> 27236216.82 | L14: =CONCATENATE("Class B - Stated Amount as at Payment Date: ",(TEXT(+H5,"d mmmm yyyy"))) -> Class B - Stated Amount as at Payment Date: 16 June 2014 | M14: =P180 -> 7293840.44 | P14: =+Q43 -> 0
C15: Recoveries | H15: ='[20]Servicer Recon'!$C$16 -> 220871.53 | I15: =H14+H15+H17+H23 -> 27236216.82 | L15: =CONCATENATE("Seller Notes - Stated Amount as at Payment Date: ",(TEXT(+H5,"d mmmm yyyy"))) -> Seller Notes - Stated Amount as at Payment Date: 16 June 2014 | M15: =+Q180 -> 23401071.42 | P15: =+Q41 -> 0
C16: Interest in respect of the Collection Account | H16: =[41]Output!$F$102 -> 127144.49 | I16: =I14-I15 -> 0 | L16: Reconciliation of Bond Balance to Receivable Balance | M16: =SUM(M12:M15) -> 74945280.3 | O16: =+P16-M16 -> -0.3999999315 | P16: =SUM(P12:P15) -> 74945279.9 | Q16: =IF(ROUNDUP(M16,0)-ROUNDUP(P16,0)=0,"Ok - adj. any minor rounding diff. next month","Does not reconcile -Investiage discrepancy.") -> Does not reconcile -Investiage discrepancy.
C17: All payments in the nature of or which represent GST & Stamp duties | H17: =[40]Sheet1!$K$3285+[40]Sheet1!$O$3285 -> 35769.03 | I17: due to the early payout, where to put the difference | L17: CHARGE-OFFS | O17: ANNUALISED ROLLING PERCENTAGE
C18: Amounts in the nature of interest otherwise paid by an Approved Seller, the Servicer or Manager to the Trustee in respect of all Collections held by it | J18: SN | K18: 4.7(vi) | L18: =CONCATENATE("Carry Over Charge Offs as at ",(TEXT(H4,"d mmmm yyy"))) -> Carry Over Charge Offs as at 17 March 2014 | M18: =+M128 -> 0 | P18: Annualised Rolling Average Charge-Off Percentage (must be < 6%) | Q18: =SUM(Q20:Q23)/4*4 -> 0.01809721447
J19: SN | K19: 4.7(vi) | L19: Plus Current Period Charge-Offs | M19: =+M127 -> 221955.41 | N19: Collection Period | O19: Charge-Offs | P19: Agg. Rec. Open Bal. O/S | Q19: Charge Off %
C20: All other amounts received by or on behalf of the Trustee during the Coll. Per. in the nature of income | J20: SN | K20: 4.4(a)(i) | L20: Less Reinstatement of Current Period Charge Offs | M20: =+O127 -> 221955.41 | N20: =CONCATENATE("Fr: ",(TEXT(H7,"dd-mmm-yy"))," To: ",((TEXT(H8,"d-mmm-yy")))) -> Fr: 01-Mar-14 To: 31-May-14 | O20: =+M19 -> 221955.41 | P20: =+M160 -> 98972900.76 | Q20: =IF(P20=0,"-",(+O20/P20)) -> 0.002242587701
G21: TOTAL AVAILABLE PRINCIPAL | J21: SN | K21: 4.4(a)(ii) | L21: Less Reinstatement of Carry Over Charge Offs | M21: =+O128 -> 0 | N21: Fr: 01-Dec-13 To: 1-Mar-14 | O21: 131812.85 | P21: 122415113.5 | Q21: =IF(P21=0,"-",(+O21/P21)) -> 0.001076769414
C22: Payments received from the Obligors in respect of the purchase of a Purchased Receivable during the Collection Period | J22: SN | K22: 4.7(vi) | L22: =CONCATENATE("Total Carry Over Charge Offs as at ",(TEXT(+H5,"d mmmm yyy"))) -> Total Carry Over Charge Offs as at 16 June 2014 | M22: =+M18+M19-M20-M21 -> 0 | N22: Fr: 01-Sep-13 To: 1-Dec-13 | O22: 695941.08 | P22: 137450609.9 | Q22: 0.005063208381
H23: ='[20]Servicer Recon'!$B$9 -> 23805665.45 | J23: =CONCATENATE("Distribution of Total Carry Over Charge-Offs as at ",(TEXT(H5,"D MMMM YYY")),"- Amounts are Net of Reinstatements") -> Distribution of Total Carry Over Charge-Offs as at 16 June 2014- Amounts are Net of Reinstatements | N23: Fr: 01-Jun-13 To: 1-Sep-13 | O23: 1500125.61 | P23: 154418920.7 | Q23: 0.009714648977
C24: Any amounts received by the Trustee from the Approved Seller which are attributable to Principal | L24: =CONCATENATE("Carry Over Charge-Offs allocable to Seller Notes ",(TEXT(H5,"d mmmm yyy"))) -> Carry Over Charge-Offs allocable to Seller Notes 16 June 2014 | M24: =MIN($M$18-$M$21,P170) -> 0 | N24: Fr: 01-Mar-13 To: 1-Jun-13 | O24: 1666748.38 | P24: 184802945
L25: =CONCATENATE("Carry Over Charge-Offs allocable to Class B Notes",(TEXT(H5,"d mmmm yyy"))) -> Carry Over Charge-Offs allocable to Class B Notes16 June 2014 | M25: =MIN($M$18-$M$21-$M$24,O170) -> 0 | N25: Fr: 01-Jun-12 To: 1-Sep-12 | O25: 638974.24 | P25: 253389246.9 | Q25: 0.002521710167
G26: All payments in the nature of or which represent GST & Stamp duties | L26: =CONCATENATE("Carry Over Charge-Offs allocable to Class A Notes",(TEXT(H5,"d mmmm yyy"))) -> Carry Over Charge-Offs allocable to Class A Notes16 June 2014 | M26: =MIN($M$18-$M$21-$M$24-$M$25,N170) -> 0 | N26: Fr: 01-Mar-12 To: 1-Jun-12 | O26: 242288.27 | P26: 289481969.9 | Q26: 0.000836971885
G27: Amounts received during the Collection Period in respect of: | Q27: -
C28: * any breach of a representation or warranty of undertaking by the Approved Seller, Servicer and Custodian contained in the Transaction documents | L28: =CONCATENATE("Current Period Charge-Offs allocable to Seller Notes ",(TEXT(H5,"d mmmm yyy"))) -> Current Period Charge-Offs allocable to Seller Notes 16 June 2014 | M28: =MIN(+M22-M24,P170) -> 0 | Q28: -
L29: =CONCATENATE("Current Period Charge-Offs allocable to Class B Notes ",(TEXT(H5,"d mmmm yyy"))) -> Current Period Charge-Offs allocable to Class B Notes 16 June 2014 | M29: =IF(M28<(M19-M20),MIN((M19-M20-M28),O170),0) -> 0 | Q29: -
C30: * Any obligation by the Approved Seller, Servicer and Custodian under the Transaction Documents to indemnify or reimbruse the Trustee for any amount | L30: =CONCATENATE("Current Period Charge-Offs allocable to Class A Notes ",(TEXT(H5,"d mmmm yyy"))) -> Current Period Charge-Offs allocable to Class A Notes 16 June 2014 | M30: =IF(M28+M29<(M19-M20),MIN((M19-M20-M28-M29),N170),0) -> 0 | Q30: -
Q31: -
C32: * any breach of a representation, warranty or undertaking in respect of a breach of which they are not entitled to be indemnified out of the Assets of the Trust or any indemnity from the Manager and Trustee contained in the Transaction Documents. | L32: =CONCATENATE("Total Charge-offs allocable to Seller Notes as at ",(TEXT(H5,"d mmmm yyy"))) -> Total Charge-offs allocable to Seller Notes as at 16 June 2014 | M32: =+M28+M24 -> 0 | Q32: -
L33: =CONCATENATE("Total Charge-offs allocable to Class B Notes as at ",(TEXT(H5,"d mmmm yyy"))) -> Total Charge-offs allocable to Class B Notes as at 16 June 2014 | M33: =+M25+M29 -> 0 | Q33: -
L34: =CONCATENATE("Total Charge-offs allocable to Class A Notes as at ",(TEXT(H5,"d mmmm yyy"))) -> Total Charge-offs allocable to Class A Notes as at 16 June 2014 | M34: =+M26+M30 -> 0 | Q34: -
C35: Any proceeds of Notes which were invested in Authorised Investments on Closing Date | Q35: -
G36: CHARGE-OFFS | L36: =+L22 -> Total Carry Over Charge Offs as at 16 June 2014 | M36: =SUM(M32:M35) -> 0 | Q36: -
G37: Charge-Offs for this period | H37: ='[20]Servicer Recon'!$C$14 -> 221955.41 | K37: DEPOSITS | M37: CASH RESERVE | O37: TITLE PERFECTION RESERVE
G38: REQUIRED PAYMENTS | L38: =CONCATENATE("Balance as at ",(TEXT(H4,"d mmmm yyy"))," - excl. funds dep. due to DD on Payment Date") -> Balance as at 17 March 2014 - excl. funds dep. due to DD on Payment Date | M38: =+H51 -> 2000000 | O38: =+H59 -> 0
G39: Accrued Interest Adjustment | L39: Repayment of drawing on account on Payment Date | M39: =+H52 -> 0
G40: Taxes & Government Charges payable in relation to the Trust (Stamp Duty & GST) | L40: Funds to be released from account and deposited into the Collection Account on Payment Date | M40: =-M89 -> 0
G41: Stamp Duty Payable for the current Collection Period
G42: GST Payable for the current Collection Period | H42: =-[42]Sheet1!$D$4 -> 35279 | I42: 19305014 G163 | L42: Funds to be released to CNH as they are no longer required to be placed on deposit | M42: =IF(ROUND(M40,0)=0,0,"Check") -> 0 | N42: Principal to be released to CNH | O42: =+H61 -> 0
L43: =CONCATENATE("Balance as at ",(TEXT(H5,"d mmmm yyy"))) -> Balance as at 16 June 2014 | M43: =SUM(M38:M42) -> 2000000 | N43: =CONCATENATE("Balance as at ",(TEXT(H5,"d mmmm yyy"))) -> Balance as at 16 June 2014 | O43: =SUM(O38:O41)-O42 -> 0
G44: Other Expenses incurred by the Trustee or Security Trustee in relation to the Trust | H44: 0
G45: =+L70 -> Other Expenses incurred by the Servicer or Backup Servicer | H45: =-[42]Sheet1!$D$5-[42]Sheet1!$D$7 -> 4510.79 | I45: 19305014 G163
G46: Payments due by the Trustee to the Swap Provider | L46: =CONCATENATE("Total Interest earnt during period as at ",(TEXT(H5,"d mmmm yyy"))," - Dep. into Collection Acc.") -> Total Interest earnt during period as at 16 June 2014 - Dep. into Collection Acc. | M46: =H57 -> 0 | N46: - Dep. to CNH Capital | O46: =H63 -> 0
C47: Break costs payable by the Trustee to the Swap Provider in respect of partially unwinding the Swap in respect to Receivable which have been particially prepaid or which have been charged-off and not prev. been paid and any other breaks cost due by the Tr | J47: =+J1 -> CNH CAPITAL AUSTRALIA RECEIVABLES TRUST SERIES 2011-1 (TERM DEAL) - QUARTERLY MANAGER'S REPORT | O47: CASHFLOWS
J48: SN | K48: 1.1 | L48: AVAILABLE INCOME
C49: Other Expenses of Trust: | D49: Bank Charges only | G49: Expenses excl. b/c: | J49: SN | K49: 1.1 | L49: Net Swap Settlement payable by the Trustee | M49: =IF(M197>P197,+M199,0) -> 0
G50: CASH RESERVE DEPOSIT | J50: SN | K50: 1.1 | L50: Income Collections for the Collection Period | M50: =+H14 -> 3173910.81
G51: =CONCATENATE("Balance as at ",(TEXT(+H4,"d mmmm yyy"))," (excluding drawdowns on Payment Date)") -> Balance as at 17 March 2014 (excluding drawdowns on Payment Date) | H51: =2000000 -> 2000000 | J51: SN | K51: 1.1 | L51: Recoveries | M51: =+H15 -> 220871.53
G52: Repayment of drawing on Cash Reserve from last month | H52: =M79 -> 0 | J52: SN | K52: 1.1 | L52: =+C17 -> All payments in the nature of or which represent GST & Stamp duties | M52: =+H17 -> 35769.03
G53: Funds to be withdrawn from the Cash Reserve Account due to income shortfall for Required Payments | H53: =-M40 -> 0 | J53: SN | K53: 1.1 | L53: Interest Income in respect of the Collection Account | M53: =+H16 -> 127144.49
J54: SN | K54: 1.1 | L54: Interest Income in respect of the Cash Reserve Account | M54: =+H56 -> 53150.08
G55: =CONCATENATE("Balance as at ",(TEXT(+H5,"d mmmm yyy"))) -> Balance as at 16 June 2014 | H55: =+H51+H52-H53+H54 -> 2000000
G56: =CONCATENATE("Interest earned on Cash Reserve and dep. into Collection Acc. as at ",(TEXT(+H4,"d mmmm yyy"))) -> Interest earned on Cash Reserve and dep. into Collection Acc. as at 17 March 2014 | H56: =[41]Output!$G$36+[41]Output!$G$39 -> 53150.08 | J56: SN | K56: 1.1 | L56: Amounts in the nature of interest otherwise paid by an Approved Seller, the Servicer or Manager to the Trustee in respect of all Collections held by it | M56: =+H19 -> 0
G57: =CONCATENATE("Interest earned on Cash Reserve and dep. into Collection Acc. as at ",(TEXT(+H5,"d mmmm yyy"))) -> Interest earned on Cash Reserve and dep. into Collection Acc. as at 16 June 2014 | J57: SN | K57: 1.1 | L57: Other | M57: =+H20 -> 0
G58: TITLE PERFECTION RESERVE ACCOUNT | J58: SN | K58: DEFIN. | L58: Available Income | M58: =SUM(M49:M57) -> 3610845.94
G59: =CONCATENATE("Balance as at ",(TEXT(+H4,"d mmmm yyy"))," (excluding drawdowns on Payment Date)") -> Balance as at 17 March 2014 (excluding drawdowns on Payment Date) | H59: 0
G60: Additional Funds to be placed on Deposit (due to Drawdowns) | L60: REQUIRED PAYMENTS | M60: Excluding GST | N60: GST | O60: Including GST & Adjustment
G61: Funds to be withdrawn from the Title Perfection Reserve Account | J61: SN | K61: 4.2(c) | L61: Accrued Interest Adjustment | M61: 0 | O61: =+M61+N61 -> 0
G62: =CONCATENATE("Balance as at ",(TEXT(+H5,"d mmmm yyy")),) -> Balance as at 16 June 2014 | H62: =+H59+H60-H61 -> 0 | J62: SN | K62: 4.2(a)(ii) | L62: Taxes payable in relation to the Trust | M62: =+H41+H42 -> 35279 | O62: =+M62+N62 -> 35279
C63: =CONCATENATE("Interest earned on Title Perfection Reserve Account to as at ",(TEXT(+H5,"d mmmm yyy"))," to be release do to CNH" ) -> Interest earned on Title Perfection Reserve Account to as at 16 June 2014 to be release do to CNH | J63: SN | K63: 4.2(a)(iii) | L63: Trustee Fee (0.04%) | M63: =$M$160*($M$7/365)*0.04% -> 9870.174213 | N63: =+M63*10% -> 987.0174213 | O63: =ROUND(+M63+N63,2) -> 10857.19
J64: SN | K64: 4.2(a)(iv) | L64: Managers Fee (0.05%) | M64: =$M$160*($M$7/365)*0.05% -> 12337.71777 | N64: =+M64*10% -> 1233.771777 | O64: =ROUND(+M64+N64,2) -> 13571.49
G65: COLLECTION ACCOUNT | J65: SN | K65: 4.2(a)(v) | L65: Security Trustee Fee (included in Trustee Fee) | M65: 0 | O65: =+M65+N65 -> 0
G66: =CONCATENATE("Opening Balance of Collection Account as at ",(TEXT(H7,"d mmmm yyy"))) -> Opening Balance of Collection Account as at 1 March 2014 | H66: ='17 Mar 14'!Q293 -> 28196983.85 | J66: SN | K66: 4.2(a)(vi) | L66: Other Expenses incurred by the Trustee or Security Trustee | M66: =+H44 -> 0 | O66: =+M66+N66 -> 0
G67: Total Collections Remitted for the Cur. Collection Per. (excl. GST & Stamp Duty Refunds) | H67: =H14+H23+H15 -> 27200447.79 | J67: SN | K67: 4.2(a)(vii)(A) | L67: Backup Servicer Fee (pari passu) | M67: 0 | N67: 0 | O67: 0
G68: Total Payments made for the Previous Collection Period | H68: ='17 Mar 14'!Q293 -> 28196983.85 | J68: SN | K68: 4.2(a)(vii)(B) | L68: Servicer Fee (if CNH Aust. is not Servicer) (1.25%) (pari passu) | M68: 0 | N68: =+M68*10% -> 0 | O68: =+M68+N68 -> 0
G69: Stamp Duty remitted to State Revenue Office during the Collection Period | H69: =H41 -> 0 | J69: SN | K69: 4.2(a)(viii) | L69: Custodian Fee (0.02%) | M69: =$M$160*($M$7/365)*0.02% -> 4935.087106 | N69: =+M69*10% -> 493.5087106 | O69: =ROUND(+M69+N69,2) -> 5428.6
G70: GST Remitted to the ATO during the Collection Period | H70: =H42 -> 35279 | I70: 19305014 G163 | J70: SN | K70: 4.2(a)(ix) | L70: Other Expenses incurred by the Servicer or Backup Servicer | M70: =+H45 -> 4510.79 | O70: =ROUND(+M70+N70,2) -> 4510.79
J71: SN | K71: 4.2(a)(x) | L71: Break costs received by Trustee from the Servicer to be paid to the Swap Provider/ Backup Swap Provider | M71: 0 | O71: =ROUND(+M71+N71,2) -> 0
J72: SN | K72: 4.2(a)(xi)(A) | L72: Coupon - Class A Notes (pari passu) | M72: =ROUND(N170*N183*N184/365,2)+ROUND(O170*O183*O184/365,2) -> 618465 | O72: =ROUND(+M72+N72,2) -> 618465
C73: STEPDOWN CONDITIONS (calculations effective after the first anniversary date of the note issuance i.e. 23 September 2012) | J73: SN | K73: 4.2(a)(xi)(B) | L73: Coupon - Class A Notes for any previous unpaid Coupons (pari passu)
J74: SN | K74: 4.2(a)(xi)(C) | L74: Net Swap Payment (pari passu) | M74: =IF(P197>M197,+M199,0) -> 450572.77 | O74: =+M74+N74 -> 450572.77
F75: Has the First Anniversary Date occurred? | G75: 2012-09-23 | H75: =IF(H5<G75,"No","Yes") -> Yes | J75: SN | K75: 4.2(a)(xi)(D) | L75: Backup Swap Provider Fee (pari passu) | M75: =ROUND(M6/365*M192*0.05%,2) -> 8485.36 | O75: =+M75+N75 -> 8485.36
F76: Has the Second Anniversary Date occurred? | G76: 2013-09-23 | H76: =IF(H5<G76,"No","Yes") -> Yes | J76: SN | K76: 4.2(a)(xii)(A) | L76: Coupon - Class B Notes (pari passu) | M76: =+P170*P183*P184/365 -> 116351.1233 | O76: =+M76+N76 -> 116351.1233
F77: Has the Third Anniversary Date occurred? | G77: 2014-09-23 | H77: =IF(H6<G77,"No","Yes") -> No | J77: SN | K77: 4.2(a)(xii)(B) | L77: Coupon - Class B Notes for any previous unpaid Coupons (pari passu)
J78: SN | K78: 4.2(a)(xiii) | L78: Repayment of Principal Draws previously not reimbursed | M78: 0 | O78: =ROUND(+M78+N78,2) -> 0
C79: (a) The aggregate Stated Amount of all Class B and all seller notes as a % of the aggregate stated amount of all notes at that time | J79: SN | K79: 4.2(a)(xiv) | L79: Reimbursement of aggregate amount of drawings from the Cash Reserve Account | M79: 0 | O79: =ROUND(+M79+N79,2) -> 0
G80: =SUM(P170:Q170)/M170 -> 0.409564308 | H80: =IF(G80<0.288,"No","Yes") -> Yes | J80: SN | K80: 4.2(a)(xv) | L80: Servicer Fee (if CCA is Servicer) (0.2%) | M80: =$M$160*($M$7/365)*0.2% -> 49350.87106 | N80: =+M80*10% -> 4935.087106 | O80: =ROUND(+M80+N80,2) -> 54285.96
C81: (b) The aggregate Stated Amount of all seller notes greater than or equal to the greater of (i) 22% of aggregate Stated Amount of all notes or (ii) $20,000,000 | J81: SN | K81: 4.2(a)(xvi) | L81: Other Expenses of the Trust | M81: =(+H49+F49)*0 -> 0 | O81: =ROUND(+M81+N81,2) -> 0
G82: =IF(0.22*O170>20000000,0.22*O170,20000000) -> 20000000 | H82: =IF(Q170>G82,"Yes","No") -> Yes | J82: SN | K82: 4.2(a)(i) | L82: A$1 to the holders of the residual income unit | M82: =1 -> 1 | O82: =ROUND(+M82+N82,2) -> 1
C83: (c) The aggregate Principal Outstanding of all Defaulted Receivables net of all recoveries since the Closing date is less than: | L83: REQUIRED PAYMENTS | M83: =SUM(M61:M82) -> 1310158.893 | N83: =SUM(N61:N81) -> 7649.385015 | O83: =SUM(O61:O82) -> 1317808.283
C85: (i) 0.85% if that Payment Date is before the second anniversary of the Closing Date: | G85: 0.009161978951 | H85: =IF(H76="Yes","n/a",IF(H75="Yes",IF(G85<0.0085,"Yes","No"),"n/a")) -> n/a | J85: SN | K85: 1.1 | L85: INCOME SHORTFALL
L86: Required Payments | M86: =+O83 -> 1317808.283
C87: (ii) 1.25% if that Payment Date is on or after the second anniversary of the Closing Date but before the third anniversary of the closing date: | G87: =G85 -> 0.009161978951 | H87: =IF(H76="Yes",IF(G87<0.0125,"Yes","No"),"n/a") -> Yes | J87: SN | K87: 1.1 | L87: less Available Income | M87: =+M58 -> 3610845.94
C88: (iiI) 1.75% if that Payment Date is on or after the third anniversary of the Closing Date | G88: =G87 -> 0.009161978951 | H88: =IF(H77="Yes",IF(G88<0.0175,"Yes","No"),"n/a") -> n/a | J88: SN | K88: 4.3(a) | L88: Income Shortfall | M88: =IF(+M86-M87>0,M86-M87,0) -> 0 | N88: =IF(M88>0,"Income shortfall. Draw funds from Cash Reserve!","-") -> -
M89: =IF(M88>H51+H54,H51+H54,M88) -> 0 | N89: =IF(M89>0,"Funds permited to be drawn from Cash Reserve.","-") -> -
C90: (d) as at immediately preceding Determination Date, average of aggregate principal outstanding of Purchased Receivables over previous two collection periods that have a scheduled payment more than 60 days overdue less than or equal to 2.5% of the average of the aggregate principal outstanding of all Purchased Receivables on each such determination date | G90: 0.008587824206 | H90: =IF(G90<0.025,"Yes","No") -> Yes | J90: SN | K90: 1.1 | L90: PAYMENT SHORTFALL
F91: (e) No Principal Draws Outstanding | G91: =P13 -> 0 | H91: =IF(G91=0,"Yes","No") -> Yes | L91: Required Payments | M91: =+M86 -> 1317808.283
F92: (f) Aggregate Invested Amount of All Notes on Payment Date greater than 10% of Invested Amount of all Notes on Note Issue Date | G92: =M179/M168 -> 0.2141293723 | H92: =IF(G92>0.1,"Yes","No") -> Yes | L92: less Available Income | M92: =+M87 -> 3610845.94
F93: (g) No Unreimbursed Charge-Offs Against Seller Notes | G93: =M36 -> 0 | H93: =IF(G93=0,"Yes","No") -> Yes | L93: less drawings on Cash Reserve | M93: =+M89 -> 0
G94: All Stepdown conditions passed from (a) to (f)? | H94: Yes | J94: SN | K94: 4.3(b) | L94: Payment Shortfall | M94: =IF(+M91-M92-M93<0,0,M91-M92-M93) -> 0 | N94: =IF(M94>0,"Payment shortfall. Principal Draw required!","-") -> -
J96: SN | K96: 1.1 | L96: TOTAL AVAILABLE INCOME
J97: SN | K97: Definition | L97: Available Income | M97: =+M58 -> 3610845.94
J98: SN | K98: 4.3(a) | L98: Drawings from the Cash Reserve (refer SN cl.4.3(a)) (if any) | M98: =+M93 -> 0
J99: SN | K99: 4.3(b) | L99: Principal Draws relating to current Collection Period (if any) | M99: =MIN(M94,SUM(M145:M148)) -> 0
J100: SN | K100: 1.1 | L100: Total Available Income | M100: =ROUND(SUM(M97:M99),2) -> 3610845.94
J102: SN | K102: 4.2 | L102: DISTRIBUTION OF AVAILABLE INCOME | M102: Amount Due | N102: Amount Available | O102: Amount Paid
J103: SN | K103: 4.2(c) | L103: Accrued Interest Adjustment | M103: =+O61 -> 0 | N103: =+M100 -> 3610845.94 | O103: =IF(M103<N103,M103,N103) -> 0
J104: SN | K104: 4.2(a)(ii) | L104: Taxes payable in relation to the Trust | M104: 35279 | N104: =+N103-M103 -> 3610845.94 | O104: =IF(M104<N104,M104,N104) -> 35279
J105: SN | K105: 4.2(a)(iii) | L105: Trustee Fee (0.04%) | M105: 10857.19 | N105: 3575566.94 | O105: =IF(M105<N105,M105,N105) -> 10857.19
J106: SN | K106: 4.2(a)(iv) | L106: Managers Fee (0.05%) | M106: 13571.49 | N106: 3564709.75 | O106: =IF(M106<N106,M106,N106) -> 13571.49
J107: SN | K107: 4.2(a)(v) | L107: Security Trustee Fee (included in Trustee Fee) | M107: 0 | N107: 3551138.26 | O107: =IF(M107<N107,M107,N107) -> 0
J108: SN | K108: 4.2(a)(vi) | L108: Other Expenses incurred by the Trustee or Security Trustee | M108: 0 | N108: 3551138.26 | O108: 0
J109: SN | K109: 4.2(a)(vii)(A) | L109: Backup Servicer Fee (pari passu) | M109: 0 | N109: 3551138.26 | O109: 0
K110: 4.2(a)(vii)(B) | L110: Servicer Fee (if CNH Aust. is not Servicer) (1.25%) (pari passu) | M110: 0 | N110: 3551138.26 | O110: 0
J111: SN | K111: 4.2(a)(viii) | L111: Custodian Fee (0.02%) | M111: 5428.6 | N111: 3551138.26 | O111: 5428.6
J112: SN | K112: 4.2(a)(ix) | L112: Other Expenses incurred by the Servicer or Backup Servicer | M112: 4510.79 | N112: 3545709.66 | O112: 4510.79
J113: SN | K113: 4.2(a)(x) | L113: Break costs received by Trustee from the Servicer to be paid to the Swap Provider/ Backup Swap Provider | M113: 0 | N113: 3541198.87 | O113: 0
J114: SN | K114: 4.2(a)(xi)(A)& (B) | L114: Coupon - Class A Notes (pari passu) | M114: =+O72+O73 -> 618465 | N114: 3541198.87 | O114: 618465
J115: SN | K115: 4.2(a)(xi)(C) | L115: Net Swap Payment (pari passu) | M115: =+O74 -> 450572.77 | N115: 2922733.87 | O115: 450572.77
J116: SN | K116: 4.2(a)(xi)(D) | L116: Backup Swap Provider Fee (pari passu) | M116: =+O75 -> 8485.36 | N116: 2472161.1 | O116: 8485.36
J117: SN | K117: 4.2(a)(xii)(A)&(B) | L117: Coupon - Class B Notes (pari passu) | M117: =+O76+O77 -> 116351.1233 | N117: 2463675.74 | O117: 116351.1233
J118: SN | K118: 4.2(a)(xiii) | L118: Repayment of Principal Draws previously not reimbursed | M118: =+O78 -> 0 | N118: 2347324.617 | O118: =+M118 -> 0
J119: SN | K119: 4.2(a)(xiv) | L119: Reimbursement of aggregate amount of drawings from the Cash Reserve Account | M119: =+O79 -> 0 | N119: 2347324.617 | O119: =+M119 -> 0
J120: SN | K120: 4.2(a)(xv) | L120: Servicer Fee (if CCA is Servicer) (0.2%) | M120: =O80 -> 54285.96 | N120: 2347324.617 | O120: =+M120 -> 54285.96
J121: SN | K121: 4.2(a)(i) | L121: A$1 to the holders of the residual income unit | M121: =M82 -> 1 | N121: 2293038.657 | O121: 1
J122: SN | K122: 4.2(a)(xvi) | L122: Other Expenses of the Trust | M122: =O81 -> 0 | N122: =+N121-M121 -> 2293037.657 | O122: 0
L123: Excess Available Income | N123: =+N122-O122 -> 2293037.657
L125: APPLICATION OF EXCESS AVAILABLE INCOME
M126: Amount Due | N126: Amount Available | O126: Amount Paid
J127: SN | K127: 4.4(a)(i) | L127: Reinstatement of Charge-Offs which have occurred during the Collection Period | M127: =+H37 -> 221955.41 | N127: =+N123 -> 2293037.657 | O127: =IF(M127<N127,M127,N127) -> 221955.41 | P127: =M127-N127 -> -2071082.247
J128: SN | K128: 4.4(a)(ii) | L128: Reinstatement of Charge-Offs which have occurred during previous Collection Periods | M128: =Q172-Q173 -> 0 | N128: =+N127-O127 -> 2071082.247 | O128: =IF(M128<N128,M128,N128) -> 0
J129: SN | K129: 4.4(a)(iv)(A) | L129: Coupon Entitlement - Seller Notes (1%) | M129: =+Q185 -> 280836.67 | N129: =+N128-O128 -> 2071082.247 | O129: =IF(M129<N129,M129,N129) -> 280836.67
J130: SN | K130: 4.4(a)(iv)(B) | L130: Coupn entitlement on Seller Notes for any previous coupon period that remains unpaid | M130: ='Seller Coupon'!J11 -> 0 | N130: =N129-O129 -> 1790245.577 | O130: =IF(M130<N130,M130,N130) -> 0
L131: Excess Distribution to Beneficiary | N131: =IF(N130-O130>0,N130-O130,0) -> 1790245.577
J133: SN | K133: 1.1 | L133: PRINCIPAL COLLECTIONS
J134: SN | K134: 1.1
J135: SN | K135: 1.1 | L135: Payments received from the Approved Seller in respect of the purchase of a Purchased Receivable during the Collection Period | M135: =+H23 -> 23805665.45
J136: SN | K136: 1.1 | L136: Any amounts received by the Trustee from the Approved Seller which are attributable to Principal | M136: =H25 -> 0
J137: SN | K137: 1.1 | L137: All payments in the nature of or which represent GST
L138: All amounts received during the Collection Period in respect of:
J139: SN | K139: 1.1 | L139: * any breach of a representation or warranty of undertaking by the Approved Seller, Servicer and Custodian contained in the Transaction Documents | M139: =+H29 -> 0
J140: SN | K140: 1.1 | L140: * any obligation by the Approved Seller, Servicer and Custodian under the Transaction Documents to indemnify or reimburse the Trustee for any amount | M140: =+H31 -> 0
J141: SN | K141: 1.1 | L141: * any breach of a representation, warranty or undertaking in respect of a breach of which they are not entitled to be indemnified out of the Assets of the Trust or any indemnity from the Manager and Trustee contained in the Transaction Documents. | M141: =+H34 -> 0
L142: Principal Collections | M142: =SUM(M135:M141) -> 23805665.45
J144: SN | K144: 1.1 | L144: TOTAL AVAILABLE PRINCIPAL
J145: SN | K145: 1.1 | L145: Principal Collections | M145: =+M142 -> 23805665.45
J146: SN | K146: 4.4(a)(xii) | L146: Total Available Income applied towards repayment of Principal Draws | M146: =O118 -> 0
J147: SN | K147: 4.4 | L147: Excess Available Income applied towards reinstating any Charge-offs | M147: =+MIN(M18+M19,IF(M58-O83<0,0,M58-O83)) -> 221955.41
L148: Proceeds of Notes invested in Authorised Investments on the Closing Date | M148: 0
L149: Less Principal Draw to be made on Payment Date | M149: =+M99 -> 0
L150: Total Available Principal | M150: =SUM(M145:M148)-M149 -> 24027620.86
L152: DISTRIBUTION OF TOTAL AVAILABLE PRINCIPAL | M152: Amount Due | N152: Amount Available | O152: Amount Paid
J153: SN | K153: 4.6(a)(i)(A) | L153: Class A1 Notes Principal Payment | M153: =IF(N170=0,0,MIN(M150,N170)) -> 0 | N153: =+M150 -> 24027620.86 | O153: =ROUND(+M153,2) -> 0
J154: SN | K154: 4.6(a)(i)(B) | L154: Class A2 Notes Principal Payment | M154: =IF(O170=0,0,MIN(M150-O153,O170)) -> 24027620.86 | N154: =+N153-O153 -> 24027620.86 | O154: =IF($H$94="Yes",O166*N154,ROUND(+M154,2)) -> 14186764.95
J155: SN | K155: 4.6(a)(i)(C) | L155: Class B Notes Principal Payment | M155: =IF(P170=0,0,MIN(M150-SUM(O153:O154),P170)) -> 9632261.65 | N155: =+N154-O154 -> 9840855.909 | O155: =IF(H94="Yes",P166*N154,ROUND(+M155,2)) -> 2338421.207
J156: SN | K156: 4.6(a)(i)(C) | L156: Seller Notes Principal Payment | M156: =IF(Q170=0,0,MIN(M150-SUM(O153:O155),Q170)) -> 7502434.703 | N156: =+N155-O155 -> 7502434.703 | O156: =ROUND(+M156,2) -> 7502434.7
L159: PRINCIPAL BALANCE OF PURCHASED RECEIVABLES
L160: =CONCATENATE("Outstanding Principal Balance of Purchased Receivables as at ",(TEXT(+H7,"d mmmm yyy"))) -> Outstanding Principal Balance of Purchased Receivables as at 1 March 2014 | M160: ='17 Mar 14'!M164 -> 98972900.76
L161: Less: Principal Collections | M161: =+M145 -> 23805665.45
L162: Less: Charge-offs | M162: =+H37 -> 221955.41
L163: Overissuance Proceed
L164: =CONCATENATE("Outstanding Principal Balance of Purchased Receivables as at ",(TEXT(+H8,"d mmmm yyy"))) -> Outstanding Principal Balance of Purchased Receivables as at 31 May 2014 | M164: =+M160-M161-M162+M163 -> 74945279.9 | N164: =M164-M16 -> -0.3999999315
L166: TOTAL NOTE BALANCES | O166: =O169/$M$169 -> 0.590435692 | P166: =P169/$M$169 -> 0.09732221181 | Q166: 0.3122420961
M167: Total Notes | N167: Class A1 Notes | O167: Class A2 Notes | P167: Class B Notes | Q167: Seller Notes
L168: Initial Invested Amount | M168: =SUM(N168:Q168) -> 350000000 | N168: 71500000 | O168: 228000000 | P168: 12000000 | Q168: 38500000
J169: (a) | L169: =CONCATENATE("Invested Amount as at Previous Payment Date: ",(TEXT(H4,"d mmmm yyy"))) -> Invested Amount as at Previous Payment Date: 17 March 2014 | M169: =SUM(N169:Q169) -> 98972901.16 | N169: ='15 Jun 12'!N179 -> 0 | O169: ='17 Mar 14'!O179 -> 58437133.39 | P169: ='17 Mar 14'!P179 -> 9632261.65 | Q169: ='17 Mar 14'!Q179 -> 30903506.12
J170: (b) | L170: =CONCATENATE("Stated Amount as at Previous Payment Date: ",(TEXT(+H4,"d mmmm yyy"))) -> Stated Amount as at Previous Payment Date: 17 March 2014 | M170: =SUM(N170:Q170) -> 98972901.16 | N170: ='15 Jun 12'!N179 -> 0 | O170: ='17 Mar 14'!O180 -> 58437133.39 | P170: ='17 Mar 14'!P180 -> 9632261.65 | Q170: ='17 Mar 14'!Q180 -> 30903506.12
J171: (d) | L171: Principal Payments to Noteholders on Payment Date | M171: =SUM(N171:Q171) -> 24027620.86 | N171: =ROUND(+O153,2) -> 0 | O171: =ROUND(+O154,2) -> 14186764.95 | P171: =ROUND(+O155,2) -> 2338421.21 | Q171: =IF((Q170-O156)>20000000,ROUND(+O156,2),Q170-20000000) -> 7502434.7
L172: Gross Aggregate Charge-Offs | M172: 0 | N172: =+O172 -> 0 | O172: 0 | P172: 0 | Q172: ='17 Mar 14'!Q178 -> 0
L173: Gross Aggregate Reinstatements of charge-offs | M173: 0 | N173: =+O173 -> 0 | O173: 0 | P173: 0 | Q173: 0
J174: (e) | L174: Aggregate Charge-Offs for this Collection Period | M174: 221955.41 | N174: =IF(SUM(O174:Q174)<$M$19,MIN($M$19,N170),0) -> 0 | O174: =IF(SUM(P174:Q174)<$M$19,MIN($M$19,O170),0) -> 0 | P174: =IF(Q174<$M$19,MIN($M$19,P170),0) -> 0 | Q174: =IF(MIN($M$19,Q170)<0,0,MIN($M$19,Q170)) -> 221955.41
J175: (f) | L175: Reinstatements relating to Charge-offs that have occurred this Collection Period | M175: 221955.41 | N175: 0 | O175: =IF(SUM(P175:Q175)<$M$20,MIN($M$20,O171),0) -> 0 | P175: =IF(Q175<$M$20,MIN($M$20,P171),0) -> 0 | Q175: =M20 -> 221955.41
L176: Aggregate Carry Over Charge-offs not previously reinstated | M176: 0 | N176: =+M35 -> 0 | O176: =+M25 -> 0 | P176: 0 | Q176: =+M18 -> 0
L177: Reinstatements of Carry Over Charge-offs not previously reinstated | M177: 0 | N177: =IF(N176>0,MIN((M28-M175),N176),0) -> 0 | O177: =IF(O176>0,MIN((M21-M175+N177),O176),0) -> 0 | P177: 0 | Q177: =+M21 -> 0
L178: Aggregate Charge-Offs not reinstated and to be carried over to next period | M178: =SUM(N178:P178) -> 0 | N178: =+N174-N175+N176-N177 -> 0 | O178: =+O174-O175+O176-O177 -> 0 | P178: =+P174-P175+P176-P177 -> 0 | Q178: =+Q174-Q175+Q176-Q177 -> 0
L179: =CONCATENATE("Invested Amount as at Payment Date: ",(TEXT(+H5,"d mmmm yyy"))) -> Invested Amount as at Payment Date: 16 June 2014 | M179: =SUM(N179:Q179) -> 74945280.3 | N179: =+N169-N171 -> 0 | O179: =+O169-O171 -> 44250368.44 | P179: =+P169-P171 -> 7293840.44 | Q179: =+Q169-Q171 -> 23401071.42
L180: =CONCATENATE("Stated Amount as at Payment Date: ",(TEXT(+H5,"d mmmm yyy"))) -> Stated Amount as at Payment Date: 16 June 2014 | M180: =SUM(N180:Q180) -> 74945280.3 | N180: =+N170-N171-N174+N175 -> 0 | O180: =+O170-O171-O174+O175 -> 44250368.44 | P180: =+P170-P171-P174+P175+P177 -> 7293840.44 | Q180: =+Q170-Q171-Q174+Q175+Q177 -> 23401071.42
L181: =CONCATENATE("Bond Factor at Payment Date: ",(TEXT(+H5,"d mmmm yyy"))) -> Bond Factor at Payment Date: 16 June 2014 | N181: =(+N180/N168) -> 0 | O181: =IF(O179=0,0,(+O179/O168)) -> 0.1940805633 | P181: =(+P180/P168) -> 0.6078200367 | Q181: =(+Q180/Q168) -> 0.6078200369
L182: Coupon Margin | N182: 0.006 | O182: 0.016 | P182: 0.022 | Q182: 0.01
L183: Coupon Rate (3 month BBSW + margin) | N183: =+M2+N182 -> 0.03245 | O183: =+M2+O182 -> 0.04245 | P183: =+M2+P182 -> 0.04845 | Q183: =+M2+Q182 -> 0.03645
L184: Days in Coupon Period | N184: =+M6 -> 91 | O184: =+M6 -> 91 | P184: =+M6 -> 91 | Q184: =+M6 -> 91
L185: =CONCATENATE("Coupon Entitlement to be paid out on the current Payment Date: ",(TEXT(H5,"d mmmm yyy"))) -> Coupon Entitlement to be paid out on the current Payment Date: 16 June 2014 | N185: =ROUND(+N169*N183*N184/365,2) -> 0 | O185: =ROUND(+O169*O183*O184/365,2) -> 618465 | P185: =ROUND(P170*P183*P184/365,2) -> 116351.12 | Q185: =ROUND(Q170*Q183*Q184/365,2) -> 280836.67
J187: Swap Conf. | L187: NET SWAP SETTLEMENT
L189: =CONCATENATE("Aggregate Invested Amount of Class A1 Notes as at ",(TEXT(H4,"dd-mmm-yy"))) -> Aggregate Invested Amount of Class A1 Notes as at 17-Mar-14 | M189: =+N169 -> 0
L190: =CONCATENATE("Aggregate Invested Amount of Class A2 Notes as at ",(TEXT(H4,"dd-mmm-yy"))) -> Aggregate Invested Amount of Class A2 Notes as at 17-Mar-14 | M190: =+O169 -> 58437133.39
L191: =CONCATENATE("Aggregate Invested Amount of Class B Notes as at ",(TEXT(H4,"dd-mmm-yy"))) -> Aggregate Invested Amount of Class B Notes as at 17-Mar-14 | M191: =+P169 -> 9632261.65
L192: Notional Amount | M192: =SUM(M189:M191) -> 68069395.04
L193: Floating Rate Payer | O193: Fixed Rate Payer
J194: Swap Conf. | L194: Notional Amount | M194: =+M192 -> 68069395.04 | O194: Notional Amount | P194: =+M192 -> 68069395.04
L195: BBSW as at commencement of the Calculation Period | M195: =+H10 -> 0.02645 | O195: Fixed Rate | P195: =+M3 -> 0.053
L196: Number of Days in the Calculation Period | M196: =+M6 -> 91 | O196: Number of Days in the Calculation Period | P196: =+M6 -> 91
L197: Sub-Total - Floating Rate Payer | M197: =ROUND(M194*M195*M196/365,2) -> 448875.7 | O197: Sub-Total - Fixed Rate Payer | P197: =ROUND(P194*P195*P196/365,2) -> 899448.47
L199: NET SWAP PAYMENT | M199: =ROUND(IF(P197>M197,P197-M197,M197-P197),2) -> 450572.77 | N199: =IF(P197>M197,"Net Swap Settlement - Fixed Rate Payer pays","Net Swap Settlement - Floating Rate Payer pays") -> Net Swap Settlement - Fixed Rate Payer pays
J220: FAX
L222: TO: Marion Gowing | M222: Tel: | N222: (02) 9229 9689
L223: Co.: Perpetual Trustee Company Pty Limited | M223: Fax: | N223: (02) 9229 9703 / 7870
L224: (the "Trustee")
L225: From: Nicole Zhou | M225: Tel: | N225: (02) 9673 7785
L226: Co.: CNH Capital Australia Pty Limited | M226: Fax: | N226: (02) 9833 1273
L227: (the "Manager")
L228: Date: | N228: # Pages: 2 pages inclusive
J230: QUARTERLY MANAGER'S REPORT - PAYMENT DIRECTIONS
J232: Please debit the following account and credit the accounts detailed in the table below:
J233: Debit
J234: Account Name: Perpetual Trustee Company Limited ATF the CNH Capital Australia Receivables Trust Series 2011-1
J235: Account No.: 012 003 / 8416 63108
J236: =CONCATENATE("Amount: ",(TEXT(M280,"$#,###.00"))) -> Amount: $27,416,511.38
... 92 more rows

Sheet 17 Mar 14
C1: CNH CAPITAL AUSTRALIA RECEIVABLES TRUST SERIES 2011-1 (TERM DEAL) - INPUT KEY KEY DATES | J1: CNH CAPITAL AUSTRALIA RECEIVABLES TRUST SERIES 2011-1 (TERM DEAL) - QUARTERLY MANAGER'S REPORT | O1: SUMMARY
C2: Determination Date | H2: 2014-03-12 | L2: =CONCATENATE("3 month BBSW as at Payment Date: ",(TEXT(+H4,"d mmmm yyy"))) -> 3 month BBSW as at Payment Date: 16 December 2013 | M2: =+H10 -> 0.025883
C3: Next Determination Date | H3: 2014-06-11 | L3: =+G12 -> Fixed Rate as advised by the Calculating Agent as at - 23 September 2011(fixed) | M3: =+H12 -> 0.053
C4: Previous Payment Date | H4: 2013-12-16
C5: Payment Date | H5: 2014-03-17 | L5: KEY DATES | N5: Maturity Date: | O5: 2014-07-15
C6: Next Payment Date | H6: 2014-06-16 | I6: =DAY(H6)&" "&TEXT(H6,"mmm")&" "&TEXT(H6,"YY") -> 16 Jun 14 | L6: =CONCATENATE("COUPON PERIOD: Start Date: ",(TEXT(+H4,"d mmmm yyy"))," End Date: ",(TEXT(+H5,"d mmmm yyy"))) -> COUPON PERIOD: Start Date: 16 December 2013 End Date: 17 March 2014 | M6: =+H5-H4 -> 91 | N6: end date exclusive
C7: Start of Collection Period | H7: 2013-12-01 | L7: =CONCATENATE("COLLECTION PERIOD: Start Date: ",(TEXT(+H7,"d mmmm yyy"))," End Date: ",(TEXT(+H8,"d mmmm yyy"))) -> COLLECTION PERIOD: Start Date: 1 December 2013 End Date: 1 March 2014 | M7: =+H8-H7 -> 90 | N7: end date exclusive | P7: Next Custodian Audit Report Due: | Q7: 2014-03-31
C8: End of Collection Period | H8: =DATE(YEAR(H5),MONTH(H5),1) -> 2014-03-01 | P8: Next Servicer Audit Report Due: | Q8: 2014-03-31
G9: RATES | P9: Next Annual Accounts Audit Due: | Q9: 2014-03-31
G10: =CONCATENATE("3 month BBSW as at start of previous Coupon Period - ",(TEXT(H4,"d mmmm yyy"))) -> 3 month BBSW as at start of previous Coupon Period - 16 December 2013 | H10: 0.025883 | L10: NOTE SUMMARY / PURCHASED RECEIVABLES BALANCE
G11: =CONCATENATE("3 month BBSW on Payment Date - ",(TEXT(H5,"d mmmm yyy"))) -> 3 month BBSW on Payment Date - 17 March 2014 | H11: 0.02645 | L11: Aggregate Initial Invested Amount of all Notes | M11: =+M168 -> 350000000
G12: Fixed Rate as advised by the Calculating Agent as at - 23 September 2011(fixed) | H12: 0.053 | L12: =CONCATENATE("Class A1 Notes - Stated Amount as at Payment Date: ",(TEXT(+H5,"d mmmm yyyy"))) -> Class A1 Notes - Stated Amount as at Payment Date: 17 March 2014 | M12: =N179 -> 0 | O12: =CONCATENATE("Pur. Receivables as at ",(TEXT(+H8,"d mmmm yyy"))," - excl. C/Offs") -> Pur. Receivables as at 1 March 2014 - excl. C/Offs | P12: =M164 -> 98972900.76
G13: TOTAL AVAILABLE INCOME | L13: =CONCATENATE("Class A2 Notes - Stated Amount as at Payment Date: ",(TEXT(+H5,"d mmmm yyyy"))) -> Class A2 Notes - Stated Amount as at Payment Date: 17 March 2014 | M13: =O180 -> 58437133.39 | O13: Current period Principal Draw | P13: =+M94 -> 0
G14: Income Collections for the Collection Period (excluding Recoveries) & Misc Receivables | H14: ='[44]Servicer Recon'!$B$10+[45]Sheet1!$N$3425 -> 3783207.66 | I14: =[45]Sheet1!$H$3425 -> 28079528.72 | L14: =CONCATENATE("Class B - Stated Amount as at Payment Date: ",(TEXT(+H5,"d mmmm yyyy"))) -> Class B - Stated Amount as at Payment Date: 17 March 2014 | M14: =P180 -> 9632261.65 | P14: =+Q43 -> 0
C15: Recoveries | H15: ='[44]Servicer Recon'!$C$16 -> 879634.1836 | I15: =H14+H15+H17+H23 -> 28079528.72 | L15: =CONCATENATE("Seller Notes - Stated Amount as at Payment Date: ",(TEXT(+H5,"d mmmm yyyy"))) -> Seller Notes - Stated Amount as at Payment Date: 17 March 2014 | M15: =+Q180 -> 30903506.12 | P15: =+Q41 -> 0
C16: Interest in respect of the Collection Account | H16: =[46]Output!$F$48+[46]Output!$F$71+[46]Output!$F$94-[46]Output!$E$39-[46]Output!$E$40-[46]Output!$E$45-[46]Output!$E$47-[46]Output!$E$61-[46]Output!$E$69-[46]Output!$E$86-[46]Output!$E$92 -> 64510.26 | I16: =I14-I15 -> 0.0009072683752 | L16: Reconciliation of Bond Balance to Receivable Balance | M16: =SUM(M12:M15) -> 98972901.16 | O16: =+P16-M16 -> -0.3999999613 | P16: =SUM(P12:P15) -> 98972900.76 | Q16: =IF(ROUNDUP(M16,0)-ROUNDUP(P16,0)=0,"Ok - adj. any minor rounding diff. next month","Does not reconcile -Investiage discrepancy.") -> Does not reconcile -Investiage discrepancy.
C17: All payments in the nature of or which represent GST & Stamp duties | H17: =[45]Sheet1!$L$3425+[45]Sheet1!$O$3425 -> 106286.9555 | L17: CHARGE-OFFS | O17: ANNUALISED ROLLING PERCENTAGE
C18: Amounts in the nature of interest otherwise paid by an Approved Seller, the Servicer or Manager to the Trustee in respect of all Collections held by it | J18: SN | K18: 4.7(vi) | L18: =CONCATENATE("Carry Over Charge Offs as at ",(TEXT(H4,"d mmmm yyy"))) -> Carry Over Charge Offs as at 16 December 2013 | M18: =+M128 -> 886646.0725 | P18: Annualised Rolling Average Charge-Off Percentage (must be < 6%) | Q18: =SUM(Q20:Q23)/4*4 -> 0.02487368423
J19: SN | K19: 4.7(vi) | L19: Plus Current Period Charge-Offs | M19: =+M127 -> 131812.85 | N19: Collection Period | O19: Charge-Offs | P19: Agg. Rec. Open Bal. O/S | Q19: Charge Off %
C20: All other amounts received by or on behalf of the Trustee during the Coll. Per. in the nature of income | J20: SN | K20: 4.4(a)(i) | L20: Less Reinstatement of Current Period Charge Offs | M20: =+O127 -> 131812.85 | N20: =CONCATENATE("Fr: ",(TEXT(H7,"dd-mmm-yy"))," To: ",((TEXT(H8,"d-mmm-yy")))) -> Fr: 01-Dec-13 To: 1-Mar-14 | O20: =+M19 -> 131812.85 | P20: =+M160 -> 122415113.5 | Q20: =IF(P20=0,"-",(+O20/P20)) -> 0.001076769414
G21: TOTAL AVAILABLE PRINCIPAL | J21: SN | K21: 4.4(a)(ii) | L21: Less Reinstatement of Carry Over Charge Offs | M21: =+O128 -> 886646.0725 | N21: Fr: 01-Sep-13 To: 1-Dec-13 | O21: 695941.08 | P21: 137450609.9 | Q21: =IF(P21=0,"-",(+O21/P21)) -> 0.005063208381
C22: Payments received from the Obligors in respect of the purchase of a Purchased Receivable during the Collection Period | J22: SN | K22: 4.7(vi) | L22: =CONCATENATE("Total Carry Over Charge Offs as at ",(TEXT(+H5,"d mmmm yyy"))) -> Total Carry Over Charge Offs as at 17 March 2014 | M22: =+M18+M19-M20-M21 -> 0 | N22: Fr: 01-Jun-13 To: 1-Sep-13 | O22: 1500125.61 | P22: 154418920.7 | Q22: 0.009714648977
H23: ='[44]Servicer Recon'!$B$9 -> 23310399.92 | J23: =CONCATENATE("Distribution of Total Carry Over Charge-Offs as at ",(TEXT(H5,"D MMMM YYY")),"- Amounts are Net of Reinstatements") -> Distribution of Total Carry Over Charge-Offs as at 17 March 2014- Amounts are Net of Reinstatements | N23: Fr: 01-Mar-13 To: 1-Jun-13 | O23: 1666748.38 | P23: 184802945 | Q23: 0.009019057463
C24: Any amounts received by the Trustee from the Approved Seller which are attributable to Principal | L24: =CONCATENATE("Carry Over Charge-Offs allocable to Seller Notes ",(TEXT(H5,"d mmmm yyy"))) -> Carry Over Charge-Offs allocable to Seller Notes 17 March 2014 | M24: =MIN($M$18-$M$21,P170) -> 0 | N24: Fr: 01-Jun-12 To: 1-Sep-12 | O24: 638974.24 | P24: 253389246.9
L25: =CONCATENATE("Carry Over Charge-Offs allocable to Class B Notes",(TEXT(H5,"d mmmm yyy"))) -> Carry Over Charge-Offs allocable to Class B Notes17 March 2014 | M25: =MIN($M$18-$M$21-$M$24,O170) -> 0 | N25: Fr: 01-Mar-12 To: 1-Jun-12 | O25: 242288.27 | P25: 289481969.9 | Q25: 0.000836971885
G26: All payments in the nature of or which represent GST & Stamp duties | L26: =CONCATENATE("Carry Over Charge-Offs allocable to Class A Notes",(TEXT(H5,"d mmmm yyy"))) -> Carry Over Charge-Offs allocable to Class A Notes17 March 2014 | M26: =MIN($M$18-$M$21-$M$24-$M$25,N170) -> 0 | Q26: -
G27: Amounts received during the Collection Period in respect of: | Q27: -
C28: * any breach of a representation or warranty of undertaking by the Approved Seller, Servicer and Custodian contained in the Transaction documents | L28: =CONCATENATE("Current Period Charge-Offs allocable to Seller Notes ",(TEXT(H5,"d mmmm yyy"))) -> Current Period Charge-Offs allocable to Seller Notes 17 March 2014 | M28: =MIN(+M22-M24,P170) -> 0 | Q28: -
L29: =CONCATENATE("Current Period Charge-Offs allocable to Class B Notes ",(TEXT(H5,"d mmmm yyy"))) -> Current Period Charge-Offs allocable to Class B Notes 17 March 2014 | M29: =IF(M28<(M19-M20),MIN((M19-M20-M28),O170),0) -> 0 | Q29: -
C30: * Any obligation by the Approved Seller, Servicer and Custodian under the Transaction Documents to indemnify or reimbruse the Trustee for any amount | L30: =CONCATENATE("Current Period Charge-Offs allocable to Class A Notes ",(TEXT(H5,"d mmmm yyy"))) -> Current Period Charge-Offs allocable to Class A Notes 17 March 2014 | M30: =IF(M28+M29<(M19-M20),MIN((M19-M20-M28-M29),N170),0) -> 0 | Q30: -
Q31: -
C32: * any breach of a representation, warranty or undertaking in respect of a breach of which they are not entitled to be indemnified out of the Assets of the Trust or any indemnity from the Manager and Trustee contained in the Transaction Documents. | L32: =CONCATENATE("Total Charge-offs allocable to Seller Notes as at ",(TEXT(H5,"d mmmm yyy"))) -> Total Charge-offs allocable to Seller Notes as at 17 March 2014 | M32: =+M28+M24 -> 0 | Q32: -
L33: =CONCATENATE("Total Charge-offs allocable to Class B Notes as at ",(TEXT(H5,"d mmmm yyy"))) -> Total Charge-offs allocable to Class B Notes as at 17 March 2014 | M33: =+M25+M29 -> 0 | Q33: -
L34: =CONCATENATE("Total Charge-offs allocable to Class A Notes as at ",(TEXT(H5,"d mmmm yyy"))) -> Total Charge-offs allocable to Class A Notes as at 17 March 2014 | M34: =+M26+M30 -> 0 | Q34: -
C35: Any proceeds of Notes which were invested in Authorised Investments on Closing Date | Q35: -
G36: CHARGE-OFFS | L36: =+L22 -> Total Carry Over Charge Offs as at 17 March 2014 | M36: =SUM(M32:M35) -> 0 | Q36: -
G37: Charge-Offs for this period | H37: ='[44]Servicer Recon'!$C$14 -> 131812.85 | K37: DEPOSITS | M37: CASH RESERVE | O37: TITLE PERFECTION RESERVE
G38: REQUIRED PAYMENTS | L38: =CONCATENATE("Balance as at ",(TEXT(H4,"d mmmm yyy"))," - excl. funds dep. due to DD on Payment Date") -> Balance as at 16 December 2013 - excl. funds dep. due to DD on Payment Date | M38: =+H51 -> 8231057 | O38: =+H59 -> 0
G39: Accrued Interest Adjustment | L39: Repayment of drawing on account on Payment Date | M39: =+H52 -> 0
G40: Taxes & Government Charges payable in relation to the Trust (Stamp Duty & GST) | L40: Funds to be released from account and deposited into the Collection Account on Payment Date | M40: =-M89 -> 0
G41: Stamp Duty Payable for the current Collection Period | H41: =[47]Sheet1!$L$3414 -> 0
G42: GST Payable for the current Collection Period | H42: 111749 | I42: Michael provided | L42: Funds to be released to CNH as they are no longer required to be placed on deposit | M42: =IF(ROUND(M40,0)=0,0,"Check") -> 0 | N42: Principal to be released to CNH | O42: =+H61 -> 0
L43: =CONCATENATE("Balance as at ",(TEXT(H5,"d mmmm yyy"))) -> Balance as at 17 March 2014 | M43: =SUM(M38:M42) -> 8231057 | N43: =CONCATENATE("Balance as at ",(TEXT(H5,"d mmmm yyy"))) -> Balance as at 17 March 2014 | O43: =SUM(O38:O41)-O42 -> 0
G44: Other Expenses incurred by the Trustee or Security Trustee in relation to the Trust | H44: 0
G45: =+L70 -> Other Expenses incurred by the Servicer or Backup Servicer | H45: 0 | I45: Michael provided
G46: Payments due by the Trustee to the Swap Provider | L46: =CONCATENATE("Total Interest earnt during period as at ",(TEXT(H5,"d mmmm yyy"))," - Dep. into Collection Acc.") -> Total Interest earnt during period as at 17 March 2014 - Dep. into Collection Acc. | M46: =H57 -> 0 | N46: - Dep. to CNH Capital | O46: =H63 -> 0
C47: Break costs payable by the Trustee to the Swap Provider in respect of partially unwinding the Swap in respect to Receivable which have been particially prepaid or which have been charged-off and not prev. been paid and any other breaks cost due by the Tr | J47: =+J1 -> CNH CAPITAL AUSTRALIA RECEIVABLES TRUST SERIES 2011-1 (TERM DEAL) - QUARTERLY MANAGER'S REPORT | O47: CASHFLOWS
J48: SN | K48: 1.1 | L48: AVAILABLE INCOME
C49: Other Expenses of Trust: | D49: Bank Charges only | G49: Expenses excl. b/c: | J49: SN | K49: 1.1 | L49: Net Swap Settlement payable by the Trustee | M49: =IF(M197>P197,+M199,0) -> 0
G50: CASH RESERVE DEPOSIT | J50: SN | K50: 1.1 | L50: Income Collections for the Collection Period | M50: =+H14 -> 3783207.66
G51: =CONCATENATE("Balance as at ",(TEXT(+H4,"d mmmm yyy"))," (excluding drawdowns on Payment Date)") -> Balance as at 16 December 2013 (excluding drawdowns on Payment Date) | H51: ='[48]16 Dec 13'!H55 -> 8231057 | J51: SN | K51: 1.1 | L51: Recoveries | M51: =+H15 -> 879634.1836
G52: Repayment of drawing on Cash Reserve from last month | H52: =M79 -> 0 | J52: SN | K52: 1.1 | L52: =+C17 -> All payments in the nature of or which represent GST & Stamp duties | M52: =+H17 -> 106286.9555
G53: Funds to be withdrawn from the Cash Reserve Account due to income shortfall for Required Payments | H53: =-M40 -> 0 | J53: SN | K53: 1.1 | L53: Interest Income in respect of the Collection Account | M53: =+H16 -> 64510.26
J54: SN | K54: 1.1 | L54: Interest Income in respect of the Cash Reserve Account | M54: =+H56 -> 52944.86
G55: =CONCATENATE("Balance as at ",(TEXT(+H5,"d mmmm yyy"))) -> Balance as at 17 March 2014 | H55: =+H51+H52-H53+H54 -> 8231057
G56: =CONCATENATE("Interest earned on Cash Reserve and dep. into Collection Acc. as at ",(TEXT(+H4,"d mmmm yyy"))) -> Interest earned on Cash Reserve and dep. into Collection Acc. as at 16 December 2013 | H56: =[46]Output!$F$33 -> 52944.86 | J56: SN | K56: 1.1 | L56: Amounts in the nature of interest otherwise paid by an Approved Seller, the Servicer or Manager to the Trustee in respect of all Collections held by it | M56: =+H19 -> 0
G57: =CONCATENATE("Interest earned on Cash Reserve and dep. into Collection Acc. as at ",(TEXT(+H5,"d mmmm yyy"))) -> Interest earned on Cash Reserve and dep. into Collection Acc. as at 17 March 2014 | J57: SN | K57: 1.1 | L57: Other | M57: =+H20 -> 0
G58: TITLE PERFECTION RESERVE ACCOUNT | J58: SN | K58: DEFIN. | L58: Available Income | M58: =SUM(M49:M57) -> 4886583.919
G59: =CONCATENATE("Balance as at ",(TEXT(+H4,"d mmmm yyy"))," (excluding drawdowns on Payment Date)") -> Balance as at 16 December 2013 (excluding drawdowns on Payment Date) | H59: 0
G60: Additional Funds to be placed on Deposit (due to Drawdowns) | L60: REQUIRED PAYMENTS | M60: Excluding GST | N60: GST | O60: Including GST & Adjustment
G61: Funds to be withdrawn from the Title Perfection Reserve Account | J61: SN | K61: 4.2(c) | L61: Accrued Interest Adjustment | M61: 0 | O61: =+M61+N61 -> 0
G62: =CONCATENATE("Balance as at ",(TEXT(+H5,"d mmmm yyy")),) -> Balance as at 17 March 2014 | H62: =+H59+H60-H61 -> 0 | J62: SN | K62: 4.2(a)(ii) | L62: Taxes payable in relation to the Trust | M62: =+H41+H42 -> 111749 | O62: =+M62+N62 -> 111749
C63: =CONCATENATE("Interest earned on Title Perfection Reserve Account to as at ",(TEXT(+H5,"d mmmm yyy"))," to be release do to CNH" ) -> Interest earned on Title Perfection Reserve Account to as at 17 March 2014 to be release do to CNH | J63: SN | K63: 4.2(a)(iii) | L63: Trustee Fee (0.04%) | M63: =$M$160*($M$7/365)*0.04% -> 12073.81942 | N63: =+M63*10% -> 1207.381942 | O63: =ROUND(+M63+N63,2) -> 13281.2
J64: SN | K64: 4.2(a)(iv) | L64: Managers Fee (0.05%) | M64: =$M$160*($M$7/365)*0.05% -> 15092.27427 | N64: =+M64*10% -> 1509.227427 | O64: =ROUND(+M64+N64,2) -> 16601.5
G65: COLLECTION ACCOUNT | J65: SN | K65: 4.2(a)(v) | L65: Security Trustee Fee (included in Trustee Fee) | M65: 0 | O65: =+M65+N65 -> 0
G66: =CONCATENATE("Opening Balance of Collection Account as at ",(TEXT(H7,"d mmmm yyy"))) -> Opening Balance of Collection Account as at 1 December 2013 | H66: ='[48]16 Dec 13'!Q293 -> 16726674.89 | J66: SN | K66: 4.2(a)(vi) | L66: Other Expenses incurred by the Trustee or Security Trustee | M66: =+H44 -> 0 | O66: =+M66+N66 -> 0
G67: Total Collections Remitted for the Cur. Collection Per. (excl. GST & Stamp Duty Refunds) | H67: =H14+H23+H15 -> 27973241.76 | J67: SN | K67: 4.2(a)(vii)(A) | L67: Backup Servicer Fee (pari passu) | M67: 0 | N67: 0 | O67: 0
G68: Total Payments made for the Previous Collection Period | H68: ='[48]16 Dec 13'!M293 -> 16726674.88 | J68: SN | K68: 4.2(a)(vii)(B) | L68: Servicer Fee (if CNH Aust. is not Servicer) (1.25%) (pari passu) | M68: 0 | N68: =+M68*10% -> 0 | O68: =+M68+N68 -> 0
G69: Stamp Duty remitted to State Revenue Office during the Collection Period | H69: =H41 -> 0 | J69: SN | K69: 4.2(a)(viii) | L69: Custodian Fee (0.02%) | M69: =$M$160*($M$7/365)*0.02% -> 6036.909708 | N69: =+M69*10% -> 603.6909708 | O69: =ROUND(+M69+N69,2) -> 6640.6
G70: GST Remitted to the ATO during the Collection Period | H70: =H42 -> 111749 | I70: Michael provided | J70: SN | K70: 4.2(a)(ix) | L70: Other Expenses incurred by the Servicer or Backup Servicer | M70: =+H45 -> 0 | O70: =ROUND(+M70+N70,2) -> 0
J71: SN | K71: 4.2(a)(x) | L71: Break costs received by Trustee from the Servicer to be paid to the Swap Provider/ Backup Swap Provider | M71: 0 | O71: =ROUND(+M71+N71,2) -> 0
J72: SN | K72: 4.2(a)(xi)(A) | L72: Coupon - Class A Notes (pari passu) | M72: =ROUND(N170*N183*N184/365,2)+ROUND(O170*O183*O184/365,2) -> 760200.57 | O72: =ROUND(+M72+N72,2) -> 760200.57
C73: STEPDOWN CONDITIONS (calculations effective after the first anniversary date of the note issuance i.e. 23 September 2012) | J73: SN | K73: 4.2(a)(xi)(B) | L73: Coupon - Class A Notes for any previous unpaid Coupons (pari passu)
J74: SN | K74: 4.2(a)(xi)(C) | L74: Net Swap Payment (pari passu) | M74: =IF(P197>M197,+M199,0) -> 573317.28 | O74: =+M74+N74 -> 573317.28
F75: Has the First Anniversary Date occurred? | G75: 2012-09-23 | H75: =IF(H5<G75,"No","Yes") -> Yes | J75: SN | K75: 4.2(a)(xi)(D) | L75: Backup Swap Provider Fee (pari passu) | M75: =ROUND(M6/365*M192*0.05%,2) -> 10571.18 | O75: =+M75+N75 -> 10571.18
F76: Has the Second Anniversary Date occurred? | G76: 2013-09-23 | H76: =IF(H5<G76,"No","Yes") -> Yes | J76: SN | K76: 4.2(a)(xii)(A) | L76: Coupon - Class B Notes (pari passu) | M76: =+P170*P183*P184/365 -> 143255.4411 | O76: =+M76+N76 -> 143255.4411
F77: Has the Third Anniversary Date occurred? | G77: 2014-09-23 | H77: =IF(H6<G77,"No","Yes") -> No | J77: SN | K77: 4.2(a)(xii)(B) | L77: Coupon - Class B Notes for any previous unpaid Coupons (pari passu)
J78: SN | K78: 4.2(a)(xiii) | L78: Repayment of Principal Draws previously not reimbursed | M78: 0 | O78: =ROUND(+M78+N78,2) -> 0
C79: (a) The aggregate Stated Amount of all Class B and all seller notes as a % of the aggregate stated amount of all notes at that time | J79: SN | K79: 4.2(a)(xiv) | L79: Reimbursement of aggregate amount of drawings from the Cash Reserve Account | M79: 0 | O79: =ROUND(+M79+N79,2) -> 0
G80: =SUM(P170:Q170)/M170 -> 0.405287814 | H80: =IF(G80<0.288,"No","Yes") -> Yes | J80: SN | K80: 4.2(a)(xv) | L80: Servicer Fee (if CCA is Servicer) (0.2%) | M80: =$M$160*($M$7/365)*0.2% -> 60369.09708 | N80: =+M80*10% -> 6036.909708 | O80: =ROUND(+M80+N80,2) -> 66406.01
C81: (b) The aggregate Stated Amount of all seller notes greater than or equal to the greater of (i) 22% of aggregate Stated Amount of all notes or (ii) $20,000,000 | J81: SN | K81: 4.2(a)(xvi) | L81: Other Expenses of the Trust | M81: =(+H49+F49)*0 -> 0 | O81: =ROUND(+M81+N81,2) -> 0
G82: =IF(0.22*O170>20000000,0.22*O170,20000000) -> 20000000 | H82: =IF(Q170>G82,"Yes","No") -> Yes | J82: SN | K82: 4.2(a)(i) | L82: A$1 to the holders of the residual income unit | M82: =1 -> 1 | O82: =ROUND(+M82+N82,2) -> 1
C83: (c) The aggregate Principal Outstanding of all Defaulted Receivables net of all recoveries since the Closing date is less than: | L83: REQUIRED PAYMENTS | M83: =SUM(M61:M82) -> 1692666.572 | N83: =SUM(N61:N81) -> 9357.210048 | O83: =SUM(O61:O82) -> 1702023.781
C85: (i) 0.85% if that Payment Date is before the second anniversary of the Closing Date: | G85: =('Collateral Tables'!A9-'Collateral Tables'!A23)/'Collateral Tables'!$AS$6 -> 0.009165075758 | H85: =IF(H76="Yes","n/a",IF(H75="Yes",IF(G85<0.0085,"Yes","No"),"n/a")) -> n/a | J85: SN | K85: 1.1 | L85: INCOME SHORTFALL
L86: Required Payments | M86: =+O83 -> 1702023.781
C87: (ii) 1.25% if that Payment Date is on or after the second anniversary of the Closing Date but before the third anniversary of the closing date: | G87: =G85 -> 0.009165075758 | H87: =IF(H76="Yes",IF(G87<0.0125,"Yes","No"),"n/a") -> Yes | J87: SN | K87: 1.1 | L87: less Available Income | M87: =+M58 -> 4886583.919
C88: (iiI) 1.75% if that Payment Date is on or after the third anniversary of the Closing Date | G88: =G87 -> 0.009165075758 | H88: =IF(H77="Yes",IF(G88<0.0175,"Yes","No"),"n/a") -> n/a | J88: SN | K88: 4.3(a) | L88: Income Shortfall | M88: =IF(+M86-M87>0,M86-M87,0) -> 0 | N88: =IF(M88>0,"Income shortfall. Draw funds from Cash Reserve!","-") -> -
M89: =IF(M88>H51+H54,H51+H54,M88) -> 0 | N89: =IF(M89>0,"Funds permited to be drawn from Cash Reserve.","-") -> -
C90: (d) as at immediately preceding Determination Date, average of aggregate principal outstanding of Purchased Receivables over previous two collection periods that have a scheduled payment more than 60 days overdue less than or equal to 2.5% of the average of the aggregate principal outstanding of all Purchased Receivables on each such determination date | G90: =(AVERAGE(SUM('Collateral Tables'!J46:J49),SUM('Collateral Tables'!N46:N49)))/(AVERAGE('Collateral Tables'!J50,'Collateral Tables'!N50)) -> 0.00844744105 | H90: =IF(G90<0.025,"Yes","No") -> Yes | J90: SN | K90: 1.1 | L90: PAYMENT SHORTFALL
F91: (e) No Principal Draws Outstanding | G91: =P13 -> 0 | H91: =IF(G91=0,"Yes","No") -> Yes | L91: Required Payments | M91: =+M86 -> 1702023.781
F92: (f) Aggregate Invested Amount of All Notes on Payment Date greater than 10% of Invested Amount of all Notes on Note Issue Date | G92: =M179/M168 -> 0.2827797176 | H92: =IF(G92>0.1,"Yes","No") -> Yes | L92: less Available Income | M92: =+M87 -> 4886583.919
F93: (g) No Unreimbursed Charge-Offs Against Seller Notes | G93: =M36 -> 0 | H93: =IF(G93=0,"Yes","No") -> Yes | L93: less drawings on Cash Reserve | M93: =+M89 -> 0
G94: All Stepdown conditions passed from (a) to (f)? | H94: Yes | J94: SN | K94: 4.3(b) | L94: Payment Shortfall | M94: =IF(+M91-M92-M93<0,0,M91-M92-M93) -> 0 | N94: =IF(M94>0,"Payment shortfall. Principal Draw required!","-") -> -
J96: SN | K96: 1.1 | L96: TOTAL AVAILABLE INCOME
J97: SN | K97: Definition | L97: Available Income | M97: =+M58 -> 4886583.919
J98: SN | K98: 4.3(a) | L98: Drawings from the Cash Reserve (refer SN cl.4.3(a)) (if any) | M98: =+M93 -> 0
J99: SN | K99: 4.3(b) | L99: Principal Draws relating to current Collection Period (if any) | M99: =MIN(M94,SUM(M145:M148)) -> 0
J100: SN | K100: 1.1 | L100: Total Available Income | M100: =ROUND(SUM(M97:M99),2) -> 4886583.92
J102: SN | K102: 4.2 | L102: DISTRIBUTION OF AVAILABLE INCOME | M102: Amount Due | N102: Amount Available | O102: Amount Paid
J103: SN | K103: 4.2(c) | L103: Accrued Interest Adjustment | M103: =+O61 -> 0 | N103: =+M100 -> 4886583.92 | O103: =IF(M103<N103,M103,N103) -> 0
J104: SN | K104: 4.2(a)(ii) | L104: Taxes payable in relation to the Trust | M104: 111749 | N104: =+N103-M103 -> 4886583.92 | O104: =IF(M104<N104,M104,N104) -> 111749
J105: SN | K105: 4.2(a)(iii) | L105: Trustee Fee (0.04%) | M105: 13281.2 | N105: 4774834.92 | O105: =IF(M105<N105,M105,N105) -> 13281.2
J106: SN | K106: 4.2(a)(iv) | L106: Managers Fee (0.05%) | M106: 16601.5 | N106: 4761553.72 | O106: =IF(M106<N106,M106,N106) -> 16601.5
J107: SN | K107: 4.2(a)(v) | L107: Security Trustee Fee (included in Trustee Fee) | M107: 0 | N107: 4744952.22 | O107: =IF(M107<N107,M107,N107) -> 0
J108: SN | K108: 4.2(a)(vi) | L108: Other Expenses incurred by the Trustee or Security Trustee | M108: 0 | N108: 4744952.22 | O108: 0
J109: SN | K109: 4.2(a)(vii)(A) | L109: Backup Servicer Fee (pari passu) | M109: 0 | N109: 4744952.22 | O109: 0
K110: 4.2(a)(vii)(B) | L110: Servicer Fee (if CNH Aust. is not Servicer) (1.25%) (pari passu) | M110: 0 | N110: 4744952.22 | O110: 0
J111: SN | K111: 4.2(a)(viii) | L111: Custodian Fee (0.02%) | M111: 6640.6 | N111: 4744952.22 | O111: 6640.6
J112: SN | K112: 4.2(a)(ix) | L112: Other Expenses incurred by the Servicer or Backup Servicer | M112: 0 | N112: 4738311.62 | O112: 0
J113: SN | K113: 4.2(a)(x) | L113: Break costs received by Trustee from the Servicer to be paid to the Swap Provider/ Backup Swap Provider | M113: 0 | N113: 4738311.62 | O113: 0
J114: SN | K114: 4.2(a)(xi)(A)& (B) | L114: Coupon - Class A Notes (pari passu) | M114: =+O72+O73 -> 760200.57 | N114: 4738311.62 | O114: 760200.57
J115: SN | K115: 4.2(a)(xi)(C) | L115: Net Swap Payment (pari passu) | M115: =+O74 -> 573317.28 | N115: 3978111.05 | O115: 573317.28
J116: SN | K116: 4.2(a)(xi)(D) | L116: Backup Swap Provider Fee (pari passu) | M116: =+O75 -> 10571.18 | N116: 3404793.77 | O116: 10571.18
J117: SN | K117: 4.2(a)(xii)(A)&(B) | L117: Coupon - Class B Notes (pari passu) | M117: =+O76+O77 -> 143255.4411 | N117: 3394222.59 | O117: 143255.4411
J118: SN | K118: 4.2(a)(xiii) | L118: Repayment of Principal Draws previously not reimbursed | M118: =+O78 -> 0 | N118: 3250967.149 | O118: =+M118 -> 0
J119: SN | K119: 4.2(a)(xiv) | L119: Reimbursement of aggregate amount of drawings from the Cash Reserve Account | M119: =+O79 -> 0 | N119: 3250967.149 | O119: =+M119 -> 0
J120: SN | K120: 4.2(a)(xv) | L120: Servicer Fee (if CCA is Servicer) (0.2%) | M120: =O80 -> 66406.01 | N120: 3250967.149 | O120: =+M120 -> 66406.01
J121: SN | K121: 4.2(a)(i) | L121: A$1 to the holders of the residual income unit | M121: =M82 -> 1 | N121: 3184561.139 | O121: 1
J122: SN | K122: 4.2(a)(xvi) | L122: Other Expenses of the Trust | M122: =O81 -> 0 | N122: =+N121-M121 -> 3184560.139 | O122: 0
L123: Excess Available Income | N123: =+N122-O122 -> 3184560.139
L125: APPLICATION OF EXCESS AVAILABLE INCOME
M126: Amount Due | N126: Amount Available | O126: Amount Paid
J127: SN | K127: 4.4(a)(i) | L127: Reinstatement of Charge-Offs which have occurred during the Collection Period | M127: =+H37 -> 131812.85 | N127: =+N123 -> 3184560.139 | O127: =IF(M127<N127,M127,N127) -> 131812.85 | P127: =M127-N127 -> -3052747.289
J128: SN | K128: 4.4(a)(ii) | L128: Reinstatement of Charge-Offs which have occurred during previous Collection Periods | M128: =Q172-Q173 -> 886646.0725 | N128: =+N127-O127 -> 3052747.289 | O128: =IF(M128<N128,M128,N128) -> 886646.0725
J129: SN | K129: 4.4(a)(iv)(A) | L129: Coupon Entitlement - Seller Notes (1%) | M129: =+Q185 -> 336495.56 | N129: =+N128-O128 -> 2166101.216 | O129: =IF(M129<N129,M129,N129) -> 336495.56
J130: SN | K130: 4.4(a)(iv)(B) | L130: Coupn entitlement on Seller Notes for any previous coupon period that remains unpaid | M130: ='Seller Coupon'!J10 -> 1761172.357 | N130: =N129-O129 -> 1829605.656 | O130: =IF(M130<N130,M130,N130) -> 1761172.357
L131: Excess Distribution to Beneficiary | N131: =IF(N130-O130>0,N130-O130,0) -> 68433.29975
J133: SN | K133: 1.1 | L133: PRINCIPAL COLLECTIONS
J134: SN | K134: 1.1
J135: SN | K135: 1.1 | L135: Payments received from the Approved Seller in respect of the purchase of a Purchased Receivable during the Collection Period | M135: =+H23 -> 23310399.92
J136: SN | K136: 1.1 | L136: Any amounts received by the Trustee from the Approved Seller which are attributable to Principal | M136: =H25 -> 0
J137: SN | K137: 1.1 | L137: All payments in the nature of or which represent GST
L138: All amounts received during the Collection Period in respect of:
J139: SN | K139: 1.1 | L139: * any breach of a representation or warranty of undertaking by the Approved Seller, Servicer and Custodian contained in the Transaction Documents | M139: =+H29 -> 0
J140: SN | K140: 1.1 | L140: * any obligation by the Approved Seller, Servicer and Custodian under the Transaction Documents to indemnify or reimburse the Trustee for any amount | M140: =+H31 -> 0
J141: SN | K141: 1.1 | L141: * any breach of a representation, warranty or undertaking in respect of a breach of which they are not entitled to be indemnified out of the Assets of the Trust or any indemnity from the Manager and Trustee contained in the Transaction Documents. | M141: =+H34 -> 0
L142: Principal Collections | M142: =SUM(M135:M141) -> 23310399.92
J144: SN | K144: 1.1 | L144: TOTAL AVAILABLE PRINCIPAL
J145: SN | K145: 1.1 | L145: Principal Collections | M145: =+M142 -> 23310399.92
J146: SN | K146: 4.4(a)(xii) | L146: Total Available Income applied towards repayment of Principal Draws | M146: =O118 -> 0
J147: SN | K147: 4.4 | L147: Excess Available Income applied towards reinstating any Charge-offs | M147: =+MIN(M18+M19,IF(M58-O83<0,0,M58-O83)) -> 1018458.922
L148: Proceeds of Notes invested in Authorised Investments on the Closing Date | M148: 0
L149: Less Principal Draw to be made on Payment Date | M149: =+M99 -> 0
L150: Total Available Principal | M150: =SUM(M145:M148)-M149 -> 24328858.84
L152: DISTRIBUTION OF TOTAL AVAILABLE PRINCIPAL | M152: Amount Due | N152: Amount Available | O152: Amount Paid
J153: SN | K153: 4.6(a)(i)(A) | L153: Class A1 Notes Principal Payment | M153: =IF(N170=0,0,MIN(M150,N170)) -> 0 | N153: =+M150 -> 24328858.84 | O153: =ROUND(+M153,2) -> 0
J154: SN | K154: 4.6(a)(i)(B) | L154: Class A2 Notes Principal Payment | M154: =IF(O170=0,0,MIN(M150-O153,O170)) -> 24328858.84 | N154: =+N153-O153 -> 24328858.84 | O154: =IF($H$94="Yes",O166*N154,ROUND(+M154,2)) -> 14364626.61
J155: SN | K155: 4.6(a)(i)(C) | L155: Class B Notes Principal Payment | M155: =IF(P170=0,0,MIN(M150-SUM(O153:O154),P170)) -> 9964232.234 | N155: =+N154-O154 -> 9964232.234 | O155: =IF(H94="Yes",P166*N154,ROUND(+M155,2)) -> 2367738.353
J156: SN | K156: 4.6(a)(i)(C) | L156: Seller Notes Principal Payment | M156: =IF(Q170=0,0,MIN(M150-SUM(O153:O155),Q170)) -> 7596493.882 | N156: =+N155-O155 -> 7596493.882 | O156: =ROUND(+M156,2) -> 7596493.88
L159: PRINCIPAL BALANCE OF PURCHASED RECEIVABLES
L160: =CONCATENATE("Outstanding Principal Balance of Purchased Receivables as at ",(TEXT(+H7,"d mmmm yyy"))) -> Outstanding Principal Balance of Purchased Receivables as at 1 December 2013 | M160: ='16 Dec 13'!M164 -> 122415113.5
L161: Less: Principal Collections | M161: =+M145 -> 23310399.92
L162: Less: Charge-offs | M162: =+H37 -> 131812.85
L163: Overissuance Proceed
L164: =CONCATENATE("Outstanding Principal Balance of Purchased Receivables as at ",(TEXT(+H8,"d mmmm yyy"))) -> Outstanding Principal Balance of Purchased Receivables as at 1 March 2014 | M164: =+M160-M161-M162+M163 -> 98972900.76 | N164: =M164-M16 -> -0.3999999613
L166: TOTAL NOTE BALANCES | O166: =O169/$M$169 -> 0.5904356921 | P166: =P169/$M$169 -> 0.09732221178 | Q166: 0.3122420961
M167: Total Notes | N167: Class A1 Notes | O167: Class A2 Notes | P167: Class B Notes | Q167: Seller Notes
L168: Initial Invested Amount | M168: =SUM(N168:Q168) -> 350000000 | N168: 71500000 | O168: 228000000 | P168: 12000000 | Q168: 38500000
J169: (a) | L169: =CONCATENATE("Invested Amount as at Previous Payment Date: ",(TEXT(H4,"d mmmm yyy"))) -> Invested Amount as at Previous Payment Date: 16 December 2013 | M169: =SUM(N169:Q169) -> 123301760 | N169: ='15 Jun 12'!N179 -> 0 | O169: ='16 Dec 13'!O179 -> 72801760 | P169: ='16 Dec 13'!P179 -> 12000000 | Q169: ='16 Dec 13'!Q179 -> 38500000
J170: (b) | L170: =CONCATENATE("Stated Amount as at Previous Payment Date: ",(TEXT(+H4,"d mmmm yyy"))) -> Stated Amount as at Previous Payment Date: 16 December 2013 | M170: =SUM(N170:Q170) -> 122415113.9 | N170: ='15 Jun 12'!N179 -> 0 | O170: ='16 Dec 13'!O180 -> 72801760 | P170: ='16 Dec 13'!P180 -> 12000000 | Q170: ='16 Dec 13'!Q180 -> 37613353.93
J171: (d) | L171: Principal Payments to Noteholders on Payment Date | M171: =SUM(N171:Q171) -> 24328858.84 | N171: =ROUND(+O153,2) -> 0 | O171: =ROUND(+O154,2) -> 14364626.61 | P171: =ROUND(+O155,2) -> 2367738.35 | Q171: =IF((Q170-O156)>20000000,ROUND(+O156,2),Q170-20000000) -> 7596493.88
L172: Gross Aggregate Charge-Offs | M172: 886646.0725 | N172: =+O172 -> 0 | O172: 0 | P172: 0 | Q172: ='16 Dec 13'!Q178 -> 886646.0725
L173: Gross Aggregate Reinstatements of charge-offs | M173: 0 | N173: =+O173 -> 0 | O173: 0 | P173: 0 | Q173: 0
J174: (e) | L174: Aggregate Charge-Offs for this Collection Period | M174: 131812.85 | N174: =IF(SUM(O174:Q174)<$M$19,MIN($M$19,N170),0) -> 0 | O174: =IF(SUM(P174:Q174)<$M$19,MIN($M$19,O170),0) -> 0 | P174: =IF(Q174<$M$19,MIN($M$19,P170),0) -> 0 | Q174: =IF(MIN($M$19,Q170)<0,0,MIN($M$19,Q170)) -> 131812.85
J175: (f) | L175: Reinstatements relating to Charge-offs that have occurred this Collection Period | M175: 131812.85 | N175: 0 | O175: =IF(SUM(P175:Q175)<$M$20,MIN($M$20,O171),0) -> 0 | P175: =IF(Q175<$M$20,MIN($M$20,P171),0) -> 0 | Q175: =M20 -> 131812.85
L176: Aggregate Carry Over Charge-offs not previously reinstated | M176: 886646.0725 | N176: =+M35 -> 0 | O176: =+M25 -> 0 | P176: 0 | Q176: =+M18 -> 886646.0725
L177: Reinstatements of Carry Over Charge-offs not previously reinstated | M177: 886646.0725 | N177: =IF(N176>0,MIN((M28-M175),N176),0) -> 0 | O177: =IF(O176>0,MIN((M21-M175+N177),O176),0) -> 0 | P177: 0 | Q177: =+M21 -> 886646.0725
L178: Aggregate Charge-Offs not reinstated and to be carried over to next period | M178: =SUM(N178:P178) -> 0 | N178: =+N174-N175+N176-N177 -> 0 | O178: =+O174-O175+O176-O177 -> 0 | P178: =+P174-P175+P176-P177 -> 0 | Q178: =+Q174-Q175+Q176-Q177 -> 0
L179: =CONCATENATE("Invested Amount as at Payment Date: ",(TEXT(+H5,"d mmmm yyy"))) -> Invested Amount as at Payment Date: 17 March 2014 | M179: =SUM(N179:Q179) -> 98972901.16 | N179: =+N169-N171 -> 0 | O179: =+O169-O171 -> 58437133.39 | P179: =+P169-P171 -> 9632261.65 | Q179: =+Q169-Q171 -> 30903506.12
L180: =CONCATENATE("Stated Amount as at Payment Date: ",(TEXT(+H5,"d mmmm yyy"))) -> Stated Amount as at Payment Date: 17 March 2014 | M180: =SUM(N180:Q180) -> 98972901.16 | N180: =+N170-N171-N174+N175 -> 0 | O180: =+O170-O171-O174+O175 -> 58437133.39 | P180: =+P170-P171-P174+P175+P177 -> 9632261.65 | Q180: =+Q170-Q171-Q174+Q175+Q177 -> 30903506.12
L181: =CONCATENATE("Bond Factor at Payment Date: ",(TEXT(+H5,"d mmmm yyy"))) -> Bond Factor at Payment Date: 17 March 2014 | N181: =(+N180/N168) -> 0 | O181: =IF(O179=0,0,(+O179/O168)) -> 0.2563032166 | P181: =(+P180/P168) -> 0.8026884708 | Q181: =(+Q180/Q168) -> 0.8026884706
L182: Coupon Margin | N182: 0.006 | O182: 0.016 | P182: 0.022 | Q182: 0.01
L183: Coupon Rate (3 month BBSW + margin) | N183: =+M2+N182 -> 0.031883 | O183: =+M2+O182 -> 0.041883 | P183: =+M2+P182 -> 0.047883 | Q183: =+M2+Q182 -> 0.035883
L184: Days in Coupon Period | N184: =+M6 -> 91 | O184: =+M6 -> 91 | P184: =+M6 -> 91 | Q184: =+M6 -> 91
L185: =CONCATENATE("Coupon Entitlement to be paid out on the current Payment Date: ",(TEXT(H5,"d mmmm yyy"))) -> Coupon Entitlement to be paid out on the current Payment Date: 17 March 2014 | N185: =ROUND(+N169*N183*N184/365,2) -> 0 | O185: =ROUND(+O169*O183*O184/365,2) -> 760200.57 | P185: =ROUND(P170*P183*P184/365,2) -> 143255.44 | Q185: =ROUND(Q170*Q183*Q184/365,2) -> 336495.56
J187: Swap Conf. | L187: NET SWAP SETTLEMENT
L189: =CONCATENATE("Aggregate Invested Amount of Class A1 Notes as at ",(TEXT(H4,"dd-mmm-yy"))) -> Aggregate Invested Amount of Class A1 Notes as at 16-Dec-13 | M189: =+N169 -> 0
L190: =CONCATENATE("Aggregate Invested Amount of Class A2 Notes as at ",(TEXT(H4,"dd-mmm-yy"))) -> Aggregate Invested Amount of Class A2 Notes as at 16-Dec-13 | M190: =+O169 -> 72801760
L191: =CONCATENATE("Aggregate Invested Amount of Class B Notes as at ",(TEXT(H4,"dd-mmm-yy"))) -> Aggregate Invested Amount of Class B Notes as at 16-Dec-13 | M191: =+P169 -> 12000000
L192: Notional Amount | M192: =SUM(M189:M191) -> 84801760
L193: Floating Rate Payer | O193: Fixed Rate Payer
J194: Swap Conf. | L194: Notional Amount | M194: =+M192 -> 84801760 | O194: Notional Amount | P194: =+M192 -> 84801760
L195: BBSW as at commencement of the Calculation Period | M195: =+H10 -> 0.025883 | O195: Fixed Rate | P195: =+M3 -> 0.053
L196: Number of Days in the Calculation Period | M196: =+M6 -> 91 | O196: Number of Days in the Calculation Period | P196: =+M6 -> 91
L197: Sub-Total - Floating Rate Payer | M197: =ROUND(M194*M195*M196/365,2) -> 547227.62 | O197: Sub-Total - Fixed Rate Payer | P197: =ROUND(P194*P195*P196/365,2) -> 1120544.9
L199: NET SWAP PAYMENT | M199: =ROUND(IF(P197>M197,P197-M197,M197-P197),2) -> 573317.28 | N199: =IF(P197>M197,"Net Swap Settlement - Fixed Rate Payer pays","Net Swap Settlement - Floating Rate Payer pays") -> Net Swap Settlement - Fixed Rate Payer pays
J220: FAX
L222: TO: Marion Gowing | M222: Tel: | N222: (02) 9229 9689
L223: Co.: Perpetual Trustee Company Pty Limited | M223: Fax: | N223: (02) 9229 9703 / 7870
L224: (the "Trustee")
L225: From: Nicole Zhou | M225: Tel: | N225: (02) 9673 7785
L226: Co.: CNH Capital Australia Pty Limited | M226: Fax: | N226: (02) 9833 1273
L227: (the "Manager")
L228: Date: | N228: # Pages: 2 pages inclusive
J230: QUARTERLY MANAGER'S REPORT - PAYMENT DIRECTIONS
J232: Please debit the following account and credit the accounts detailed in the table below:
J233: Debit
J234: Account Name: Perpetual Trustee Company Limited ATF the CNH Capital Australia Receivables Trust Series 2011-1
J235: Account No.: 012 003 / 8416 63108
J236: =CONCATENATE("Amount: ",(TEXT(M280,"$#,###.00"))) -> Amount: $28,196,983.84
... 92 more rows

Sheet 16 Dec 13
C1: CNH CAPITAL AUSTRALIA RECEIVABLES TRUST SERIES 2011-1 (TERM DEAL) - INPUT KEY KEY DATES | J1: CNH CAPITAL AUSTRALIA RECEIVABLES TRUST SERIES 2011-1 (TERM DEAL) - QUARTERLY MANAGER'S REPORT | O1: SUMMARY
C2: Determination Date | H2: 2013-12-11 | L2: =CONCATENATE("3 month BBSW as at Payment Date: ",(TEXT(+H4,"d mmmm yyy"))) -> 3 month BBSW as at Payment Date: 16 September 2013 | M2: =+H10 -> 0.0258
C3: Next Determination Date | H3: 2014-03-12 | L3: =+G12 -> Fixed Rate as advised by the Calculating Agent as at - 23 September 2011(fixed) | M3: =+H12 -> 0.053
C4: Previous Payment Date | H4: 2013-09-16
C5: Payment Date | H5: 2013-12-16 | L5: KEY DATES | N5: Maturity Date: | O5: 2014-07-15
C6: Next Payment Date | H6: 2014-03-17 | I6: =DAY(H6)&" "&TEXT(H6,"mmm")&" "&TEXT(H6,"YY") -> 17 Mar 14 | L6: =CONCATENATE("COUPON PERIOD: Start Date: ",(TEXT(+H4,"d mmmm yyy"))," End Date: ",(TEXT(+H5,"d mmmm yyy"))) -> COUPON PERIOD: Start Date: 16 September 2013 End Date: 16 December 2013 | M6: =+H5-H4 -> 91 | N6: end date exclusive
C7: Start of Collection Period | H7: 2013-09-01 | L7: =CONCATENATE("COLLECTION PERIOD: Start Date: ",(TEXT(+H7,"d mmmm yyy"))," End Date: ",(TEXT(+H8,"d mmmm yyy"))) -> COLLECTION PERIOD: Start Date: 1 September 2013 End Date: 1 December 2013 | M7: =+H8-H7 -> 91 | N7: end date exclusive | P7: Next Custodian Audit Report Due: | Q7: 2014-03-31
C8: End of Collection Period | H8: =DATE(YEAR(H5),MONTH(H5),1) -> 2013-12-01 | P8: Next Servicer Audit Report Due: | Q8: 2014-03-31
G9: RATES | P9: Next Annual Accounts Audit Due: | Q9: 2014-03-31
G10: =CONCATENATE("3 month BBSW as at start of previous Coupon Period - ",(TEXT(H4,"d mmmm yyy"))) -> 3 month BBSW as at start of previous Coupon Period - 16 September 2013 | H10: 0.0258 | L10: NOTE SUMMARY / PURCHASED RECEIVABLES BALANCE
G11: =CONCATENATE("3 month BBSW on Payment Date - ",(TEXT(H5,"d mmmm yyy"))) -> 3 month BBSW on Payment Date - 16 December 2013 | H11: 0.025883 | L11: Aggregate Initial Invested Amount of all Notes | M11: =+M168 -> 350000000
G12: Fixed Rate as advised by the Calculating Agent as at - 23 September 2011(fixed) | H12: 0.053 | L12: =CONCATENATE("Class A1 Notes - Stated Amount as at Payment Date: ",(TEXT(+H5,"d mmmm yyyy"))) -> Class A1 Notes - Stated Amount as at Payment Date: 16 December 2013 | M12: =N179 -> 0 | O12: =CONCATENATE("Pur. Receivables as at ",(TEXT(+H8,"d mmmm yyy"))," - excl. C/Offs") -> Pur. Receivables as at 1 December 2013 - excl. C/Offs | P12: =M164 -> 122415113.5
G13: TOTAL AVAILABLE INCOME | L13: =CONCATENATE("Class A2 Notes - Stated Amount as at Payment Date: ",(TEXT(+H5,"d mmmm yyyy"))) -> Class A2 Notes - Stated Amount as at Payment Date: 16 December 2013 | M13: =O180 -> 72801760 | O13: Current period Principal Draw | P13: =+M94 -> 0
G14: Income Collections for the Collection Period (excluding Recoveries) & Misc Receivables | H14: ='[49]Servicer Recon'!$B$10+[50]Sheet1!$N$3411 -> 1484637.62 | I14: =[51]Sheet1!$H$4823 -> 34508173.18 | L14: =CONCATENATE("Class B - Stated Amount as at Payment Date: ",(TEXT(+H5,"d mmmm yyyy"))) -> Class B - Stated Amount as at Payment Date: 16 December 2013 | M14: =P180 -> 12000000 | P14: =+Q43 -> 0
C15: Recoveries | H15: ='[49]Servicer Recon'!$C$16 -> 697223.5891 | I15: =H14+H15+H17+H23 -> 16602714.84 | L15: =CONCATENATE("Seller Notes - Stated Amount as at Payment Date: ",(TEXT(+H5,"d mmmm yyyy"))) -> Seller Notes - Stated Amount as at Payment Date: 16 December 2013 | M15: =+Q180 -> 37613353.93 | P15: =+Q41 -> 0
C16: Interest in respect of the Collection Account | H16: =[52]Output!$F$102-[52]Output!$E$102 -> 66910.92 | I16: =I14-I15 -> 17905458.34 | L16: Reconciliation of Bond Balance to Receivable Balance | M16: =SUM(M12:M15) -> 122415113.9 | O16: =+P16-M16 -> -0.3975341767 | P16: =SUM(P12:P15) -> 122415113.5 | Q16: =IF(ROUNDUP(M16,0)-ROUNDUP(P16,0)=0,"Ok - adj. any minor rounding diff. next month","Does not reconcile -Investiage discrepancy.") -> Ok - adj. any minor rounding diff. next month
C17: All payments in the nature of or which represent GST & Stamp duties | H17: =[50]Sheet1!$L$3411+[50]Sheet1!$O$3411 -> 81298.35091 | L17: CHARGE-OFFS | O17: ANNUALISED ROLLING PERCENTAGE
C18: Amounts in the nature of interest otherwise paid by an Approved Seller, the Servicer or Manager to the Trustee in respect of all Collections held by it | J18: SN | K18: 4.7(vi) | L18: =CONCATENATE("Carry Over Charge Offs as at ",(TEXT(H4,"d mmmm yyy"))) -> Carry Over Charge Offs as at 16 September 2013 | M18: =+M128 -> 665855.8692 | P18: Annualised Rolling Average Charge-Off Percentage (must be < 6%) | Q18: =SUM(Q20:Q23)/4*4 -> 0.02631862499
J19: SN | K19: 4.7(vi) | L19: Plus Current Period Charge-Offs | M19: =+M127 -> 695941.08 | N19: Collection Period | O19: Charge-Offs | P19: Agg. Rec. Open Bal. O/S | Q19: Charge Off %
C20: All other amounts received by or on behalf of the Trustee during the Coll. Per. in the nature of income | J20: SN | K20: 4.4(a)(i) | L20: Less Reinstatement of Current Period Charge Offs | M20: =+O127 -> 475150.8767 | N20: =CONCATENATE("Fr: ",(TEXT(H7,"dd-mmm-yy"))," To: ",((TEXT(H8,"d-mmm-yy")))) -> Fr: 01-Sep-13 To: 1-Dec-13 | O20: =+M19 -> 695941.08 | P20: =+M160 -> 137450609.9 | Q20: =IF(P20=0,"-",(+O20/P20)) -> 0.005063208381
G21: TOTAL AVAILABLE PRINCIPAL | J21: SN | K21: 4.4(a)(ii) | L21: Less Reinstatement of Carry Over Charge Offs | M21: =+O128 -> 0 | N21: Fr: 01-Jun-13 To: 1-Sep-13 | O21: 1500125.61 | P21: 154418920.7 | Q21: =IF(P21=0,"-",(+O21/P21)) -> 0.009714648977
C22: Payments received from the Obligors in respect of the purchase of a Purchased Receivable during the Collection Period | J22: SN | K22: 4.7(vi) | L22: =CONCATENATE("Total Carry Over Charge Offs as at ",(TEXT(+H5,"d mmmm yyy"))) -> Total Carry Over Charge Offs as at 16 December 2013 | M22: =+M18+M19-M20-M21 -> 886646.0725 | N22: Fr: 01-Mar-13 To: 1-Jun-13 | O22: 1666748.38 | P22: 184802945 | Q22: 0.009019057463
H23: ='[49]Servicer Recon'!$B$9 -> 14339555.28 | J23: =CONCATENATE("Distribution of Total Carry Over Charge-Offs as at ",(TEXT(H5,"D MMMM YYY")),"- Amounts are Net of Reinstatements") -> Distribution of Total Carry Over Charge-Offs as at 16 December 2013- Amounts are Net of Reinstatements | N23: Fr: 01-Jun-12 To: 1-Sep-12 | O23: 638974.24 | P23: 253389246.9 | Q23: 0.002521710167
C24: Any amounts received by the Trustee from the Approved Seller which are attributable to Principal | L24: =CONCATENATE("Carry Over Charge-Offs allocable to Seller Notes ",(TEXT(H5,"d mmmm yyy"))) -> Carry Over Charge-Offs allocable to Seller Notes 16 December 2013 | M24: =MIN($M$18-$M$21,P170) -> 665855.8692 | N24: Fr: 01-Mar-12 To: 1-Jun-12 | O24: 242288.27 | P24: 289481969.9
L25: =CONCATENATE("Carry Over Charge-Offs allocable to Class B Notes",(TEXT(H5,"d mmmm yyy"))) -> Carry Over Charge-Offs allocable to Class B Notes16 December 2013 | M25: =MIN($M$18-$M$21-$M$24,O170) -> 0 | Q25: -
G26: All payments in the nature of or which represent GST & Stamp duties | L26: =CONCATENATE("Carry Over Charge-Offs allocable to Class A Notes",(TEXT(H5,"d mmmm yyy"))) -> Carry Over Charge-Offs allocable to Class A Notes16 December 2013 | M26: =MIN($M$18-$M$21-$M$24-$M$25,N170) -> 0 | Q26: -
G27: Amounts received during the Collection Period in respect of: | Q27: -
C28: * any breach of a representation or warranty of undertaking by the Approved Seller, Servicer and Custodian contained in the Transaction documents | L28: =CONCATENATE("Current Period Charge-Offs allocable to Seller Notes ",(TEXT(H5,"d mmmm yyy"))) -> Current Period Charge-Offs allocable to Seller Notes 16 December 2013 | M28: =MIN(+M22-M24,P170) -> 220790.2033 | Q28: -
L29: =CONCATENATE("Current Period Charge-Offs allocable to Class B Notes ",(TEXT(H5,"d mmmm yyy"))) -> Current Period Charge-Offs allocable to Class B Notes 16 December 2013 | M29: =IF(M28<(M19-M20),MIN((M19-M20-M28),O170),0) -> 0 | Q29: -
C30: * Any obligation by the Approved Seller, Servicer and Custodian under the Transaction Documents to indemnify or reimbruse the Trustee for any amount | L30: =CONCATENATE("Current Period Charge-Offs allocable to Class A Notes ",(TEXT(H5,"d mmmm yyy"))) -> Current Period Charge-Offs allocable to Class A Notes 16 December 2013 | M30: =IF(M28+M29<(M19-M20),MIN((M19-M20-M28-M29),N170),0) -> 0 | Q30: -
Q31: -
C32: * any breach of a representation, warranty or undertaking in respect of a breach of which they are not entitled to be indemnified out of the Assets of the Trust or any indemnity from the Manager and Trustee contained in the Transaction Documents. | L32: =CONCATENATE("Total Charge-offs allocable to Seller Notes as at ",(TEXT(H5,"d mmmm yyy"))) -> Total Charge-offs allocable to Seller Notes as at 16 December 2013 | M32: =+M28+M24 -> 886646.0725 | Q32: -
L33: =CONCATENATE("Total Charge-offs allocable to Class B Notes as at ",(TEXT(H5,"d mmmm yyy"))) -> Total Charge-offs allocable to Class B Notes as at 16 December 2013 | M33: =+M25+M29 -> 0 | Q33: -
L34: =CONCATENATE("Total Charge-offs allocable to Class A Notes as at ",(TEXT(H5,"d mmmm yyy"))) -> Total Charge-offs allocable to Class A Notes as at 16 December 2013 | M34: =+M26+M30 -> 0 | Q34: -
C35: Any proceeds of Notes which were invested in Authorised Investments on Closing Date | Q35: -
G36: CHARGE-OFFS | L36: =+L22 -> Total Carry Over Charge Offs as at 16 December 2013 | M36: =SUM(M32:M35) -> 886646.0725 | Q36: -
G37: Charge-Offs for this period | H37: ='[49]Servicer Recon'!$C$14 -> 695941.08 | K37: DEPOSITS | M37: CASH RESERVE | O37: TITLE PERFECTION RESERVE
G38: REQUIRED PAYMENTS | L38: =CONCATENATE("Balance as at ",(TEXT(H4,"d mmmm yyy"))," - excl. funds dep. due to DD on Payment Date") -> Balance as at 16 September 2013 - excl. funds dep. due to DD on Payment Date | M38: =+H51 -> 8231057 | O38: =+H59 -> 0
G39: Accrued Interest Adjustment | L39: Repayment of drawing on account on Payment Date | M39: =+H52 -> 0
G40: Taxes & Government Charges payable in relation to the Trust (Stamp Duty & GST) | L40: Funds to be released from account and deposited into the Collection Account on Payment Date | M40: =-M89 -> 0
G41: Stamp Duty Payable for the current Collection Period | H41: =[50]Sheet1!$L$3411 -> 0
G42: GST Payable for the current Collection Period | H42: 43047 | I42: Michael provided | L42: Funds to be released to CNH as they are no longer required to be placed on deposit | M42: =IF(ROUND(M40,0)=0,0,"Check") -> 0 | N42: Principal to be released to CNH | O42: =+H61 -> 0
L43: =CONCATENATE("Balance as at ",(TEXT(H5,"d mmmm yyy"))) -> Balance as at 16 December 2013 | M43: =SUM(M38:M42) -> 8231057 | N43: =CONCATENATE("Balance as at ",(TEXT(H5,"d mmmm yyy"))) -> Balance as at 16 December 2013 | O43: =SUM(O38:O41)-O42 -> 0
G44: Other Expenses incurred by the Trustee or Security Trustee in relation to the Trust | H44: 0
G45: =+L70 -> Other Expenses incurred by the Servicer or Backup Servicer | H45: 8020.35 | I45: Michael provided
G46: Payments due by the Trustee to the Swap Provider | L46: =CONCATENATE("Total Interest earnt during period as at ",(TEXT(H5,"d mmmm yyy"))," - Dep. into Collection Acc.") -> Total Interest earnt during period as at 16 December 2013 - Dep. into Collection Acc. | M46: =H57 -> 0 | N46: - Dep. to CNH Capital | O46: =H63 -> 0
C47: Break costs payable by the Trustee to the Swap Provider in respect of partially unwinding the Swap in respect to Receivable which have been particially prepaid or which have been charged-off and not prev. been paid and any other breaks cost due by the Tr | J47: =+J1 -> CNH CAPITAL AUSTRALIA RECEIVABLES TRUST SERIES 2011-1 (TERM DEAL) - QUARTERLY MANAGER'S REPORT | O47: CASHFLOWS
J48: SN | K48: 1.1 | L48: AVAILABLE INCOME
C49: Other Expenses of Trust: | D49: Bank Charges only | G49: Expenses excl. b/c: | J49: SN | K49: 1.1 | L49: Net Swap Settlement payable by the Trustee | M49: =IF(M197>P197,+M199,0) -> 0
G50: CASH RESERVE DEPOSIT | J50: SN | K50: 1.1 | L50: Income Collections for the Collection Period | M50: =+H14 -> 1484637.62
G51: =CONCATENATE("Balance as at ",(TEXT(+H4,"d mmmm yyy"))," (excluding drawdowns on Payment Date)") -> Balance as at 16 September 2013 (excluding drawdowns on Payment Date) | H51: ='16 Sep 13'!H55 -> 8231057 | J51: SN | K51: 1.1 | L51: Recoveries | M51: =+H15 -> 697223.5891
G52: Repayment of drawing on Cash Reserve from last month | H52: =M79 -> 0 | J52: SN | K52: 1.1 | L52: =+C17 -> All payments in the nature of or which represent GST & Stamp duties | M52: =+H17 -> 81298.35091
G53: Funds to be withdrawn from the Cash Reserve Account due to income shortfall for Required Payments | H53: =-M40 -> 0 | J53: SN | K53: 1.1 | L53: Interest Income in respect of the Collection Account | M53: =+H16 -> 66910.92
J54: SN | K54: 1.1 | L54: Interest Income in respect of the Cash Reserve Account | M54: =+H56 -> 57049.12
G55: =CONCATENATE("Balance as at ",(TEXT(+H5,"d mmmm yyy"))) -> Balance as at 16 December 2013 | H55: =+H51+H52-H53+H54 -> 8231057
G56: =CONCATENATE("Interest earned on Cash Reserve and dep. into Collection Acc. as at ",(TEXT(+H4,"d mmmm yyy"))) -> Interest earned on Cash Reserve and dep. into Collection Acc. as at 16 September 2013 | H56: =[52]Output!$F$106 -> 57049.12 | J56: SN | K56: 1.1 | L56: Amounts in the nature of interest otherwise paid by an Approved Seller, the Servicer or Manager to the Trustee in respect of all Collections held by it | M56: =+H19 -> 0
G57: =CONCATENATE("Interest earned on Cash Reserve and dep. into Collection Acc. as at ",(TEXT(+H5,"d mmmm yyy"))) -> Interest earned on Cash Reserve and dep. into Collection Acc. as at 16 December 2013 | J57: SN | K57: 1.1 | L57: Other | M57: =+H20 -> 0
G58: TITLE PERFECTION RESERVE ACCOUNT | J58: SN | K58: DEFIN. | L58: Available Income | M58: =SUM(M49:M57) -> 2387119.6
G59: =CONCATENATE("Balance as at ",(TEXT(+H4,"d mmmm yyy"))," (excluding drawdowns on Payment Date)") -> Balance as at 16 September 2013 (excluding drawdowns on Payment Date) | H59: 0
G60: Additional Funds to be placed on Deposit (due to Drawdowns) | L60: REQUIRED PAYMENTS | M60: Excluding GST | N60: GST | O60: Including GST & Adjustment
G61: Funds to be withdrawn from the Title Perfection Reserve Account | J61: SN | K61: 4.2(c) | L61: Accrued Interest Adjustment | M61: 0 | O61: =+M61+N61 -> 0
G62: =CONCATENATE("Balance as at ",(TEXT(+H5,"d mmmm yyy")),) -> Balance as at 16 December 2013 | H62: =+H59+H60-H61 -> 0 | J62: SN | K62: 4.2(a)(ii) | L62: Taxes payable in relation to the Trust | M62: =+H41+H42 -> 43047 | O62: =+M62+N62 -> 43047
C63: =CONCATENATE("Interest earned on Title Perfection Reserve Account to as at ",(TEXT(+H5,"d mmmm yyy"))," to be release do to CNH" ) -> Interest earned on Title Perfection Reserve Account to as at 16 December 2013 to be release do to CNH | J63: SN | K63: 4.2(a)(iii) | L63: Trustee Fee (0.04%) | M63: =$M$160*($M$7/365)*0.04% -> 13707.40329 | N63: =+M63*10% -> 1370.740329 | O63: =ROUND(+M63+N63,2) -> 15078.14
J64: SN | K64: 4.2(a)(iv) | L64: Managers Fee (0.05%) | M64: =$M$160*($M$7/365)*0.05% -> 17134.25411 | N64: =+M64*10% -> 1713.425411 | O64: =ROUND(+M64+N64,2) -> 18847.68
G65: COLLECTION ACCOUNT | J65: SN | K65: 4.2(a)(v) | L65: Security Trustee Fee (included in Trustee Fee) | M65: 0 | O65: =+M65+N65 -> 0
G66: =CONCATENATE("Opening Balance of Collection Account as at ",(TEXT(H7,"d mmmm yyy"))) -> Opening Balance of Collection Account as at 1 September 2013 | H66: ='16 Sep 13'!Q293 -> 18569660.71 | J66: SN | K66: 4.2(a)(vi) | L66: Other Expenses incurred by the Trustee or Security Trustee | M66: =+H44 -> 0 | O66: =+M66+N66 -> 0
G67: Total Collections Remitted for the Cur. Collection Per. (excl. GST & Stamp Duty Refunds) | H67: =H14+H23+H15 -> 16521416.49 | J67: SN | K67: 4.2(a)(vii)(A) | L67: Backup Servicer Fee (pari passu) | M67: 0 | N67: 0 | O67: 0
G68: Total Payments made for the Previous Collection Period | H68: ='16 Sep 13'!M293 -> 18569660.7 | J68: SN | K68: 4.2(a)(vii)(B) | L68: Servicer Fee (if CNH Aust. is not Servicer) (1.25%) (pari passu) | M68: 0 | N68: =+M68*10% -> 0 | O68: =+M68+N68 -> 0
G69: Stamp Duty remitted to State Revenue Office during the Collection Period | H69: =H41 -> 0 | J69: SN | K69: 4.2(a)(viii) | L69: Custodian Fee (0.02%) | M69: =$M$160*($M$7/365)*0.02% -> 6853.701644 | N69: =+M69*10% -> 685.3701644 | O69: =ROUND(+M69+N69,2) -> 7539.07
G70: GST Remitted to the ATO during the Collection Period | H70: =H42 -> 43047 | I70: Michael provided | J70: SN | K70: 4.2(a)(ix) | L70: Other Expenses incurred by the Servicer or Backup Servicer | M70: =+H45 -> 8020.35 | O70: =ROUND(+M70+N70,2) -> 8020.35
J71: SN | K71: 4.2(a)(x) | L71: Break costs received by Trustee from the Servicer to be paid to the Swap Provider/ Backup Swap Provider | M71: 0 | O71: =ROUND(+M71+N71,2) -> 0
J72: SN | K72: 4.2(a)(xi)(A) | L72: Coupon - Class A Notes (pari passu) | M72: =ROUND(N170*N183*N184/365,2)+ROUND(O170*O183*O184/365,2) -> 913083.6 | O72: =ROUND(+M72+N72,2) -> 913083.6
C73: STEPDOWN CONDITIONS (calculations effective after the first anniversary date of the note issuance i.e. 23 September 2012) | J73: SN | K73: 4.2(a)(xi)(B) | L73: Coupon - Class A Notes for any previous unpaid Coupons (pari passu)
J74: SN | K74: 4.2(a)(xi)(C) | L74: Net Swap Payment (pari passu) | M74: =IF(P197>M197,+M199,0) -> 675536.1 | O74: =+M74+N74 -> 675536.1
F75: Has the First Anniversary Date occurred? | G75: 2012-09-23 | H75: =IF(H5<G75,"No","Yes") -> Yes | J75: SN | K75: 4.2(a)(xi)(D) | L75: Backup Swap Provider Fee (pari passu) | M75: =ROUND(M6/365*M192*0.05%,2) -> 12417.94 | O75: =+M75+N75 -> 12417.94
F76: Has the Second Anniversary Date occurred? | G76: 2013-09-23 | H76: =IF(H5<G76,"No","Yes") -> Yes | J76: SN | K76: 4.2(a)(xii)(A) | L76: Coupon - Class B Notes (pari passu) | M76: =+P170*P183*P184/365 -> 143007.1233 | O76: =+M76+N76 -> 143007.1233
F77: Has the Third Anniversary Date occurred? | G77: 2014-09-23 | H77: =IF(H6<G77,"No","Yes") -> No | J77: SN | K77: 4.2(a)(xii)(B) | L77: Coupon - Class B Notes for any previous unpaid Coupons (pari passu)
J78: SN | K78: 4.2(a)(xiii) | L78: Repayment of Principal Draws previously not reimbursed | M78: 0 | O78: =ROUND(+M78+N78,2) -> 0
C79: (a) The aggregate Stated Amount of all Class B and all seller notes as a % of the aggregate stated amount of all notes at that time | J79: SN | K79: 4.2(a)(xiv) | L79: Reimbursement of aggregate amount of drawings from the Cash Reserve Account | M79: 0 | O79: =ROUND(+M79+N79,2) -> 0
G80: =SUM(P170:Q170)/M170 -> 0.3625603705 | H80: =IF(G80<0.288,"No","Yes") -> Yes | J80: SN | K80: 4.2(a)(xv) | L80: Servicer Fee (if CCA is Servicer) (0.2%) | M80: =$M$160*($M$7/365)*0.2% -> 68537.01644 | N80: =+M80*10% -> 6853.701644 | O80: =ROUND(+M80+N80,2) -> 75390.72
C81: (b) The aggregate Stated Amount of all seller notes greater than or equal to the greater of (i) 22% of aggregate Stated Amount of all notes or (ii) $20,000,000 | J81: SN | K81: 4.2(a)(xvi) | L81: Other Expenses of the Trust | M81: =(+H49+F49)*0 -> 0 | O81: =ROUND(+M81+N81,2) -> 0
G82: =IF(0.22*O170>20000000,0.22*O170,20000000) -> 20000000 | H82: =IF(Q170>G82,"Yes","No") -> Yes | J82: SN | K82: 4.2(a)(i) | L82: A$1 to the holders of the residual income unit | M82: =1 -> 1 | O82: =ROUND(+M82+N82,2) -> 1
C83: (c) The aggregate Principal Outstanding of all Defaulted Receivables net of all recoveries since the Closing date is less than: | L83: REQUIRED PAYMENTS | M83: =SUM(M61:M82) -> 1901345.489 | N83: =SUM(N61:N81) -> 10623.23755 | O83: =SUM(O61:O82) -> 1911968.723
C85: (i) 0.85% if that Payment Date is before the second anniversary of the Closing Date: | G85: =(SUM('Collateral Tables'!L9:AS9)-SUM('Collateral Tables'!L23:AS23))/'Collateral Tables'!$AS$6 -> 0.01129861623 | H85: =IF(H75="Yes",IF(G85<0.0085,"Yes","No"),"n/a") -> No | J85: SN | K85: 1.1 | L85: INCOME SHORTFALL
L86: Required Payments | M86: =+O83 -> 1911968.723
C87: (ii) 1.25% if that Payment Date is on or after the second anniversary of the Closing Date but before the third anniversary of the closing date: | G87: =G85 -> 0.01129861623 | H87: =IF(H76="Yes",IF(G87<0.0085,"Yes","No"),"n/a") -> No | J87: SN | K87: 1.1 | L87: less Available Income | M87: =+M58 -> 2387119.6
C88: (iiI) 1.75% if that Payment Date is on or after the third anniversary of the Closing Date | G88: =G87 -> 0.01129861623 | H88: =IF(H77="Yes",IF(G88<0.0085,"Yes","No"),"n/a") -> n/a | J88: SN | K88: 4.3(a) | L88: Income Shortfall | M88: =IF(+M86-M87>0,M86-M87,0) -> 0 | N88: =IF(M88>0,"Income shortfall. Draw funds from Cash Reserve!","-") -> -
M89: =IF(M88>H51+H54,H51+H54,M88) -> 0 | N89: =IF(M89>0,"Funds permited to be drawn from Cash Reserve.","-") -> -
C90: (d) as at immediately preceding Determination Date, average of aggregate principal outstanding of Purchased Receivables over previous two collection periods that have a scheduled payment more than 60 days overdue less than or equal to 2.5% of the average of the aggregate principal outstanding of all Purchased Receivables on each such determination date | G90: =(AVERAGE(SUM('Collateral Tables'!R46:R49),SUM('Collateral Tables'!V46:V49)))/(AVERAGE('Collateral Tables'!R50,'Collateral Tables'!V50)) -> 0.02068350186 | H90: =IF(G90<0.025,"Yes","No") -> Yes | J90: SN | K90: 1.1 | L90: PAYMENT SHORTFALL
F91: (e) No Principal Draws Outstanding | G91: =P13 -> 0 | H91: =IF(G91=0,"Yes","No") -> Yes | L91: Required Payments | M91: =+M86 -> 1911968.723
F92: (f) Aggregate Invested Amount of All Notes on Payment Date greater than 10% of Invested Amount of all Notes on Note Issue Date | G92: =M179/M168 -> 0.3522907429 | H92: =IF(G92>0.1,"Yes","No") -> Yes | L92: less Available Income | M92: =+M87 -> 2387119.6
F93: (g) No Unreimbursed Charge-Offs Against Seller Notes | G93: =M36 -> 886646.0725 | H93: =IF(G93=0,"Yes","No") -> No | L93: less drawings on Cash Reserve | M93: =+M89 -> 0
J94: SN | K94: 4.3(b) | L94: Payment Shortfall | M94: =IF(+M91-M92-M93<0,0,M91-M92-M93) -> 0 | N94: =IF(M94>0,"Payment shortfall. Principal Draw required!","-") -> -
J96: SN | K96: 1.1 | L96: TOTAL AVAILABLE INCOME
J97: SN | K97: Definition | L97: Available Income | M97: =+M58 -> 2387119.6
J98: SN | K98: 4.3(a) | L98: Drawings from the Cash Reserve (refer SN cl.4.3(a)) (if any) | M98: =+M93 -> 0
J99: SN | K99: 4.3(b) | L99: Principal Draws relating to current Collection Period (if any) | M99: =MIN(M94,SUM(M145:M148)) -> 0
J100: SN | K100: 1.1 | L100: Total Available Income | M100: =ROUND(SUM(M97:M99),2) -> 2387119.6
J102: SN | K102: 4.2 | L102: DISTRIBUTION OF AVAILABLE INCOME | M102: Amount Due | N102: Amount Available | O102: Amount Paid
J103: SN | K103: 4.2(c) | L103: Accrued Interest Adjustment | M103: =+O61 -> 0 | N103: =+M100 -> 2387119.6 | O103: =IF(M103<N103,M103,N103) -> 0
J104: SN | K104: 4.2(a)(ii) | L104: Taxes payable in relation to the Trust | M104: 43047 | N104: =+N103-M103 -> 2387119.6 | O104: =IF(M104<N104,M104,N104) -> 43047
J105: SN | K105: 4.2(a)(iii) | L105: Trustee Fee (0.04%) | M105: 15078.14 | N105: 2344072.6 | O105: =IF(M105<N105,M105,N105) -> 15078.14
J106: SN | K106: 4.2(a)(iv) | L106: Managers Fee (0.05%) | M106: 18847.68 | N106: 2328994.46 | O106: =IF(M106<N106,M106,N106) -> 18847.68
J107: SN | K107: 4.2(a)(v) | L107: Security Trustee Fee (included in Trustee Fee) | M107: 0 | N107: 2310146.78 | O107: =IF(M107<N107,M107,N107) -> 0
J108: SN | K108: 4.2(a)(vi) | L108: Other Expenses incurred by the Trustee or Security Trustee | M108: 0 | N108: 2310146.78 | O108: 0
J109: SN | K109: 4.2(a)(vii)(A) | L109: Backup Servicer Fee (pari passu) | M109: 0 | N109: 2310146.78 | O109: 0
K110: 4.2(a)(vii)(B) | L110: Servicer Fee (if CNH Aust. is not Servicer) (1.25%) (pari passu) | M110: 0 | N110: 2310146.78 | O110: 0
J111: SN | K111: 4.2(a)(viii) | L111: Custodian Fee (0.02%) | M111: 7539.07 | N111: 2310146.78 | O111: 7539.07
J112: SN | K112: 4.2(a)(ix) | L112: Other Expenses incurred by the Servicer or Backup Servicer | M112: 8020.35 | N112: 2302607.71 | O112: 8020.35
J113: SN | K113: 4.2(a)(x) | L113: Break costs received by Trustee from the Servicer to be paid to the Swap Provider/ Backup Swap Provider | M113: 0 | N113: 2294587.36 | O113: 0
J114: SN | K114: 4.2(a)(xi)(A)& (B) | L114: Coupon - Class A Notes (pari passu) | M114: =+O72+O73 -> 913083.6 | N114: 2294587.36 | O114: 913083.6
J115: SN | K115: 4.2(a)(xi)(C) | L115: Net Swap Payment (pari passu) | M115: =+O74 -> 675536.1 | N115: 1381503.76 | O115: 675536.1
J116: SN | K116: 4.2(a)(xi)(D) | L116: Backup Swap Provider Fee (pari passu) | M116: =+O75 -> 12417.94 | N116: 705967.66 | O116: 12417.94
J117: SN | K117: 4.2(a)(xii)(A)&(B) | L117: Coupon - Class B Notes (pari passu) | M117: =+O76+O77 -> 143007.1233 | N117: 693549.72 | O117: 143007.1233
J118: SN | K118: 4.2(a)(xiii) | L118: Repayment of Principal Draws previously not reimbursed | M118: =+O78 -> 0 | N118: 550542.5967 | O118: =+M118 -> 0
J119: SN | K119: 4.2(a)(xiv) | L119: Reimbursement of aggregate amount of drawings from the Cash Reserve Account | M119: =+O79 -> 0 | N119: 550542.5967 | O119: =+M119 -> 0
J120: SN | K120: 4.2(a)(xv) | L120: Servicer Fee (if CCA is Servicer) (0.2%) | M120: =O80 -> 75390.72 | N120: 550542.5967 | O120: =+M120 -> 75390.72
J121: SN | K121: 4.2(a)(i) | L121: A$1 to the holders of the residual income unit | M121: =M82 -> 1 | N121: 475151.8767 | O121: 1
J122: SN | K122: 4.2(a)(xvi) | L122: Other Expenses of the Trust | M122: =O81 -> 0 | N122: =+N121-M121 -> 475150.8767 | O122: 0
L123: Excess Available Income | N123: =+N122-O122 -> 475150.8767
L125: APPLICATION OF EXCESS AVAILABLE INCOME
M126: Amount Due | N126: Amount Available | O126: Amount Paid
J127: SN | K127: 4.4(a)(i) | L127: Reinstatement of Charge-Offs which have occurred during the Collection Period | M127: =+H37 -> 695941.08 | N127: =+N123 -> 475150.8767 | O127: =IF(M127<N127,M127,N127) -> 475150.8767 | P127: =M127-N127 -> 220790.2033
J128: SN | K128: 4.4(a)(ii) | L128: Reinstatement of Charge-Offs which have occurred during previous Collection Periods | M128: =Q172-Q173 -> 665855.8692 | N128: =+N127-O127 -> 0 | O128: =IF(M128<N128,M128,N128) -> 0
J129: SN | K129: 4.4(a)(iv)(A) | L129: Coupon Entitlement - Seller Notes (1%) | M129: =+Q185 -> 337687.88 | N129: =+N128-O128 -> 0 | O129: =IF(M129<N129,M129,N129) -> 0
J130: SN | K130: 4.4(a)(iv)(B) | L130: Coupn entitlement on Seller Notes for any previous coupon period that remains unpaid | M130: ='Seller Coupon'!J8 -> 1060579.472 | N130: 0 | O130: 0
L131: Excess Distribution to Beneficiary | N131: =IF(N129-O129>0,N129-O129,0) -> 0
J133: SN | K133: 1.1 | L133: PRINCIPAL COLLECTIONS
J134: SN | K134: 1.1
J135: SN | K135: 1.1 | L135: Payments received from the Approved Seller in respect of the purchase of a Purchased Receivable during the Collection Period | M135: =+H23 -> 14339555.28
J136: SN | K136: 1.1 | L136: Any amounts received by the Trustee from the Approved Seller which are attributable to Principal | M136: =H25 -> 0
J137: SN | K137: 1.1 | L137: All payments in the nature of or which represent GST
L138: All amounts received during the Collection Period in respect of:
J139: SN | K139: 1.1 | L139: * any breach of a representation or warranty of undertaking by the Approved Seller, Servicer and Custodian contained in the Transaction Documents | M139: =+H29 -> 0
J140: SN | K140: 1.1 | L140: * any obligation by the Approved Seller, Servicer and Custodian under the Transaction Documents to indemnify or reimburse the Trustee for any amount | M140: =+H31 -> 0
J141: SN | K141: 1.1 | L141: * any breach of a representation, warranty or undertaking in respect of a breach of which they are not entitled to be indemnified out of the Assets of the Trust or any indemnity from the Manager and Trustee contained in the Transaction Documents. | M141: =+H34 -> 0
L142: Principal Collections | M142: =SUM(M135:M141) -> 14339555.28
J144: SN | K144: 1.1 | L144: TOTAL AVAILABLE PRINCIPAL
J145: SN | K145: 1.1 | L145: Principal Collections | M145: =+M142 -> 14339555.28
J146: SN | K146: 4.4(a)(xii) | L146: Total Available Income applied towards repayment of Principal Draws | M146: =O118 -> 0
J147: SN | K147: 4.4 | L147: Excess Available Income applied towards reinstating any Charge-offs | M147: =+MIN(M18+M19,IF(M58-O83<0,0,M58-O83)) -> 475150.8767
L148: Proceeds of Notes invested in Authorised Investments on the Closing Date | M148: 0
L149: Less Principal Draw to be made on Payment Date | M149: =+M99 -> 0
L150: Total Available Principal | M150: =SUM(M145:M148)-M149 -> 14814706.16
L152: DISTRIBUTION OF TOTAL AVAILABLE PRINCIPAL | M152: Amount Due | N152: Amount Available | O152: Amount Paid
J153: SN | K153: 4.6(a)(i)(A) | L153: Class A1 Notes Principal Payment | M153: =IF(N170=0,0,MIN(M150,N170)) -> 0 | N153: =+M150 -> 14814706.16 | O153: =ROUND(+M153,2) -> 0
J154: SN | K154: 4.6(a)(i)(B) | L154: Class A2 Notes Principal Payment | M154: =IF(O170=0,0,MIN(M150-O153,O170)) -> 14814706.16 | N154: =+N153-O153 -> 14814706.16 | O154: =ROUND(+M154,2) -> 14814706.16
J155: SN | K155: 4.6(a)(i)(C) | L155: Class B Notes Principal Payment | M155: =IF(P170=0,0,MIN(M150-SUM(O153:O154),P170)) -> -0.003287645057 | N155: =+N154-O154 -> -0.003287645057 | O155: =ROUND(+M155,2) -> 0
J156: SN | K156: 4.6(a)(i)(C) | L156: Seller Notes Principal Payment | M156: =IF(Q170=0,0,MIN(M150-SUM(O153:O155),Q170)) -> -0.003287645057 | N156: =+N155-O155 -> -0.003287645057 | O156: =ROUND(+M156,2) -> 0
L159: PRINCIPAL BALANCE OF PURCHASED RECEIVABLES
L160: =CONCATENATE("Outstanding Principal Balance of Purchased Receivables as at ",(TEXT(+H7,"d mmmm yyy"))) -> Outstanding Principal Balance of Purchased Receivables as at 1 September 2013 | M160: ='16 Sep 13'!M164 -> 137450609.9
L161: Less: Principal Collections | M161: =+M145 -> 14339555.28
L162: Less: Charge-offs | M162: =+H37 -> 695941.08
L163: Overissuance Proceed
L164: =CONCATENATE("Outstanding Principal Balance of Purchased Receivables as at ",(TEXT(+H8,"d mmmm yyy"))) -> Outstanding Principal Balance of Purchased Receivables as at 1 December 2013 | M164: =+M160-M161-M162+M163 -> 122415113.5 | N164: =M164-M16 -> -0.3975341767
L166: TOTAL NOTE BALANCES
M167: Total Notes | N167: Class A1 Notes | O167: Class A2 Notes | P167: Class B Notes | Q167: Seller Notes
L168: Initial Invested Amount | M168: =SUM(N168:Q168) -> 350000000 | N168: 71500000 | O168: 228000000 | P168: 12000000 | Q168: 38500000
J169: (a) | L169: =CONCATENATE("Invested Amount as at Previous Payment Date: ",(TEXT(H4,"d mmmm yyy"))) -> Invested Amount as at Previous Payment Date: 16 September 2013 | M169: =SUM(N169:Q169) -> 138116466 | N169: ='15 Jun 12'!N179 -> 0 | O169: ='16 Sep 13'!O179 -> 87616466 | P169: ='16 Sep 13'!P179 -> 12000000 | Q169: ='16 Sep 13'!Q179 -> 38500000
J170: (b) | L170: =CONCATENATE("Stated Amount as at Previous Payment Date: ",(TEXT(+H4,"d mmmm yyy"))) -> Stated Amount as at Previous Payment Date: 16 September 2013 | M170: =SUM(N170:Q170) -> 137450610.1 | N170: ='15 Jun 12'!N179 -> 0 | O170: ='16 Sep 13'!O180 -> 87616466 | P170: ='16 Sep 13'!P180 -> 12000000 | Q170: ='16 Sep 13'!Q180 -> 37834144.13
J171: (d) | L171: Principal Payments to Noteholders on Payment Date | M171: =SUM(N171:Q171) -> 14814706 | N171: =ROUND(+O153,2) -> 0 | O171: =ROUND(+O154,) -> 14814706 | P171: =ROUND(+O155,0) -> 0 | Q171: =ROUND(+O156,0) -> 0
L172: Gross Aggregate Charge-Offs | M172: 665855.8692 | N172: =+O172 -> 0 | O172: 0 | P172: 0 | Q172: ='16 Sep 13'!Q178 -> 665855.8692
L173: Gross Aggregate Reinstatements of charge-offs | M173: 0 | N173: =+O173 -> 0 | O173: 0 | P173: 0 | Q173: 0
J174: (e) | L174: Aggregate Charge-Offs for this Collection Period | M174: 695941.08 | N174: =IF(SUM(O174:Q174)<$M$19,MIN($M$19,N170),0) -> 0 | O174: =IF(SUM(P174:Q174)<$M$19,MIN($M$19,O170),0) -> 0 | P174: =IF(Q174<$M$19,MIN($M$19,P170),0) -> 0 | Q174: =IF(MIN($M$19,Q170)<0,0,MIN($M$19,Q170)) -> 695941.08
J175: (f) | L175: Reinstatements relating to Charge-offs that have occurred this Collection Period | M175: 475150.8767 | N175: 0 | O175: =IF(SUM(P175:Q175)<$M$20,MIN($M$20,O171),0) -> 0 | P175: =IF(Q175<$M$20,MIN($M$20,P171),0) -> 0 | Q175: =M20 -> 475150.8767
L176: Aggregate Carry Over Charge-offs not previously reinstated | M176: 665855.8692 | N176: =+M35 -> 0 | O176: =+M25 -> 0 | P176: 0 | Q176: =+M18 -> 665855.8692
L177: Reinstatements of Carry Over Charge-offs not previously reinstated | M177: 0 | N177: =IF(N176>0,MIN((M28-M175),N176),0) -> 0 | O177: =IF(O176>0,MIN((M21-M175+N177),O176),0) -> 0 | P177: 0 | Q177: =+M21 -> 0
L178: Aggregate Charge-Offs not reinstated and to be carried over to next period | M178: =SUM(N178:P178) -> 0 | N178: =+N174-N175+N176-N177 -> 0 | O178: =+O174-O175+O176-O177 -> 0 | P178: =+P174-P175+P176-P177 -> 0 | Q178: =+Q174-Q175+Q176-Q177 -> 886646.0725
L179: =CONCATENATE("Invested Amount as at Payment Date: ",(TEXT(+H5,"d mmmm yyy"))) -> Invested Amount as at Payment Date: 16 December 2013 | M179: =SUM(N179:Q179) -> 123301760 | N179: =+N169-N171 -> 0 | O179: =+O169-O171 -> 72801760 | P179: =+P169-P171 -> 12000000 | Q179: =+Q169-Q171 -> 38500000
L180: =CONCATENATE("Stated Amount as at Payment Date: ",(TEXT(+H5,"d mmmm yyy"))) -> Stated Amount as at Payment Date: 16 December 2013 | M180: =SUM(N180:Q180) -> 122415113.9 | N180: =+N170-N171-N174+N175 -> 0 | O180: =+O170-O171-O174+O175 -> 72801760 | P180: =+P170-P171-P174+P175+P177 -> 12000000 | Q180: =+Q170-Q171-Q174+Q175+Q177 -> 37613353.93
L181: =CONCATENATE("Bond Factor at Payment Date: ",(TEXT(+H5,"d mmmm yyy"))) -> Bond Factor at Payment Date: 16 December 2013 | N181: =(+N180/N168) -> 0 | O181: =IF(O179=0,0,(+O179/O168)) -> 0.3193059649 | P181: =(+P180/P168) -> 1 | Q181: =(+Q180/Q168) -> 0.9769702319
L182: Coupon Margin | N182: 0.006 | O182: 0.016 | P182: 0.022 | Q182: 0.01
L183: Coupon Rate (3 month BBSW + margin) | N183: =+M2+N182 -> 0.0318 | O183: =+M2+O182 -> 0.0418 | P183: =+M2+P182 -> 0.0478 | Q183: =+M2+Q182 -> 0.0358
L184: Days in Coupon Period | N184: =+M6 -> 91 | O184: =+M6 -> 91 | P184: =+M6 -> 91 | Q184: =+M6 -> 91
L185: =CONCATENATE("Coupon Entitlement to be paid out on the current Payment Date: ",(TEXT(H5,"d mmmm yyy"))) -> Coupon Entitlement to be paid out on the current Payment Date: 16 December 2013 | N185: =ROUND(+N169*N183*N184/365,2) -> 0 | O185: =ROUND(+O169*O183*O184/365,2) -> 913083.6 | P185: =ROUND(P170*P183*P184/365,2) -> 143007.12 | Q185: =ROUND(Q170*Q183*Q184/365,2) -> 337687.88
J187: Swap Conf. | L187: NET SWAP SETTLEMENT
L189: =CONCATENATE("Aggregate Invested Amount of Class A1 Notes as at ",(TEXT(H4,"dd-mmm-yy"))) -> Aggregate Invested Amount of Class A1 Notes as at 16-Sep-13 | M189: =+N169 -> 0
L190: =CONCATENATE("Aggregate Invested Amount of Class A2 Notes as at ",(TEXT(H4,"dd-mmm-yy"))) -> Aggregate Invested Amount of Class A2 Notes as at 16-Sep-13 | M190: =+O169 -> 87616466
L191: =CONCATENATE("Aggregate Invested Amount of Class B Notes as at ",(TEXT(H4,"dd-mmm-yy"))) -> Aggregate Invested Amount of Class B Notes as at 16-Sep-13 | M191: =+P169 -> 12000000
L192: Notional Amount | M192: =SUM(M189:M191) -> 99616466
L193: Floating Rate Payer | O193: Fixed Rate Payer
J194: Swap Conf. | L194: Notional Amount | M194: =+M192 -> 99616466 | O194: Notional Amount | P194: =+M192 -> 99616466
L195: BBSW as at commencement of the Calculation Period | M195: =+H10 -> 0.0258 | O195: Fixed Rate | P195: =+M3 -> 0.053
L196: Number of Days in the Calculation Period | M196: =+M6 -> 91 | O196: Number of Days in the Calculation Period | P196: =+M6 -> 91
L197: Sub-Total - Floating Rate Payer | M197: =ROUND(M194*M195*M196/365,2) -> 640765.86 | O197: Sub-Total - Fixed Rate Payer | P197: =ROUND(P194*P195*P196/365,2) -> 1316301.96
L199: NET SWAP PAYMENT | M199: =ROUND(IF(P197>M197,P197-M197,M197-P197),2) -> 675536.1 | N199: =IF(P197>M197,"Net Swap Settlement - Fixed Rate Payer pays","Net Swap Settlement - Floating Rate Payer pays") -> Net Swap Settlement - Fixed Rate Payer pays
J220: FAX
L222: TO: Marion Gowing | M222: Tel: | N222: (02) 9229 9689
L223: Co.: Perpetual Trustee Company Pty Limited | M223: Fax: | N223: (02) 9229 9703 / 7870
L224: (the "Trustee")
L225: From: Nicole Zhou | M225: Tel: | N225: (02) 9673 7785
L226: Co.: CNH Capital Australia Pty Limited | M226: Fax: | N226: (02) 9833 1273
L227: (the "Manager")
L228: Date: | N228: # Pages: 2 pages inclusive
J230: QUARTERLY MANAGER'S REPORT - PAYMENT DIRECTIONS
J232: Please debit the following account and credit the accounts detailed in the table below:
J233: Debit
J234: Account Name: Perpetual Trustee Company Limited ATF the CNH Capital Australia Receivables Trust Series 2011-1
J235: Account No.: 012 003 / 8416 63108
J236: =CONCATENATE("Amount: ",(TEXT(M280,"$#,###.00"))) -> Amount: $16,726,674.88
... 92 more rows

Sheet 16 Sep 13
C1: CNH CAPITAL AUSTRALIA RECEIVABLES TRUST SERIES 2011-1 (TERM DEAL) - INPUT KEY KEY DATES | J1: CNH CAPITAL AUSTRALIA RECEIVABLES TRUST SERIES 2011-1 (TERM DEAL) - QUARTERLY MANAGER'S REPORT | O1: SUMMARY
C2: Determination Date | H2: 2013-09-11 | L2: =CONCATENATE("3 month BBSW as at Payment Date: ",(TEXT(+H4,"d mmmm yyy"))) -> 3 month BBSW as at Payment Date: 17 June 2013 | M2: =+H10 -> 0.027808
C3: Next Determination Date | H3: 2013-12-11 | L3: =+G12 -> Fixed Rate as advised by the Calculating Agent as at - 23 September 2011(fixed) | M3: =+H12 -> 0.053
C4: Previous Payment Date | H4: 2013-06-17
C5: Payment Date | H5: 2013-09-16 | L5: KEY DATES | N5: Maturity Date: | O5: 2014-07-15
C6: Next Payment Date | H6: 2013-12-16 | I6: =DAY(H6)&" "&TEXT(H6,"mmm")&" "&TEXT(H6,"YY") -> 16 Dec 13 | L6: =CONCATENATE("COUPON PERIOD: Start Date: ",(TEXT(+H4,"d mmmm yyy"))," End Date: ",(TEXT(+H5,"d mmmm yyy"))) -> COUPON PERIOD: Start Date: 17 June 2013 End Date: 16 September 2013 | M6: =+H5-H4 -> 91 | N6: end date exclusive
C7: Start of Collection Period | H7: 2013-06-01 | L7: =CONCATENATE("COLLECTION PERIOD: Start Date: ",(TEXT(+H7,"d mmmm yyy"))," End Date: ",(TEXT(+H8,"d mmmm yyy"))) -> COLLECTION PERIOD: Start Date: 1 June 2013 End Date: 1 September 2013 | M7: =+H8-H7 -> 92 | N7: end date exclusive | P7: Next Custodian Audit Report Due: | Q7: 2014-03-31
C8: End of Collection Period | H8: =DATE(YEAR(H5),MONTH(H5),1) -> 2013-09-01 | P8: Next Servicer Audit Report Due: | Q8: 2014-03-31
G9: RATES | P9: Next Annual Accounts Audit Due: | Q9: 2014-03-31
G10: =CONCATENATE("3 month BBSW as at start of previous Coupon Period - ",(TEXT(H4,"d mmmm yyy"))) -> 3 month BBSW as at start of previous Coupon Period - 17 June 2013 | H10: 0.027808 | L10: NOTE SUMMARY / PURCHASED RECEIVABLES BALANCE
G11: =CONCATENATE("3 month BBSW on Payment Date - ",(TEXT(H5,"d mmmm yyy"))) -> 3 month BBSW on Payment Date - 16 September 2013 | H11: 0.0258 | L11: Aggregate Initial Invested Amount of all Notes | M11: =+M168 -> 350000000
G12: Fixed Rate as advised by the Calculating Agent as at - 23 September 2011(fixed) | H12: 0.053 | L12: =CONCATENATE("Class A1 Notes - Stated Amount as at Payment Date: ",(TEXT(+H5,"d mmmm yyyy"))) -> Class A1 Notes - Stated Amount as at Payment Date: 16 September 2013 | M12: =N179 -> 0 | O12: =CONCATENATE("Pur. Receivables as at ",(TEXT(+H8,"d mmmm yyy"))," - excl. C/Offs") -> Pur. Receivables as at 1 September 2013 - excl. C/Offs | P12: =M164 -> 137450609.9
G13: TOTAL AVAILABLE INCOME | L13: =CONCATENATE("Class A2 Notes - Stated Amount as at Payment Date: ",(TEXT(+H5,"d mmmm yyyy"))) -> Class A2 Notes - Stated Amount as at Payment Date: 16 September 2013 | M13: =O180 -> 87616466 | O13: Current period Principal Draw | P13: =+M94 -> 0
G14: Income Collections for the Collection Period (excluding Recoveries) & Misc Receivables | H14: ='[53]Servicer Recon'!$B$10+[54]Sheet1!$N$3988 -> 2409060.44 | I14: =[51]Sheet1!$H$4823 -> 34508173.18 | L14: =CONCATENATE("Class B - Stated Amount as at Payment Date: ",(TEXT(+H5,"d mmmm yyyy"))) -> Class B - Stated Amount as at Payment Date: 16 September 2013 | M14: =P180 -> 12000000 | P14: =+Q43 -> 0
C15: Recoveries | H15: ='[53]Servicer Recon'!$C$16 -> 452821.3582 | I15: =H14+H15+H17+H23 -> 18394348.41 | L15: =CONCATENATE("Seller Notes - Stated Amount as at Payment Date: ",(TEXT(+H5,"d mmmm yyyy"))) -> Seller Notes - Stated Amount as at Payment Date: 16 September 2013 | M15: =+Q180 -> 37834144.13 | P15: =+Q41 -> 0
C16: Interest in respect of the Collection Account | H16: =-16.5-25.75-28.5+42877.42-18.7-20.5+28747.54-16.5-20.5+37485.2 -> 108963.21 | I16: =I14-I15 -> 16113824.77 | L16: Reconciliation of Bond Balance to Receivable Balance | M16: =SUM(M12:M15) -> 137450610.1 | O16: =+P16-M16 -> -0.2408218086 | P16: =SUM(P12:P15) -> 137450609.9 | Q16: =IF(ROUNDUP(M16,0)-ROUNDUP(P16,0)=0,"Ok - adj. any minor rounding diff. next month","Does not reconcile -Investiage discrepancy.") -> Does not reconcile -Investiage discrepancy.
C17: All payments in the nature of or which represent GST & Stamp duties | H17: =[54]Sheet1!$L$3988+[54]Sheet1!$O$3988 -> 64281.41182 | L17: CHARGE-OFFS | O17: ANNUALISED ROLLING PERCENTAGE
C18: Amounts in the nature of interest otherwise paid by an Approved Seller, the Servicer or Manager to the Trustee in respect of all Collections held by it | J18: SN | K18: 4.7(vi) | L18: =CONCATENATE("Carry Over Charge Offs as at ",(TEXT(H4,"d mmmm yyy"))) -> Carry Over Charge Offs as at 17 June 2013 | M18: =+M128 -> 0 | P18: Annualised Rolling Average Charge-Off Percentage (must be < 6%) | Q18: =SUM(Q20:Q23)/4*4 -> 0.02209238849
J19: SN | K19: 4.7(vi) | L19: Plus Current Period Charge-Offs | M19: =+M127 -> 1500125.61 | N19: Collection Period | O19: Charge-Offs | P19: Agg. Rec. Open Bal. O/S | Q19: Charge Off %
C20: All other amounts received by or on behalf of the Trustee during the Coll. Per. in the nature of income | J20: SN | K20: 4.4(a)(i) | L20: Less Reinstatement of Current Period Charge Offs | M20: =+O127 -> 834269.7408 | N20: =CONCATENATE("Fr: ",(TEXT(H7,"dd-mmm-yy"))," To: ",((TEXT(H8,"d-mmm-yy")))) -> Fr: 01-Jun-13 To: 1-Sep-13 | O20: =+M19 -> 1500125.61 | P20: =+M160 -> 154418920.7 | Q20: =IF(P20=0,"-",(+O20/P20)) -> 0.009714648977
G21: TOTAL AVAILABLE PRINCIPAL | J21: SN | K21: 4.4(a)(ii) | L21: Less Reinstatement of Carry Over Charge Offs | M21: =+O128 -> 0 | N21: Fr: 01-Mar-13 To: 1-Jun-13 | O21: 1666748.38 | P21: 184802945 | Q21: =IF(P21=0,"-",(+O21/P21)) -> 0.009019057463
C22: Payments received from the Obligors in respect of the purchase of a Purchased Receivable during the Collection Period | J22: SN | K22: 4.7(vi) | L22: =CONCATENATE("Total Carry Over Charge Offs as at ",(TEXT(+H5,"d mmmm yyy"))) -> Total Carry Over Charge Offs as at 16 September 2013 | M22: =+M18+M19-M20-M21 -> 665855.8692 | N22: Fr: 01-Jun-12 To: 1-Sep-12 | O22: 638974.24 | P22: 253389246.9 | Q22: 0.002521710167
H23: ='[53]Servicer Recon'!$B$9 -> 15468185.2 | J23: =CONCATENATE("Distribution of Total Carry Over Charge-Offs as at ",(TEXT(H5,"D MMMM YYY")),"- Amounts are Net of Reinstatements") -> Distribution of Total Carry Over Charge-Offs as at 16 September 2013- Amounts are Net of Reinstatements | N23: Fr: 01-Mar-12 To: 1-Jun-12 | O23: 242288.27 | P23: 289481969.9 | Q23: 0.000836971885
C24: Any amounts received by the Trustee from the Approved Seller which are attributable to Principal | L24: =CONCATENATE("Carry Over Charge-Offs allocable to Seller Notes ",(TEXT(H5,"d mmmm yyy"))) -> Carry Over Charge-Offs allocable to Seller Notes 16 September 2013 | M24: =MIN($M$18-$M$21,P170) -> 0
L25: =CONCATENATE("Carry Over Charge-Offs allocable to Class B Notes",(TEXT(H5,"d mmmm yyy"))) -> Carry Over Charge-Offs allocable to Class B Notes16 September 2013 | M25: =MIN($M$18-$M$21-$M$24,O170) -> 0 | Q25: -
G26: All payments in the nature of or which represent GST & Stamp duties | L26: =CONCATENATE("Carry Over Charge-Offs allocable to Class A Notes",(TEXT(H5,"d mmmm yyy"))) -> Carry Over Charge-Offs allocable to Class A Notes16 September 2013 | M26: =MIN($M$18-$M$21-$M$24-$M$25,N170) -> 0 | Q26: -
G27: Amounts received during the Collection Period in respect of: | Q27: -
C28: * any breach of a representation or warranty of undertaking by the Approved Seller, Servicer and Custodian contained in the Transaction documents | L28: =CONCATENATE("Current Period Charge-Offs allocable to Seller Notes ",(TEXT(H5,"d mmmm yyy"))) -> Current Period Charge-Offs allocable to Seller Notes 16 September 2013 | M28: =MIN(+M22-M24,P170) -> 665855.8692 | Q28: -
L29: =CONCATENATE("Current Period Charge-Offs allocable to Class B Notes ",(TEXT(H5,"d mmmm yyy"))) -> Current Period Charge-Offs allocable to Class B Notes 16 September 2013 | M29: =IF(M28<(M19-M20),MIN((M19-M20-M28),O170),0) -> 0 | Q29: -
C30: * Any obligation by the Approved Seller, Servicer and Custodian under the Transaction Documents to indemnify or reimbruse the Trustee for any amount | L30: =CONCATENATE("Current Period Charge-Offs allocable to Class A Notes ",(TEXT(H5,"d mmmm yyy"))) -> Current Period Charge-Offs allocable to Class A Notes 16 September 2013 | M30: =IF(M28+M29<(M19-M20),MIN((M19-M20-M28-M29),N170),0) -> 0 | Q30: -
Q31: -
C32: * any breach of a representation, warranty or undertaking in respect of a breach of which they are not entitled to be indemnified out of the Assets of the Trust or any indemnity from the Manager and Trustee contained in the Transaction Documents. | L32: =CONCATENATE("Total Charge-offs allocable to Seller Notes as at ",(TEXT(H5,"d mmmm yyy"))) -> Total Charge-offs allocable to Seller Notes as at 16 September 2013 | M32: =+M28+M24 -> 665855.8692 | Q32: -
L33: =CONCATENATE("Total Charge-offs allocable to Class B Notes as at ",(TEXT(H5,"d mmmm yyy"))) -> Total Charge-offs allocable to Class B Notes as at 16 September 2013 | M33: =+M25+M29 -> 0 | Q33: -
L34: =CONCATENATE("Total Charge-offs allocable to Class A Notes as at ",(TEXT(H5,"d mmmm yyy"))) -> Total Charge-offs allocable to Class A Notes as at 16 September 2013 | M34: =+M26+M30 -> 0 | Q34: -
C35: Any proceeds of Notes which were invested in Authorised Investments on Closing Date | Q35: -
G36: CHARGE-OFFS | L36: =+L22 -> Total Carry Over Charge Offs as at 16 September 2013 | M36: =SUM(M32:M35) -> 665855.8692 | Q36: -
G37: Charge-Offs for this period | H37: ='[53]Servicer Recon'!$C$14 -> 1500125.61 | K37: DEPOSITS | M37: CASH RESERVE | O37: TITLE PERFECTION RESERVE
G38: REQUIRED PAYMENTS | L38: =CONCATENATE("Balance as at ",(TEXT(H4,"d mmmm yyy"))," - excl. funds dep. due to DD on Payment Date") -> Balance as at 17 June 2013 - excl. funds dep. due to DD on Payment Date | M38: =+H51 -> 8231057 | O38: =+H59 -> 0
G39: Accrued Interest Adjustment | L39: Repayment of drawing on account on Payment Date | M39: =+H52 -> 0
G40: Taxes & Government Charges payable in relation to the Trust (Stamp Duty & GST) | L40: Funds to be released from account and deposited into the Collection Account on Payment Date | M40: =-M89 -> 0
G41: Stamp Duty Payable for the current Collection Period | H41: =[54]Sheet1!$L$3988 -> 0
G42: GST Payable for the current Collection Period | H42: =+[55]Sheet1!$C$17+[56]Sheet1!$C$17+[57]Sheet1!$C$17 -> 87012 | L42: Funds to be released to CNH as they are no longer required to be placed on deposit | M42: =IF(ROUND(M40,0)=0,0,"Check") -> 0 | N42: Principal to be released to CNH | O42: =+H61 -> 0
L43: =CONCATENATE("Balance as at ",(TEXT(H5,"d mmmm yyy"))) -> Balance as at 16 September 2013 | M43: =SUM(M38:M42) -> 8231057 | N43: =CONCATENATE("Balance as at ",(TEXT(H5,"d mmmm yyy"))) -> Balance as at 16 September 2013 | O43: =SUM(O38:O41)-O42 -> 0
G44: Other Expenses incurred by the Trustee or Security Trustee in relation to the Trust | H44: 0
G45: =+L70 -> Other Expenses incurred by the Servicer or Backup Servicer | H45: 20944.75
G46: Payments due by the Trustee to the Swap Provider | L46: =CONCATENATE("Total Interest earnt during period as at ",(TEXT(H5,"d mmmm yyy"))," - Dep. into Collection Acc.") -> Total Interest earnt during period as at 16 September 2013 - Dep. into Collection Acc. | M46: =H57 -> 0 | N46: - Dep. to CNH Capital | O46: =H63 -> 0
C47: Break costs payable by the Trustee to the Swap Provider in respect of partially unwinding the Swap in respect to Receivable which have been particially prepaid or which have been charged-off and not prev. been paid and any other breaks cost due by the Tr | J47: =+J1 -> CNH CAPITAL AUSTRALIA RECEIVABLES TRUST SERIES 2011-1 (TERM DEAL) - QUARTERLY MANAGER'S REPORT | O47: CASHFLOWS
J48: SN | K48: 1.1 | L48: AVAILABLE INCOME
C49: Other Expenses of Trust: | D49: Bank Charges only | G49: Expenses excl. b/c: | J49: SN | K49: 1.1 | L49: Net Swap Settlement payable by the Trustee | M49: =IF(M197>P197,+M199,0) -> 0
G50: CASH RESERVE DEPOSIT | J50: SN | K50: 1.1 | L50: Income Collections for the Collection Period | M50: =+H14 -> 2409060.44
G51: =CONCATENATE("Balance as at ",(TEXT(+H4,"d mmmm yyy"))," (excluding drawdowns on Payment Date)") -> Balance as at 17 June 2013 (excluding drawdowns on Payment Date) | H51: ='17 Jun 13'!H55 -> 8231057 | J51: SN | K51: 1.1 | L51: Recoveries | M51: =+H15 -> 452821.3582
G52: Repayment of drawing on Cash Reserve from last month | H52: =M79 -> 0 | J52: SN | K52: 1.1 | L52: =+C17 -> All payments in the nature of or which represent GST & Stamp duties | M52: =+H17 -> 64281.41182
G53: Funds to be withdrawn from the Cash Reserve Account due to income shortfall for Required Payments | H53: =-M40 -> 0 | J53: SN | K53: 1.1 | L53: Interest Income in respect of the Collection Account | M53: =+H16 -> 108963.21
J54: SN | K54: 1.1 | L54: Interest Income in respect of the Cash Reserve Account | M54: =+H56 -> 66349.08
G55: =CONCATENATE("Balance as at ",(TEXT(+H5,"d mmmm yyy"))) -> Balance as at 16 September 2013 | H55: =+H51+H52-H53+H54 -> 8231057
G56: =CONCATENATE("Interest earned on Cash Reserve and dep. into Collection Acc. as at ",(TEXT(+H4,"d mmmm yyy"))) -> Interest earned on Cash Reserve and dep. into Collection Acc. as at 17 June 2013 | H56: 66349.08 | J56: SN | K56: 1.1 | L56: Amounts in the nature of interest otherwise paid by an Approved Seller, the Servicer or Manager to the Trustee in respect of all Collections held by it | M56: =+H19 -> 0
G57: =CONCATENATE("Interest earned on Cash Reserve and dep. into Collection Acc. as at ",(TEXT(+H5,"d mmmm yyy"))) -> Interest earned on Cash Reserve and dep. into Collection Acc. as at 16 September 2013 | J57: SN | K57: 1.1 | L57: Other | M57: =+H20 -> 0
G58: TITLE PERFECTION RESERVE ACCOUNT | J58: SN | K58: DEFIN. | L58: Available Income | M58: =SUM(M49:M57) -> 3101475.5
G59: =CONCATENATE("Balance as at ",(TEXT(+H4,"d mmmm yyy"))," (excluding drawdowns on Payment Date)") -> Balance as at 17 June 2013 (excluding drawdowns on Payment Date) | H59: 0
G60: Additional Funds to be placed on Deposit (due to Drawdowns) | L60: REQUIRED PAYMENTS | M60: Excluding GST | N60: GST | O60: Including GST & Adjustment
G61: Funds to be withdrawn from the Title Perfection Reserve Account | J61: SN | K61: 4.2(c) | L61: Accrued Interest Adjustment | M61: 0 | O61: =+M61+N61 -> 0
G62: =CONCATENATE("Balance as at ",(TEXT(+H5,"d mmmm yyy")),) -> Balance as at 16 September 2013 | H62: =+H59+H60-H61 -> 0 | J62: SN | K62: 4.2(a)(ii) | L62: Taxes payable in relation to the Trust | M62: =+H41+H42 -> 87012 | O62: =+M62+N62 -> 87012
C63: =CONCATENATE("Interest earned on Title Perfection Reserve Account to as at ",(TEXT(+H5,"d mmmm yyy"))," to be release do to CNH" ) -> Interest earned on Title Perfection Reserve Account to as at 16 September 2013 to be release do to CNH | J63: SN | K63: 4.2(a)(iii) | L63: Trustee Fee (0.04%) | M63: =$M$160*($M$7/365)*0.04% -> 15568.81173 | N63: =+M63*10% -> 1556.881173 | O63: =ROUND(+M63+N63,2) -> 17125.69
J64: SN | K64: 4.2(a)(iv) | L64: Managers Fee (0.05%) | M64: =$M$160*($M$7/365)*0.05% -> 19461.01466 | N64: =+M64*10% -> 1946.101466 | O64: =ROUND(+M64+N64,2) -> 21407.12
G65: COLLECTION ACCOUNT | J65: SN | K65: 4.2(a)(v) | L65: Security Trustee Fee (included in Trustee Fee) | M65: 0 | O65: =+M65+N65 -> 0
G66: =CONCATENATE("Opening Balance of Collection Account as at ",(TEXT(H7,"d mmmm yyy"))) -> Opening Balance of Collection Account as at 1 June 2013 | H66: ='17 Jun 13'!Q293 -> 34749975.55 | J66: SN | K66: 4.2(a)(vi) | L66: Other Expenses incurred by the Trustee or Security Trustee | M66: =+H44 -> 0 | O66: =+M66+N66 -> 0
G67: Total Collections Remitted for the Cur. Collection Per. (excl. GST & Stamp Duty Refunds) | H67: =H14+H23+H15 -> 18330067 | J67: SN | K67: 4.2(a)(vii)(A) | L67: Backup Servicer Fee (pari passu) | M67: 0 | N67: 0 | O67: 0
G68: Total Payments made for the Previous Collection Period | H68: ='17 Jun 13'!M293 -> 34749975.54 | J68: SN | K68: 4.2(a)(vii)(B) | L68: Servicer Fee (if CNH Aust. is not Servicer) (1.25%) (pari passu) | M68: 0 | N68: =+M68*10% -> 0 | O68: =+M68+N68 -> 0
G69: Stamp Duty remitted to State Revenue Office during the Collection Period | H69: =H41 -> 0 | J69: SN | K69: 4.2(a)(viii) | L69: Custodian Fee (0.02%) | M69: =$M$160*($M$7/365)*0.02% -> 7784.405865 | N69: =+M69*10% -> 778.4405865 | O69: =ROUND(+M69+N69,2) -> 8562.85
G70: GST Remitted to the ATO during the Collection Period | H70: =H42 -> 87012 | J70: SN | K70: 4.2(a)(ix) | L70: Other Expenses incurred by the Servicer or Backup Servicer | M70: =+H45 -> 20944.75 | O70: =ROUND(+M70+N70,2) -> 20944.75
J71: SN | K71: 4.2(a)(x) | L71: Break costs received by Trustee from the Servicer to be paid to the Swap Provider/ Backup Swap Provider | M71: 0 | O71: =ROUND(+M71+N71,2) -> 0
J72: SN | K72: 4.2(a)(xi)(A) | L72: Coupon - Class A Notes (pari passu) | M72: =ROUND(N170*N183*N184/365,2)+ROUND(O170*O183*O184/365,2) -> 1135001.89 | O72: =ROUND(+M72+N72,2) -> 1135001.89
C73: STEPDOWN CONDITIONS (calculations effective after the first anniversary date of the note issuance i.e. 23 September 2012) | J73: SN | K73: 4.2(a)(xi)(B) | L73: Coupon - Class A Notes for any previous unpaid Coupons (pari passu)
J74: SN | K74: 4.2(a)(xi)(C) | L74: Net Swap Payment (pari passu) | M74: =IF(P197>M197,+M199,0) -> 728057.21 | O74: =+M74+N74 -> 728057.21
F75: Has the First Anniversary Date occurred? | G75: 2012-09-23 | H75: =IF(H5<G75,"No","Yes") -> Yes | J75: SN | K75: 4.2(a)(xi)(D) | L75: Backup Swap Provider Fee (pari passu) | M75: =ROUND(M6/365*M192*0.05%,2) -> 14450.17 | O75: =+M75+N75 -> 14450.17
F76: Has the Second Anniversary Date occurred? | G76: 2013-09-23 | H76: =IF(H5<G76,"No","Yes") -> No | J76: SN | K76: 4.2(a)(xii)(A) | L76: Coupon - Class B Notes (pari passu) | M76: =+P170*P183*P184/365 -> 149014.6192 | O76: =+M76+N76 -> 149014.6192
F77: Has the Third Anniversary Date occurred? | G77: 2014-09-23 | H77: =IF(H5<G76,"No","Yes") -> No | J77: SN | K77: 4.2(a)(xii)(B) | L77: Coupon - Class B Notes for any previous unpaid Coupons (pari passu)
J78: SN | K78: 4.2(a)(xiii) | L78: Repayment of Principal Draws previously not reimbursed | M78: 0 | O78: =ROUND(+M78+N78,2) -> 0
C79: (a) The aggregate Stated Amount of all Class B and all seller notes as a % of the aggregate stated amount of all notes at that time | J79: SN | K79: 4.2(a)(xiv) | L79: Reimbursement of aggregate amount of drawings from the Cash Reserve Account | M79: 0 | O79: =ROUND(+M79+N79,2) -> 0
G80: =SUM(P170:Q170)/M170 -> 0.3270324626 | H80: =IF(G80<0.288,"No","Yes") -> Yes | J80: SN | K80: 4.2(a)(xv) | L80: Servicer Fee (if CCA is Servicer) (0.2%) | M80: =$M$160*($M$7/365)*0.2% -> 77844.05865 | N80: =+M80*10% -> 7784.405865 | O80: =ROUND(+M80+N80,2) -> 85628.46
C81: (b) The aggregate Stated Amount of all seller notes greater than or equal to the greater of (i) 22% of aggregate Stated Amount of all notes or (ii) $20,000,000 | J81: SN | K81: 4.2(a)(xvi) | L81: Other Expenses of the Trust | M81: =(+H49+F49)*0 -> 0 | O81: =ROUND(+M81+N81,2) -> 0
G82: =IF(0.22*O170>20000000,0.22*O170,20000000) -> 22862162.62 | H82: =IF(Q170>G82,"Yes","No") -> Yes | J82: SN | K82: 4.2(a)(i) | L82: A$1 to the holders of the residual income unit | M82: =1 -> 1 | O82: =ROUND(+M82+N82,2) -> 1
C83: (c) The aggregate Principal Outstanding of all Defaulted Receivables net of all recoveries since the Closing date is less than: | L83: REQUIRED PAYMENTS | M83: =SUM(M61:M82) -> 2255139.93 | N83: =SUM(N61:N81) -> 12065.82909 | O83: =SUM(O61:O82) -> 2267205.759
C85: (i) 0.85% if that Payment Date is before the second anniversary of the Closing Date: | G85: =(SUM('Collateral Tables'!Q9:AS9)-SUM('Collateral Tables'!Q23:AS23))/'Collateral Tables'!$AS$6 -> 0.01130228056 | H85: =IF(H75="Yes",IF(G85<0.0085,"Yes","No"),"n/a") -> No | J85: SN | K85: 1.1 | L85: INCOME SHORTFALL
L86: Required Payments | M86: =+O83 -> 2267205.759
C87: (ii) 1.25% if that Payment Date is on or after the second anniversary of the Closing Date but before the third anniversary of the closing date: | G87: =G85 -> 0.01130228056 | H87: =IF(H76="Yes",IF(G87<0.0085,"Yes","No"),"n/a") -> n/a | J87: SN | K87: 1.1 | L87: less Available Income | M87: =+M58 -> 3101475.5
C88: (iiI) 1.75% if that Payment Date is on or after the third anniversary of the Closing Date | G88: =G87 -> 0.01130228056 | H88: =IF(H77="Yes",IF(G88<0.0085,"Yes","No"),"n/a") -> n/a | J88: SN | K88: 4.3(a) | L88: Income Shortfall | M88: =IF(+M86-M87>0,M86-M87,0) -> 0 | N88: =IF(M88>0,"Income shortfall. Draw funds from Cash Reserve!","-") -> -
M89: =IF(M88>H51+H54,H51+H54,M88) -> 0 | N89: =IF(M89>0,"Funds permited to be drawn from Cash Reserve.","-") -> -
C90: (d) as at immediately preceding Determination Date, average of aggregate principal outstanding of Purchased Receivables over previous two collection periods that have a scheduled payment more than 60 days overdue less than or equal to 2.5% of the average of the aggregate principal outstanding of all Purchased Receivables on each such determination date | G90: =(AVERAGE(SUM('Collateral Tables'!V46:V49),SUM('Collateral Tables'!Z46:Z49)))/(AVERAGE('Collateral Tables'!V50,'Collateral Tables'!Z50)) -> 0.01449833333 | H90: =IF(G90<0.025,"Yes","No") -> Yes | J90: SN | K90: 1.1 | L90: PAYMENT SHORTFALL
F91: (e) No Principal Draws Outstanding | G91: =P13 -> 0 | H91: =IF(G91=0,"Yes","No") -> Yes | L91: Required Payments | M91: =+M86 -> 2267205.759
F92: (f) Aggregate Invested Amount of All Notes on Payment Date greater than 10% of Invested Amount of all Notes on Note Issue Date | G92: =M179/M168 -> 0.3946184743 | H92: =IF(G92>0.1,"Yes","No") -> Yes | L92: less Available Income | M92: =+M87 -> 3101475.5
F93: (g) No Unreimbursed Charge-Offs Against Seller Notes | G93: =M36 -> 665855.8692 | H93: =IF(G93=0,"Yes","No") -> No | L93: less drawings on Cash Reserve | M93: =+M89 -> 0
J94: SN | K94: 4.3(b) | L94: Payment Shortfall | M94: =IF(+M91-M92-M93<0,0,M91-M92-M93) -> 0 | N94: =IF(M94>0,"Payment shortfall. Principal Draw required!","-") -> -
J96: SN | K96: 1.1 | L96: TOTAL AVAILABLE INCOME
J97: SN | K97: Definition | L97: Available Income | M97: =+M58 -> 3101475.5
J98: SN | K98: 4.3(a) | L98: Drawings from the Cash Reserve (refer SN cl.4.3(a)) (if any) | M98: =+M93 -> 0
J99: SN | K99: 4.3(b) | L99: Principal Draws relating to current Collection Period (if any) | M99: =MIN(M94,SUM(M145:M148)) -> 0
J100: SN | K100: 1.1 | L100: Total Available Income | M100: =ROUND(SUM(M97:M99),2) -> 3101475.5
J102: SN | K102: 4.2 | L102: DISTRIBUTION OF AVAILABLE INCOME | M102: Amount Due | N102: Amount Available | O102: Amount Paid
J103: SN | K103: 4.2(c) | L103: Accrued Interest Adjustment | M103: =+O61 -> 0 | N103: =+M100 -> 3101475.5 | O103: =IF(M103<N103,M103,N103) -> 0
J104: SN | K104: 4.2(a)(ii) | L104: Taxes payable in relation to the Trust | M104: 87012 | N104: =+N103-M103 -> 3101475.5 | O104: =IF(M104<N104,M104,N104) -> 87012
J105: SN | K105: 4.2(a)(iii) | L105: Trustee Fee (0.04%) | M105: 17125.69 | N105: 3014463.5 | O105: =IF(M105<N105,M105,N105) -> 17125.69
J106: SN | K106: 4.2(a)(iv) | L106: Managers Fee (0.05%) | M106: 21407.12 | N106: 2997337.81 | O106: =IF(M106<N106,M106,N106) -> 21407.12
J107: SN | K107: 4.2(a)(v) | L107: Security Trustee Fee (included in Trustee Fee) | M107: 0 | N107: 2975930.69 | O107: =IF(M107<N107,M107,N107) -> 0
J108: SN | K108: 4.2(a)(vi) | L108: Other Expenses incurred by the Trustee or Security Trustee | M108: 0 | N108: 2975930.69 | O108: 0
J109: SN | K109: 4.2(a)(vii)(A) | L109: Backup Servicer Fee (pari passu) | M109: 0 | N109: 2975930.69 | O109: 0
K110: 4.2(a)(vii)(B) | L110: Servicer Fee (if CNH Aust. is not Servicer) (1.25%) (pari passu) | M110: 0 | N110: 2975930.69 | O110: 0
J111: SN | K111: 4.2(a)(viii) | L111: Custodian Fee (0.02%) | M111: 8562.85 | N111: 2975930.69 | O111: 8562.85
J112: SN | K112: 4.2(a)(ix) | L112: Other Expenses incurred by the Servicer or Backup Servicer | M112: 20944.75 | N112: 2967367.84 | O112: 20944.75
J113: SN | K113: 4.2(a)(x) | L113: Break costs received by Trustee from the Servicer to be paid to the Swap Provider/ Backup Swap Provider | M113: 0 | N113: 2946423.09 | O113: 0
J114: SN | K114: 4.2(a)(xi)(A)& (B) | L114: Coupon - Class A Notes (pari passu) | M114: =+O72+O73 -> 1135001.89 | N114: 2946423.09 | O114: 1135001.89
J115: SN | K115: 4.2(a)(xi)(C) | L115: Net Swap Payment (pari passu) | M115: =+O74 -> 728057.21 | N115: 1811421.2 | O115: 728057.21
J116: SN | K116: 4.2(a)(xi)(D) | L116: Backup Swap Provider Fee (pari passu) | M116: =+O75 -> 14450.17 | N116: 1083363.99 | O116: 14450.17
J117: SN | K117: 4.2(a)(xii)(A)&(B) | L117: Coupon - Class B Notes (pari passu) | M117: =+O76+O77 -> 149014.6192 | N117: 1068913.82 | O117: 149014.6192
J118: SN | K118: 4.2(a)(xiii) | L118: Repayment of Principal Draws previously not reimbursed | M118: =+O78 -> 0 | N118: 919899.2008 | O118: =+M118 -> 0
J119: SN | K119: 4.2(a)(xiv) | L119: Reimbursement of aggregate amount of drawings from the Cash Reserve Account | M119: =+O79 -> 0 | N119: 919899.2008 | O119: =+M119 -> 0
J120: SN | K120: 4.2(a)(xv) | L120: Servicer Fee (if CCA is Servicer) (0.2%) | M120: =O80 -> 85628.46 | N120: 919899.2008 | O120: =+M120 -> 85628.46
J121: SN | K121: 4.2(a)(i) | L121: A$1 to the holders of the residual income unit | M121: =M82 -> 1 | N121: 834270.7408 | O121: 1
J122: SN | K122: 4.2(a)(xvi) | L122: Other Expenses of the Trust | M122: =O81 -> 0 | N122: =+N121-M121 -> 834269.7408 | O122: 0
L123: Excess Available Income | N123: =+N122-O122 -> 834269.7408
L125: APPLICATION OF EXCESS AVAILABLE INCOME
M126: Amount Due | N126: Amount Available | O126: Amount Paid
J127: SN | K127: 4.4(a)(i) | L127: Reinstatement of Charge-Offs which have occurred during the Collection Period | M127: =+H37 -> 1500125.61 | N127: =+N123 -> 834269.7408 | O127: =IF(M127<N127,M127,N127) -> 834269.7408
J128: SN | K128: 4.4(a)(ii) | L128: Reinstatement of Charge-Offs which have occurred during previous Collection Periods | M128: =Q172-Q173 -> 0 | N128: =+N127-O127 -> 0 | O128: =IF(M128<N128,M128,N128) -> 0
J129: SN | K129: 4.4(a)(iv)(A) | L129: Coupon Entitlement - Seller Notes (1%) | M129: =+Q185 -> 362905.01 | N129: =+N128-O128 -> 0 | O129: =IF(M129<N129,M129,N129) -> 0
J130: SN | K130: 4.4(a)(iv)(B) | L130: Coupn entitlement on Seller Notes for any previous coupon period that remains unpaid | M130: ='Seller Coupon'!J8 -> 1060579.472 | N130: 0 | O130: 0
L131: Excess Distribution to Beneficiary | N131: =IF(N129-O129>0,N129-O129,0) -> 0
J133: SN | K133: 1.1 | L133: PRINCIPAL COLLECTIONS
J134: SN | K134: 1.1
J135: SN | K135: 1.1 | L135: Payments received from the Approved Seller in respect of the purchase of a Purchased Receivable during the Collection Period | M135: =+H23 -> 15468185.2
J136: SN | K136: 1.1 | L136: Any amounts received by the Trustee from the Approved Seller which are attributable to Principal | M136: =H25 -> 0
J137: SN | K137: 1.1 | L137: All payments in the nature of or which represent GST
L138: All amounts received during the Collection Period in respect of:
J139: SN | K139: 1.1 | L139: * any breach of a representation or warranty of undertaking by the Approved Seller, Servicer and Custodian contained in the Transaction Documents | M139: =+H29 -> 0
J140: SN | K140: 1.1 | L140: * any obligation by the Approved Seller, Servicer and Custodian under the Transaction Documents to indemnify or reimburse the Trustee for any amount | M140: =+H31 -> 0
J141: SN | K141: 1.1 | L141: * any breach of a representation, warranty or undertaking in respect of a breach of which they are not entitled to be indemnified out of the Assets of the Trust or any indemnity from the Manager and Trustee contained in the Transaction Documents. | M141: =+H34 -> 0
L142: Principal Collections | M142: =SUM(M135:M141) -> 15468185.2
J144: SN | K144: 1.1 | L144: TOTAL AVAILABLE PRINCIPAL
J145: SN | K145: 1.1 | L145: Principal Collections | M145: =+M142 -> 15468185.2
J146: SN | K146: 4.4(a)(xii) | L146: Total Available Income applied towards repayment of Principal Draws | M146: =O118 -> 0
J147: SN | K147: 4.4 | L147: Excess Available Income applied towards reinstating any Charge-offs | M147: =+MIN(M18+M19,IF(M58-O83<0,0,M58-O83)) -> 834269.7408
L148: Proceeds of Notes invested in Authorised Investments on the Closing Date | M148: 0
L149: Less Principal Draw to be made on Payment Date | M149: =+M99 -> 0
L150: Total Available Principal | M150: =SUM(M145:M148)-M149 -> 16302454.94
L152: DISTRIBUTION OF TOTAL AVAILABLE PRINCIPAL | M152: Amount Due | N152: Amount Available | O152: Amount Paid
J153: SN | K153: 4.6(a)(i)(A) | L153: Class A1 Notes Principal Payment | M153: =IF(N170=0,0,MIN(M150,N170)) -> 0 | N153: =+M150 -> 16302454.94 | O153: =ROUND(+M153,2) -> 0
J154: SN | K154: 4.6(a)(i)(B) | L154: Class A2 Notes Principal Payment | M154: =IF(O170=0,0,MIN(M150-O153,O170)) -> 16302454.94 | N154: =+N153-O153 -> 16302454.94 | O154: =ROUND(+M154,2) -> 16302454.94
J155: SN | K155: 4.6(a)(i)(C) | L155: Class B Notes Principal Payment | M155: =IF(P170=0,0,MIN(M150-SUM(O153:O154),P170)) -> 0.0008219387382 | N155: =+N154-O154 -> 0.0008219387382 | O155: =ROUND(+M155,2) -> 0
J156: SN | K156: 4.6(a)(i)(C) | L156: Seller Notes Principal Payment | M156: =IF(Q170=0,0,MIN(M150-SUM(O153:O155),Q170)) -> 0.0008219387382 | N156: =+N155-O155 -> 0.0008219387382 | O156: =ROUND(+M156,2) -> 0
L159: PRINCIPAL BALANCE OF PURCHASED RECEIVABLES
L160: =CONCATENATE("Outstanding Principal Balance of Purchased Receivables as at ",(TEXT(+H7,"d mmmm yyy"))) -> Outstanding Principal Balance of Purchased Receivables as at 1 June 2013 | M160: ='17 Jun 13'!M164 -> 154418920.7
L161: Less: Principal Collections | M161: =+M145 -> 15468185.2
L162: Less: Charge-offs | M162: =+H37 -> 1500125.61
L163: Overissuance Proceed
L164: =CONCATENATE("Outstanding Principal Balance of Purchased Receivables as at ",(TEXT(+H8,"d mmmm yyy"))) -> Outstanding Principal Balance of Purchased Receivables as at 1 September 2013 | M164: =+M160-M161-M162+M163 -> 137450609.9 | N164: =M164-M16 -> -0.2408218086
L166: TOTAL NOTE BALANCES
M167: Total Notes | N167: Class A1 Notes | O167: Class A2 Notes | P167: Class B Notes | Q167: Seller Notes
L168: Initial Invested Amount | M168: =SUM(N168:Q168) -> 350000000 | N168: 71500000 | O168: 228000000 | P168: 12000000 | Q168: 38500000
J169: (a) | L169: =CONCATENATE("Invested Amount as at Previous Payment Date: ",(TEXT(H4,"d mmmm yyy"))) -> Invested Amount as at Previous Payment Date: 17 June 2013 | M169: =SUM(N169:Q169) -> 154418921 | N169: ='15 Jun 12'!N179 -> 0 | O169: ='17 Jun 13'!O179 -> 103918921 | P169: ='17 Jun 13'!P179 -> 12000000 | Q169: ='17 Jun 13'!Q179 -> 38500000
J170: (b) | L170: =CONCATENATE("Stated Amount as at Previous Payment Date: ",(TEXT(+H4,"d mmmm yyy"))) -> Stated Amount as at Previous Payment Date: 17 June 2013 | M170: =SUM(N170:Q170) -> 154418921 | N170: ='15 Jun 12'!N179 -> 0 | O170: ='17 Jun 13'!O180 -> 103918921 | P170: ='17 Jun 13'!P180 -> 12000000 | Q170: ='17 Jun 13'!Q180 -> 38500000
J171: (d) | L171: Principal Payments to Noteholders on Payment Date | M171: =SUM(N171:Q171) -> 16302455 | N171: =ROUND(+O153,2) -> 0 | O171: =ROUND(+O154,) -> 16302455 | P171: =ROUND(+O155,0) -> 0 | Q171: =ROUND(+O156,0) -> 0
L172: Gross Aggregate Charge-Offs | M172: 0 | N172: =+O172 -> 0 | O172: 0 | P172: 0 | Q172: ='17 Jun 13'!Q178 -> 0
L173: Gross Aggregate Reinstatements of charge-offs | M173: 0 | N173: =+O173 -> 0 | O173: 0 | P173: 0 | Q173: 0
J174: (e) | L174: Aggregate Charge-Offs for this Collection Period | M174: 1500125.61 | N174: =IF(SUM(O174:Q174)<$M$19,MIN($M$19,N170),0) -> 0 | O174: =IF(SUM(P174:Q174)<$M$19,MIN($M$19,O170),0) -> 0 | P174: =IF(Q174<$M$19,MIN($M$19,P170),0) -> 0 | Q174: =IF(MIN($M$19,Q170)<0,0,MIN($M$19,Q170)) -> 1500125.61
J175: (f) | L175: Reinstatements relating to Charge-offs that have occurred this Collection Period | M175: 834269.7408 | N175: 0 | O175: =IF(SUM(P175:Q175)<$M$20,MIN($M$20,O171),0) -> 0 | P175: =IF(Q175<$M$20,MIN($M$20,P171),0) -> 0 | Q175: =M20 -> 834269.7408
L176: Aggregate Carry Over Charge-offs not previously reinstated | M176: 0 | N176: =+M35 -> 0 | O176: =+M25 -> 0 | P176: 0 | Q176: =+M18 -> 0
L177: Reinstatements of Carry Over Charge-offs not previously reinstated | M177: 0 | N177: =IF(N176>0,MIN((M28-M175),N176),0) -> 0 | O177: =IF(O176>0,MIN((M21-M175+N177),O176),0) -> 0 | P177: 0 | Q177: =+M21 -> 0
L178: Aggregate Charge-Offs not reinstated and to be carried over to next period | M178: =SUM(N178:P178) -> 0 | N178: =+N174-N175+N176-N177 -> 0 | O178: =+O174-O175+O176-O177 -> 0 | P178: =+P174-P175+P176-P177 -> 0 | Q178: =+Q174-Q175+Q176-Q177 -> 665855.8692
L179: =CONCATENATE("Invested Amount as at Payment Date: ",(TEXT(+H5,"d mmmm yyy"))) -> Invested Amount as at Payment Date: 16 September 2013 | M179: =SUM(N179:Q179) -> 138116466 | N179: =+N169-N171 -> 0 | O179: =+O169-O171 -> 87616466 | P179: =+P169-P171 -> 12000000 | Q179: =+Q169-Q171 -> 38500000
L180: =CONCATENATE("Stated Amount as at Payment Date: ",(TEXT(+H5,"d mmmm yyy"))) -> Stated Amount as at Payment Date: 16 September 2013 | M180: =SUM(N180:Q180) -> 137450610.1 | N180: =+N170-N171-N174+N175 -> 0 | O180: =+O170-O171-O174+O175 -> 87616466 | P180: =+P170-P171-P174+P175+P177 -> 12000000 | Q180: =+Q170-Q171-Q174+Q175+Q177 -> 37834144.13
L181: =CONCATENATE("Bond Factor at Payment Date: ",(TEXT(+H5,"d mmmm yyy"))) -> Bond Factor at Payment Date: 16 September 2013 | N181: =(+N180/N168) -> 0 | O181: =IF(O179=0,0,(+O179/O168)) -> 0.3842827456 | P181: =(+P180/P168) -> 1 | Q181: =(+Q180/Q168) -> 0.9827050424
L182: Coupon Margin | N182: 0.006 | O182: 0.016 | P182: 0.022 | Q182: 0.01
L183: Coupon Rate (3 month BBSW + margin) | N183: =+M2+N182 -> 0.033808 | O183: =+M2+O182 -> 0.043808 | P183: =+M2+P182 -> 0.049808 | Q183: =+M2+Q182 -> 0.037808
L184: Days in Coupon Period | N184: =+M6 -> 91 | O184: =+M6 -> 91 | P184: =+M6 -> 91 | Q184: =+M6 -> 91
L185: =CONCATENATE("Coupon Entitlement to be paid out on the current Payment Date: ",(TEXT(H5,"d mmmm yyy"))) -> Coupon Entitlement to be paid out on the current Payment Date: 16 September 2013 | N185: =ROUND(+N169*N183*N184/365,2) -> 0 | O185: =ROUND(+O169*O183*O184/365,2) -> 1135001.89 | P185: =ROUND(P170*P183*P184/365,2) -> 149014.62 | Q185: =ROUND(Q170*Q183*Q184/365,2) -> 362905.01
J187: Swap Conf. | L187: NET SWAP SETTLEMENT
L189: =CONCATENATE("Aggregate Invested Amount of Class A1 Notes as at ",(TEXT(H4,"dd-mmm-yy"))) -> Aggregate Invested Amount of Class A1 Notes as at 17-Jun-13 | M189: =+N169 -> 0
L190: =CONCATENATE("Aggregate Invested Amount of Class A2 Notes as at ",(TEXT(H4,"dd-mmm-yy"))) -> Aggregate Invested Amount of Class A2 Notes as at 17-Jun-13 | M190: =+O169 -> 103918921
L191: =CONCATENATE("Aggregate Invested Amount of Class B Notes as at ",(TEXT(H4,"dd-mmm-yy"))) -> Aggregate Invested Amount of Class B Notes as at 17-Jun-13 | M191: =+P169 -> 12000000
L192: Notional Amount | M192: =SUM(M189:M191) -> 115918921
L193: Floating Rate Payer | O193: Fixed Rate Payer
J194: Swap Conf. | L194: Notional Amount | M194: =+M192 -> 115918921 | O194: Notional Amount | P194: =+M192 -> 115918921
L195: BBSW as at commencement of the Calculation Period | M195: =+H10 -> 0.027808 | O195: Fixed Rate | P195: =+M3 -> 0.053
L196: Number of Days in the Calculation Period | M196: =+M6 -> 91 | O196: Number of Days in the Calculation Period | P196: =+M6 -> 91
L197: Sub-Total - Floating Rate Payer | M197: =ROUND(M194*M195*M196/365,2) -> 803660.48 | O197: Sub-Total - Fixed Rate Payer | P197: =ROUND(P194*P195*P196/365,2) -> 1531717.69
L199: NET SWAP PAYMENT | M199: =ROUND(IF(P197>M197,P197-M197,M197-P197),2) -> 728057.21 | N199: =IF(P197>M197,"Net Swap Settlement - Fixed Rate Payer pays","Net Swap Settlement - Floating Rate Payer pays") -> Net Swap Settlement - Fixed Rate Payer pays
J220: FAX
L222: TO: Marion Gowing | M222: Tel: | N222: (02) 9229 9689
L223: Co.: Perpetual Trustee Company Pty Limited | M223: Fax: | N223: (02) 9229 9703 / 7870
L224: (the "Trustee")
L225: From: Rachelle Hall | M225: Tel: | N225: (02) 9673 7820
L226: Co.: CNH Capital Australia Pty Limited | M226: Fax: | N226: (02) 9833 1273
L227: (the "Manager")
L228: Date: | N228: # Pages: 2 pages inclusive
J230: QUARTERLY MANAGER'S REPORT - PAYMENT DIRECTIONS
J232: Please debit the following account and credit the accounts detailed in the table below:
J233: Debit
J234: Account Name: Perpetual Trustee Company Limited ATF the CNH Capital Australia Receivables Trust Series 2011-1
J235: Account No.: 012 003 / 8416 63108
J236: =CONCATENATE("Amount: ",(TEXT(M280,"$#,###.00"))) -> Amount: $18,569,660.70
... 92 more rows

Sheet 17 Jun 13
C1: CNH CAPITAL AUSTRALIA RECEIVABLES TRUST SERIES 2011-1 (TERM DEAL) - INPUT KEY KEY DATES | J1: CNH CAPITAL AUSTRALIA RECEIVABLES TRUST SERIES 2011-1 (TERM DEAL) - QUARTERLY MANAGER'S REPORT | O1: SUMMARY
C2: Determination Date | H2: 2013-06-12 | L2: =CONCATENATE("3 month BBSW as at Payment Date: ",(TEXT(+H4,"d mmmm yyy"))) -> 3 month BBSW as at Payment Date: 15 March 2013 | M2: =+H10 -> 0.031292
C3: Next Determination Date | H3: 2013-09-11 | L3: =+G12 -> Fixed Rate as advised by the Calculating Agent as at - 23 September 2011(fixed) | M3: =+H12 -> 0.053
C4: Previous Payment Date | H4: 2013-03-15
C5: Payment Date | H5: 2013-06-17 | L5: KEY DATES | N5: Maturity Date: | O5: 2014-07-15
C6: Next Payment Date | H6: 2013-09-16 | I6: =DAY(H6)&" "&TEXT(H6,"mmm")&" "&TEXT(H6,"YY") -> 16 Sep 13 | L6: =CONCATENATE("COUPON PERIOD: Start Date: ",(TEXT(+H4,"d mmmm yyy"))," End Date: ",(TEXT(+H5,"d mmmm yyy"))) -> COUPON PERIOD: Start Date: 15 March 2013 End Date: 17 June 2013 | M6: =+H5-H4 -> 94 | N6: end date exclusive
C7: Start of Collection Period | H7: 2013-03-01 | L7: =CONCATENATE("COLLECTION PERIOD: Start Date: ",(TEXT(+H7,"d mmmm yyy"))," End Date: ",(TEXT(+H8,"d mmmm yyy"))) -> COLLECTION PERIOD: Start Date: 1 March 2013 End Date: 1 June 2013 | M7: =+H8-H7 -> 92 | N7: end date exclusive | P7: Next Custodian Audit Report Due: | Q7: 2011-03-31
C8: End of Collection Period | H8: 2013-06-01 | P8: Next Servicer Audit Report Due: | Q8: 2011-03-31
G9: RATES | P9: Next Annual Accounts Audit Due: | Q9: 2011-06-30
G10: =CONCATENATE("3 month BBSW as at start of previous Coupon Period - ",(TEXT(H4,"d mmmm yyy"))) -> 3 month BBSW as at start of previous Coupon Period - 15 March 2013 | H10: 0.031292 | L10: NOTE SUMMARY / PURCHASED RECEIVABLES BALANCE
G11: =CONCATENATE("3 month BBSW on Payment Date - ",(TEXT(H5,"d mmmm yyy"))) -> 3 month BBSW on Payment Date - 17 June 2013 | L11: Aggregate Initial Invested Amount of all Notes | M11: =+M168 -> 350000000
G12: Fixed Rate as advised by the Calculating Agent as at - 23 September 2011(fixed) | H12: 0.053 | L12: =CONCATENATE("Class A1 Notes - Stated Amount as at Payment Date: ",(TEXT(+H5,"d mmmm yyyy"))) -> Class A1 Notes - Stated Amount as at Payment Date: 17 June 2013 | M12: =N179 -> 0 | O12: =CONCATENATE("Pur. Receivables as at ",(TEXT(+H8,"d mmmm yyy"))," - excl. C/Offs") -> Pur. Receivables as at 1 June 2013 - excl. C/Offs | P12: =M164 -> 154418920.7
G13: TOTAL AVAILABLE INCOME | L13: =CONCATENATE("Class A2 Notes - Stated Amount as at Payment Date: ",(TEXT(+H5,"d mmmm yyyy"))) -> Class A2 Notes - Stated Amount as at Payment Date: 17 June 2013 | M13: =O180 -> 103918921 | O13: Current period Principal Draw | P13: =+M94 -> 0
G14: Income Collections for the Collection Period (excluding Recoveries) & Misc Receivables | H14: ='[58]Servicer Recon'!$B$10+'[58]Servicer Recon'!$C$16+[51]Sheet1!$N$4823 -> 5744700.318 | I14: =[51]Sheet1!$H$4823 -> 34508173.18 | L14: =CONCATENATE("Class B - Stated Amount as at Payment Date: ",(TEXT(+H5,"d mmmm yyyy"))) -> Class B - Stated Amount as at Payment Date: 17 June 2013 | M14: =P180 -> 12000000 | P14: =+Q43 -> 0
C15: Recoveries | I15: =H14+H15+H17+H23 -> 34508173.18 | L15: =CONCATENATE("Seller Notes - Stated Amount as at Payment Date: ",(TEXT(+H5,"d mmmm yyyy"))) -> Seller Notes - Stated Amount as at Payment Date: 17 June 2013 | M15: =+Q180 -> 38500000 | P15: =+Q41 -> 0
C16: Interest in respect of the Collection Account | H16: =80074.71-20.75-16.5+51852.11-20.5-18.7+54940.76-28.5-26.25-16.5 -> 186719.88 | I16: =I14-I15 -> 7.450580597e-08 | L16: Reconciliation of Bond Balance to Receivable Balance | M16: =SUM(M12:M15) -> 154418921 | O16: =+P16-M16 -> -0.2999998629 | P16: =SUM(P12:P15) -> 154418920.7 | Q16: =IF(ROUNDUP(M16,0)-ROUNDUP(P16,0)=0,"Ok - adj. any minor rounding diff. next month","Does not reconcile -Investiage discrepancy.") -> Ok - adj. any minor rounding diff. next month
C17: All payments in the nature of or which represent GST & Stamp duties | H17: =[51]Sheet1!$L$4823+[51]Sheet1!$O$4823 -> 46196.97182 | L17: CHARGE-OFFS | O17: ANNUALISED ROLLING PERCENTAGE
C18: Amounts in the nature of interest otherwise paid by an Approved Seller, the Servicer or Manager to the Trustee in respect of all Collections held by it | J18: SN | K18: 4.7(vi) | L18: =CONCATENATE("Carry Over Charge Offs as at ",(TEXT(H4,"d mmmm yyy"))) -> Carry Over Charge Offs as at 15 March 2013 | M18: =+M128 -> 0 | P18: Annualised Rolling Average Charge-Off Percentage (must be < 6%) | Q18: =SUM(Q20:Q23)/4*4 -> 0.01253854315
J19: SN | K19: 4.7(vi) | L19: Plus Current Period Charge-Offs | M19: =+M127 -> 1666748.38 | N19: Collection Period | O19: Charge-Offs | P19: Agg. Rec. Open Bal. O/S | Q19: Charge Off %
C20: All other amounts received by or on behalf of the Trustee during the Coll. Per. in the nature of income | J20: SN | K20: 4.4(a)(i) | L20: Less Reinstatement of Current Period Charge Offs | M20: =+O127 -> 1666748.38 | N20: =CONCATENATE("Fr: ",(TEXT(H7,"dd-mmm-yy"))," To: ",((TEXT(H8,"d-mmm-yy")))) -> Fr: 01-Mar-13 To: 1-Jun-13 | O20: =+M19 -> 1666748.38 | P20: =+M160 -> 184802945 | Q20: =IF(P20=0,"-",(+O20/P20)) -> 0.009019057463
G21: TOTAL AVAILABLE PRINCIPAL | J21: SN | K21: 4.4(a)(ii) | L21: Less Reinstatement of Carry Over Charge Offs | M21: =+O128 -> 0 | N21: Fr: 01-Jun-12 To: 1-Sep-12 | O21: 638974.24 | P21: 253389246.9 | Q21: =IF(P21=0,"-",(+O21/P21)) -> 0.002521710167
C22: Payments received from the Obligors in respect of the purchase of a Purchased Receivable during the Collection Period | J22: SN | K22: 4.7(vi) | L22: =CONCATENATE("Total Carry Over Charge Offs as at ",(TEXT(+H5,"d mmmm yyy"))) -> Total Carry Over Charge Offs as at 17 June 2013 | M22: =+M18+M19-M20-M21 -> 0 | N22: Fr: 01-Mar-12 To: 1-Jun-12 | O22: 242288.27 | P22: 289481969.9 | Q22: 0.000836971885
H23: ='[58]Servicer Recon'!$B$9 -> 28717275.89 | J23: =CONCATENATE("Distribution of Total Carry Over Charge-Offs as at ",(TEXT(H5,"D MMMM YYY")),"- Amounts are Net of Reinstatements") -> Distribution of Total Carry Over Charge-Offs as at 17 June 2013- Amounts are Net of Reinstatements | N23: Fr: 01-Dec-11 To: 1-Mar-12 | O23: 51956.75 | P23: 323106818.3 | Q23: 0.0001608036323
C24: Any amounts received by the Trustee from the Approved Seller which are attributable to Principal | L24: =CONCATENATE("Carry Over Charge-Offs allocable to Seller Notes ",(TEXT(H5,"d mmmm yyy"))) -> Carry Over Charge-Offs allocable to Seller Notes 17 June 2013 | M24: =MIN($M$18-$M$21,P170) -> 0 | Q24: -
L25: =CONCATENATE("Carry Over Charge-Offs allocable to Class B Notes",(TEXT(H5,"d mmmm yyy"))) -> Carry Over Charge-Offs allocable to Class B Notes17 June 2013 | M25: =MIN($M$18-$M$21-$M$24,O170) -> 0 | Q25: -
G26: All payments in the nature of or which represent GST & Stamp duties | L26: =CONCATENATE("Carry Over Charge-Offs allocable to Class A Notes",(TEXT(H5,"d mmmm yyy"))) -> Carry Over Charge-Offs allocable to Class A Notes17 June 2013 | M26: =MIN($M$18-$M$21-$M$24-$M$25,N170) -> 0 | Q26: -
G27: Amounts received during the Collection Period in respect of: | Q27: -
C28: * any breach of a representation or warranty of undertaking by the Approved Seller, Servicer and Custodian contained in the Transaction documents | L28: =CONCATENATE("Current Period Charge-Offs allocable to Seller Notes ",(TEXT(H5,"d mmmm yyy"))) -> Current Period Charge-Offs allocable to Seller Notes 17 June 2013 | M28: =MIN(+M22-M24,P170) -> 0 | Q28: -
L29: =CONCATENATE("Current Period Charge-Offs allocable to Class B Notes ",(TEXT(H5,"d mmmm yyy"))) -> Current Period Charge-Offs allocable to Class B Notes 17 June 2013 | M29: =IF(M28<(M19-M20),MIN((M19-M20-M28),O170),0) -> 0 | Q29: -
C30: * Any obligation by the Approved Seller, Servicer and Custodian under the Transaction Documents to indemnify or reimbruse the Trustee for any amount | L30: =CONCATENATE("Current Period Charge-Offs allocable to Class A Notes ",(TEXT(H5,"d mmmm yyy"))) -> Current Period Charge-Offs allocable to Class A Notes 17 June 2013 | M30: =IF(M28+M29<(M19-M20),MIN((M19-M20-M28-M29),N170),0) -> 0 | Q30: -
Q31: -
C32: * any breach of a representation, warranty or undertaking in respect of a breach of which they are not entitled to be indemnified out of the Assets of the Trust or any indemnity from the Manager and Trustee contained in the Transaction Documents. | L32: =CONCATENATE("Total Charge-offs allocable to Seller Notes as at ",(TEXT(H5,"d mmmm yyy"))) -> Total Charge-offs allocable to Seller Notes as at 17 June 2013 | M32: =+M28+M24 -> 0 | Q32: -
L33: =CONCATENATE("Total Charge-offs allocable to Class B Notes as at ",(TEXT(H5,"d mmmm yyy"))) -> Total Charge-offs allocable to Class B Notes as at 17 June 2013 | M33: =+M25+M29 -> 0 | Q33: -
L34: =CONCATENATE("Total Charge-offs allocable to Class A Notes as at ",(TEXT(H5,"d mmmm yyy"))) -> Total Charge-offs allocable to Class A Notes as at 17 June 2013 | M34: =+M26+M30 -> 0 | Q34: -
C35: Any proceeds of Notes which were invested in Authorised Investments on Closing Date | Q35: -
G36: CHARGE-OFFS | L36: =+L22 -> Total Carry Over Charge Offs as at 17 June 2013 | M36: =SUM(M32:M35) -> 0 | Q36: -
G37: Charge-Offs for this period | H37: ='[58]Servicer Recon'!$C$14 -> 1666748.38 | K37: DEPOSITS | M37: CASH RESERVE | O37: TITLE PERFECTION RESERVE
G38: REQUIRED PAYMENTS | L38: =CONCATENATE("Balance as at ",(TEXT(H4,"d mmmm yyy"))," - excl. funds dep. due to DD on Payment Date") -> Balance as at 15 March 2013 - excl. funds dep. due to DD on Payment Date | M38: =+H51 -> 8231057 | O38: =+H59 -> 0
G39: Accrued Interest Adjustment | L39: Repayment of drawing on account on Payment Date | M39: =+H52 -> 0
G40: Taxes & Government Charges payable in relation to the Trust (Stamp Duty & GST) | L40: Funds to be released from account and deposited into the Collection Account on Payment Date | M40: =-M89 -> 0
G41: Stamp Duty Payable for the current Collection Period | H41: =[51]Sheet1!$L$4823 -> 0
G42: GST Payable for the current Collection Period | H42: 18673 | L42: Funds to be released to CNH as they are no longer required to be placed on deposit | M42: =IF(ROUND(M40,0)=0,0,"Check") -> 0 | N42: Principal to be released to CNH | O42: =+H61 -> 0
L43: =CONCATENATE("Balance as at ",(TEXT(H5,"d mmmm yyy"))) -> Balance as at 17 June 2013 | M43: =SUM(M38:M42) -> 8231057 | N43: =CONCATENATE("Balance as at ",(TEXT(H5,"d mmmm yyy"))) -> Balance as at 17 June 2013 | O43: =SUM(O38:O41)-O42 -> 0
G44: Other Expenses incurred by the Trustee or Security Trustee in relation to the Trust | H44: 0
G45: =+L70 -> Other Expenses incurred by the Servicer or Backup Servicer | H45: =[51]Sheet1!$N$4823 -> 37442.37
G46: Payments due by the Trustee to the Swap Provider | L46: =CONCATENATE("Total Interest earnt during period as at ",(TEXT(H5,"d mmmm yyy"))," - Dep. into Collection Acc.") -> Total Interest earnt during period as at 17 June 2013 - Dep. into Collection Acc. | M46: =H57 -> 0 | N46: - Dep. to CNH Capital | O46: =H63 -> 0
C47: Break costs payable by the Trustee to the Swap Provider in respect of partially unwinding the Swap in respect to Receivable which have been particially prepaid or which have been charged-off and not prev. been paid and any other breaks cost due by the Tr | J47: =+J1 -> CNH CAPITAL AUSTRALIA RECEIVABLES TRUST SERIES 2011-1 (TERM DEAL) - QUARTERLY MANAGER'S REPORT | O47: CASHFLOWS
J48: SN | K48: 1.1 | L48: AVAILABLE INCOME
C49: Other Expenses of Trust: | D49: Bank Charges only | G49: Expenses excl. b/c: | J49: SN | K49: 1.1 | L49: Net Swap Settlement payable by the Trustee | M49: =IF(M197>P197,+M199,0) -> 0
G50: CASH RESERVE DEPOSIT | J50: SN | K50: 1.1 | L50: Income Collections for the Collection Period | M50: =+H14 -> 5744700.318
G51: =CONCATENATE("Balance as at ",(TEXT(+H4,"d mmmm yyy"))," (excluding drawdowns on Payment Date)") -> Balance as at 15 March 2013 (excluding drawdowns on Payment Date) | H51: ='15 Mar 13'!H55 -> 8231057 | J51: SN | K51: 1.1 | L51: Recoveries | M51: =+H15 -> 0
G52: Repayment of drawing on Cash Reserve from last month | H52: =M79 -> 0 | J52: SN | K52: 1.1 | L52: =+C17 -> All payments in the nature of or which represent GST & Stamp duties | M52: =+H17 -> 46196.97182
G53: Funds to be withdrawn from the Cash Reserve Account due to income shortfall for Required Payments | H53: =-M40 -> 0 | J53: SN | K53: 1.1 | L53: Interest Income in respect of the Collection Account | M53: =+H16 -> 186719.88
J54: SN | K54: 1.1 | L54: Interest Income in respect of the Cash Reserve Account | M54: =+H56 -> 55082.48
G55: =CONCATENATE("Balance as at ",(TEXT(+H5,"d mmmm yyy"))) -> Balance as at 17 June 2013 | H55: =+H51+H52-H53+H54 -> 8231057
G56: =CONCATENATE("Interest earned on Cash Reserve and dep. into Collection Acc. as at ",(TEXT(+H4,"d mmmm yyy"))) -> Interest earned on Cash Reserve and dep. into Collection Acc. as at 15 March 2013 | H56: =55082.48 -> 55082.48 | J56: SN | K56: 1.1 | L56: Amounts in the nature of interest otherwise paid by an Approved Seller, the Servicer or Manager to the Trustee in respect of all Collections held by it | M56: =+H19 -> 0
G57: =CONCATENATE("Interest earned on Cash Reserve and dep. into Collection Acc. as at ",(TEXT(+H5,"d mmmm yyy"))) -> Interest earned on Cash Reserve and dep. into Collection Acc. as at 17 June 2013 | J57: SN | K57: 1.1 | L57: Other | M57: =+H20 -> 0
G58: TITLE PERFECTION RESERVE ACCOUNT | J58: SN | K58: DEFIN. | L58: Available Income | M58: =SUM(M49:M57) -> 6032699.65
G59: =CONCATENATE("Balance as at ",(TEXT(+H4,"d mmmm yyy"))," (excluding drawdowns on Payment Date)") -> Balance as at 15 March 2013 (excluding drawdowns on Payment Date) | H59: 0
G60: Additional Funds to be placed on Deposit (due to Drawdowns) | L60: REQUIRED PAYMENTS | M60: Excluding GST | N60: GST | O60: Including GST & Adjustment
G61: Funds to be withdrawn from the Title Perfection Reserve Account | J61: SN | K61: 4.2(c) | L61: Accrued Interest Adjustment | M61: 0 | O61: =+M61+N61 -> 0
G62: =CONCATENATE("Balance as at ",(TEXT(+H5,"d mmmm yyy")),) -> Balance as at 17 June 2013 | H62: =+H59+H60-H61 -> 0 | J62: SN | K62: 4.2(a)(ii) | L62: Taxes payable in relation to the Trust | M62: =+H41+H42 -> 18673 | O62: =+M62+N62 -> 18673
